Workbook

Sheet Home
A4: FRD 24 Reporting
A5: 1. Specify your agency and reporting period
A7: Agency:
A8: Tier
A9: Reporting Period
A10: Reporting Year
A11: Reporting for | B11: =_xlfn.CONCAT(B9," - ", B10) -> -
A13: 2. Import data files (optional)
A15: =HYPERLINK("#'Energy Data (imported)'!A1","Energy Data (F1, EL1, EL4)") -> Energy Data (F1, EL1, EL4) | C15: Export report from Resource Advisor | F15: Imported date:
A16: =HYPERLINK("#'Carbon Emission Report Details'!A1","Carbon Emission Report (T4, G3)") -> Carbon Emission Report (T4, G3) | C16: Available from CTM | F16: Imported date:
A17: =HYPERLINK("#'Monthly Collection Waste'!A1","Waste Data (WR1, WR2)") -> Waste Data (WR1, WR2) | C17: Available from SSP/JLL | E17: =IF(C26="NA","",IFERROR(IF( COUNTBLANK(INDIRECT("'Monthly Collection Waste'!"&LEFT(ADDRESS(1,MATCH("Waste Stream",INDIRECT("'Monthly Collection Waste'!1:1"),0),2),SEARCH("$",ADDRESS(1,MATCH("Waste Stream",INDIRECT("'Monthly Collection Waste'!1:1"),0),2))-1)&"1:"&LEFT(ADDRESS(1,MATCH("Waste Stream",INDIRECT("'Monthly Collection Waste'!1:1"),0),2),SEARCH("$",ADDRESS(1,MATCH("Waste Stream",INDIRECT("'Monthly Collection Waste'!1:1"),0),2))-1)&COUNTA(INDIRECT("'Monthly Collection Waste'!A:A")))) + COUNTBLANK(INDIRECT("'Monthly Collection Waste'!"&LEFT(ADDRESS(1,MATCH("Disposal Stream",INDIRECT("'Monthly Collection Waste'!1:1"),0),2),SEARCH("$",ADDRESS(1,MATCH("Disposal Stream",INDIRECT("'Monthly Collection Waste'!1:1"),0),2))-1)&"1:"&LEFT(ADDRESS(1,MATCH("Disposal Stream",INDIRECT("'Monthly Collection Waste'!1:1"),0),2),SEARCH("$",ADDRESS(1,MATCH("Disposal Stream",INDIRECT("'Monthly Collection Waste'!1:1"),0),2))-1)&COUNTA(INDIRECT("'Monthly Collection Waste'!A:A")))) = 0, IF(COUNTA(INDIRECT("'Monthly Collection Waste'!A:A"))=1,"Not Imported", "Complete"), "In Progress" ),"Not Imported")) ->  | F17: Imported date:
A19: 3. Input data | B19: Link | C19: Status
A20: Electricity Use | B20: Input data | C20: ='Electricity Use'!H8 -> NA | D20: View report
A21: Stationary Fuel Use | B21: Input data | C21: ='Stationary Fuel Use'!H8 -> NA | D21: View report
A22: Transportation | B22: Input data | C22: =Transportation!H8 -> NA | D22: View report
A23: Total Energy Use | B23: Input data | C23: ='Total Energy Use'!H8 -> NA | D23: View report
A24: Sustainable Buildings and Infrastructure | B24: Input data | C24: ='Sust.Buildings & Infrastructure'!H8 -> NA
A25: Water Use | B25: Input data | C25: ='Water Use'!H8 -> NA | D25: View report
A26: Waste and Recycling | B26: Input data | C26: ='Waste and Recycling'!H8 -> NA | D26: View report
A27: Greenhouse gas emissions | B27: Input data | C27: ='Greenhouse Gas Emissions'!H8 -> NA | D27: View report
A29: 4. Finalise report
B31: Disclaimer: This tool has been developed for use by Victorian Government agencies for the purpose of complying with Financial Reporting Direction 24: Reporting of environmental data by government entities. It is not intended for use for other purposes.

Sheet Report - Electricity (hidden)
B6: =Agency&" | "&Tier&" | "&ReportingPeriod -> | | -
B8: <- Back to Home
B10: Electricity Use
C12: Indicator | G12: =ReportingYear -> 0 | H12: Final value column | I12: Lookup - indicator | J12: Indicator column | K12: Lookup - segment | L12: Segment column | M12: Lookup - sheet
C13: EL1. Total electricity consumption segmented by source (MWh) | G13: =SUMIFS(INDIRECT("'"&M13&"'!"&H13&":"&H13),INDIRECT("'"&M13&"'!"&J13&":"&J13),I13,INDIRECT("'"&M13&"'!"&L13&":"&L13),K13) -> 0 | H13: J | I13: EL1 | J13: B | K13: * | L13: D | M13: Electricity Use
D14: Purchased electricity (MWh) | G14: =SUMIFS(INDIRECT("'"&M14&"'!"&H14&":"&H14),INDIRECT("'"&M14&"'!"&J14&":"&J14),I14,INDIRECT("'"&M14&"'!"&L14&":"&L14),K14) -> 0 | H14: J | I14: EL1.1 | J14: B | K14: * | L14: D | M14: Electricity Use
D15: Not directly purchased but from outside the organisation (MWh) | G15: 0 | H15: J | I15: EL1.2 | J15: B | K15: * | L15: D | M15: Electricity Use
D16: Self-generated (MWh) | G16: 0 | H16: J | I16: EL1.3 | J16: B | K16: * | L16: D | M16: Electricity Use
C18: EL2. On-site electricity generated segmented by usage and source (MWh) | G18: 0 | H18: J | I18: EL2 | J18: B | K18: * | L18: D | M18: Electricity Use
D19: Consumption behind-the-meter | G19: =SUMIFS(INDIRECT("'"&M19&"'!"&H19&":"&H19),INDIRECT("'"&M19&"'!"&J19&":"&J19),I19,INDIRECT("'"&M19&"'!"&L19&":"&L19),K19) -> 0 | H19: J | I19: EL2.1 | J19: B | K19: * | L19: D | M19: Electricity Use
E20: Wind | G20: 0 | H20: J | I20: EL2.1.1 | J20: B | K20: * | L20: D | M20: Electricity Use
E21: Solar PV | G21: 0 | H21: J | I21: EL2.1.2 | J21: B | K21: * | L21: D | M21: Electricity Use
E22: Bioenergy (incl. biogas from wastewater or landfill) | G22: 0 | H22: J | I22: EL2.1.3 | J22: B | K22: * | L22: D | M22: Electricity Use
E23: Hydroelectric | G23: 0 | H23: J | I23: EL2.1.4 | J23: B | K23: * | L23: D | M23: Electricity Use
E24: Other renewable | G24: 0 | H24: J | I24: EL2.1.5 | J24: B | K24: * | L24: D | M24: Electricity Use
E25: Cogeneration | G25: 0 | H25: J | I25: EL2.1.6 | J25: B | K25: * | L25: D | M25: Electricity Use
E26: Other non-renewable | G26: 0 | H26: J | I26: EL2.1.7 | J26: B | K26: * | L26: D | M26: Electricity Use
D27: Exports | G27: 0 | H27: J | I27: EL2.2 | J27: B | K27: * | L27: D | M27: Electricity Use
E28: Wind | G28: =SUMIFS(INDIRECT("'"&M28&"'!"&H28&":"&H28),INDIRECT("'"&M28&"'!"&J28&":"&J28),I28,INDIRECT("'"&M28&"'!"&L28&":"&L28),K28) -> 0 | H28: J | I28: EL2.2.1 | J28: B | K28: * | L28: D | M28: Electricity Use
E29: Solar PV | G29: 0 | H29: J | I29: EL2.2.2 | J29: B | K29: * | L29: D | M29: Electricity Use
E30: Bioenergy (incl. biogas from wastewater or landfill) | G30: 0 | H30: J | I30: EL2.2.3 | J30: B | K30: * | L30: D | M30: Electricity Use
E31: Hydroelectric | G31: 0 | H31: J | I31: EL2.2.4 | J31: B | K31: * | L31: D | M31: Electricity Use
E32: Other renewable | G32: 0 | H32: J | I32: EL2.2.5 | J32: B | K32: * | L32: D | M32: Electricity Use
E33: Cogeneration | G33: 0 | H33: J | I33: EL2.2.6 | J33: B | K33: * | L33: D | M33: Electricity Use
E34: Other non-renewable | G34: 0 | H34: J | I34: EL2.2.7 | J34: B | K34: * | L34: D | M34: Electricity Use
D35: For use outside the facility other than for supply to the grid | G35: 0 | H35: J | I35: EL2.3 | J35: B | K35: * | L35: D | M35: Electricity Use
E36: Wind | G36: =SUMIFS(INDIRECT("'"&M36&"'!"&H36&":"&H36),INDIRECT("'"&M36&"'!"&J36&":"&J36),I36,INDIRECT("'"&M36&"'!"&L36&":"&L36),K36) -> 0 | H36: J | I36: EL2.3.1 | J36: B | K36: * | L36: D | M36: Electricity Use
E37: Solar PV | G37: 0 | H37: J | I37: EL2.3.2 | J37: B | K37: * | L37: D | M37: Electricity Use
E38: Bioenergy (incl. biogas from wastewater or landfill) | G38: 0 | H38: J | I38: EL2.3.3 | J38: B | K38: * | L38: D | M38: Electricity Use
E39: Hydroelectric | G39: 0 | H39: J | I39: EL2.3.4 | J39: B | K39: * | L39: D | M39: Electricity Use
E40: Other renewable | G40: 0 | H40: J | I40: EL2.3.5 | J40: B | K40: * | L40: D | M40: Electricity Use
E41: Cogeneration | G41: 0 | H41: J | I41: EL2.3.6 | J41: B | K41: * | L41: D | M41: Electricity Use
E42: Other non-renewable | G42: 0 | H42: J | I42: EL2.3.7 | J42: B | K42: * | L42: D | M42: Electricity Use
C44: EL3. On-site installed generation capacity segmented by source (MW) | G44: 0 | H44: J | I44: EL3 | J44: B | K44: * | L44: D | M44: Electricity Use
D45: Wind | G45: 0 | H45: J | I45: EL3.1 | J45: B | K45: * | L45: D | M45: Electricity Use
D46: Solar PV | G46: 0 | H46: J | I46: EL3.2 | J46: B | K46: * | L46: D | M46: Electricity Use
D47: Bioenergy (incl. biogas from wastewater or landfill) | G47: 0 | H47: J | I47: EL3.3 | J47: B | K47: * | L47: D | M47: Electricity Use
D48: Hydroelectric | G48: 0 | H48: J | I48: EL3.4 | J48: B | K48: * | L48: D | M48: Electricity Use
D49: Other renewable | G49: 0 | H49: J | I49: EL3.5 | J49: B | K49: * | L49: D | M49: Electricity Use
D50: Energy storage systems (power capacity) | G50: =SUMIFS(INDIRECT("'"&M50&"'!"&H50&":"&H50),INDIRECT("'"&M50&"'!"&J50&":"&J50),I50,INDIRECT("'"&M50&"'!"&L50&":"&L50),K50) -> 0 | H50: J | I50: EL3.6 | J50: B | K50: * | L50: D | M50: Electricity Use
D51: Energy storage systems (total storage capacity) (MWh) | G51: 0 | H51: J | I51: EL3.7 | J51: B | K51: * | L51: D | M51: Electricity Use
D52: Cogeneration | G52: 0 | H52: J | I52: EL3.8 | J52: B | K52: * | L52: D | M52: Electricity Use
D53: Other non-renewable | G53: 0 | H53: J | I53: EL3.9 | J53: B | K53: * | L53: D | M53: Electricity Use
L54: D
C55: EL4. Total electricity offsets segmented by offset type (MWh) | G55: 0 | H55: J | I55: EL4 | J55: B | K55: * | L55: D | M55: Electricity Use
D56: LGC’s voluntarily retired by the Entity | G56: 0 | H56: J | I56: EL4.1 | J56: B | K56: * | L56: D | M56: Electricity Use
D57: LGC’s voluntarily retired by the Entity’s behalf | G57: 0 | H57: J | I57: EL4.2 | J57: B | K57: * | L57: D | M57: Electricity Use
D58: Greenpower | G58: 0 | H58: J | I58: EL4.3.1 | J58: B | K58: * | L58: D | M58: Electricity Use
D59: Certified carbon neutral electricity purchased | G59: 0 | H59: J | I59: EL4.3.2 | J59: B | K59: * | L59: D | M59: Electricity Use
D60: LCG's mandatorily retired or LCG's conveyed to an entity's retailer for mandatory retirement | G60: =SUMIFS(INDIRECT("'"&M60&"'!"&H60&":"&H60),INDIRECT("'"&M60&"'!"&J60&":"&J60),I60,INDIRECT("'"&M60&"'!"&L60&":"&L60),K60) -> 0 | H60: J | I60: EL4.4 | J60: B | K60: * | L60: D | M60: Electricity Use

Sheet Report - Stationary Fuel Use (hidden)
B6: =Agency&" | "&Tier&" | "&ReportingPeriod -> | | -
B8: <- Back to Home
B10: Stationary Fuel Use
C12: Indicator | G12: =ReportingYear -> 0 | H12: Final value column | I12: Lookup - indicator | J12: Indicator column | K12: Lookup - segment | L12: Segment column | M12: Lookup - sheet
C13: F1. Total Fuels used in buildings and machinery (MJ) | G13: =SUMIFS(INDIRECT("'"&M13&"'!"&H13&":"&H13),INDIRECT("'"&M13&"'!"&J13&":"&J13),I13,INDIRECT("'"&M13&"'!"&L13&":"&L13),K13) -> 0 | H13: J | I13: F1 | J13: B | K13: * | L13: D | M13: Stationary Fuel Use
D14: Buildings | G14: =SUMIFS(INDIRECT("'"&M14&"'!"&H14&":"&H14),INDIRECT("'"&M14&"'!"&J14&":"&J14),I14,INDIRECT("'"&M14&"'!"&L14&":"&L14),K14) -> 0 | H14: J | I14: F1.1 | J14: B | K14: * | L14: D | M14: Stationary Fuel Use
E15: Natural gas | G15: 0 | H15: J | I15: F1.1.1 | J15: B | K15: * | L15: D | M15: Stationary Fuel Use
E16: LPG | G16: 0 | H16: J | I16: F1.1.2 | J16: B | K16: * | L16: D | M16: Stationary Fuel Use
E17: Diesel | G17: 0 | H17: J | I17: F1.1.3 | J17: B | K17: * | L17: D | M17: Stationary Fuel Use
E18: Petrol | G18: 0 | H18: J | I18: F1.1.4 | J18: B | K18: * | L18: D | M18: Stationary Fuel Use
E19: Hydrogen | G19: 0 | H19: J | I19: F1.1.5 | J19: B | K19: * | L19: D | M19: Stationary Fuel Use
E20: Fuel oil | G20: 0 | H20: J | I20: F1.1.6 | J20: B | K20: * | L20: D | M20: Stationary Fuel Use
E21: Solid fuel | G21: 0 | H21: J | I21: F1.1.7 | J21: B | K21: * | L21: D | M21: Stationary Fuel Use
D22: Machinery | G22: 0 | H22: J | I22: F1.2 | J22: B | K22: * | L22: D | M22: Stationary Fuel Use
E23: Natural gas | G23: 0 | H23: J | I23: F1.2.1 | J23: B | K23: * | L23: D | M23: Stationary Fuel Use
E24: LPG | G24: 0 | H24: J | I24: F1.2.2 | J24: B | K24: * | L24: D | M24: Stationary Fuel Use
E25: Diesel | G25: 0 | H25: J | I25: F1.2.3 | J25: B | K25: * | L25: D | M25: Stationary Fuel Use
E26: Petrol | G26: 0 | H26: J | I26: F1.2.4 | J26: B | K26: * | L26: D | M26: Stationary Fuel Use
E27: Hydrogen | G27: 0 | H27: J | I27: F1.2.5 | J27: B | K27: * | L27: D | M27: Stationary Fuel Use
E28: Fuel oil | G28: 0 | H28: J | I28: F1.2.6 | J28: B | K28: * | L28: D | M28: Stationary Fuel Use
E29: Solid fuel | G29: 0 | H29: J | I29: F1.2.7 | J29: B | K29: * | L29: D | M29: Stationary Fuel Use
L30: D
C31: F2. Greenhouse gas emissions from stationary fuel consumption segmented by fuel type (Tonnes CO2-e) | G31: 0 | H31: J | I31: F2 | J31: B | K31: * | L31: D | M31: Stationary Fuel Use
E32: Natural gas | G32: 0 | H32: J | I32: F2.1 | J32: B | K32: * | L32: D | M32: Stationary Fuel Use
E33: LPG | G33: 0 | H33: J | I33: F2.2 | J33: B | K33: * | L33: D | M33: Stationary Fuel Use
E34: Diesel | G34: 0 | H34: J | I34: F2.3 | J34: B | K34: * | L34: D | M34: Stationary Fuel Use
E35: Petrol | G35: 0 | H35: J | I35: F2.4 | J35: B | K35: * | L35: D | M35: Stationary Fuel Use
E36: Hydrogen | G36: 0 | H36: J | I36: F2.5 | J36: B | K36: * | L36: D | M36: Stationary Fuel Use
E37: Fuel oil | G37: 0 | H37: J | I37: F2.6 | J37: B | K37: * | L37: D | M37: Stationary Fuel Use
E38: Solid fuel | G38: 0 | H38: J | I38: F2.7 | J38: B | K38: * | L38: D | M38: Stationary Fuel Use

Sheet Report - Transportation (hidden)
B6: =Agency&" | "&Tier&" | "&ReportingPeriod -> | | -
B8: <- Back to Home
B10: Transportation
C12: Indicator | H12: =ReportingYear -> 0 | I12: % | J12: Final value column | K12: Lookup - indicator | L12: Indicator column | M12: Lookup - segment | N12: Segment column | O12: Lookup - sheet
C13: T1. Total energy used in transportation within the Entity segmented by fuel type and vehicle category (MWh) | H13: =SUMIFS(INDIRECT("'"&O13&"'!"&J13&":"&J13),INDIRECT("'"&O13&"'!"&L13&":"&L13),K13,INDIRECT("'"&O13&"'!"&N13&":"&N13),M13) -> 0 | J13: J | K13: T1 | L13: B | M13: * | N13: D | O13: Transportation
D14: Road vehicles | H14: 0 | J14: J | K14: T1* | L14: B | M14: *frdsegmentsplitroad vehicles | N14: D | O14: Transportation
E15: Petrol | H15: 0 | J15: J | K15: T1.1* | L15: B | M15: *frdsegmentsplitroad vehicles | N15: D | O15: Transportation
E16: Diesel | H16: 0 | J16: J | K16: T1.2* | L16: B | M16: *frdsegmentsplitroad vehicles | N16: D | O16: Transportation
E17: Biodiesel | H17: 0 | J17: J | K17: T1.3* | L17: B | M17: *frdsegmentsplitroad vehicles | N17: D | O17: Transportation
E18: LPG | H18: 0 | J18: J | K18: T1.4* | L18: B | M18: *frdsegmentsplitroad vehicles | N18: D | O18: Transportation
E19: Solid fuel | H19: 0 | J19: J | K19: T1.6* | L19: B | M19: *frdsegmentsplitroad vehicles | N19: D | O19: Transportation
E20: Hydrogen | H20: 0 | J20: J | K20: T1.7* | L20: B | M20: *frdsegmentsplitroad vehicles | N20: D | O20: Transportation
E21: Electricity | H21: 0 | J21: J | K21: T1.8* | L21: B | M21: *frdsegmentsplitroad vehicles | N21: D | O21: Transportation
D22: Non-road vehicles | H22: 0 | J22: J | K22: T1* | L22: B | M22: *frdsegmentsplitnon-road vehicles | N22: D | O22: Transportation
E23: Petrol | H23: 0 | J23: J | K23: T1.1* | L23: B | M23: *frdsegmentsplitnon-road vehicles | N23: D | O23: Transportation
E24: Diesel | H24: 0 | J24: J | K24: T1.2* | L24: B | M24: *frdsegmentsplitnon-road vehicles | N24: D | O24: Transportation
E25: Biodiesel | H25: 0 | J25: J | K25: T1.3* | L25: B | M25: *frdsegmentsplitnon-road vehicles | N25: D | O25: Transportation
E26: LPG | H26: 0 | J26: J | K26: T1.4* | L26: B | M26: *frdsegmentsplitnon-road vehicles | N26: D | O26: Transportation
E27: Aviation fuels | H27: 0 | J27: J | K27: T1.5* | L27: B | M27: *frdsegmentsplitnon-road vehicles | N27: D | O27: Transportation
E28: Solid fuel | H28: 0 | J28: J | K28: T1.6* | L28: B | M28: *frdsegmentsplitnon-road vehicles | N28: D | O28: Transportation
E29: Hydrogen | H29: 0 | J29: J | K29: T1.7* | L29: B | M29: *frdsegmentsplitnon-road vehicles | N29: D | O29: Transportation
E30: Electricity | H30: 0 | J30: J | K30: T1.8* | L30: B | M30: *frdsegmentsplitnon-road vehicles | N30: D | O30: Transportation
C32: T2. Number and proportion of vehicles in the organisational boundary segmented by vehicle category and engine/ fuel type (Number and %) | H32: =SUMIFS(INDIRECT("'"&O32&"'!"&J32&":"&J32),INDIRECT("'"&O32&"'!"&L32&":"&L32),K32,INDIRECT("'"&O32&"'!"&N32&":"&N32),M32) -> 0 | I32: =IF($H$32=0,0,H32/$H$32) -> 0 | J32: J | K32: T2 | L32: B | M32: * | N32: D | O32: Transportation
D33: Road vehicles | H33: 0 | I33: =IF($H$32=0,0,H33/$H$32) -> 0 | J33: J | K33: T2* | L33: B | M33: *frdsegmentsplitroad vehicles | N33: D | O33: Transportation
E34: Two-wheeled and three-wheeled vehicles | H34: 0 | I34: 0 | J34: J | K34: T2* | L34: B | M34: *frdsegmentsplitroad vehiclesfrdsegmentsplitTwo-wheeled and three-wheeled vehicles | N34: D | O34: Transportation
F35: Internal combustion engines | H35: 0 | I35: 0 | J35: J | K35: T2.1* | L35: B | M35: *frdsegmentsplitroad vehiclesfrdsegmentsplitTwo-wheeled and three-wheeled vehicles | N35: D | O35: Transportation
G36: Petrol | H36: 0 | I36: 0 | J36: J | K36: T2.1.1* | L36: B | M36: *frdsegmentsplitroad vehiclesfrdsegmentsplitTwo-wheeled and three-wheeled vehicles | N36: D | O36: Transportation
G37: Diesel/biodiesel | H37: 0 | I37: 0 | J37: J | K37: T2.1.2* | L37: B | M37: *frdsegmentsplitroad vehiclesfrdsegmentsplitTwo-wheeled and three-wheeled vehicles | N37: D | O37: Transportation
G38: LPG | H38: 0 | I38: 0 | J38: J | K38: T2.1.3* | L38: B | M38: *frdsegmentsplitroad vehiclesfrdsegmentsplitTwo-wheeled and three-wheeled vehicles | N38: D | O38: Transportation
F39: Hybrid | H39: 0 | I39: 0 | J39: J | K39: T2.2* | L39: B | M39: *frdsegmentsplitroad vehiclesfrdsegmentsplitTwo-wheeled and three-wheeled vehicles | N39: D | O39: Transportation
G40: Plug-in Hybrid Electric Vehicle (PHEV) | H40: 0 | I40: 0 | J40: J | K40: T2.2.1* | L40: B | M40: *frdsegmentsplitroad vehiclesfrdsegmentsplitTwo-wheeled and three-wheeled vehicles | N40: D | O40: Transportation
G41: Range-extended electric vehicle | H41: 0 | I41: 0 | J41: J | K41: T2.2.2* | L41: B | M41: *frdsegmentsplitroad vehiclesfrdsegmentsplitTwo-wheeled and three-wheeled vehicles | N41: D | O41: Transportation
F42: Electric propulsion | H42: 0 | I42: 0 | J42: J | K42: T2.3* | L42: B | M42: *frdsegmentsplitroad vehiclesfrdsegmentsplitTwo-wheeled and three-wheeled vehicles | N42: D | O42: Transportation
G43: Battery Electric Vehicle (BEV) | H43: 0 | I43: 0 | J43: J | K43: T2.3.1* | L43: B | M43: *frdsegmentsplitroad vehiclesfrdsegmentsplitTwo-wheeled and three-wheeled vehicles | N43: D | O43: Transportation
G44: Fuel Cell Electric Vehicle (FCEV) | H44: 0 | I44: 0 | J44: J | K44: T2.3.2* | L44: B | M44: *frdsegmentsplitroad vehiclesfrdsegmentsplitTwo-wheeled and three-wheeled vehicles | N44: D | O44: Transportation
E45: Passenger vehicles | H45: 0 | I45: 0 | J45: J | K45: T2* | L45: B | M45: *frdsegmentsplitroad vehiclesfrdsegmentsplitPassenger vehicles | N45: D | O45: Transportation
F46: Internal combustion engines | H46: 0 | I46: 0 | J46: J | K46: T2.1* | L46: B | M46: *frdsegmentsplitroad vehiclesfrdsegmentsplitPassenger vehicles | N46: D | O46: Transportation
G47: Petrol | H47: 0 | I47: 0 | J47: J | K47: T2.1.1* | L47: B | M47: *frdsegmentsplitroad vehiclesfrdsegmentsplitPassenger vehicles | N47: D | O47: Transportation
G48: Diesel/biodiesel | H48: 0 | I48: 0 | J48: J | K48: T2.1.2* | L48: B | M48: *frdsegmentsplitroad vehiclesfrdsegmentsplitPassenger vehicles | N48: D | O48: Transportation
G49: LPG | H49: 0 | I49: 0 | J49: J | K49: T2.1.3* | L49: B | M49: *frdsegmentsplitroad vehiclesfrdsegmentsplitPassenger vehicles | N49: D | O49: Transportation
F50: Hybrid | H50: 0 | I50: 0 | J50: J | K50: T2.2* | L50: B | M50: *frdsegmentsplitroad vehiclesfrdsegmentsplitPassenger vehicles | N50: D | O50: Transportation
G51: Plug-in Hybrid Electric Vehicle (PHEV) | H51: 0 | I51: 0 | J51: J | K51: T2.2.1* | L51: B | M51: *frdsegmentsplitroad vehiclesfrdsegmentsplitPassenger vehicles | N51: D | O51: Transportation
G52: Range-extended electric vehicle | H52: 0 | I52: 0 | J52: J | K52: T2.2.2* | L52: B | M52: *frdsegmentsplitroad vehiclesfrdsegmentsplitPassenger vehicles | N52: D | O52: Transportation
F53: Electric propulsion | H53: 0 | I53: 0 | J53: J | K53: T2.3* | L53: B | M53: *frdsegmentsplitroad vehiclesfrdsegmentsplitPassenger vehicles | N53: D | O53: Transportation
G54: Battery Electric Vehicle (BEV) | H54: 0 | I54: 0 | J54: J | K54: T2.3.1* | L54: B | M54: *frdsegmentsplitroad vehiclesfrdsegmentsplitPassenger vehicles | N54: D | O54: Transportation
G55: Fuel Cell Electric Vehicle (FCEV) | H55: 0 | I55: 0 | J55: J | K55: T2.3.2* | L55: B | M55: *frdsegmentsplitroad vehiclesfrdsegmentsplitPassenger vehicles | N55: D | O55: Transportation
E56: Buses | H56: 0 | I56: 0 | J56: J | K56: T2* | L56: B | M56: *frdsegmentsplitroad vehiclesfrdsegmentsplitBuses | N56: D | O56: Transportation
F57: Internal combustion engines | H57: 0 | I57: 0 | J57: J | K57: T2.1* | L57: B | M57: *frdsegmentsplitroad vehiclesfrdsegmentsplitBuses | N57: D | O57: Transportation
G58: Petrol | H58: =SUMIFS(INDIRECT("'"&O58&"'!"&J58&":"&J58),INDIRECT("'"&O58&"'!"&L58&":"&L58),K58,INDIRECT("'"&O58&"'!"&N58&":"&N58),M58) -> 0 | I58: 0 | J58: J | K58: T2.1.1* | L58: B | M58: *frdsegmentsplitroad vehiclesfrdsegmentsplitBuses | N58: D | O58: Transportation
G59: Diesel/biodiesel | H59: 0 | I59: 0 | J59: J | K59: T2.1.2* | L59: B | M59: *frdsegmentsplitroad vehiclesfrdsegmentsplitBuses | N59: D | O59: Transportation
G60: LPG | H60: 0 | I60: 0 | J60: J | K60: T2.1.3* | L60: B | M60: *frdsegmentsplitroad vehiclesfrdsegmentsplitBuses | N60: D | O60: Transportation
F61: Hybrid | H61: 0 | I61: 0 | J61: J | K61: T2.2* | L61: B | M61: *frdsegmentsplitroad vehiclesfrdsegmentsplitBuses | N61: D | O61: Transportation
G62: Plug-in Hybrid Electric Vehicle (PHEV) | H62: 0 | I62: 0 | J62: J | K62: T2.2.1* | L62: B | M62: *frdsegmentsplitroad vehiclesfrdsegmentsplitBuses | N62: D | O62: Transportation
G63: Range-extended electric vehicle | H63: 0 | I63: 0 | J63: J | K63: T2.2.2* | L63: B | M63: *frdsegmentsplitroad vehiclesfrdsegmentsplitBuses | N63: D | O63: Transportation
F64: Electric propulsion | H64: 0 | I64: 0 | J64: J | K64: T2.3* | L64: B | M64: *frdsegmentsplitroad vehiclesfrdsegmentsplitBuses | N64: D | O64: Transportation
G65: Battery Electric Vehicle (BEV) | H65: 0 | I65: 0 | J65: J | K65: T2.3.1* | L65: B | M65: *frdsegmentsplitroad vehiclesfrdsegmentsplitBuses | N65: D | O65: Transportation
G66: Fuel Cell Electric Vehicle (FCEV) | H66: 0 | I66: 0 | J66: J | K66: T2.3.2* | L66: B | M66: *frdsegmentsplitroad vehiclesfrdsegmentsplitBuses | N66: D | O66: Transportation
E67: Goods vehicles | H67: 0 | I67: 0 | J67: J | K67: T2* | L67: B | M67: *frdsegmentsplitroad vehiclesfrdsegmentsplitGoods vehicles | N67: D | O67: Transportation
F68: Internal combustion engines | H68: 0 | I68: 0 | J68: J | K68: T2.1* | L68: B | M68: *frdsegmentsplitroad vehiclesfrdsegmentsplitGoods vehicles | N68: D | O68: Transportation
G69: Petrol | H69: 0 | I69: 0 | J69: J | K69: T2.1.1* | L69: B | M69: *frdsegmentsplitroad vehiclesfrdsegmentsplitGoods vehicles | N69: D | O69: Transportation
G70: Diesel/biodiesel | H70: 0 | I70: 0 | J70: J | K70: T2.1.2* | L70: B | M70: *frdsegmentsplitroad vehiclesfrdsegmentsplitGoods vehicles | N70: D | O70: Transportation
G71: LPG | H71: 0 | I71: 0 | J71: J | K71: T2.1.3* | L71: B | M71: *frdsegmentsplitroad vehiclesfrdsegmentsplitGoods vehicles | N71: D | O71: Transportation
F72: Hybrid | H72: 0 | I72: 0 | J72: J | K72: T2.2* | L72: B | M72: *frdsegmentsplitroad vehiclesfrdsegmentsplitGoods vehicles | N72: D | O72: Transportation
G73: Plug-in Hybrid Electric Vehicle (PHEV) | H73: 0 | I73: 0 | J73: J | K73: T2.2.1* | L73: B | M73: *frdsegmentsplitroad vehiclesfrdsegmentsplitGoods vehicles | N73: D | O73: Transportation
G74: Range-extended electric vehicle | H74: 0 | I74: 0 | J74: J | K74: T2.2.2* | L74: B | M74: *frdsegmentsplitroad vehiclesfrdsegmentsplitGoods vehicles | N74: D | O74: Transportation
F75: Electric propulsion | H75: 0 | I75: 0 | J75: J | K75: T2.3* | L75: B | M75: *frdsegmentsplitroad vehiclesfrdsegmentsplitGoods vehicles | N75: D | O75: Transportation
G76: Battery Electric Vehicle (BEV) | H76: 0 | I76: 0 | J76: J | K76: T2.3.1* | L76: B | M76: *frdsegmentsplitroad vehiclesfrdsegmentsplitGoods vehicles | N76: D | O76: Transportation
G77: Fuel Cell Electric Vehicle (FCEV) | H77: 0 | I77: 0 | J77: J | K77: T2.3.2* | L77: B | M77: *frdsegmentsplitroad vehiclesfrdsegmentsplitGoods vehicles | N77: D | O77: Transportation
D78: Non-road vehicles | H78: 0 | I78: 0 | J78: J | K78: T2* | L78: B | M78: *frdsegmentsplitnon-road vehicles | N78: D | O78: Transportation
E79: Heavy rail locomotives | H79: 0 | I79: 0 | J79: J | K79: T2* | L79: B | M79: *frdsegmentsplitnon-road vehiclesfrdsegmentsplitHeavy rail locomotives | N79: D | O79: Transportation
F80: Internal combustion engines | H80: 0 | I80: 0 | J80: J | K80: T2.1* | L80: B | M80: *frdsegmentsplitnon-road vehiclesfrdsegmentsplitHeavy rail locomotives | N80: D | O80: Transportation
G81: Petrol | H81: 0 | I81: 0 | J81: J | K81: T2.1.1* | L81: B | M81: *frdsegmentsplitnon-road vehiclesfrdsegmentsplitHeavy rail locomotives | N81: D | O81: Transportation
G82: Diesel/biodiesel | H82: 0 | I82: 0 | J82: J | K82: T2.1.2* | L82: B | M82: *frdsegmentsplitnon-road vehiclesfrdsegmentsplitHeavy rail locomotives | N82: D | O82: Transportation
G83: LPG | H83: 0 | I83: 0 | J83: J | K83: T2.1.3* | L83: B | M83: *frdsegmentsplitnon-road vehiclesfrdsegmentsplitHeavy rail locomotives | N83: D | O83: Transportation
G84: Solid fuel | H84: =SUMIFS(INDIRECT("'"&O84&"'!"&J84&":"&J84),INDIRECT("'"&O84&"'!"&L84&":"&L84),K84,INDIRECT("'"&O84&"'!"&N84&":"&N84),M84) -> 0 | I84: 0 | J84: J | K84: T2.1.5* | L84: B | M84: *frdsegmentsplitnon-road vehiclesfrdsegmentsplitHeavy rail locomotives | N84: D | O84: Transportation
G85: Fuel oil | H85: 0 | I85: 0 | J85: J | K85: T2.1.6* | L85: B | M85: *frdsegmentsplitnon-road vehiclesfrdsegmentsplitHeavy rail locomotives | N85: D | O85: Transportation
F86: Hybrid | H86: 0 | I86: 0 | J86: J | K86: T2.2* | L86: B | M86: *frdsegmentsplitnon-road vehiclesfrdsegmentsplitHeavy rail locomotives | N86: D | O86: Transportation
G87: Plug-in Hybrid Electric Vehicle (PHEV) | H87: 0 | I87: 0 | J87: J | K87: T2.2.1* | L87: B | M87: *frdsegmentsplitnon-road vehiclesfrdsegmentsplitHeavy rail locomotives | N87: D | O87: Transportation
G88: Range-extended electric vehicle | H88: 0 | I88: 0 | J88: J | K88: T2.2.2* | L88: B | M88: *frdsegmentsplitnon-road vehiclesfrdsegmentsplitHeavy rail locomotives | N88: D | O88: Transportation
F89: Electric propulsion | H89: 0 | I89: 0 | J89: J | K89: T2.3* | L89: B | M89: *frdsegmentsplitnon-road vehiclesfrdsegmentsplitHeavy rail locomotives | N89: D | O89: Transportation
G90: Battery Electric Vehicle (BEV) | H90: 0 | I90: 0 | J90: J | K90: T2.3.1* | L90: B | M90: *frdsegmentsplitnon-road vehiclesfrdsegmentsplitHeavy rail locomotives | N90: D | O90: Transportation
G91: Fuel Cell Electric Vehicle (FCEV) | H91: 0 | I91: 0 | J91: J | K91: T2.3.2* | L91: B | M91: *frdsegmentsplitnon-road vehiclesfrdsegmentsplitHeavy rail locomotives | N91: D | O91: Transportation
G92: External powered (such as rail locomotives and trams) | H92: 0 | I92: 0 | J92: J | K92: T2.3.3* | L92: B | M92: *frdsegmentsplitnon-road vehiclesfrdsegmentsplitHeavy rail locomotives | N92: D | O92: Transportation
E93: Light rail vehicles | H93: 0 | I93: 0 | J93: J | K93: T2* | L93: B | M93: *frdsegmentsplitnon-road vehiclesfrdsegmentsplitLight rail vehicles | N93: D | O93: Transportation
F94: Internal combustion engines | H94: 0 | I94: 0 | J94: J | K94: T2.1* | L94: B | M94: *frdsegmentsplitnon-road vehiclesfrdsegmentsplitLight rail vehicles | N94: D | O94: Transportation
G95: Petrol | H95: 0 | I95: 0 | J95: J | K95: T2.1.1* | L95: B | M95: *frdsegmentsplitnon-road vehiclesfrdsegmentsplitLight rail vehicles | N95: D | O95: Transportation
G96: Diesel/biodiesel | H96: 0 | I96: 0 | J96: J | K96: T2.1.2* | L96: B | M96: *frdsegmentsplitnon-road vehiclesfrdsegmentsplitLight rail vehicles | N96: D | O96: Transportation
G97: LPG | H97: 0 | I97: 0 | J97: J | K97: T2.1.3* | L97: B | M97: *frdsegmentsplitnon-road vehiclesfrdsegmentsplitLight rail vehicles | N97: D | O97: Transportation
G98: Solid fuel | H98: 0 | I98: 0 | J98: J | K98: T2.1.5* | L98: B | M98: *frdsegmentsplitnon-road vehiclesfrdsegmentsplitLight rail vehicles | N98: D | O98: Transportation
G99: Fuel oil | H99: 0 | I99: 0 | J99: J | K99: T2.1.6* | L99: B | M99: *frdsegmentsplitnon-road vehiclesfrdsegmentsplitLight rail vehicles | N99: D | O99: Transportation
F100: Hybrid | H100: 0 | I100: 0 | J100: J | K100: T2.2* | L100: B | M100: *frdsegmentsplitnon-road vehiclesfrdsegmentsplitLight rail vehicles | N100: D | O100: Transportation
G101: Plug-in Hybrid Electric Vehicle (PHEV) | H101: 0 | I101: 0 | J101: J | K101: T2.2.1* | L101: B | M101: *frdsegmentsplitnon-road vehiclesfrdsegmentsplitLight rail vehicles | N101: D | O101: Transportation
G102: Range-extended electric vehicle | H102: 0 | I102: 0 | J102: J | K102: T2.2.2* | L102: B | M102: *frdsegmentsplitnon-road vehiclesfrdsegmentsplitLight rail vehicles | N102: D | O102: Transportation
F103: Electric propulsion | H103: 0 | I103: 0 | J103: J | K103: T2.3* | L103: B | M103: *frdsegmentsplitnon-road vehiclesfrdsegmentsplitLight rail vehicles | N103: D | O103: Transportation
G104: Battery Electric Vehicle (BEV) | H104: 0 | I104: 0 | J104: J | K104: T2.3.1* | L104: B | M104: *frdsegmentsplitnon-road vehiclesfrdsegmentsplitLight rail vehicles | N104: D | O104: Transportation
G105: Fuel Cell Electric Vehicle (FCEV) | H105: 0 | I105: 0 | J105: J | K105: T2.3.2* | L105: B | M105: *frdsegmentsplitnon-road vehiclesfrdsegmentsplitLight rail vehicles | N105: D | O105: Transportation
G106: External powered (such as rail locomotives and trams) | H106: 0 | I106: 0 | J106: J | K106: T2.3.3* | L106: B | M106: *frdsegmentsplitnon-road vehiclesfrdsegmentsplitLight rail vehicles | N106: D | O106: Transportation
E107: Marine vessels | H107: 0 | I107: 0 | J107: J | K107: T2* | L107: B | M107: *frdsegmentsplitnon-road vehiclesfrdsegmentsplitMarine vessels | N107: D | O107: Transportation
F108: Internal combustion engines | H108: 0 | I108: 0 | J108: J | K108: T2.1* | L108: B | M108: *frdsegmentsplitnon-road vehiclesfrdsegmentsplitMarine vessels | N108: D | O108: Transportation
G109: Petrol | H109: 0 | I109: 0 | J109: J | K109: T2.1.1* | L109: B | M109: *frdsegmentsplitnon-road vehiclesfrdsegmentsplitMarine vessels | N109: D | O109: Transportation
G110: Diesel/biodiesel | H110: 0 | I110: 0 | J110: J | K110: T2.1.2* | L110: B | M110: *frdsegmentsplitnon-road vehiclesfrdsegmentsplitMarine vessels | N110: D | O110: Transportation
G111: LPG | H111: 0 | I111: 0 | J111: J | K111: T2.1.3* | L111: B | M111: *frdsegmentsplitnon-road vehiclesfrdsegmentsplitMarine vessels | N111: D | O111: Transportation
G112: Solid fuel | H112: 0 | I112: 0 | J112: J | K112: T2.1.5* | L112: B | M112: *frdsegmentsplitnon-road vehiclesfrdsegmentsplitMarine vessels | N112: D | O112: Transportation
G113: Fuel oil | H113: 0 | I113: 0 | J113: J | K113: T2.1.6* | L113: B | M113: *frdsegmentsplitnon-road vehiclesfrdsegmentsplitMarine vessels | N113: D | O113: Transportation
F114: Hybrid | H114: 0 | I114: 0 | J114: J | K114: T2.2* | L114: B | M114: *frdsegmentsplitnon-road vehiclesfrdsegmentsplitMarine vessels | N114: D | O114: Transportation
G115: Plug-in Hybrid Electric Vehicle (PHEV) | H115: 0 | I115: 0 | J115: J | K115: T2.2.1* | L115: B | M115: *frdsegmentsplitnon-road vehiclesfrdsegmentsplitMarine vessels | N115: D | O115: Transportation
G116: Range-extended electric vehicle | H116: =SUMIFS(INDIRECT("'"&O116&"'!"&J116&":"&J116),INDIRECT("'"&O116&"'!"&L116&":"&L116),K116,INDIRECT("'"&O116&"'!"&N116&":"&N116),M116) -> 0 | I116: 0 | J116: J | K116: T2.2.2* | L116: B | M116: *frdsegmentsplitnon-road vehiclesfrdsegmentsplitMarine vessels | N116: D | O116: Transportation
F117: Electric propulsion | H117: 0 | I117: 0 | J117: J | K117: T2.3* | L117: B | M117: *frdsegmentsplitnon-road vehiclesfrdsegmentsplitMarine vessels | N117: D | O117: Transportation
G118: Battery Electric Vehicle (BEV) | H118: 0 | I118: 0 | J118: J | K118: T2.3.1* | L118: B | M118: *frdsegmentsplitnon-road vehiclesfrdsegmentsplitMarine vessels | N118: D | O118: Transportation
G119: Fuel Cell Electric Vehicle (FCEV) | H119: 0 | I119: 0 | J119: J | K119: T2.3.2* | L119: B | M119: *frdsegmentsplitnon-road vehiclesfrdsegmentsplitMarine vessels | N119: D | O119: Transportation
E120: Rotary wing aircraft | H120: 0 | I120: 0 | J120: J | K120: T2* | L120: B | M120: *frdsegmentsplitnon-road vehiclesfrdsegmentsplitRotary wing aircraft | N120: D | O120: Transportation
F121: Internal combustion engines | H121: 0 | I121: 0 | J121: J | K121: T2.1* | L121: B | M121: *frdsegmentsplitnon-road vehiclesfrdsegmentsplitRotary wing aircraft | N121: D | O121: Transportation
G122: Petrol | H122: 0 | I122: 0 | J122: J | K122: T2.1.1* | L122: B | M122: *frdsegmentsplitnon-road vehiclesfrdsegmentsplitRotary wing aircraft | N122: D | O122: Transportation
G123: Diesel/biodiesel | H123: 0 | I123: 0 | J123: J | K123: T2.1.2* | L123: B | M123: *frdsegmentsplitnon-road vehiclesfrdsegmentsplitRotary wing aircraft | N123: D | O123: Transportation
G124: LPG | H124: 0 | I124: 0 | J124: J | K124: T2.1.3* | L124: B | M124: *frdsegmentsplitnon-road vehiclesfrdsegmentsplitRotary wing aircraft | N124: D | O124: Transportation
G125: Aviation fuels | H125: 0 | I125: 0 | J125: J | K125: T2.1.4* | L125: B | M125: *frdsegmentsplitnon-road vehiclesfrdsegmentsplitRotary wing aircraft | N125: D | O125: Transportation
G126: Fuel oil | H126: 0 | I126: 0 | J126: J | K126: T2.1.6* | L126: B | M126: *frdsegmentsplitnon-road vehiclesfrdsegmentsplitRotary wing aircraft | N126: D | O126: Transportation
F127: Hybrid | H127: 0 | I127: 0 | J127: J | K127: T2.2* | L127: B | M127: *frdsegmentsplitnon-road vehiclesfrdsegmentsplitRotary wing aircraft | N127: D | O127: Transportation
G128: Plug-in Hybrid Electric Vehicle (PHEV) | H128: 0 | I128: 0 | J128: J | K128: T2.2.1* | L128: B | M128: *frdsegmentsplitnon-road vehiclesfrdsegmentsplitRotary wing aircraft | N128: D | O128: Transportation
G129: Range-extended electric vehicle | H129: 0 | I129: 0 | J129: J | K129: T2.2.2* | L129: B | M129: *frdsegmentsplitnon-road vehiclesfrdsegmentsplitRotary wing aircraft | N129: D | O129: Transportation
F130: Electric propulsion | H130: 0 | I130: 0 | J130: J | K130: T2.3* | L130: B | M130: *frdsegmentsplitnon-road vehiclesfrdsegmentsplitRotary wing aircraft | N130: D | O130: Transportation
G131: Battery Electric Vehicle (BEV) | H131: 0 | I131: 0 | J131: J | K131: T2.3.1* | L131: B | M131: *frdsegmentsplitnon-road vehiclesfrdsegmentsplitRotary wing aircraft | N131: D | O131: Transportation
G132: Fuel Cell Electric Vehicle (FCEV) | H132: 0 | I132: 0 | J132: J | K132: T2.3.2* | L132: B | M132: *frdsegmentsplitnon-road vehiclesfrdsegmentsplitRotary wing aircraft | N132: D | O132: Transportation
E133: Fixed wing aircraft | H133: 0 | I133: 0 | J133: J | K133: T2* | L133: B | M133: *frdsegmentsplitnon-road vehiclesfrdsegmentsplitFixed wing aircraft | N133: D | O133: Transportation
F134: Internal combustion engines | H134: 0 | I134: 0 | J134: J | K134: T2.1* | L134: B | M134: *frdsegmentsplitnon-road vehiclesfrdsegmentsplitFixed wing aircraft | N134: D | O134: Transportation
G135: Petrol | H135: 0 | I135: 0 | J135: J | K135: T2.1.1* | L135: B | M135: *frdsegmentsplitnon-road vehiclesfrdsegmentsplitFixed wing aircraft | N135: D | O135: Transportation
G136: Diesel/biodiesel | H136: 0 | I136: 0 | J136: J | K136: T2.1.2* | L136: B | M136: *frdsegmentsplitnon-road vehiclesfrdsegmentsplitFixed wing aircraft | N136: D | O136: Transportation
G137: LPG | H137: 0 | I137: 0 | J137: J | K137: T2.1.3* | L137: B | M137: *frdsegmentsplitnon-road vehiclesfrdsegmentsplitFixed wing aircraft | N137: D | O137: Transportation
G138: Aviation fuels | H138: 0 | I138: 0 | J138: J | K138: T2.1.4* | L138: B | M138: *frdsegmentsplitnon-road vehiclesfrdsegmentsplitFixed wing aircraft | N138: D | O138: Transportation
G139: Fuel oil | H139: 0 | I139: 0 | J139: J | K139: T2.1.6* | L139: B | M139: *frdsegmentsplitnon-road vehiclesfrdsegmentsplitFixed wing aircraft | N139: D | O139: Transportation
F140: Hybrid | H140: 0 | I140: 0 | J140: J | K140: T2.2* | L140: B | M140: *frdsegmentsplitnon-road vehiclesfrdsegmentsplitFixed wing aircraft | N140: D | O140: Transportation
G141: Plug-in Hybrid Electric Vehicle (PHEV) | H141: 0 | I141: 0 | J141: J | K141: T2.2.1* | L141: B | M141: *frdsegmentsplitnon-road vehiclesfrdsegmentsplitFixed wing aircraft | N141: D | O141: Transportation
G142: Range-extended electric vehicle | H142: 0 | I142: 0 | J142: J | K142: T2.2.2* | L142: B | M142: *frdsegmentsplitnon-road vehiclesfrdsegmentsplitFixed wing aircraft | N142: D | O142: Transportation
F143: Electric propulsion | H143: 0 | I143: 0 | J143: J | K143: T2.3* | L143: B | M143: *frdsegmentsplitnon-road vehiclesfrdsegmentsplitFixed wing aircraft | N143: D | O143: Transportation
G144: Battery Electric Vehicle (BEV) | H144: =SUMIFS(INDIRECT("'"&O144&"'!"&J144&":"&J144),INDIRECT("'"&O144&"'!"&L144&":"&L144),K144,INDIRECT("'"&O144&"'!"&N144&":"&N144),M144) -> 0 | I144: 0 | J144: J | K144: T2.3.1* | L144: B | M144: *frdsegmentsplitnon-road vehiclesfrdsegmentsplitFixed wing aircraft | N144: D | O144: Transportation
G145: Fuel Cell Electric Vehicle (FCEV) | H145: 0 | I145: 0 | J145: J | K145: T2.3.2* | L145: B | M145: *frdsegmentsplitnon-road vehiclesfrdsegmentsplitFixed wing aircraft | N145: D | O145: Transportation
E146: Other non-road vehicles | H146: 0 | I146: 0 | J146: J | K146: T2* | L146: B | M146: *frdsegmentsplitnon-road vehiclesfrdsegmentsplitOther non-road vehicles | N146: D | O146: Transportation
F147: Internal combustion engines | H147: 0 | I147: 0 | J147: J | K147: T2.1* | L147: B | M147: *frdsegmentsplitnon-road vehiclesfrdsegmentsplitOther non-road vehicles | N147: D | O147: Transportation
G148: Petrol | H148: 0 | I148: 0 | J148: J | K148: T2.1.1* | L148: B | M148: *frdsegmentsplitnon-road vehiclesfrdsegmentsplitOther non-road vehicles | N148: D | O148: Transportation
G149: Diesel/biodiesel | H149: 0 | I149: 0 | J149: J | K149: T2.1.2* | L149: B | M149: *frdsegmentsplitnon-road vehiclesfrdsegmentsplitOther non-road vehicles | N149: D | O149: Transportation
G150: LPG | H150: 0 | I150: 0 | J150: J | K150: T2.1.3* | L150: B | M150: *frdsegmentsplitnon-road vehiclesfrdsegmentsplitOther non-road vehicles | N150: D | O150: Transportation
G151: Fuel oil | H151: 0 | I151: 0 | J151: J | K151: T2.1.6* | L151: B | M151: *frdsegmentsplitnon-road vehiclesfrdsegmentsplitOther non-road vehicles | N151: D | O151: Transportation
F152: Hybrid | H152: 0 | I152: 0 | J152: J | K152: T2.2* | L152: B | M152: *frdsegmentsplitnon-road vehiclesfrdsegmentsplitOther non-road vehicles | N152: D | O152: Transportation
G153: Plug-in Hybrid Electric Vehicle (PHEV) | H153: 0 | I153: 0 | J153: J | K153: T2.2.1* | L153: B | M153: *frdsegmentsplitnon-road vehiclesfrdsegmentsplitOther non-road vehicles | N153: D | O153: Transportation
G154: Range-extended electric vehicle | H154: 0 | I154: 0 | J154: J | K154: T2.2.2* | L154: B | M154: *frdsegmentsplitnon-road vehiclesfrdsegmentsplitOther non-road vehicles | N154: D | O154: Transportation
F155: Electric propulsion | H155: 0 | I155: 0 | J155: J | K155: T2.3* | L155: B | M155: *frdsegmentsplitnon-road vehiclesfrdsegmentsplitOther non-road vehicles | N155: D | O155: Transportation
G156: Battery Electric Vehicle (BEV) | H156: 0 | I156: 0 | J156: J | K156: T2.3.1* | L156: B | M156: *frdsegmentsplitnon-road vehiclesfrdsegmentsplitOther non-road vehicles | N156: D | O156: Transportation
G157: Fuel Cell Electric Vehicle (FCEV) | H157: 0 | I157: 0 | J157: J | K157: T2.3.2* | L157: B | M157: *frdsegmentsplitnon-road vehiclesfrdsegmentsplitOther non-road vehicles | N157: D | O157: Transportation
C159: T3. Greenhouse gas emissions from vehicle fleet segmented by fuel type and vehicle category (Tonnes CO2-e) | H159: =SUMIFS(INDIRECT("'"&O159&"'!"&J159&":"&J159),INDIRECT("'"&O159&"'!"&L159&":"&L159),K159,INDIRECT("'"&O159&"'!"&N159&":"&N159),M159) -> 0 | J159: J | K159: T3 | L159: B | M159: * | N159: D | O159: Transportation
D160: Road vehicles | H160: 0 | J160: J | K160: T3* | L160: B | M160: *frdsegmentsplitroad vehicles | N160: D | O160: Transportation
E161: Petrol | H161: 0 | J161: J | K161: T3.1* | L161: B | M161: *frdsegmentsplitroad vehicles | N161: D | O161: Transportation
E162: Diesel | H162: 0 | J162: J | K162: T3.2* | L162: B | M162: *frdsegmentsplitroad vehicles | N162: D | O162: Transportation
E163: Biodiesel | H163: 0 | J163: J | K163: T3.3* | L163: B | M163: *frdsegmentsplitroad vehicles | N163: D | O163: Transportation
E164: LPG | H164: 0 | J164: J | K164: T3.4* | L164: B | M164: *frdsegmentsplitroad vehicles | N164: D | O164: Transportation
E165: Solid fuel | H165: 0 | J165: J | K165: T3.6* | L165: B | M165: *frdsegmentsplitroad vehicles | N165: D | O165: Transportation
E166: Hydrogen | H166: 0 | J166: J | K166: T3.7* | L166: B | M166: *frdsegmentsplitroad vehicles | N166: D | O166: Transportation
E167: Electricity | H167: 0 | J167: J | K167: T3.8* | L167: B | M167: *frdsegmentsplitroad vehicles | N167: D | O167: Transportation
D168: Non-road vehicles | H168: 0 | J168: J | K168: T3* | L168: B | M168: *frdsegmentsplitnon-road vehicles | N168: D | O168: Transportation
E169: Petrol | H169: 0 | J169: J | K169: T3.1* | L169: B | M169: *frdsegmentsplitnon-road vehicles | N169: D | O169: Transportation
E170: Diesel | H170: 0 | J170: J | K170: T3.2* | L170: B | M170: *frdsegmentsplitnon-road vehicles | N170: D | O170: Transportation
E171: Biodiesel | H171: 0 | J171: J | K171: T3.3* | L171: B | M171: *frdsegmentsplitnon-road vehicles | N171: D | O171: Transportation
E172: LPG | H172: 0 | J172: J | K172: T3.4* | L172: B | M172: *frdsegmentsplitnon-road vehicles | N172: D | O172: Transportation
E173: Aviation fuels | H173: 0 | J173: J | K173: T3.5* | L173: B | M173: *frdsegmentsplitnon-road vehicles | N173: D | O173: Transportation
E174: Solid fuel | H174: 0 | J174: J | K174: T3.6* | L174: B | M174: *frdsegmentsplitnon-road vehicles | N174: D | O174: Transportation
E175: Hydrogen | H175: 0 | J175: J | K175: T3.7* | L175: B | M175: *frdsegmentsplitnon-road vehicles | N175: D | O175: Transportation
E176: Electricity | H176: 0 | J176: J | K176: T3.8* | L176: B | M176: *frdsegmentsplitnon-road vehicles | N176: D | O176: Transportation
C178: T4. Total distance travelled by commercial air travel (Passenger km) | H178: =SUMIFS(INDIRECT("'"&O178&"'!"&J178&":"&J178),INDIRECT("'"&O178&"'!"&L178&":"&L178),K178,INDIRECT("'"&O178&"'!"&N178&":"&N178),M178) -> 0 | J178: J | K178: T4.1 | L178: B | M178: * | N178: D | O178: Transportation

Sheet Report - Total Energy Use (hidden)
B6: =Agency&" | "&Tier&" | "&ReportingPeriod -> | | -
B8: <- Back to Home
B10: Total Energy Use
C12: Indicator | G12: =ReportingYear -> 0 | H12: Final value column | I12: Lookup - indicator | J12: Indicator column | K12: Lookup - segment | L12: Segment column | M12: Lookup - sheet
C13: E1. Total energy usage from fuels (MJ) | G13: =SUMIFS(INDIRECT("'"&M13&"'!"&H13&":"&H13),INDIRECT("'"&M13&"'!"&J13&":"&J13),I13,INDIRECT("'"&M13&"'!"&L13&":"&L13),K13) -> 0 | H13: J | I13: E1 | J13: B | K13: * | L13: D | M13: Total Energy Use
C15: E2. Total energy used from electricity (MJ) | G15: =SUMIFS(INDIRECT("'"&M15&"'!"&H15&":"&H15),INDIRECT("'"&M15&"'!"&J15&":"&J15),I15,INDIRECT("'"&M15&"'!"&L15&":"&L15),K15) -> 0 | H15: J | I15: E2 | J15: B | K15: * | L15: D | M15: Total Energy Use
C17: E3. Total energy used segmented into renewable and non-renewable sources (MJ) | G17: =SUMIFS(INDIRECT("'"&M17&"'!"&H17&":"&H17),INDIRECT("'"&M17&"'!"&J17&":"&J17),I17,INDIRECT("'"&M17&"'!"&L17&":"&L17),K17) -> 0 | H17: J | I17: E3 | J17: B | K17: * | L17: D | M17: Total Energy Use
D18: Renewable | G18: =SUMIFS(INDIRECT("'"&M18&"'!"&H18&":"&H18),INDIRECT("'"&M18&"'!"&J18&":"&J18),I18,INDIRECT("'"&M18&"'!"&L18&":"&L18),K18) -> 0 | H18: J | I18: E3.1 | J18: B | K18: * | L18: D | M18: Total Energy Use
D19: Non-renewable | G19: =SUMIFS(INDIRECT("'"&M19&"'!"&H19&":"&H19),INDIRECT("'"&M19&"'!"&J19&":"&J19),I19,INDIRECT("'"&M19&"'!"&L19&":"&L19),K19) -> 0 | H19: J | I19: E3.2 | J19: B | K19: * | L19: D | M19: Total Energy Use
C21: ="E4. Units of energy used normalised by "& energy.normalisation -> E4. Units of energy used normalised by | G21: =SUMIFS(INDIRECT("'"&M21&"'!"&H21&":"&H21),INDIRECT("'"&M21&"'!"&J21&":"&J21),I21,INDIRECT("'"&M21&"'!"&L21&":"&L21),K21) -> 0 | H21: J | I21: E4 | J21: B | K21: * | L21: D | M21: Total Energy Use

Sheet Report - Water Use (hidden)
B6: =Agency&" | "&Tier&" | "&ReportingPeriod -> | | -
B8: <- Back to Home
B10: Water Use
C12: Indicator | G12: =ReportingYear -> 0 | H12: Final value column | I12: Lookup - indicator | J12: Indicator column | K12: Lookup - segment | L12: Segment column | M12: Lookup - sheet
C13: W1. Total water consumption by an Entity (kilolitres) | G13: =SUMIFS(INDIRECT("'"&M13&"'!"&H13&":"&H13),INDIRECT("'"&M13&"'!"&J13&":"&J13),I13,INDIRECT("'"&M13&"'!"&L13&":"&L13),K13) -> 0 | H13: J | I13: W1 | J13: B | K13: * | L13: D | M13: Water Use
D14: Potable water consumption (from town water supply) | G14: =SUMIFS(INDIRECT("'"&M14&"'!"&H14&":"&H14),INDIRECT("'"&M14&"'!"&J14&":"&J14),I14,INDIRECT("'"&M14&"'!"&L14&":"&L14),K14) -> 0 | H14: J | I14: W1.1 | J14: B | K14: * | L14: D | M14: Water Use
D15: Metered rainwater collection consumption (where available) | G15: 0 | H15: J | I15: W1.2 | J15: B | K15: * | L15: D | M15: Water Use
D16: Metered alternate supply consumption (e.g., river, stream, aquifer, bore, fire supply, third pipe etc.) | G16: 0 | H16: J | I16: W1.3 | J16: B | K16: * | L16: D | M16: Water Use
D17: Metered reused water consumption (e.g., grey or black water) | G17: 0 | H17: J | I17: W1.4 | J17: B | K17: * | L17: D | M17: Water Use
C19: ="W2. Units of metered water consumed normalised by "& water.normalisation -> W2. Units of metered water consumed normalised by | G19: 0 | H19: J | I19: W2 | J19: B | K19: * | L19: D | M19: Water Use

Sheet Report - Waste and Recycling (hidden)
B6: =Agency&" | "&Tier&" | "&ReportingPeriod -> | | -
B8: <- Back to Home | C8: Note: Finalise report (on Home tab) in order to refresh the reports below for WR1 and WR2
B10: Waste and Recycling
C13: Indicator | D13: =ReportingYear -> 0 | E13: % | G13: Indicator | H13: =ReportingYear -> 0 | J13: Indicator | N13: =ReportingYear -> 0 | O13: Final value column | P13: Lookup - indicator | Q13: Indicator column | R13: Lookup - segment | S13: Segment column | T13: Lookup - sheet
G14: WR2. Percentage of office sites covered by dedicated collection services for each waste stream
C15: WR1 | J15: ="WR3. Total units of waste disposed of normalised by "&'Waste and Recycling'!M36&" (kg)" -> WR3. Total units of waste disposed of normalised by (kg) | N15: =SUMIFS(INDIRECT("'"&T15&"'!"&O15&":"&O15),INDIRECT("'"&T15&"'!"&Q15&":"&Q15),P15,INDIRECT("'"&T15&"'!"&S15&":"&S15),R15) -> 0 | O15: J | P15: WR3 | Q15: B | R15: * | S15: D | T15: Waste and Recycling
C16: Indicator | D16: WR1 | G16: Indicator | H16: WR2 | J16: N/A - hide
C17: Segment Level 3 | D17: (blank) | G17: Segment Level 2 | H17: (blank)
C19: Row Labels | D19: Sum of Final Value | E19: Sum of Final Value2 | G19: Row Labels | H19: Sum of Final Value
C20: Total units of waste disposed of by waste stream and disposal method (kg and %) | D20: 0 | G20: Printer cartridges | H20: 0
C21: Landfill (disposal) | D21: 0 | G21: Batteries | H21: 0 | J21: WR4. Recycling Rate (%) | N21: =SUMIFS(INDIRECT("'"&T21&"'!"&O21&":"&O21),INDIRECT("'"&T21&"'!"&Q21&":"&Q21),P21,INDIRECT("'"&T21&"'!"&S21&":"&S21),R21) -> 0 | O21: J | P21: WR4 | Q21: B | R21: * | S21: D | T21: Waste and Recycling
C22: Landfill | D22: 0 | G22: e-waste | H22: 0
G23: Soft plastics | H23: 0 | J23: WR5. Greenhouse gas emissions associated with waste disposal (Tonnes CO2-e) | N23: =SUMIFS(INDIRECT("'"&T23&"'!"&O23&":"&O23),INDIRECT("'"&T23&"'!"&Q23&":"&Q23),P23,INDIRECT("'"&T23&"'!"&S23&":"&S23),R23) -> 0 | O23: J | P23: WR5 | Q23: B | R23: * | S23: D | T23: Waste and Recycling
K25: Landfill | N25: =SUMIFS(INDIRECT("'"&T25&"'!"&O25&":"&O25),INDIRECT("'"&T25&"'!"&Q25&":"&Q25),P25,INDIRECT("'"&T25&"'!"&S25&":"&S25),R25) -> 0 | O25: J | P25: WR5.1 | Q25: B | R25: * | S25: D | T25: Waste and Recycling
K26: Other | N26: =SUMIFS(INDIRECT("'"&T26&"'!"&O26&":"&O26),INDIRECT("'"&T26&"'!"&Q26&":"&Q26),P26,INDIRECT("'"&T26&"'!"&S26&":"&S26),R26) -> 0 | O26: J | P26: WR5.3 | Q26: B | R26: * | S26: D | T26: Waste and Recycling

Sheet Report - GHGs (hidden)
B6: =Agency&" | "&Tier&" | "&ReportingPeriod -> | | -
B8: <- Back to Home
B10: Greenhouse Gas Emissions
C12: Indicator | G12: =ReportingYear -> 0 | H12: Final value column | I12: Lookup - indicator | J12: Indicator column | K12: Lookup - segment | L12: Segment column | M12: Lookup - sheet
C13: G1. Total Scope 1 (direct) greenhouse gas emissions (CO2, CH4, N2O, other) (Tonnes CO2-e) | G13: =SUMIFS(INDIRECT("'"&M13&"'!"&H13&":"&H13),INDIRECT("'"&M13&"'!"&J13&":"&J13),I13,INDIRECT("'"&M13&"'!"&L13&":"&L13),K13) -> 0 | H13: J | I13: G1 | J13: B | K13: * | L13: D | M13: Greenhouse Gas Emissions
D14: Total carbon dioxide (CO2) | G14: =SUMIFS(INDIRECT("'"&M14&"'!"&H14&":"&H14),INDIRECT("'"&M14&"'!"&J14&":"&J14),I14,INDIRECT("'"&M14&"'!"&L14&":"&L14),K14) -> 0 | H14: J | I14: #G1 - CO2 | J14: B | K14: * | L14: D | M14: Greenhouse Gas Emissions
D15: Total methane (CH4) | G15: 0 | H15: J | I15: #G1 - CH4 | J15: B | K15: * | L15: D | M15: Greenhouse Gas Emissions
D16: Total nitrous oxide (N2O) | G16: 0 | H16: J | I16: #G1 - N2O | J16: B | K16: * | L16: D | M16: Greenhouse Gas Emissions
D17: Total other | G17: 0 | H17: J | I17: #G1 - other | J17: B | K17: * | L17: D | M17: Greenhouse Gas Emissions
D18: F2. Greenhouse gas emissions from stationary fuel consumption segmented by fuel type | G18: =SUMIFS(INDIRECT("'"&M18&"'!"&H18&":"&H18),INDIRECT("'"&M18&"'!"&J18&":"&J18),I18,INDIRECT("'"&M18&"'!"&L18&":"&L18),K18) -> 0 | H18: J | I18: G1.1 | J18: B | K18: * | L18: D | M18: Greenhouse Gas Emissions
D19: T3. Greenhouse gas emissions from vehicle fleet segmented by fuel type and vehicle category | G19: 0 | H19: J | I19: G1.2 | J19: B | K19: * | L19: D | M19: Greenhouse Gas Emissions
D20: Fugitive emissions from wastewater treatment | G20: 0 | H20: J | I20: G1.4.1 | J20: B | K20: * | L20: D | M20: Greenhouse Gas Emissions
D21: Use of medical gases | G21: 0 | H21: J | I21: G1.3 | J21: B | K21: * | L21: D | M21: Greenhouse Gas Emissions
D22: Fugitive emissions from refrigeration and air conditioning | G22: =SUM(G23:G24) -> 0 | H22: n/a | I22: n/a | J22: n/a | K22: n/a | L22: n/a | M22: n/a
E23: Refrigeration leakage | G23: 0 | H23: J | I23: G1.4.2 | J23: B | K23: * | L23: D | M23: Greenhouse Gas Emissions
E24: Air Conditioning leakage | G24: 0 | H24: J | I24: G1.4.3 | J24: B | K24: * | L24: D | M24: Greenhouse Gas Emissions
D25: Fugitive emissions from electrical equipment | G25: 0 | H25: J | I25: G1.4.4 | J25: B | K25: * | L25: D | M25: Greenhouse Gas Emissions
D26: Fugitive emissions from fire suppression equipment | G26: 0 | H26: J | I26: G1.4.? | J26: B | K26: *frdsegmentsplitfire suppression equipment* | L26: D | M26: Greenhouse Gas Emissions
D27: Other uses or releases of greenhouse gases through laboratory or workshop use | G27: 0 | H27: J | I27: G1.4.7 | J27: B | K27: * | L27: D | M27: Greenhouse Gas Emissions
D28: Any other material source of direct emissions within the Entity’s organisational boundary | G28: 0 | H28: J | I28: G1.4.8 | J28: B | K28: * | L28: D | M28: Greenhouse Gas Emissions
C30: G2. Total Scope 2 (indirect electricity) greenhouse gas emissions (tonnes CO2-e) | G30: 0 | H30: J | I30: G2 | J30: B | K30: * | L30: D | M30: Greenhouse Gas Emissions
C32: G3. Total Scope 3 (Other indirect) greenhouse gas emissions associated with commercial air travel and waste disposal (tonnes CO2-e) | G32: 0 | H32: J | I32: G3 | J32: B | K32: * | L32: D | M32: Greenhouse Gas Emissions
D33: Waste disposal | G33: 0 | H33: J | I33: G3.2 | J33: B | K33: * | L33: D | M33: Greenhouse Gas Emissions
D34: Commercial air travel | G34: 0 | H34: J | I34: G3.1 | J34: B | K34: * | L34: D | M34: Greenhouse Gas Emissions

Sheet Electricity Use
B6: =Agency&" | "&Tier&" | "&ReportingPeriod -> | | -
B8: <- Back to Home | F8: Sheet complete: | H8: =IFERROR(IF(COUNTIF(O:O,"Pass")+COUNTIF(O:O,"FAIL")=0,"NA",IF(VLOOKUP("FAIL",O:O,1,FALSE) = "FAIL", IF(COUNTIF(O:O,"Pass")=0,"Not Started","In Progress"),"Complete")),"Complete") -> NA
H9: =IF(NOT(OR(H8="Complete",H8="NA")),"*Mandatory values have not been entered, revisit highlighted items","") -> 
B10: Electricity Use - Reporting
B13: EL1 | C13: Total electricity consumption segmented by source
B14: ID | C14: Parent ID | D14: FRDSegment | E14: Segment Level | H14: Description | I14: Flag | J14: Final Value | K14: Final Unit | L14: Input Type | M14: Input Value | N14: Input Unit | O14: CHECK
A15: EL1 | B15: EL1 | C15: NA | D15: =IF(E15=1,H15,IFERROR(VLOOKUP(C15,$B$14:$D$1048576,3,FALSE)&"FRDSegmentSplit"&H15,H15)) -> GRAND TOTAL | E15: =IFERROR(LEN(B15)-LEN(SUBSTITUTE(B15,".","") ),"BAD VALUE") -> 0 | H15: GRAND TOTAL | I15: =IF(VLOOKUP(A15,TierIndicators,3,FALSE)="Yes", "Mandatory", "Optional") -> Optional | J15: =IF(N15="NA", _xlfn.VALUETOTEXT(M15), M15*OFFSET(Admin!$AR$3,MATCH(N15,convSources,0),MATCH(K15,convTargets,0))) -> 0 | K15: MWh | L15: Segment Aggregation | M15: =SUMIF(C:C,B15,J:J) -> 0 | N15: MWh | O15: =IF(OR(L15="Segment Aggregation",L15="Auto-Calc"),"NA",IF(AND(I15="Mandatory",OR(M15="",N15="")), "FAIL", IF(I15="Optional","NA","PASS"))) -> NA | Q15: GRAND TOTAL
A16: EL1 | B16: EL1.1 | C16: EL1 | D16: =IF(E16=1,H16,IFERROR(VLOOKUP(C16,$B$14:$D$1048576,3,FALSE)&"FRDSegmentSplit"&H16,H16)) -> Purchased directly through an electricity retailer (including State Purchasing Contracts, HealthShare Victoria contracts or other retail contracts) | E16: =IFERROR(LEN(B16)-LEN(SUBSTITUTE(B16,".","") ),"BAD VALUE") -> 1 | F16: + (add segment) | H16: Purchased directly through an electricity retailer (including State Purchasing Contracts, HealthShare Victoria contracts or other retail contracts) | I16: =IF(VLOOKUP(A16,TierIndicators,3,FALSE)="Yes", "Mandatory", "Optional") -> Optional | J16: =IF(N16="NA", _xlfn.VALUETOTEXT(M16), M16*OFFSET(Admin!$AR$3,MATCH(N16,convSources,0),MATCH(K16,convTargets,0))) -> 0 | K16: MWh | L16: Manual | N16: MWh | O16: =IF(OR(L16="Segment Aggregation",L16="Auto-Calc"),"NA",IF(AND(I16="Mandatory",OR(M16="",N16="")), "FAIL", IF(I16="Optional","NA","PASS"))) -> NA | Q16: Purchased directly through an electricity retailer (including State Purchasing Contracts, HealthShare Victoria contracts or other retail contracts) | R16: =IF(VLOOKUP(A16,Calculations,MATCH("data imported?",Admin!$Q$2:$V$2,0),0),"calculation available","import data from home tab to use calculations") -> import data from home tab to use calculations
A17: EL1 | B17: EL1.2 | C17: EL1 | D17: =IF(E17=1,H17,IFERROR(VLOOKUP(C17,$B$14:$D$1048576,3,FALSE)&"FRDSegmentSplit"&H17,H17)) -> Not directly purchased (e.g. tenancies that are not individually metered), but sourced from outside the organisation | E17: =IFERROR(LEN(B17)-LEN(SUBSTITUTE(B17,".","") ),"BAD VALUE") -> 1 | F17: + (add segment) | H17: Not directly purchased (e.g. tenancies that are not individually metered), but sourced from outside the organisation | I17: =IF(VLOOKUP(A17,TierIndicators,3,FALSE)="Yes", "Mandatory", "Optional") -> Optional | J17: =IF(N17="NA", _xlfn.VALUETOTEXT(M17), M17*OFFSET(Admin!$AR$3,MATCH(N17,convSources,0),MATCH(K17,convTargets,0))) -> 0 | K17: MWh | L17: Manual | N17: MWh | O17: NA | Q17: Not directly purchased (e.g. tenancies that are not individually metered), but sourced from outside the organisation
A18: EL1 | B18: EL1.3 | C18: EL1 | D18: =IF(E18=1,H18,IFERROR(VLOOKUP(C18,$B$14:$D$1048576,3,FALSE)&"FRDSegmentSplit"&H18,H18)) -> Self-generated (if known) | E18: 1 | H18: Self-generated (if known) | I18: =IF(VLOOKUP(A18,TierIndicators,3,FALSE)="Yes", "Mandatory", "Optional") -> Optional | J18: =IF(N18="NA", _xlfn.VALUETOTEXT(M18), M18*OFFSET(Admin!$AR$3,MATCH(N18,convSources,0),MATCH(K18,convTargets,0))) -> 0 | K18: MWh | L18: Auto-Calc | M18: =$J$24 -> 0 | N18: MWh | O18: NA | Q18: Self-generated (if known)
B21: EL2 | C21: On site-electricity generated (in megawatt hours) for large-scale renewable energy systems, (i.e. accredited under the Large-Scale Renewable Energy Target (RET)), small-scale renewable energy systems (where data is available), and any other electricity generation system (where data is available), segmented by:
B22: ID | C22: Parent ID | D22: FRDSegment | E22: Segment Level | H22: Description | I22: Flag | J22: Final Value | K22: Final Unit | L22: Input Type | M22: Input Value | N22: Input Unit
A23: EL2 | B23: EL2 | C23: NA | D23: =IF(E23=1,H23,IFERROR(VLOOKUP(C23,$B$14:$D$1048576,3,FALSE)&"FRDSegmentSplit"&H23,H23)) -> GRAND TOTAL | E23: =IFERROR(LEN(B23)-LEN(SUBSTITUTE(B23,".","") ),"BAD VALUE") -> 0 | H23: GRAND TOTAL | I23: =IF(VLOOKUP(A23,TierIndicators,3,FALSE)="Yes", "Mandatory", "Optional") -> Optional | J23: =IF(N23="NA", _xlfn.VALUETOTEXT(M23), M23*OFFSET(Admin!$AR$3,MATCH(N23,convSources,0),MATCH(K23,convTargets,0))) -> 0 | K23: MWh | L23: Segment Aggregation | M23: =SUMIF(C:C,B23,J:J) -> 0 | N23: MWh | O23: =IF(OR(L23="Segment Aggregation",L23="Auto-Calc"),"NA",IF(AND(I23="Mandatory",OR(M23="",N23="")), "FAIL", IF(I23="Optional","NA","PASS"))) -> NA | Q23: GRAND TOTAL
A24: EL2 | B24: EL2.1 | C24: EL2 | D24: Consumption behind-the-meter | E24: =IFERROR(LEN(B24)-LEN(SUBSTITUTE(B24,".","") ),"BAD VALUE") -> 1 | H24: Consumption behind-the-meter | I24: Optional | J24: =IF(N24="NA", _xlfn.VALUETOTEXT(M24), M24*OFFSET(Admin!$AR$3,MATCH(N24,convSources,0),MATCH(K24,convTargets,0))) -> 0 | K24: MWh | L24: Segment Aggregation | M24: =SUMIF(C:C,B24,J:J) -> 0 | N24: MWh | O24: NA | Q24: Consumption behind-the-meter
A25: EL2 | B25: EL2.1.1 | C25: EL2.1 | D25: Consumption behind-the-meterFRDSegmentSplitWind | E25: =IFERROR(LEN(B25)-LEN(SUBSTITUTE(B25,".","") ),"BAD VALUE") -> 2 | F25: + (add segment) | H25: Wind | I25: Optional | J25: =IF(N25="NA", _xlfn.VALUETOTEXT(M25), M25*OFFSET(Admin!$AR$3,MATCH(N25,convSources,0),MATCH(K25,convTargets,0))) -> 0 | K25: MWh | L25: Manual | N25: MWh | O25: NA | Q25: Wind
A26: EL2 | B26: EL2.1.2 | C26: EL2.1 | D26: Consumption behind-the-meterFRDSegmentSplitSolar PV | E26: 2 | F26: + (add segment) | H26: Solar PV | I26: Optional | J26: =IF(N26="NA", _xlfn.VALUETOTEXT(M26), M26*OFFSET(Admin!$AR$3,MATCH(N26,convSources,0),MATCH(K26,convTargets,0))) -> 0 | K26: MWh | L26: Manual | N26: MWh | O26: NA | Q26: Solar PV
A27: EL2 | B27: EL2.1.3 | C27: EL2.1 | D27: Consumption behind-the-meterFRDSegmentSplitBioenergy (including biogas from wastewater or landfill) | E27: 2 | F27: + (add segment) | H27: Bioenergy (including biogas from wastewater or landfill) | I27: Optional | J27: =IF(N27="NA", _xlfn.VALUETOTEXT(M27), M27*OFFSET(Admin!$AR$3,MATCH(N27,convSources,0),MATCH(K27,convTargets,0))) -> 0 | K27: MWh | L27: Manual | N27: MWh | O27: NA | Q27: Bioenergy
A28: EL2 | B28: EL2.1.4 | C28: EL2.1 | D28: Consumption behind-the-meterFRDSegmentSplitHydroelectric | E28: 2 | F28: + (add segment) | H28: Hydroelectric | I28: Optional | J28: =IF(N28="NA", _xlfn.VALUETOTEXT(M28), M28*OFFSET(Admin!$AR$3,MATCH(N28,convSources,0),MATCH(K28,convTargets,0))) -> 0 | K28: MWh | L28: Manual | N28: MWh | O28: NA | Q28: Hydroelectric
A29: EL2 | B29: EL2.1.5 | C29: EL2.1 | D29: Consumption behind-the-meterFRDSegmentSplitOther renewable (as defined by the Renewable Energy (Jobs and Investment) Act 2017) | E29: 2 | F29: + (add segment) | H29: Other renewable (as defined by the Renewable Energy (Jobs and Investment) Act 2017) | I29: Optional | J29: =IF(N29="NA", _xlfn.VALUETOTEXT(M29), M29*OFFSET(Admin!$AR$3,MATCH(N29,convSources,0),MATCH(K29,convTargets,0))) -> 0 | K29: MWh | L29: Manual | N29: MWh | O29: NA | Q29: Other renewable (as defined by the Renewable Energy (Jobs and Investment) Act 2017)
A30: EL2 | B30: EL2.1.6 | C30: EL2.1 | D30: Consumption behind-the-meterFRDSegmentSplitCogeneration (report electricity produced by cogeneration - energy used in cogeneration plant should also be reported under the 'all fuels' section) | E30: 2 | F30: + (add segment) | H30: Cogeneration (report electricity produced by cogeneration - energy used in cogeneration plant should also be reported under the 'all fuels' section) | I30: Optional | J30: =IF(N30="NA", _xlfn.VALUETOTEXT(M30), M30*OFFSET(Admin!$AR$3,MATCH(N30,convSources,0),MATCH(K30,convTargets,0))) -> 0 | K30: MWh | L30: Manual | N30: MWh | O30: NA | Q30: Cogeneration (report electricity produced by cogeneration - energy used in cogeneration plant should also be reported under the 'all fuels' section)
A31: EL2 | B31: EL2.1.7 | C31: EL2.1 | D31: Consumption behind-the-meterFRDSegmentSplitOther non-renewable | E31: 2 | F31: + (add segment) | H31: Other non-renewable | I31: Optional | J31: =IF(N31="NA", _xlfn.VALUETOTEXT(M31), M31*OFFSET(Admin!$AR$3,MATCH(N31,convSources,0),MATCH(K31,convTargets,0))) -> 0 | K31: MWh | L31: Manual | N31: MWh | O31: NA | Q31: Other non-renewable
A32: EL2 | B32: EL2.2 | C32: EL2 | D32: Exports | E32: =IFERROR(LEN(B32)-LEN(SUBSTITUTE(B32,".","") ),"BAD VALUE") -> 1 | H32: Exports | I32: Optional | J32: =IF(N32="NA", _xlfn.VALUETOTEXT(M32), M32*OFFSET(Admin!$AR$3,MATCH(N32,convSources,0),MATCH(K32,convTargets,0))) -> 0 | K32: MWh | L32: Segment Aggregation | M32: =SUMIF(C:C,B32,J:J) -> 0 | N32: MWh | O32: NA | Q32: Exports
A33: EL2 | B33: EL2.2.1 | C33: EL2.2 | D33: ExportsFRDSegmentSplitWind | E33: =IFERROR(LEN(B33)-LEN(SUBSTITUTE(B33,".","") ),"BAD VALUE") -> 2 | F33: + (add segment) | H33: Wind | I33: Optional | J33: =IF(N33="NA", _xlfn.VALUETOTEXT(M33), M33*OFFSET(Admin!$AR$3,MATCH(N33,convSources,0),MATCH(K33,convTargets,0))) -> 0 | K33: MWh | L33: Manual | N33: MWh | O33: NA | Q33: Wind
A34: EL2 | B34: EL2.2.2 | C34: EL2.2 | D34: ExportsFRDSegmentSplitSolar PV | E34: 2 | F34: + (add segment) | H34: Solar PV | I34: Optional | J34: =IF(N34="NA", _xlfn.VALUETOTEXT(M34), M34*OFFSET(Admin!$AR$3,MATCH(N34,convSources,0),MATCH(K34,convTargets,0))) -> 0 | K34: MWh | L34: Manual | N34: MWh | O34: NA | Q34: Solar PV
A35: EL2 | B35: EL2.2.3 | C35: EL2.2 | D35: ExportsFRDSegmentSplitBioenergy (including biogas from wastewater or landfill) | E35: 2 | F35: + (add segment) | H35: Bioenergy (including biogas from wastewater or landfill) | I35: Optional | J35: =IF(N35="NA", _xlfn.VALUETOTEXT(M35), M35*OFFSET(Admin!$AR$3,MATCH(N35,convSources,0),MATCH(K35,convTargets,0))) -> 0 | K35: MWh | L35: Manual | N35: MWh | O35: NA | Q35: Bioenergy
A36: EL2 | B36: EL2.2.4 | C36: EL2.2 | D36: ExportsFRDSegmentSplitHydroelectric | E36: 2 | F36: + (add segment) | H36: Hydroelectric | I36: Optional | J36: =IF(N36="NA", _xlfn.VALUETOTEXT(M36), M36*OFFSET(Admin!$AR$3,MATCH(N36,convSources,0),MATCH(K36,convTargets,0))) -> 0 | K36: MWh | L36: Manual | N36: MWh | O36: NA | Q36: Hydroelectric
A37: EL2 | B37: EL2.2.5 | C37: EL2.2 | D37: ExportsFRDSegmentSplitOther renewable (as defined by the Renewable Energy (Jobs and Investment) Act 2017) | E37: 2 | F37: + (add segment) | H37: Other renewable (as defined by the Renewable Energy (Jobs and Investment) Act 2017) | I37: Optional | J37: =IF(N37="NA", _xlfn.VALUETOTEXT(M37), M37*OFFSET(Admin!$AR$3,MATCH(N37,convSources,0),MATCH(K37,convTargets,0))) -> 0 | K37: MWh | L37: Manual | N37: MWh | O37: NA | Q37: Other renewable (as defined by the Renewable Energy (Jobs and Investment) Act 2017)
A38: EL2 | B38: EL2.2.6 | C38: EL2.2 | D38: ExportsFRDSegmentSplitCogeneration (report electricity produced by cogeneration - energy used in cogeneration plant should also be reported under the 'all fuels' section) | E38: 2 | F38: + (add segment) | H38: Cogeneration (report electricity produced by cogeneration - energy used in cogeneration plant should also be reported under the 'all fuels' section) | I38: Optional | J38: =IF(N38="NA", _xlfn.VALUETOTEXT(M38), M38*OFFSET(Admin!$AR$3,MATCH(N38,convSources,0),MATCH(K38,convTargets,0))) -> 0 | K38: MWh | L38: Manual | N38: MWh | O38: NA | Q38: Cogeneration (report electricity produced by cogeneration - energy used in cogeneration plant should also be reported under the 'all fuels' section)
A39: EL2 | B39: EL2.2.7 | C39: EL2.2 | D39: ExportsFRDSegmentSplitOther non-renewable | E39: 2 | F39: + (add segment) | H39: Other non-renewable | I39: Optional | J39: =IF(N39="NA", _xlfn.VALUETOTEXT(M39), M39*OFFSET(Admin!$AR$3,MATCH(N39,convSources,0),MATCH(K39,convTargets,0))) -> 0 | K39: MWh | L39: Manual | N39: MWh | O39: NA | Q39: Other non-renewable
A40: EL2 | B40: EL2.3 | C40: EL2 | D40: If relevant - For use outside the facility other than for supply to the grid | E40: =IFERROR(LEN(B40)-LEN(SUBSTITUTE(B40,".","") ),"BAD VALUE") -> 1 | H40: If relevant - For use outside the facility other than for supply to the grid | I40: Optional | J40: =IF(N40="NA", _xlfn.VALUETOTEXT(M40), M40*OFFSET(Admin!$AR$3,MATCH(N40,convSources,0),MATCH(K40,convTargets,0))) -> 0 | K40: MWh | L40: Segment Aggregation | M40: =SUMIF(C:C,B40,J:J) -> 0 | N40: MWh | O40: NA | Q40: If relevant - For use outside the facility other than for supply to the grid
A41: EL2 | B41: EL2.3.1 | C41: EL2.3 | D41: If relevant - For use outside the facility other than for supply to the gridFRDSegmentSplitWind | E41: =IFERROR(LEN(B41)-LEN(SUBSTITUTE(B41,".","") ),"BAD VALUE") -> 2 | F41: + (add segment) | H41: Wind | I41: Optional | J41: =IF(N41="NA", _xlfn.VALUETOTEXT(M41), M41*OFFSET(Admin!$AR$3,MATCH(N41,convSources,0),MATCH(K41,convTargets,0))) -> 0 | K41: MWh | L41: Manual | N41: MWh | O41: NA | Q41: Wind
A42: EL2 | B42: EL2.3.2 | C42: EL2.3 | D42: If relevant - For use outside the facility other than for supply to the gridFRDSegmentSplitSolar PV | E42: 2 | F42: + (add segment) | H42: Solar PV | I42: Optional | J42: =IF(N42="NA", _xlfn.VALUETOTEXT(M42), M42*OFFSET(Admin!$AR$3,MATCH(N42,convSources,0),MATCH(K42,convTargets,0))) -> 0 | K42: MWh | L42: Manual | N42: MWh | O42: NA | Q42: Solar PV
A43: EL2 | B43: EL2.3.3 | C43: EL2.3 | D43: If relevant - For use outside the facility other than for supply to the gridFRDSegmentSplitBioenergy (including biogas from wastewater or landfill) | E43: 2 | F43: + (add segment) | H43: Bioenergy (including biogas from wastewater or landfill) | I43: Optional | J43: =IF(N43="NA", _xlfn.VALUETOTEXT(M43), M43*OFFSET(Admin!$AR$3,MATCH(N43,convSources,0),MATCH(K43,convTargets,0))) -> 0 | K43: MWh | L43: Manual | N43: MWh | O43: NA | Q43: Bioenergy
A44: EL2 | B44: EL2.3.4 | C44: EL2.3 | D44: If relevant - For use outside the facility other than for supply to the gridFRDSegmentSplitHydroelectric | E44: 2 | F44: + (add segment) | H44: Hydroelectric | I44: Optional | J44: =IF(N44="NA", _xlfn.VALUETOTEXT(M44), M44*OFFSET(Admin!$AR$3,MATCH(N44,convSources,0),MATCH(K44,convTargets,0))) -> 0 | K44: MWh | L44: Manual | N44: MWh | O44: NA | Q44: Hydroelectric
A45: EL2 | B45: EL2.3.5 | C45: EL2.3 | D45: If relevant - For use outside the facility other than for supply to the gridFRDSegmentSplitOther renewable (as defined by the Renewable Energy (Jobs and Investment) Act 2017) | E45: 2 | F45: + (add segment) | H45: Other renewable (as defined by the Renewable Energy (Jobs and Investment) Act 2017) | I45: Optional | J45: =IF(N45="NA", _xlfn.VALUETOTEXT(M45), M45*OFFSET(Admin!$AR$3,MATCH(N45,convSources,0),MATCH(K45,convTargets,0))) -> 0 | K45: MWh | L45: Manual | N45: MWh | O45: NA | Q45: Other renewable (as defined by the Renewable Energy (Jobs and Investment) Act 2017)
A46: EL2 | B46: EL2.3.6 | C46: EL2.3 | D46: If relevant - For use outside the facility other than for supply to the gridFRDSegmentSplitCogeneration (report electricity produced by cogeneration - energy used in cogeneration plant should also be reported under the 'all fuels' section) | E46: 2 | F46: + (add segment) | H46: Cogeneration (report electricity produced by cogeneration - energy used in cogeneration plant should also be reported under the 'all fuels' section) | I46: Optional | J46: =IF(N46="NA", _xlfn.VALUETOTEXT(M46), M46*OFFSET(Admin!$AR$3,MATCH(N46,convSources,0),MATCH(K46,convTargets,0))) -> 0 | K46: MWh | L46: Manual | N46: MWh | O46: NA | Q46: Cogeneration (report electricity produced by cogeneration - energy used in cogeneration plant should also be reported under the 'all fuels' section)
A47: EL2 | B47: EL2.3.7 | C47: EL2.3 | D47: If relevant - For use outside the facility other than for supply to the gridFRDSegmentSplitOther non-renewable | E47: 2 | F47: + (add segment) | H47: Other non-renewable | I47: Optional | J47: =IF(N47="NA", _xlfn.VALUETOTEXT(M47), M47*OFFSET(Admin!$AR$3,MATCH(N47,convSources,0),MATCH(K47,convTargets,0))) -> 0 | K47: MWh | L47: Manual | N47: MWh | O47: NA | Q47: Other non-renewable
B50: EL3 | C50: On-site installed generation capacity in megawatts (as at end of reporting period) segment by:
B51: ID | C51: Parent ID | D51: FRDSegment | E51: Segment Level | H51: Description | I51: Flag | J51: Final Value | K51: Final Unit | L51: Input Type | M51: Input Value | N51: Input Unit
A52: EL3 | B52: EL3 | C52: NA | D52: =IF(E52=1,H52,IFERROR(VLOOKUP(C52,$B$14:$D$1048576,3,FALSE)&"FRDSegmentSplit"&H52,H52)) -> GRAND TOTAL | E52: =IFERROR(LEN(B52)-LEN(SUBSTITUTE(B52,".","") ),"BAD VALUE") -> 0 | H52: GRAND TOTAL | I52: =IF(VLOOKUP(A52,TierIndicators,3,FALSE)="Yes", "Mandatory", "Optional") -> Optional | J52: =IF(N52="NA", _xlfn.VALUETOTEXT(M52), M52*OFFSET(Admin!$AR$3,MATCH(N52,convSources,0),MATCH(K52,convTargets,0))) -> 0 | K52: MW | L52: Segment Aggregation | M52: =SUMIF(C:C,B52,J:J)-J59 -> 0 | N52: MW | O52: =IF(OR(L52="Segment Aggregation",L52="Auto-Calc"),"NA",IF(AND(I52="Mandatory",OR(M52="",N52="")), "FAIL", IF(I52="Optional","NA","PASS"))) -> NA | Q52: GRAND TOTAL
A53: EL3 | B53: EL3.1 | C53: EL3 | D53: Wind | E53: =IFERROR(LEN(B53)-LEN(SUBSTITUTE(B53,".","") ),"BAD VALUE") -> 1 | F53: + (add segment) | H53: Wind | I53: Optional | J53: =IF(N53="NA", _xlfn.VALUETOTEXT(M53), M53*OFFSET(Admin!$AR$3,MATCH(N53,convSources,0),MATCH(K53,convTargets,0))) -> 0 | K53: MW | L53: Manual | N53: MW | O53: NA | Q53: Wind
A54: EL3 | B54: EL3.2 | C54: EL3 | D54: Solar PV | E54: 1 | F54: + (add segment) | H54: Solar PV | I54: Optional | J54: =IF(N54="NA", _xlfn.VALUETOTEXT(M54), M54*OFFSET(Admin!$AR$3,MATCH(N54,convSources,0),MATCH(K54,convTargets,0))) -> 0 | K54: MW | L54: Manual | N54: MW | O54: NA | Q54: Solar PV
A55: EL3 | B55: EL3.3 | C55: EL3 | D55: Bioenergy (including biogas from wastewater or landfill) | E55: 1 | F55: + (add segment) | H55: Bioenergy (including biogas from wastewater or landfill) | I55: Optional | J55: =IF(N55="NA", _xlfn.VALUETOTEXT(M55), M55*OFFSET(Admin!$AR$3,MATCH(N55,convSources,0),MATCH(K55,convTargets,0))) -> 0 | K55: MW | L55: Manual | N55: MW | O55: NA | Q55: Bioenergy
A56: EL3 | B56: EL3.4 | C56: EL3 | D56: Hydroelectric | E56: 1 | F56: + (add segment) | H56: Hydroelectric | I56: Optional | J56: =IF(N56="NA", _xlfn.VALUETOTEXT(M56), M56*OFFSET(Admin!$AR$3,MATCH(N56,convSources,0),MATCH(K56,convTargets,0))) -> 0 | K56: MW | L56: Manual | N56: MW | O56: NA | Q56: Hydroelectric
A57: EL3 | B57: EL3.5 | C57: EL3 | D57: Other renewable (as defined by the Renewable Energy (Jobs and Investment) Act 2017) | E57: 1 | F57: + (add segment) | H57: Other renewable (as defined by the Renewable Energy (Jobs and Investment) Act 2017) | I57: Optional | J57: =IF(N57="NA", _xlfn.VALUETOTEXT(M57), M57*OFFSET(Admin!$AR$3,MATCH(N57,convSources,0),MATCH(K57,convTargets,0))) -> 0 | K57: MW | L57: Manual | N57: MW | O57: NA | Q57: Other renewable (as defined by the Renewable Energy (Jobs and Investment) Act 2017)
A58: EL3 | B58: EL3.6 | C58: EL3 | D58: Energy Storage Systems (power capacity) | E58: 1 | F58: + (add segment) | H58: Energy Storage Systems (power capacity) | I58: Optional | J58: =IF(N58="NA", _xlfn.VALUETOTEXT(M58), M58*OFFSET(Admin!$AR$3,MATCH(N58,convSources,0),MATCH(K58,convTargets,0))) -> 0 | K58: MW | L58: Manual | N58: MW | O58: NA | Q58: Energy Storage Systems (power capacity)
A59: EL3 | B59: EL3.7 | C59: EL3 | D59: Energy Storage Systems (total storage capacity) | E59: 1 | F59: + (add segment) | H59: Energy Storage Systems (total storage capacity) | I59: Optional | J59: =IF(N59="NA", _xlfn.VALUETOTEXT(M59), M59*OFFSET(Admin!$AR$3,MATCH(N59,convSources,0),MATCH(K59,convTargets,0))) -> 0 | K59: MWh | L59: Manual | N59: MWh | O59: NA | Q59: Energy Storage Systems (total storage capacity)
A60: EL3 | B60: EL3.8 | C60: EL3 | D60: Cogeneration | E60: 1 | F60: + (add segment) | H60: Cogeneration | I60: Optional | J60: =IF(N60="NA", _xlfn.VALUETOTEXT(M60), M60*OFFSET(Admin!$AR$3,MATCH(N60,convSources,0),MATCH(K60,convTargets,0))) -> 0 | K60: MW | L60: Manual | N60: MW | O60: NA | Q60: Cogeneration
A61: EL3 | B61: EL3.9 | C61: EL3 | D61: Other non-renewable (including standby power systems if relevant) | E61: =IFERROR(LEN(B61)-LEN(SUBSTITUTE(B61,".","") ),"BAD VALUE") -> 1 | F61: + (add segment) | H61: Other non-renewable (including standby power systems if relevant) | I61: Optional | J61: =IF(N61="NA", _xlfn.VALUETOTEXT(M61), M61*OFFSET(Admin!$AR$3,MATCH(N61,convSources,0),MATCH(K61,convTargets,0))) -> 0 | K61: MW | L61: Manual | N61: MW | O61: NA | Q61: Other non-renewable (including standby power systems if relevant)
B64: EL4 | C64: Total electricity offsets segmented by offset type
B65: ID | C65: Parent ID | D65: FRDSegment | E65: Segment Level | H65: Description | I65: Flag | J65: Final Value | K65: Final Unit | L65: Input Type | M65: Input Value | N65: Input Unit
A66: EL4 | B66: EL4 | C66: NA | D66: =IF(E66=1,H66,IFERROR(VLOOKUP(C66,$B$14:$D$1048576,3,FALSE)&"FRDSegmentSplit"&H66,H66)) -> GRAND TOTAL | E66: =IFERROR(LEN(B66)-LEN(SUBSTITUTE(B66,".","") ),"BAD VALUE") -> 0 | H66: GRAND TOTAL | I66: =IF(VLOOKUP(A66,TierIndicators,3,FALSE)="Yes", "Mandatory", "Optional") -> Optional | J66: =IF(N66="NA", _xlfn.VALUETOTEXT(M66), M66*OFFSET(Admin!$AR$3,MATCH(N66,convSources,0),MATCH(K66,convTargets,0))) -> 0 | K66: MWh | L66: Segment Aggregation | M66: =SUMIF(C:C,B66,J:J)-J73 -> 0 | N66: MWh | O66: =IF(OR(L66="Segment Aggregation",L66="Auto-Calc"),"NA",IF(AND(I66="Mandatory",OR(M66="",N66="")), "FAIL", IF(I66="Optional","NA","PASS"))) -> NA | Q66: GRAND TOTAL
A67: EL4 | B67: EL4.1 | C67: EL4 | D67: LGC's voluntarily retired by entity | E67: =IFERROR(LEN(B67)-LEN(SUBSTITUTE(B67,".","") ),"BAD VALUE") -> 1 | F67: + (add segment) | H67: LGC's voluntarily retired by entity | I67: Optional | J67: =IF(N67="NA", _xlfn.VALUETOTEXT(M67), M67*OFFSET(Admin!$AR$3,MATCH(N67,convSources,0),MATCH(K67,convTargets,0))) -> 0 | K67: MWh | L67: Manual | N67: MWh | O67: NA | Q67: LGC's voluntarily retired by entity
A68: EL4 | B68: EL4.2 | C68: EL4 | D68: LGC's voluntarily retired on the entity's behalf | E68: 1 | F68: + (add segment) | H68: LGC's voluntarily retired on the entity's behalf | I68: Optional | J68: =IF(N68="NA", _xlfn.VALUETOTEXT(M68), M68*OFFSET(Admin!$AR$3,MATCH(N68,convSources,0),MATCH(K68,convTargets,0))) -> 0 | K68: MWh | L68: Manual | N68: MWh | O68: NA | Q68: LGC's voluntarily retired on the entity's behalf
A69: EL4 | B69: EL4.3 | C69: EL4 | D69: GreenPower or certified carbon neutral electricity purchased (eg. Through a retailer's contract option) | E69: 1 | H69: GreenPower or certified carbon neutral electricity purchased (eg. Through a retailer's contract option) | I69: Optional | J69: =IF(N69="NA", _xlfn.VALUETOTEXT(M69), M69*OFFSET(Admin!$AR$3,MATCH(N69,convSources,0),MATCH(K69,convTargets,0))) -> 0 | K69: MWh | L69: Segment Aggregation | M69: =SUMIF(C:C,B69,J:J) -> 0 | N69: MWh | O69: NA | Q69: GreenPower or certified carbon neutral electricity purchased (eg. Through a retailer's contract option)
A70: EL4 | B70: EL4.3.1 | C70: EL4.3 | D70: GreenPower or certified carbon neutral electricity purchased (eg. Through a retailer's contract option)FRDSegmentSplitGreenPower | E70: =IFERROR(LEN(B70)-LEN(SUBSTITUTE(B70,".","") ),"BAD VALUE") -> 2 | F70: + (add segment) | H70: GreenPower | I70: Optional | J70: =IF(N70="NA", _xlfn.VALUETOTEXT(M70), M70*OFFSET(Admin!$AR$3,MATCH(N70,convSources,0),MATCH(K70,convTargets,0))) -> 0 | K70: MWh | L70: Manual | N70: MWh | O70: NA | Q70: GreenPower | R70: =IF(VLOOKUP(A70,Calculations,MATCH("data imported?",Admin!$Q$2:$V$2,0),0),"calculation available","import data from home tab to use calculations") -> import data from home tab to use calculations
A71: EL4 | B71: EL4.3.2 | C71: EL4.3 | D71: GreenPower or certified carbon neutral electricity purchased (eg. Through a retailer's contract option)FRDSegmentSplitCertified climate active carbon neutral electricity purchased | E71: =IFERROR(LEN(B71)-LEN(SUBSTITUTE(B71,".","") ),"BAD VALUE") -> 2 | F71: + (add segment) | H71: Certified climate active carbon neutral electricity purchased | I71: Optional | J71: =IF(N71="NA", _xlfn.VALUETOTEXT(M71), M71*OFFSET(Admin!$AR$3,MATCH(N71,convSources,0),MATCH(K71,convTargets,0))) -> 0 | K71: MWh | L71: Manual | N71: MWh | O71: NA | Q71: Certified climate active carbon neutral electricity purchased
A72: EL4 | B72: EL4.4 | C72: EL4 | D72: LGC's mandatorily retired (for RET liable entities only) or LGC's conveyed to an entity's retailer for mandatory retirement (where relevant) | E72: 1 | F72: + (add segment) | H72: LGC's mandatorily retired (for RET liable entities only) or LGC's conveyed to an entity's retailer for mandatory retirement (where relevant) | I72: Optional | J72: =IF(N72="NA", _xlfn.VALUETOTEXT(M72), M72*OFFSET(Admin!$AR$3,MATCH(N72,convSources,0),MATCH(K72,convTargets,0))) -> 0 | K72: MWh | L72: Manual | N72: MWh | O72: NA | Q72: LGC's mandatorily retired (for RET liable entities only) or LGC's conveyed to an entity's retailer for mandatory retirement (where relevant)
A73: EL4 | B73: EL4.5 | C73: EL4 | D73: LGC's associated with self-consumed / exported electricity and sold behind the meter | E73: =IFERROR(LEN(B73)-LEN(SUBSTITUTE(B73,".","") ),"BAD VALUE") -> 1 | F73: + (add segment) | H73: LGC's associated with self-consumed / exported electricity and sold behind the meter | I73: =IF(VLOOKUP(A73,TierIndicators,3,FALSE)="Yes", "Mandatory", "Optional") -> Optional | J73: =IF(N73="NA", _xlfn.VALUETOTEXT(M73), M73*OFFSET(Admin!$AR$3,MATCH(N73,convSources,0),MATCH(K73,convTargets,0))) -> 0 | K73: MWh | L73: Manual | N73: MWh | O73: =IF(OR(L73="Segment Aggregation",L73="Auto-Calc"),"NA",IF(AND(I73="Mandatory",OR(M73="",N73="")), "FAIL", IF(I73="Optional","NA","PASS"))) -> NA | Q73: LGC's associated with self-consumed / exported electricity and sold behind the meter

Sheet Stationary Fuel Use
B6: =Agency&" | "&Tier&" | "&ReportingPeriod -> | | -
B8: <- Back to Home | F8: Sheet complete: | H8: =IFERROR(IF(COUNTIF(O:O,"Pass")+COUNTIF(O:O,"FAIL")=0,"NA",IF(VLOOKUP("FAIL",O:O,1,FALSE) = "FAIL", IF(COUNTIF(O:O,"Pass")=0,"Not Started","In Progress"),"Complete")),"Complete") -> NA
H9: =IF(NOT(OR(H8="Complete",H8="NA")),"*Mandatory values have not been entered, revisit highlighted items","") -> 
B10: Stationary Fuel Use - Reporting
B13: F1 | C13: Total fuels used in buildings and machinery segmented by fuel type (MJ)
B14: ID | C14: Parent ID | D14: FRDSegment | E14: Segment Level | H14: Description | I14: Flag | J14: Final Value | K14: Final Unit | L14: Input Type | M14: Input Value | N14: Input Unit | O14: CHECK
A15: F1 | B15: F1 | C15: NA | D15: =IF(E15=1,H15,IFERROR(VLOOKUP(C15,$B$14:$D$1048576,3,FALSE)&"FRDSegmentSplit"&H15,H15)) -> GRAND TOTAL | E15: =IFERROR(LEN(B15)-LEN(SUBSTITUTE(B15,".","") ),"BAD VALUE") -> 0 | H15: GRAND TOTAL | I15: =IF(VLOOKUP(A15,TierIndicators,3,FALSE)="Yes", "Mandatory", "Optional") -> Optional | J15: =IF(N15="NA",_xlfn.VALUETOTEXT(M15),M15*IF(OR(N15="L", N15="kL"),VLOOKUP("F2-"&Q15,Admin!BN:BT,5,FALSE)*IF(N15="kL",1000,1)*OFFSET(Admin!$AR$3,MATCH("GJ",convSources,0),MATCH(K15,convTargets,0)),IF(OR(N15="Kg",N15="Tonnes"),VLOOKUP("F2-"&Q15,Admin!BN:BT,6,FALSE)*IF(N15="Tonnes",1000,1)*OFFSET(Admin!$AR$3,MATCH("GJ",convSources,0),MATCH(K15,convTargets,0)),IF(N15="m3",VLOOKUP("F2-"&Q15,Admin!BN:BT,7,FALSE)*OFFSET(Admin!$AR$3,MATCH("GJ",convSources,0),MATCH(K15,convTargets,0)),OFFSET(Admin!$AR$3,MATCH(N15,convSources,0),MATCH(K15,convTargets,0)))))) -> 0 | K15: MJ | L15: Segment Aggregation | M15: =SUMIF(C:C,B15,J:J) -> 0 | N15: MJ | O15: =IF(OR(L15="Segment Aggregation",L15="Auto-Calc"),"NA",IF(AND(I15="Mandatory",OR(M15="",N15="")), "FAIL", IF(I15="Optional","NA","PASS"))) -> NA | Q15: GRAND TOTAL
A16: F1 | B16: F1.1 | C16: F1 | D16: Buildings (fuel used in heating, cooling, cooking, and the provision of other building services) | E16: =IFERROR(LEN(B16)-LEN(SUBSTITUTE(B16,".","") ),"BAD VALUE") -> 1 | H16: Buildings (fuel used in heating, cooling, cooking, and the provision of other building services) | I16: Optional | J16: =IF(N16="NA",_xlfn.VALUETOTEXT(M16),M16*IF(OR(N16="L", N16="kL"),VLOOKUP("F2-"&Q16,Admin!BN:BT,5,FALSE)*IF(N16="kL",1000,1)*OFFSET(Admin!$AR$3,MATCH("GJ",convSources,0),MATCH(K16,convTargets,0)),IF(OR(N16="Kg",N16="Tonnes"),VLOOKUP("F2-"&Q16,Admin!BN:BT,6,FALSE)*IF(N16="Tonnes",1000,1)*OFFSET(Admin!$AR$3,MATCH("GJ",convSources,0),MATCH(K16,convTargets,0)),IF(N16="m3",VLOOKUP("F2-"&Q16,Admin!BN:BT,7,FALSE)*OFFSET(Admin!$AR$3,MATCH("GJ",convSources,0),MATCH(K16,convTargets,0)),OFFSET(Admin!$AR$3,MATCH(N16,convSources,0),MATCH(K16,convTargets,0)))))) -> 0 | K16: MJ | L16: Segment Aggregation | M16: =SUMIF(C:C,B16,J:J) -> 0 | N16: MJ | O16: NA | Q16: Buildings (fuel used in heating, cooling, cooking, and the provision of other building services)
A17: F1 | B17: F1.1.1 | C17: F1.1 | D17: Buildings (fuel used in heating, cooling, cooking, and the provision of other building services)FRDSegmentSplitNatural gas | E17: =IFERROR(LEN(B17)-LEN(SUBSTITUTE(B17,".","") ),"BAD VALUE") -> 2 | F17: + (add segment) | H17: Natural gas | I17: Optional | J17: =IF(N17="NA",_xlfn.VALUETOTEXT(M17),M17*IF(OR(N17="L", N17="kL"),VLOOKUP("F2-"&Q17,Admin!BN:BT,5,FALSE)*IF(N17="kL",1000,1)*OFFSET(Admin!$AR$3,MATCH("GJ",convSources,0),MATCH(K17,convTargets,0)),IF(OR(N17="Kg",N17="Tonnes"),VLOOKUP("F2-"&Q17,Admin!BN:BT,6,FALSE)*IF(N17="Tonnes",1000,1)*OFFSET(Admin!$AR$3,MATCH("GJ",convSources,0),MATCH(K17,convTargets,0)),IF(N17="m3",VLOOKUP("F2-"&Q17,Admin!BN:BT,7,FALSE)*OFFSET(Admin!$AR$3,MATCH("GJ",convSources,0),MATCH(K17,convTargets,0)),OFFSET(Admin!$AR$3,MATCH(N17,convSources,0),MATCH(K17,convTargets,0)))))) -> 0 | K17: MJ | L17: Manual | N17: m3 | O17: NA | Q17: Natural gas | U17: =IF(VLOOKUP(A17,Calculations,MATCH("data imported?",Admin!$Q$2:$V$2,0),0),"calculation available","import data from home tab to use calculations") -> import data from home tab to use calculations
A18: F1 | B18: F1.1.2 | C18: F1.1 | D18: Buildings (fuel used in heating, cooling, cooking, and the provision of other building services)FRDSegmentSplitLPG | E18: =IFERROR(LEN(B18)-LEN(SUBSTITUTE(B18,".","") ),"BAD VALUE") -> 2 | F18: + (add segment) | H18: LPG | I18: Optional | J18: =IF(N18="NA",_xlfn.VALUETOTEXT(M18),M18*IF(OR(N18="L", N18="kL"),VLOOKUP("F2-"&Q18,Admin!BN:BT,5,FALSE)*IF(N18="kL",1000,1)*OFFSET(Admin!$AR$3,MATCH("GJ",convSources,0),MATCH(K18,convTargets,0)),IF(OR(N18="Kg",N18="Tonnes"),VLOOKUP("F2-"&Q18,Admin!BN:BT,6,FALSE)*IF(N18="Tonnes",1000,1)*OFFSET(Admin!$AR$3,MATCH("GJ",convSources,0),MATCH(K18,convTargets,0)),IF(N18="m3",VLOOKUP("F2-"&Q18,Admin!BN:BT,7,FALSE)*OFFSET(Admin!$AR$3,MATCH("GJ",convSources,0),MATCH(K18,convTargets,0)),OFFSET(Admin!$AR$3,MATCH(N18,convSources,0),MATCH(K18,convTargets,0)))))) -> 0 | K18: MJ | L18: Manual | N18: MJ | O18: NA | Q18: LPG
A19: F1 | B19: F1.1.3 | C19: F1.1 | D19: Buildings (fuel used in heating, cooling, cooking, and the provision of other building services)FRDSegmentSplitDiesel | E19: 2 | F19: + (add segment) | H19: Diesel | I19: Optional | J19: =IF(N19="NA",_xlfn.VALUETOTEXT(M19),M19*IF(OR(N19="L", N19="kL"),VLOOKUP("F2-"&Q19,Admin!BN:BT,5,FALSE)*IF(N19="kL",1000,1)*OFFSET(Admin!$AR$3,MATCH("GJ",convSources,0),MATCH(K19,convTargets,0)),IF(OR(N19="Kg",N19="Tonnes"),VLOOKUP("F2-"&Q19,Admin!BN:BT,6,FALSE)*IF(N19="Tonnes",1000,1)*OFFSET(Admin!$AR$3,MATCH("GJ",convSources,0),MATCH(K19,convTargets,0)),IF(N19="m3",VLOOKUP("F2-"&Q19,Admin!BN:BT,7,FALSE)*OFFSET(Admin!$AR$3,MATCH("GJ",convSources,0),MATCH(K19,convTargets,0)),OFFSET(Admin!$AR$3,MATCH(N19,convSources,0),MATCH(K19,convTargets,0)))))) -> 0 | K19: MJ | L19: Manual | N19: kL | O19: NA | Q19: Diesel
A20: F1 | B20: F1.1.4 | C20: F1.1 | D20: Buildings (fuel used in heating, cooling, cooking, and the provision of other building services)FRDSegmentSplitPetrol | E20: =IFERROR(LEN(B20)-LEN(SUBSTITUTE(B20,".","") ),"BAD VALUE") -> 2 | F20: + (add segment) | H20: Petrol | I20: Optional | J20: =IF(N20="NA",_xlfn.VALUETOTEXT(M20),M20*IF(OR(N20="L", N20="kL"),VLOOKUP("F2-"&Q20,Admin!BN:BT,5,FALSE)*IF(N20="kL",1000,1)*OFFSET(Admin!$AR$3,MATCH("GJ",convSources,0),MATCH(K20,convTargets,0)),IF(OR(N20="Kg",N20="Tonnes"),VLOOKUP("F2-"&Q20,Admin!BN:BT,6,FALSE)*IF(N20="Tonnes",1000,1)*OFFSET(Admin!$AR$3,MATCH("GJ",convSources,0),MATCH(K20,convTargets,0)),IF(N20="m3",VLOOKUP("F2-"&Q20,Admin!BN:BT,7,FALSE)*OFFSET(Admin!$AR$3,MATCH("GJ",convSources,0),MATCH(K20,convTargets,0)),OFFSET(Admin!$AR$3,MATCH(N20,convSources,0),MATCH(K20,convTargets,0)))))) -> 0 | K20: MJ | L20: Manual | N20: kL | O20: NA | Q20: Petrol
A21: F1 | B21: F1.1.5 | C21: F1.1 | D21: Buildings (fuel used in heating, cooling, cooking, and the provision of other building services)FRDSegmentSplitHydrogen | E21: =IFERROR(LEN(B21)-LEN(SUBSTITUTE(B21,".","") ),"BAD VALUE") -> 2 | F21: + (add segment) | H21: Hydrogen | I21: Optional | J21: =IF(N21="NA",_xlfn.VALUETOTEXT(M21),M21*IF(OR(N21="L", N21="kL"),VLOOKUP("F2-"&Q21,Admin!BN:BT,5,FALSE)*IF(N21="kL",1000,1)*OFFSET(Admin!$AR$3,MATCH("MJ",convSources,0),MATCH(K21,convTargets,0)),IF(OR(N21="Kg",N21="Tonnes"),VLOOKUP("F2-"&Q21,Admin!BN:BT,6,FALSE)*IF(N21="Tonnes",1000,1)*OFFSET(Admin!$AR$3,MATCH("MJ",convSources,0),MATCH(K21,convTargets,0)),IF(N21="m3",VLOOKUP("F2-"&Q21,Admin!BN:BT,7,FALSE)*OFFSET(Admin!$AR$3,MATCH("MJ",convSources,0),MATCH(K21,convTargets,0)),OFFSET(Admin!$AR$3,MATCH(N21,convSources,0),MATCH(K21,convTargets,0)))))) -> 0 | K21: MJ | L21: Manual | N21: Kg | O21: NA | Q21: Hydrogen
A22: F1 | B22: F1.1.6 | C22: F1.1 | D22: Buildings (fuel used in heating, cooling, cooking, and the provision of other building services)FRDSegmentSplitFuel oil | E22: =IFERROR(LEN(B22)-LEN(SUBSTITUTE(B22,".","") ),"BAD VALUE") -> 2 | F22: + (add segment) | H22: Fuel oil | I22: =IF(VLOOKUP(A22,TierIndicators,3,FALSE)="Yes", "Mandatory", "Optional") -> Optional | J22: =IF(N22="NA",_xlfn.VALUETOTEXT(M22),M22*IF(OR(N22="L", N22="kL"),VLOOKUP("F2-"&Q22,Admin!BN:BT,5,FALSE)*IF(N22="kL",1000,1)*OFFSET(Admin!$AR$3,MATCH("GJ",convSources,0),MATCH(K22,convTargets,0)),IF(OR(N22="Kg",N22="Tonnes"),VLOOKUP("F2-"&Q22,Admin!BN:BT,6,FALSE)*IF(N22="Tonnes",1000,1)*OFFSET(Admin!$AR$3,MATCH("GJ",convSources,0),MATCH(K22,convTargets,0)),IF(N22="m3",VLOOKUP("F2-"&Q22,Admin!BN:BT,7,FALSE)*OFFSET(Admin!$AR$3,MATCH("GJ",convSources,0),MATCH(K22,convTargets,0)),OFFSET(Admin!$AR$3,MATCH(N22,convSources,0),MATCH(K22,convTargets,0)))))) -> 0 | K22: MJ | L22: Manual | N22: MJ | O22: =IF(OR(L22="Segment Aggregation",L22="Auto-Calc"),"NA",IF(AND(I22="Mandatory",OR(M22="",N22="")), "FAIL", IF(I22="Optional","NA","PASS"))) -> NA | Q22: Fuel oil
A23: F1 | B23: F1.1.7 | C23: F1.1 | D23: Buildings (fuel used in heating, cooling, cooking, and the provision of other building services)FRDSegmentSplitSolid fuel | E23: 2 | H23: Solid fuel | I23: Optional | J23: =IF(N23="NA",_xlfn.VALUETOTEXT(M23),M23*IF(OR(N23="L", N23="kL"),VLOOKUP("F2-"&Q23,Admin!BN:BT,5,FALSE)*IF(N23="kL",1000,1)*OFFSET(Admin!$AR$3,MATCH("GJ",convSources,0),MATCH(K23,convTargets,0)),IF(OR(N23="Kg",N23="Tonnes"),VLOOKUP("F2-"&Q23,Admin!BN:BT,6,FALSE)*IF(N23="Tonnes",1000,1)*OFFSET(Admin!$AR$3,MATCH("GJ",convSources,0),MATCH(K23,convTargets,0)),IF(N23="m3",VLOOKUP("F2-"&Q23,Admin!BN:BT,7,FALSE)*OFFSET(Admin!$AR$3,MATCH("GJ",convSources,0),MATCH(K23,convTargets,0)),OFFSET(Admin!$AR$3,MATCH(N23,convSources,0),MATCH(K23,convTargets,0)))))) -> 0 | K23: MJ | L23: Segment Aggregation | M23: =SUMIF(C:C,B23,J:J) -> 0 | N23: MJ | O23: NA | Q23: Solid fuel
A24: F1 | B24: F1.1.7.1 | C24: F1.1.7 | D24: Buildings (fuel used in heating, cooling, cooking, and the provision of other building services)FRDSegmentSplitSolid fuelFRDSegmentSplitDry wood | E24: 3 | F24: + (add segment) | H24: Dry wood | I24: =IF(VLOOKUP(A24,TierIndicators,3,FALSE)="Yes", "Mandatory", "Optional") -> Optional | J24: =IF(N24="NA",_xlfn.VALUETOTEXT(M24),M24*IF(OR(N24="L", N24="kL"),VLOOKUP("F2-"&Q24,Admin!BN:BT,5,FALSE)*IF(N24="kL",1000,1)*OFFSET(Admin!$AR$3,MATCH("GJ",convSources,0),MATCH(K24,convTargets,0)),IF(OR(N24="Kg",N24="Tonnes"),VLOOKUP("F2-"&Q24,Admin!BN:BT,6,FALSE)*IF(N24="Tonnes",1000,1)*OFFSET(Admin!$AR$3,MATCH("GJ",convSources,0),MATCH(K24,convTargets,0)),IF(N24="m3",VLOOKUP("F2-"&Q24,Admin!BN:BT,7,FALSE)*OFFSET(Admin!$AR$3,MATCH("GJ",convSources,0),MATCH(K24,convTargets,0)),OFFSET(Admin!$AR$3,MATCH(N24,convSources,0),MATCH(K24,convTargets,0)))))) -> 0 | K24: MJ | L24: Manual | N24: Tonnes | O24: NA | Q24: Dry wood
A25: F1 | B25: F1.1.7.2 | C25: F1.1.7 | D25: Buildings (fuel used in heating, cooling, cooking, and the provision of other building services)FRDSegmentSplitSolid fuelFRDSegmentSplitGreen and air dried wood | E25: 3 | F25: + (add segment) | H25: Green and air dried wood | I25: Optional | J25: =IF(N25="NA",_xlfn.VALUETOTEXT(M25),M25*IF(OR(N25="L", N25="kL"),VLOOKUP("F2-"&Q25,Admin!BN:BT,5,FALSE)*IF(N25="kL",1000,1)*OFFSET(Admin!$AR$3,MATCH("GJ",convSources,0),MATCH(K25,convTargets,0)),IF(OR(N25="Kg",N25="Tonnes"),VLOOKUP("F2-"&Q25,Admin!BN:BT,6,FALSE)*IF(N25="Tonnes",1000,1)*OFFSET(Admin!$AR$3,MATCH("GJ",convSources,0),MATCH(K25,convTargets,0)),IF(N25="m3",VLOOKUP("F2-"&Q25,Admin!BN:BT,7,FALSE)*OFFSET(Admin!$AR$3,MATCH("GJ",convSources,0),MATCH(K25,convTargets,0)),OFFSET(Admin!$AR$3,MATCH(N25,convSources,0),MATCH(K25,convTargets,0)))))) -> 0 | K25: MJ | L25: Manual | N25: Tonnes | O25: NA | Q25: Green and air dried wood
A26: F1 | B26: F1.1.7.3 | C26: F1.1.7 | D26: Buildings (fuel used in heating, cooling, cooking, and the provision of other building services)FRDSegmentSplitSolid fuelFRDSegmentSplitBagasse | E26: 3 | F26: + (add segment) | H26: Bagasse | I26: Optional | J26: =IF(N26="NA",_xlfn.VALUETOTEXT(M26),M26*IF(OR(N26="L", N26="kL"),VLOOKUP("F2-"&Q26,Admin!BN:BT,5,FALSE)*IF(N26="kL",1000,1)*OFFSET(Admin!$AR$3,MATCH("GJ",convSources,0),MATCH(K26,convTargets,0)),IF(OR(N26="Kg",N26="Tonnes"),VLOOKUP("F2-"&Q26,Admin!BN:BT,6,FALSE)*IF(N26="Tonnes",1000,1)*OFFSET(Admin!$AR$3,MATCH("GJ",convSources,0),MATCH(K26,convTargets,0)),IF(N26="m3",VLOOKUP("F2-"&Q26,Admin!BN:BT,7,FALSE)*OFFSET(Admin!$AR$3,MATCH("GJ",convSources,0),MATCH(K26,convTargets,0)),OFFSET(Admin!$AR$3,MATCH(N26,convSources,0),MATCH(K26,convTargets,0)))))) -> 0 | K26: MJ | L26: Manual | N26: Tonnes | O26: NA | Q26: Bagasse
A27: F1 | B27: F1.1.7.4 | C27: F1.1.7 | D27: Buildings (fuel used in heating, cooling, cooking, and the provision of other building services)FRDSegmentSplitSolid fuelFRDSegmentSplitBiomass municipal and other industrial materials | E27: 3 | F27: + (add segment) | H27: Biomass municipal and other industrial materials | I27: Optional | J27: =IF(N27="NA",_xlfn.VALUETOTEXT(M27),M27*IF(OR(N27="L", N27="kL"),VLOOKUP("F2-"&Q27,Admin!BN:BT,5,FALSE)*IF(N27="kL",1000,1)*OFFSET(Admin!$AR$3,MATCH("GJ",convSources,0),MATCH(K27,convTargets,0)),IF(OR(N27="Kg",N27="Tonnes"),VLOOKUP("F2-"&Q27,Admin!BN:BT,6,FALSE)*IF(N27="Tonnes",1000,1)*OFFSET(Admin!$AR$3,MATCH("GJ",convSources,0),MATCH(K27,convTargets,0)),IF(N27="m3",VLOOKUP("F2-"&Q27,Admin!BN:BT,7,FALSE)*OFFSET(Admin!$AR$3,MATCH("GJ",convSources,0),MATCH(K27,convTargets,0)),OFFSET(Admin!$AR$3,MATCH(N27,convSources,0),MATCH(K27,convTargets,0)))))) -> 0 | K27: MJ | L27: Manual | N27: Tonnes | O27: NA | Q27: Biomass municipal and other industrial materials
A28: F1 | B28: F1.1.7.5 | C28: F1.1.7 | D28: Buildings (fuel used in heating, cooling, cooking, and the provision of other building services)FRDSegmentSplitSolid fuelFRDSegmentSplitCharcoal | E28: 3 | F28: + (add segment) | H28: Charcoal | I28: Optional | J28: =IF(N28="NA",_xlfn.VALUETOTEXT(M28),M28*IF(OR(N28="L", N28="kL"),VLOOKUP("F2-"&Q28,Admin!BN:BT,5,FALSE)*IF(N28="kL",1000,1)*OFFSET(Admin!$AR$3,MATCH("GJ",convSources,0),MATCH(K28,convTargets,0)),IF(OR(N28="Kg",N28="Tonnes"),VLOOKUP("F2-"&Q28,Admin!BN:BT,6,FALSE)*IF(N28="Tonnes",1000,1)*OFFSET(Admin!$AR$3,MATCH("GJ",convSources,0),MATCH(K28,convTargets,0)),IF(N28="m3",VLOOKUP("F2-"&Q28,Admin!BN:BT,7,FALSE)*OFFSET(Admin!$AR$3,MATCH("GJ",convSources,0),MATCH(K28,convTargets,0)),OFFSET(Admin!$AR$3,MATCH(N28,convSources,0),MATCH(K28,convTargets,0)))))) -> 0 | K28: MJ | L28: Manual | N28: Tonnes | O28: NA | Q28: Charcoal
A29: F1 | B29: F1.1.7.6 | C29: F1.1.7 | D29: Buildings (fuel used in heating, cooling, cooking, and the provision of other building services)FRDSegmentSplitSolid fuelFRDSegmentSplitAnthracite coal | E29: =IFERROR(LEN(B29)-LEN(SUBSTITUTE(B29,".","") ),"BAD VALUE") -> 3 | F29: + (add segment) | H29: Anthracite coal | I29: =IF(VLOOKUP(A29,TierIndicators,3,FALSE)="Yes", "Mandatory", "Optional") -> Optional | J29: =IF(N29="NA",_xlfn.VALUETOTEXT(M29),M29*IF(OR(N29="L", N29="kL"),VLOOKUP("F2-"&Q29,Admin!BN:BT,5,FALSE)*IF(N29="kL",1000,1)*OFFSET(Admin!$AR$3,MATCH("GJ",convSources,0),MATCH(K29,convTargets,0)),IF(OR(N29="Kg",N29="Tonnes"),VLOOKUP("F2-"&Q29,Admin!BN:BT,6,FALSE)*IF(N29="Tonnes",1000,1)*OFFSET(Admin!$AR$3,MATCH("GJ",convSources,0),MATCH(K29,convTargets,0)),IF(N29="m3",VLOOKUP("F2-"&Q29,Admin!BN:BT,7,FALSE)*OFFSET(Admin!$AR$3,MATCH("GJ",convSources,0),MATCH(K29,convTargets,0)),OFFSET(Admin!$AR$3,MATCH(N29,convSources,0),MATCH(K29,convTargets,0)))))) -> 0 | K29: MJ | L29: Manual | N29: Tonnes | O29: =IF(OR(L29="Segment Aggregation",L29="Auto-Calc"),"NA",IF(AND(I29="Mandatory",OR(M29="",N29="")), "FAIL", IF(I29="Optional","NA","PASS"))) -> NA | Q29: Anthracite coal
A30: F1 | B30: F1.1.7.7 | C30: F1.1.7 | D30: Buildings (fuel used in heating, cooling, cooking, and the provision of other building services)FRDSegmentSplitSolid fuelFRDSegmentSplitBituminous coal | E30: =IFERROR(LEN(B30)-LEN(SUBSTITUTE(B30,".","") ),"BAD VALUE") -> 3 | F30: + (add segment) | H30: Bituminous coal | I30: =IF(VLOOKUP(A30,TierIndicators,3,FALSE)="Yes", "Mandatory", "Optional") -> Optional | J30: =IF(N30="NA",_xlfn.VALUETOTEXT(M30),M30*IF(OR(N30="L", N30="kL"),VLOOKUP("F2-"&Q30,Admin!BN:BT,5,FALSE)*IF(N30="kL",1000,1)*OFFSET(Admin!$AR$3,MATCH("GJ",convSources,0),MATCH(K30,convTargets,0)),IF(OR(N30="Kg",N30="Tonnes"),VLOOKUP("F2-"&Q30,Admin!BN:BT,6,FALSE)*IF(N30="Tonnes",1000,1)*OFFSET(Admin!$AR$3,MATCH("GJ",convSources,0),MATCH(K30,convTargets,0)),IF(N30="m3",VLOOKUP("F2-"&Q30,Admin!BN:BT,7,FALSE)*OFFSET(Admin!$AR$3,MATCH("GJ",convSources,0),MATCH(K30,convTargets,0)),OFFSET(Admin!$AR$3,MATCH(N30,convSources,0),MATCH(K30,convTargets,0)))))) -> 0 | K30: MJ | L30: Manual | N30: Tonnes | O30: =IF(OR(L30="Segment Aggregation",L30="Auto-Calc"),"NA",IF(AND(I30="Mandatory",OR(M30="",N30="")), "FAIL", IF(I30="Optional","NA","PASS"))) -> NA | Q30: Bituminous coal
A31: F1 | B31: F1.1.7.8 | C31: F1.1.7 | D31: Buildings (fuel used in heating, cooling, cooking, and the provision of other building services)FRDSegmentSplitSolid fuelFRDSegmentSplitCoal briquettes | E31: =IFERROR(LEN(B31)-LEN(SUBSTITUTE(B31,".","") ),"BAD VALUE") -> 3 | F31: + (add segment) | H31: Coal briquettes | I31: =IF(VLOOKUP(A31,TierIndicators,3,FALSE)="Yes", "Mandatory", "Optional") -> Optional | J31: =IF(N31="NA",_xlfn.VALUETOTEXT(M31),M31*IF(OR(N31="L", N31="kL"),VLOOKUP("F2-"&Q31,Admin!BN:BT,5,FALSE)*IF(N31="kL",1000,1)*OFFSET(Admin!$AR$3,MATCH("GJ",convSources,0),MATCH(K31,convTargets,0)),IF(OR(N31="Kg",N31="Tonnes"),VLOOKUP("F2-"&Q31,Admin!BN:BT,6,FALSE)*IF(N31="Tonnes",1000,1)*OFFSET(Admin!$AR$3,MATCH("GJ",convSources,0),MATCH(K31,convTargets,0)),IF(N31="m3",VLOOKUP("F2-"&Q31,Admin!BN:BT,7,FALSE)*OFFSET(Admin!$AR$3,MATCH("GJ",convSources,0),MATCH(K31,convTargets,0)),OFFSET(Admin!$AR$3,MATCH(N31,convSources,0),MATCH(K31,convTargets,0)))))) -> 0 | K31: MJ | L31: Manual | N31: Tonnes | O31: =IF(OR(L31="Segment Aggregation",L31="Auto-Calc"),"NA",IF(AND(I31="Mandatory",OR(M31="",N31="")), "FAIL", IF(I31="Optional","NA","PASS"))) -> NA | Q31: Coal Briquettes
A32: F1 | B32: F1.2 | C32: F1 | D32: Machinery (any item of plant or equipment that uses fuel for a defined process that is not already counted in T1) | E32: =IFERROR(LEN(B32)-LEN(SUBSTITUTE(B32,".","") ),"BAD VALUE") -> 1 | H32: Machinery (any item of plant or equipment that uses fuel for a defined process that is not already counted in T1) | I32: Optional | J32: =IF(N32="NA",_xlfn.VALUETOTEXT(M32),M32*IF(OR(N32="L", N32="kL"),VLOOKUP("F2-"&Q32,Admin!BN:BT,5,FALSE)*IF(N32="kL",1000,1)*OFFSET(Admin!$AR$3,MATCH("GJ",convSources,0),MATCH(K32,convTargets,0)),IF(OR(N32="Kg",N32="Tonnes"),VLOOKUP("F2-"&Q32,Admin!BN:BT,6,FALSE)*IF(N32="Tonnes",1000,1)*OFFSET(Admin!$AR$3,MATCH("GJ",convSources,0),MATCH(K32,convTargets,0)),IF(N32="m3",VLOOKUP("F2-"&Q32,Admin!BN:BT,7,FALSE)*OFFSET(Admin!$AR$3,MATCH("GJ",convSources,0),MATCH(K32,convTargets,0)),OFFSET(Admin!$AR$3,MATCH(N32,convSources,0),MATCH(K32,convTargets,0)))))) -> 0 | K32: MJ | L32: Segment Aggregation | M32: =SUMIF(C:C,B32,J:J) -> 0 | N32: MJ | O32: NA | Q32: Machinery (any item of plant or equipment that uses fuel for a defined process that is not already counted in T1)
A33: F1 | B33: F1.2.1 | C33: F1.2 | D33: Machinery (any item of plant or equipment that uses fuel for a defined process that is not already counted in T1)FRDSegmentSplitNatural gas | E33: =IFERROR(LEN(B33)-LEN(SUBSTITUTE(B33,".","") ),"BAD VALUE") -> 2 | F33: + (add segment) | H33: Natural gas | I33: Optional | J33: =IF(N33="NA",_xlfn.VALUETOTEXT(M33),M33*IF(OR(N33="L", N33="kL"),VLOOKUP("F2-"&Q33,Admin!BN:BT,5,FALSE)*IF(N33="kL",1000,1)*OFFSET(Admin!$AR$3,MATCH("GJ",convSources,0),MATCH(K33,convTargets,0)),IF(OR(N33="Kg",N33="Tonnes"),VLOOKUP("F2-"&Q33,Admin!BN:BT,6,FALSE)*IF(N33="Tonnes",1000,1)*OFFSET(Admin!$AR$3,MATCH("GJ",convSources,0),MATCH(K33,convTargets,0)),IF(N33="m3",VLOOKUP("F2-"&Q33,Admin!BN:BT,7,FALSE)*OFFSET(Admin!$AR$3,MATCH("GJ",convSources,0),MATCH(K33,convTargets,0)),OFFSET(Admin!$AR$3,MATCH(N33,convSources,0),MATCH(K33,convTargets,0)))))) -> 0 | K33: MJ | L33: Manual | N33: MWh | O33: NA | Q33: Natural gas
A34: F1 | B34: F1.2.2 | C34: F1.2 | D34: Machinery (any item of plant or equipment that uses fuel for a defined process that is not already counted in T1)FRDSegmentSplitLPG | E34: =IFERROR(LEN(B34)-LEN(SUBSTITUTE(B34,".","") ),"BAD VALUE") -> 2 | F34: + (add segment) | H34: LPG | I34: Optional | J34: =IF(N34="NA",_xlfn.VALUETOTEXT(M34),M34*IF(OR(N34="L", N34="kL"),VLOOKUP("F2-"&Q34,Admin!BN:BT,5,FALSE)*IF(N34="kL",1000,1)*OFFSET(Admin!$AR$3,MATCH("GJ",convSources,0),MATCH(K34,convTargets,0)),IF(OR(N34="Kg",N34="Tonnes"),VLOOKUP("F2-"&Q34,Admin!BN:BT,6,FALSE)*IF(N34="Tonnes",1000,1)*OFFSET(Admin!$AR$3,MATCH("GJ",convSources,0),MATCH(K34,convTargets,0)),IF(N34="m3",VLOOKUP("F2-"&Q34,Admin!BN:BT,7,FALSE)*OFFSET(Admin!$AR$3,MATCH("GJ",convSources,0),MATCH(K34,convTargets,0)),OFFSET(Admin!$AR$3,MATCH(N34,convSources,0),MATCH(K34,convTargets,0)))))) -> 0 | K34: MJ | L34: Manual | N34: MJ | O34: NA | Q34: LPG
A35: F1 | B35: F1.2.3 | C35: F1.2 | D35: Machinery (any item of plant or equipment that uses fuel for a defined process that is not already counted in T1)FRDSegmentSplitDiesel | E35: 2 | F35: + (add segment) | H35: Diesel | I35: Optional | J35: =IF(N35="NA",_xlfn.VALUETOTEXT(M35),M35*IF(OR(N35="L", N35="kL"),VLOOKUP("F2-"&Q35,Admin!BN:BT,5,FALSE)*IF(N35="kL",1000,1)*OFFSET(Admin!$AR$3,MATCH("GJ",convSources,0),MATCH(K35,convTargets,0)),IF(OR(N35="Kg",N35="Tonnes"),VLOOKUP("F2-"&Q35,Admin!BN:BT,6,FALSE)*IF(N35="Tonnes",1000,1)*OFFSET(Admin!$AR$3,MATCH("GJ",convSources,0),MATCH(K35,convTargets,0)),IF(N35="m3",VLOOKUP("F2-"&Q35,Admin!BN:BT,7,FALSE)*OFFSET(Admin!$AR$3,MATCH("GJ",convSources,0),MATCH(K35,convTargets,0)),OFFSET(Admin!$AR$3,MATCH(N35,convSources,0),MATCH(K35,convTargets,0)))))) -> 0 | K35: MJ | L35: Manual | N35: MJ | O35: NA | Q35: Diesel
A36: F1 | B36: F1.2.4 | C36: F1.2 | D36: Machinery (any item of plant or equipment that uses fuel for a defined process that is not already counted in T1)FRDSegmentSplitPetrol | E36: =IFERROR(LEN(B36)-LEN(SUBSTITUTE(B36,".","") ),"BAD VALUE") -> 2 | F36: + (add segment) | H36: Petrol | I36: Optional | J36: =IF(N36="NA",_xlfn.VALUETOTEXT(M36),M36*IF(OR(N36="L", N36="kL"),VLOOKUP("F2-"&Q36,Admin!BN:BT,5,FALSE)*IF(N36="kL",1000,1)*OFFSET(Admin!$AR$3,MATCH("GJ",convSources,0),MATCH(K36,convTargets,0)),IF(OR(N36="Kg",N36="Tonnes"),VLOOKUP("F2-"&Q36,Admin!BN:BT,6,FALSE)*IF(N36="Tonnes",1000,1)*OFFSET(Admin!$AR$3,MATCH("GJ",convSources,0),MATCH(K36,convTargets,0)),IF(N36="m3",VLOOKUP("F2-"&Q36,Admin!BN:BT,7,FALSE)*OFFSET(Admin!$AR$3,MATCH("GJ",convSources,0),MATCH(K36,convTargets,0)),OFFSET(Admin!$AR$3,MATCH(N36,convSources,0),MATCH(K36,convTargets,0)))))) -> 0 | K36: MJ | L36: Manual | N36: MJ | O36: NA | Q36: Petrol
A37: F1 | B37: F1.2.5 | C37: F1.2 | D37: Machinery (any item of plant or equipment that uses fuel for a defined process that is not already counted in T1)FRDSegmentSplitHydrogen | E37: =IFERROR(LEN(B37)-LEN(SUBSTITUTE(B37,".","") ),"BAD VALUE") -> 2 | F37: + (add segment) | H37: Hydrogen | I37: Optional | J37: =IF(N37="NA",_xlfn.VALUETOTEXT(M37),M37*IF(OR(N37="L", N37="kL"),VLOOKUP("F2-"&Q37,Admin!BN:BT,5,FALSE)*IF(N37="kL",1000,1)*OFFSET(Admin!$AR$3,MATCH("MJ",convSources,0),MATCH(K37,convTargets,0)),IF(OR(N37="Kg",N37="Tonnes"),VLOOKUP("F2-"&Q37,Admin!BN:BT,6,FALSE)*IF(N37="Tonnes",1000,1)*OFFSET(Admin!$AR$3,MATCH("MJ",convSources,0),MATCH(K37,convTargets,0)),IF(N37="m3",VLOOKUP("F2-"&Q37,Admin!BN:BT,7,FALSE)*OFFSET(Admin!$AR$3,MATCH("MJ",convSources,0),MATCH(K37,convTargets,0)),OFFSET(Admin!$AR$3,MATCH(N37,convSources,0),MATCH(K37,convTargets,0)))))) -> 0 | K37: MJ | L37: Manual | N37: Kg | O37: NA | Q37: Hydrogen
A38: F1 | B38: F1.2.6 | C38: F1.2 | D38: Machinery (any item of plant or equipment that uses fuel for a defined process that is not already counted in T1)FRDSegmentSplitFuel Oil | E38: =IFERROR(LEN(B38)-LEN(SUBSTITUTE(B38,".","") ),"BAD VALUE") -> 2 | F38: + (add segment) | H38: Fuel Oil | I38: =IF(VLOOKUP(A38,TierIndicators,3,FALSE)="Yes", "Mandatory", "Optional") -> Optional | J38: =IF(N38="NA",_xlfn.VALUETOTEXT(M38),M38*IF(OR(N38="L", N38="kL"),VLOOKUP("F2-"&Q38,Admin!BN:BT,5,FALSE)*IF(N38="kL",1000,1)*OFFSET(Admin!$AR$3,MATCH("GJ",convSources,0),MATCH(K38,convTargets,0)),IF(OR(N38="Kg",N38="Tonnes"),VLOOKUP("F2-"&Q38,Admin!BN:BT,6,FALSE)*IF(N38="Tonnes",1000,1)*OFFSET(Admin!$AR$3,MATCH("GJ",convSources,0),MATCH(K38,convTargets,0)),IF(N38="m3",VLOOKUP("F2-"&Q38,Admin!BN:BT,7,FALSE)*OFFSET(Admin!$AR$3,MATCH("GJ",convSources,0),MATCH(K38,convTargets,0)),OFFSET(Admin!$AR$3,MATCH(N38,convSources,0),MATCH(K38,convTargets,0)))))) -> 0 | K38: MJ | L38: Manual | N38: MJ | O38: =IF(OR(L38="Segment Aggregation",L38="Auto-Calc"),"NA",IF(AND(I38="Mandatory",OR(M38="",N38="")), "FAIL", IF(I38="Optional","NA","PASS"))) -> NA | Q38: Fuel Oil
A39: F1 | B39: F1.2.7 | C39: F1.2 | D39: Machinery (any item of plant or equipment that uses fuel for a defined process that is not already counted in T1)FRDSegmentSplitSolid Fuel | E39: 2 | H39: Solid Fuel | I39: Optional | J39: =IF(N39="NA",_xlfn.VALUETOTEXT(M39),M39*IF(OR(N39="L", N39="kL"),VLOOKUP("F2-"&Q39,Admin!BN:BT,5,FALSE)*IF(N39="kL",1000,1)*OFFSET(Admin!$AR$3,MATCH("GJ",convSources,0),MATCH(K39,convTargets,0)),IF(OR(N39="Kg",N39="Tonnes"),VLOOKUP("F2-"&Q39,Admin!BN:BT,6,FALSE)*IF(N39="Tonnes",1000,1)*OFFSET(Admin!$AR$3,MATCH("GJ",convSources,0),MATCH(K39,convTargets,0)),IF(N39="m3",VLOOKUP("F2-"&Q39,Admin!BN:BT,7,FALSE)*OFFSET(Admin!$AR$3,MATCH("GJ",convSources,0),MATCH(K39,convTargets,0)),OFFSET(Admin!$AR$3,MATCH(N39,convSources,0),MATCH(K39,convTargets,0)))))) -> 0 | K39: MJ | L39: Segment Aggregation | M39: =SUMIF(C:C,B39,J:J) -> 0 | N39: MJ | O39: NA | Q39: Solid Fuel
A40: F1 | B40: F1.2..1 | C40: F1.2.7 | D40: Machinery (any item of plant or equipment that uses fuel for a defined process that is not already counted in T1)FRDSegmentSplitSolid FuelFRDSegmentSplitDry wood | E40: 3 | F40: + (add segment) | H40: Dry wood | I40: Optional | J40: =IF(N40="NA",_xlfn.VALUETOTEXT(M40),M40*IF(OR(N40="L", N40="kL"),VLOOKUP("F2-"&Q40,Admin!BN:BT,5,FALSE)*IF(N40="kL",1000,1)*OFFSET(Admin!$AR$3,MATCH("GJ",convSources,0),MATCH(K40,convTargets,0)),IF(OR(N40="Kg",N40="Tonnes"),VLOOKUP("F2-"&Q40,Admin!BN:BT,6,FALSE)*IF(N40="Tonnes",1000,1)*OFFSET(Admin!$AR$3,MATCH("GJ",convSources,0),MATCH(K40,convTargets,0)),IF(N40="m3",VLOOKUP("F2-"&Q40,Admin!BN:BT,7,FALSE)*OFFSET(Admin!$AR$3,MATCH("GJ",convSources,0),MATCH(K40,convTargets,0)),OFFSET(Admin!$AR$3,MATCH(N40,convSources,0),MATCH(K40,convTargets,0)))))) -> 0 | K40: MJ | L40: Manual | N40: Tonnes | O40: NA | Q40: Dry wood
A41: F1 | B41: F1.2.7.2 | C41: F1.2.7 | D41: Machinery (any item of plant or equipment that uses fuel for a defined process that is not already counted in T1)FRDSegmentSplitSolid FuelFRDSegmentSplitGreen and air dried wood | E41: 3 | F41: + (add segment) | H41: Green and air dried wood | I41: Optional | J41: =IF(N41="NA",_xlfn.VALUETOTEXT(M41),M41*IF(OR(N41="L", N41="kL"),VLOOKUP("F2-"&Q41,Admin!BN:BT,5,FALSE)*IF(N41="kL",1000,1)*OFFSET(Admin!$AR$3,MATCH("GJ",convSources,0),MATCH(K41,convTargets,0)),IF(OR(N41="Kg",N41="Tonnes"),VLOOKUP("F2-"&Q41,Admin!BN:BT,6,FALSE)*IF(N41="Tonnes",1000,1)*OFFSET(Admin!$AR$3,MATCH("GJ",convSources,0),MATCH(K41,convTargets,0)),IF(N41="m3",VLOOKUP("F2-"&Q41,Admin!BN:BT,7,FALSE)*OFFSET(Admin!$AR$3,MATCH("GJ",convSources,0),MATCH(K41,convTargets,0)),OFFSET(Admin!$AR$3,MATCH(N41,convSources,0),MATCH(K41,convTargets,0)))))) -> 0 | K41: MJ | L41: Manual | N41: MJ | O41: NA | Q41: Green and air dried wood
A42: F1 | B42: F1.2.7.3 | C42: F1.2.7 | D42: Machinery (any item of plant or equipment that uses fuel for a defined process that is not already counted in T1)FRDSegmentSplitSolid FuelFRDSegmentSplitBagasse | E42: 3 | F42: + (add segment) | H42: Bagasse | I42: Optional | J42: =IF(N42="NA",_xlfn.VALUETOTEXT(M42),M42*IF(OR(N42="L", N42="kL"),VLOOKUP("F2-"&Q42,Admin!BN:BT,5,FALSE)*IF(N42="kL",1000,1)*OFFSET(Admin!$AR$3,MATCH("GJ",convSources,0),MATCH(K42,convTargets,0)),IF(OR(N42="Kg",N42="Tonnes"),VLOOKUP("F2-"&Q42,Admin!BN:BT,6,FALSE)*IF(N42="Tonnes",1000,1)*OFFSET(Admin!$AR$3,MATCH("GJ",convSources,0),MATCH(K42,convTargets,0)),IF(N42="m3",VLOOKUP("F2-"&Q42,Admin!BN:BT,7,FALSE)*OFFSET(Admin!$AR$3,MATCH("GJ",convSources,0),MATCH(K42,convTargets,0)),OFFSET(Admin!$AR$3,MATCH(N42,convSources,0),MATCH(K42,convTargets,0)))))) -> 0 | K42: MJ | L42: Manual | N42: Tonnes | O42: NA | Q42: Bagasse
A43: F1 | B43: F1.2.7.4 | C43: F1.2.7 | D43: Machinery (any item of plant or equipment that uses fuel for a defined process that is not already counted in T1)FRDSegmentSplitSolid FuelFRDSegmentSplitBiomass municipal and other industrial materials | E43: 3 | F43: + (add segment) | H43: Biomass municipal and other industrial materials | I43: Optional | J43: =IF(N43="NA",_xlfn.VALUETOTEXT(M43),M43*IF(OR(N43="L", N43="kL"),VLOOKUP("F2-"&Q43,Admin!BN:BT,5,FALSE)*IF(N43="kL",1000,1)*OFFSET(Admin!$AR$3,MATCH("GJ",convSources,0),MATCH(K43,convTargets,0)),IF(OR(N43="Kg",N43="Tonnes"),VLOOKUP("F2-"&Q43,Admin!BN:BT,6,FALSE)*IF(N43="Tonnes",1000,1)*OFFSET(Admin!$AR$3,MATCH("GJ",convSources,0),MATCH(K43,convTargets,0)),IF(N43="m3",VLOOKUP("F2-"&Q43,Admin!BN:BT,7,FALSE)*OFFSET(Admin!$AR$3,MATCH("GJ",convSources,0),MATCH(K43,convTargets,0)),OFFSET(Admin!$AR$3,MATCH(N43,convSources,0),MATCH(K43,convTargets,0)))))) -> 0 | K43: MJ | L43: Manual | N43: Tonnes | O43: NA | Q43: Biomass municipal and other industrial materials
A44: F1 | B44: F1.2.7.5 | C44: F1.2.7 | D44: Machinery (any item of plant or equipment that uses fuel for a defined process that is not already counted in T1)FRDSegmentSplitSolid FuelFRDSegmentSplitCharcoal | E44: 3 | F44: + (add segment) | H44: Charcoal | I44: Optional | J44: =IF(N44="NA",_xlfn.VALUETOTEXT(M44),M44*IF(OR(N44="L", N44="kL"),VLOOKUP("F2-"&Q44,Admin!BN:BT,5,FALSE)*IF(N44="kL",1000,1)*OFFSET(Admin!$AR$3,MATCH("GJ",convSources,0),MATCH(K44,convTargets,0)),IF(OR(N44="Kg",N44="Tonnes"),VLOOKUP("F2-"&Q44,Admin!BN:BT,6,FALSE)*IF(N44="Tonnes",1000,1)*OFFSET(Admin!$AR$3,MATCH("GJ",convSources,0),MATCH(K44,convTargets,0)),IF(N44="m3",VLOOKUP("F2-"&Q44,Admin!BN:BT,7,FALSE)*OFFSET(Admin!$AR$3,MATCH("GJ",convSources,0),MATCH(K44,convTargets,0)),OFFSET(Admin!$AR$3,MATCH(N44,convSources,0),MATCH(K44,convTargets,0)))))) -> 0 | K44: MJ | L44: Manual | N44: Tonnes | O44: NA | Q44: Charcoal
A45: F1 | B45: F1.2.7.6 | C45: F1.2.7 | D45: Machinery (any item of plant or equipment that uses fuel for a defined process that is not already counted in T1)FRDSegmentSplitSolid FuelFRDSegmentSplitAnthracite coal | E45: =IFERROR(LEN(B45)-LEN(SUBSTITUTE(B45,".","") ),"BAD VALUE") -> 3 | F45: + (add segment) | H45: Anthracite coal | I45: =IF(VLOOKUP(A45,TierIndicators,3,FALSE)="Yes", "Mandatory", "Optional") -> Optional | J45: =IF(N45="NA",_xlfn.VALUETOTEXT(M45),M45*IF(OR(N45="L", N45="kL"),VLOOKUP("F2-"&Q45,Admin!BN:BT,5,FALSE)*IF(N45="kL",1000,1)*OFFSET(Admin!$AR$3,MATCH("GJ",convSources,0),MATCH(K45,convTargets,0)),IF(OR(N45="Kg",N45="Tonnes"),VLOOKUP("F2-"&Q45,Admin!BN:BT,6,FALSE)*IF(N45="Tonnes",1000,1)*OFFSET(Admin!$AR$3,MATCH("GJ",convSources,0),MATCH(K45,convTargets,0)),IF(N45="m3",VLOOKUP("F2-"&Q45,Admin!BN:BT,7,FALSE)*OFFSET(Admin!$AR$3,MATCH("GJ",convSources,0),MATCH(K45,convTargets,0)),OFFSET(Admin!$AR$3,MATCH(N45,convSources,0),MATCH(K45,convTargets,0)))))) -> 0 | K45: MJ | L45: Manual | N45: Tonnes | O45: =IF(OR(L45="Segment Aggregation",L45="Auto-Calc"),"NA",IF(AND(I45="Mandatory",OR(M45="",N45="")), "FAIL", IF(I45="Optional","NA","PASS"))) -> NA | Q45: Anthracite coal
A46: F1 | B46: F1.2.7.7 | C46: F1.2.7 | D46: Machinery (any item of plant or equipment that uses fuel for a defined process that is not already counted in T1)FRDSegmentSplitSolid FuelFRDSegmentSplitBituminous coal | E46: =IFERROR(LEN(B46)-LEN(SUBSTITUTE(B46,".","") ),"BAD VALUE") -> 3 | F46: + (add segment) | H46: Bituminous coal | I46: =IF(VLOOKUP(A46,TierIndicators,3,FALSE)="Yes", "Mandatory", "Optional") -> Optional | J46: =IF(N46="NA",_xlfn.VALUETOTEXT(M46),M46*IF(OR(N46="L", N46="kL"),VLOOKUP("F2-"&Q46,Admin!BN:BT,5,FALSE)*IF(N46="kL",1000,1)*OFFSET(Admin!$AR$3,MATCH("GJ",convSources,0),MATCH(K46,convTargets,0)),IF(OR(N46="Kg",N46="Tonnes"),VLOOKUP("F2-"&Q46,Admin!BN:BT,6,FALSE)*IF(N46="Tonnes",1000,1)*OFFSET(Admin!$AR$3,MATCH("GJ",convSources,0),MATCH(K46,convTargets,0)),IF(N46="m3",VLOOKUP("F2-"&Q46,Admin!BN:BT,7,FALSE)*OFFSET(Admin!$AR$3,MATCH("GJ",convSources,0),MATCH(K46,convTargets,0)),OFFSET(Admin!$AR$3,MATCH(N46,convSources,0),MATCH(K46,convTargets,0)))))) -> 0 | K46: MJ | L46: Manual | N46: Tonnes | O46: =IF(OR(L46="Segment Aggregation",L46="Auto-Calc"),"NA",IF(AND(I46="Mandatory",OR(M46="",N46="")), "FAIL", IF(I46="Optional","NA","PASS"))) -> NA | Q46: Bituminous coal
A47: F1 | B47: F1.2.7.8 | C47: F1.2.7 | D47: Machinery (any item of plant or equipment that uses fuel for a defined process that is not already counted in T1)FRDSegmentSplitSolid FuelFRDSegmentSplitCoal Briquettes | E47: =IFERROR(LEN(B47)-LEN(SUBSTITUTE(B47,".","") ),"BAD VALUE") -> 3 | F47: + (add segment) | H47: Coal Briquettes | I47: =IF(VLOOKUP(A47,TierIndicators,3,FALSE)="Yes", "Mandatory", "Optional") -> Optional | J47: =IF(N47="NA",_xlfn.VALUETOTEXT(M47),M47*IF(OR(N47="L", N47="kL"),VLOOKUP("F2-"&Q47,Admin!BN:BT,5,FALSE)*IF(N47="kL",1000,1)*OFFSET(Admin!$AR$3,MATCH("GJ",convSources,0),MATCH(K47,convTargets,0)),IF(OR(N47="Kg",N47="Tonnes"),VLOOKUP("F2-"&Q47,Admin!BN:BT,6,FALSE)*IF(N47="Tonnes",1000,1)*OFFSET(Admin!$AR$3,MATCH("GJ",convSources,0),MATCH(K47,convTargets,0)),IF(N47="m3",VLOOKUP("F2-"&Q47,Admin!BN:BT,7,FALSE)*OFFSET(Admin!$AR$3,MATCH("GJ",convSources,0),MATCH(K47,convTargets,0)),OFFSET(Admin!$AR$3,MATCH(N47,convSources,0),MATCH(K47,convTargets,0)))))) -> 0 | K47: MJ | L47: Manual | N47: Tonnes | O47: =IF(OR(L47="Segment Aggregation",L47="Auto-Calc"),"NA",IF(AND(I47="Mandatory",OR(M47="",N47="")), "FAIL", IF(I47="Optional","NA","PASS"))) -> NA | Q47: Coal Briquettes
B49: F2 | C49: Greenhouse gas emissions from stationary fuel consumption segmented by fuel type (Tonnes CO2-e)
B50: ID | C50: Parent ID | D50: FRDSegment | E50: Segment Level | H50: Description | I50: Flag | J50: Final Value | K50: Final Unit | L50: Input Type | M50: Input Value | N50: Input Unit | O50: CHECK
A51: F2 | B51: F2 | C51: NA | D51: =IF(E51=1,H51,IFERROR(VLOOKUP(C51,$B$14:$D$1048576,3,FALSE)&"FRDSegmentSplit"&H51,H51)) -> Grand Total | E51: =IFERROR(LEN(B51)-LEN(SUBSTITUTE(B51,".","") ),"BAD VALUE") -> 0 | H51: Grand Total | I51: =IF(VLOOKUP(A51,TierIndicators,3,FALSE)="Yes", "Mandatory", "Optional") -> Optional | J51: =IF(N51="NA",_xlfn.VALUETOTEXT(M51),M51*IF(OR(N51="L", N51="kL"),VLOOKUP("F2-"&Q51,Admin!BN:BT,5,FALSE)*IF(N51="kL",1000,1)*OFFSET(Admin!$AR$3,MATCH("MJ",convSources,0),MATCH(K51,convTargets,0)),IF(N51="Kg",VLOOKUP("F2-"&Q51,Admin!BN:BT,6,FALSE)*OFFSET(Admin!$AR$3,MATCH("MJ",convSources,0),MATCH(K51,convTargets,0)),IF(N51="m3",VLOOKUP("F2-"&Q51,Admin!BN:BT,7,FALSE)*OFFSET(Admin!$AR$3,MATCH("Kg",convSources,0),MATCH(K51,convTargets,0)),OFFSET(Admin!$AR$3,MATCH(N51,convSources,0),MATCH(K51,convTargets,0)))))) -> 0 | K51: Tonnes CO2-e | L51: Segment Aggregation | M51: =SUMIF(C:C,B51,J:J) -> 0 | N51: Tonnes CO2-e | O51: =IF(OR(L51="Segment Aggregation",L51="Auto-Calc"),"NA",IF(AND(I51="Mandatory",OR(M51="",N51="")), "FAIL", IF(I51="Optional","NA","PASS"))) -> NA | Q51: Grand Total | R51: =SUM(R52:R66) -> 0 | S51: =SUM(S52:S66) -> 0 | T51: =SUM(T52:T66) -> 0
A52: F2 | B52: F2.1 | C52: F2 | D52: Natural gas | E52: =IFERROR(LEN(B52)-LEN(SUBSTITUTE(B52,".","") ),"BAD VALUE") -> 1 | H52: Natural gas | I52: Optional | J52: =IF(N52="NA",_xlfn.VALUETOTEXT(M52),M52*IF(OR(N52="L", N52="kL"),VLOOKUP("F2-"&Q52,Admin!BN:BT,5,FALSE)*IF(N52="kL",1000,1)*OFFSET(Admin!$AR$3,MATCH("MJ",convSources,0),MATCH(K52,convTargets,0)),IF(N52="Kg",VLOOKUP("F2-"&Q52,Admin!BN:BT,6,FALSE)*OFFSET(Admin!$AR$3,MATCH("MJ",convSources,0),MATCH(K52,convTargets,0)),IF(N52="m3",VLOOKUP("F2-"&Q52,Admin!BN:BT,7,FALSE)*OFFSET(Admin!$AR$3,MATCH("Kg",convSources,0),MATCH(K52,convTargets,0)),OFFSET(Admin!$AR$3,MATCH(N52,convSources,0),MATCH(K52,convTargets,0)))))) -> 0 | K52: Tonnes CO2-e | L52: Auto-Calc | M52: =(J17 * OFFSET(Admin!$AR$3,MATCH(K17,convSources,0),MATCH("GJ",convTargets,0)) ) * IFERROR( VLOOKUP(A52 & "-" & H52,Admin!BN:BQ,4,FALSE),0) + (J33 * OFFSET(Admin!$AR$3,MATCH(K33,convSources,0),MATCH("GJ",convTargets,0)) ) * IFERROR( VLOOKUP(A52 & "-" & H52,Admin!BN:BQ,4,FALSE),0) -> 0 | N52: Tonnes CO2-e | O52: NA | Q52: Natural gas | R52: =(J17 * OFFSET(Admin!$AR$3,MATCH(K17,convSources,0),MATCH("GJ",convTargets,0)) ) * IFERROR( VLOOKUP(A52 & "-" & H52,Admin!BN:CC,14,FALSE),0) + (J33 * OFFSET(Admin!$AR$3,MATCH(K33,convSources,0),MATCH("GJ",convTargets,0)) ) * IFERROR( VLOOKUP(A52 & "-" & H52,Admin!BN:CC,14,FALSE),0) -> 0 | S52: =(J17 * OFFSET(Admin!$AR$3,MATCH(K17,convSources,0),MATCH("GJ",convTargets,0)) ) * IFERROR( VLOOKUP(A52 & "-" & H52,Admin!BN:CC,15,FALSE),0) + (J33 * OFFSET(Admin!$AR$3,MATCH(K33,convSources,0),MATCH("GJ",convTargets,0)) ) * IFERROR( VLOOKUP(A52 & "-" & H52,Admin!BN:CC,15,FALSE),0) -> 0 | T52: =(J17 * OFFSET(Admin!$AR$3,MATCH(K17,convSources,0),MATCH("GJ",convTargets,0)) ) * IFERROR( VLOOKUP(A52 & "-" & H52,Admin!BN:CC,16,FALSE),0) + (J33 * OFFSET(Admin!$AR$3,MATCH(K33,convSources,0),MATCH("GJ",convTargets,0)) ) * IFERROR( VLOOKUP(A52 & "-" & H52,Admin!BN:CC,16,FALSE),0) -> 0
A53: F2 | B53: F2.2 | C53: F2 | D53: LPG | E53: =IFERROR(LEN(B53)-LEN(SUBSTITUTE(B53,".","") ),"BAD VALUE") -> 1 | H53: LPG | I53: Optional | J53: =IF(N53="NA",_xlfn.VALUETOTEXT(M53),M53*IF(OR(N53="L", N53="kL"),VLOOKUP("F2-"&Q53,Admin!BN:BT,5,FALSE)*IF(N53="kL",1000,1)*OFFSET(Admin!$AR$3,MATCH("MJ",convSources,0),MATCH(K53,convTargets,0)),IF(N53="Kg",VLOOKUP("F2-"&Q53,Admin!BN:BT,6,FALSE)*OFFSET(Admin!$AR$3,MATCH("MJ",convSources,0),MATCH(K53,convTargets,0)),IF(N53="m3",VLOOKUP("F2-"&Q53,Admin!BN:BT,7,FALSE)*OFFSET(Admin!$AR$3,MATCH("Kg",convSources,0),MATCH(K53,convTargets,0)),OFFSET(Admin!$AR$3,MATCH(N53,convSources,0),MATCH(K53,convTargets,0)))))) -> 0 | K53: Tonnes CO2-e | L53: Auto-Calc | M53: =(J18 * OFFSET(Admin!$AR$3,MATCH(K18,convSources,0),MATCH("GJ",convTargets,0)) ) * IFERROR( VLOOKUP(A53 & "-" & H53,Admin!BN:BQ,4,FALSE),0) + (J34 * OFFSET(Admin!$AR$3,MATCH(K34,convSources,0),MATCH("GJ",convTargets,0)) ) * IFERROR( VLOOKUP(A53 & "-" & H53,Admin!BN:BQ,4,FALSE),0) -> 0 | N53: Tonnes CO2-e | O53: NA | Q53: LPG | R53: =(J18 * OFFSET(Admin!$AR$3,MATCH(K18,convSources,0),MATCH("GJ",convTargets,0)) ) * IFERROR( VLOOKUP(A53 & "-" & H53,Admin!BN:CC,14,FALSE),0) + (J34 * OFFSET(Admin!$AR$3,MATCH(K34,convSources,0),MATCH("GJ",convTargets,0)) ) * IFERROR( VLOOKUP(A53 & "-" & H53,Admin!BN:CC,14,FALSE),0) -> 0 | S53: =(J18 * OFFSET(Admin!$AR$3,MATCH(K18,convSources,0),MATCH("GJ",convTargets,0)) ) * IFERROR( VLOOKUP(A53 & "-" & H53,Admin!BN:CC,15,FALSE),0) + (J34 * OFFSET(Admin!$AR$3,MATCH(K34,convSources,0),MATCH("GJ",convTargets,0)) ) * IFERROR( VLOOKUP(A53 & "-" & H53,Admin!BN:CC,15,FALSE),0) -> 0 | T53: =(J18 * OFFSET(Admin!$AR$3,MATCH(K18,convSources,0),MATCH("GJ",convTargets,0)) ) * IFERROR( VLOOKUP(A53 & "-" & H53,Admin!BN:CC,16,FALSE),0) + (J34 * OFFSET(Admin!$AR$3,MATCH(K34,convSources,0),MATCH("GJ",convTargets,0)) ) * IFERROR( VLOOKUP(A53 & "-" & H53,Admin!BN:CC,16,FALSE),0) -> 0
A54: F2 | B54: F2.3 | C54: F2 | D54: Diesel | E54: 1 | H54: Diesel | I54: Optional | J54: =IF(N54="NA",_xlfn.VALUETOTEXT(M54),M54*IF(OR(N54="L", N54="kL"),VLOOKUP("F2-"&Q54,Admin!BN:BT,5,FALSE)*IF(N54="kL",1000,1)*OFFSET(Admin!$AR$3,MATCH("MJ",convSources,0),MATCH(K54,convTargets,0)),IF(N54="Kg",VLOOKUP("F2-"&Q54,Admin!BN:BT,6,FALSE)*OFFSET(Admin!$AR$3,MATCH("MJ",convSources,0),MATCH(K54,convTargets,0)),IF(N54="m3",VLOOKUP("F2-"&Q54,Admin!BN:BT,7,FALSE)*OFFSET(Admin!$AR$3,MATCH("Kg",convSources,0),MATCH(K54,convTargets,0)),OFFSET(Admin!$AR$3,MATCH(N54,convSources,0),MATCH(K54,convTargets,0)))))) -> 0 | K54: Tonnes CO2-e | L54: Auto-Calc | M54: =(J19 * OFFSET(Admin!$AR$3,MATCH(K19,convSources,0),MATCH("GJ",convTargets,0)) ) * IFERROR( VLOOKUP(A54 & "-" & H54,Admin!BN:BQ,4,FALSE),0) + (J35 * OFFSET(Admin!$AR$3,MATCH(K35,convSources,0),MATCH("GJ",convTargets,0)) ) * IFERROR( VLOOKUP(A54 & "-" & H54,Admin!BN:BQ,4,FALSE),0) -> 0 | N54: Tonnes CO2-e | O54: NA | Q54: Diesel | R54: =(J19 * OFFSET(Admin!$AR$3,MATCH(K19,convSources,0),MATCH("GJ",convTargets,0)) ) * IFERROR( VLOOKUP(A54 & "-" & H54,Admin!BN:CC,14,FALSE),0) + (J35 * OFFSET(Admin!$AR$3,MATCH(K35,convSources,0),MATCH("GJ",convTargets,0)) ) * IFERROR( VLOOKUP(A54 & "-" & H54,Admin!BN:CC,14,FALSE),0) -> 0 | S54: =(J19 * OFFSET(Admin!$AR$3,MATCH(K19,convSources,0),MATCH("GJ",convTargets,0)) ) * IFERROR( VLOOKUP(A54 & "-" & H54,Admin!BN:CC,15,FALSE),0) + (J35 * OFFSET(Admin!$AR$3,MATCH(K35,convSources,0),MATCH("GJ",convTargets,0)) ) * IFERROR( VLOOKUP(A54 & "-" & H54,Admin!BN:CC,15,FALSE),0) -> 0 | T54: =(J19 * OFFSET(Admin!$AR$3,MATCH(K19,convSources,0),MATCH("GJ",convTargets,0)) ) * IFERROR( VLOOKUP(A54 & "-" & H54,Admin!BN:CC,16,FALSE),0) + (J35 * OFFSET(Admin!$AR$3,MATCH(K35,convSources,0),MATCH("GJ",convTargets,0)) ) * IFERROR( VLOOKUP(A54 & "-" & H54,Admin!BN:CC,16,FALSE),0) -> 0
A55: F2 | B55: F2.4 | C55: F2 | D55: Petrol | E55: =IFERROR(LEN(B55)-LEN(SUBSTITUTE(B55,".","") ),"BAD VALUE") -> 1 | H55: Petrol | I55: Optional | J55: =IF(N55="NA",_xlfn.VALUETOTEXT(M55),M55*IF(OR(N55="L", N55="kL"),VLOOKUP("F2-"&Q55,Admin!BN:BT,5,FALSE)*IF(N55="kL",1000,1)*OFFSET(Admin!$AR$3,MATCH("MJ",convSources,0),MATCH(K55,convTargets,0)),IF(N55="Kg",VLOOKUP("F2-"&Q55,Admin!BN:BT,6,FALSE)*OFFSET(Admin!$AR$3,MATCH("MJ",convSources,0),MATCH(K55,convTargets,0)),IF(N55="m3",VLOOKUP("F2-"&Q55,Admin!BN:BT,7,FALSE)*OFFSET(Admin!$AR$3,MATCH("Kg",convSources,0),MATCH(K55,convTargets,0)),OFFSET(Admin!$AR$3,MATCH(N55,convSources,0),MATCH(K55,convTargets,0)))))) -> 0 | K55: Tonnes CO2-e | L55: Auto-Calc | M55: =(J20 * OFFSET(Admin!$AR$3,MATCH(K20,convSources,0),MATCH("GJ",convTargets,0)) ) * IFERROR( VLOOKUP(A55 & "-" & H55,Admin!BN:BQ,4,FALSE),0) + (J36 * OFFSET(Admin!$AR$3,MATCH(K36,convSources,0),MATCH("GJ",convTargets,0)) ) * IFERROR( VLOOKUP(A55 & "-" & H55,Admin!BN:BQ,4,FALSE),0) -> 0 | N55: Tonnes CO2-e | O55: NA | Q55: Petrol | R55: =(J20 * OFFSET(Admin!$AR$3,MATCH(K20,convSources,0),MATCH("GJ",convTargets,0)) ) * IFERROR( VLOOKUP(A55 & "-" & H55,Admin!BN:CC,14,FALSE),0) + (J36 * OFFSET(Admin!$AR$3,MATCH(K36,convSources,0),MATCH("GJ",convTargets,0)) ) * IFERROR( VLOOKUP(A55 & "-" & H55,Admin!BN:CC,14,FALSE),0) -> 0 | S55: =(J20 * OFFSET(Admin!$AR$3,MATCH(K20,convSources,0),MATCH("GJ",convTargets,0)) ) * IFERROR( VLOOKUP(A55 & "-" & H55,Admin!BN:CC,15,FALSE),0) + (J36 * OFFSET(Admin!$AR$3,MATCH(K36,convSources,0),MATCH("GJ",convTargets,0)) ) * IFERROR( VLOOKUP(A55 & "-" & H55,Admin!BN:CC,15,FALSE),0) -> 0 | T55: =(J20 * OFFSET(Admin!$AR$3,MATCH(K20,convSources,0),MATCH("GJ",convTargets,0)) ) * IFERROR( VLOOKUP(A55 & "-" & H55,Admin!BN:CC,16,FALSE),0) + (J36 * OFFSET(Admin!$AR$3,MATCH(K36,convSources,0),MATCH("GJ",convTargets,0)) ) * IFERROR( VLOOKUP(A55 & "-" & H55,Admin!BN:CC,16,FALSE),0) -> 0
A56: F2 | B56: F2.5 | C56: F2 | D56: Hydrogen | E56: =IFERROR(LEN(B56)-LEN(SUBSTITUTE(B56,".","") ),"BAD VALUE") -> 1 | F56: + (add segment) | H56: Hydrogen | I56: Optional | J56: =IF(N56="NA",_xlfn.VALUETOTEXT(M56),M56*IF(OR(N56="L", N56="kL"),VLOOKUP("F2-"&Q56,Admin!BN:BT,5,FALSE)*IF(N56="kL",1000,1)*OFFSET(Admin!$AR$3,MATCH("MJ",convSources,0),MATCH(K56,convTargets,0)),IF(N56="Kg",VLOOKUP("F2-"&Q56,Admin!BN:BT,6,FALSE)*OFFSET(Admin!$AR$3,MATCH("MJ",convSources,0),MATCH(K56,convTargets,0)),IF(N56="m3",VLOOKUP("F2-"&Q56,Admin!BN:BT,7,FALSE)*OFFSET(Admin!$AR$3,MATCH("Kg",convSources,0),MATCH(K56,convTargets,0)),OFFSET(Admin!$AR$3,MATCH(N56,convSources,0),MATCH(K56,convTargets,0)))))) -> 0 | K56: Tonnes CO2-e | L56: Manual | N56: Tonnes CO2-e | O56: NA | Q56: Hydrogen
A57: F2 | B57: F2.6 | C57: F2 | D57: Fuel Oil | E57: =IFERROR(LEN(B57)-LEN(SUBSTITUTE(B57,".","") ),"BAD VALUE") -> 1 | H57: Fuel Oil | I57: =IF(VLOOKUP(A57,TierIndicators,3,FALSE)="Yes", "Mandatory", "Optional") -> Optional | J57: =IF(N57="NA",_xlfn.VALUETOTEXT(M57),M57*IF(OR(N57="L", N57="kL"),VLOOKUP("F2-"&Q57,Admin!BN:BT,5,FALSE)*IF(N57="kL",1000,1)*OFFSET(Admin!$AR$3,MATCH("MJ",convSources,0),MATCH(K57,convTargets,0)),IF(N57="Kg",VLOOKUP("F2-"&Q57,Admin!BN:BT,6,FALSE)*OFFSET(Admin!$AR$3,MATCH("MJ",convSources,0),MATCH(K57,convTargets,0)),IF(N57="m3",VLOOKUP("F2-"&Q57,Admin!BN:BT,7,FALSE)*OFFSET(Admin!$AR$3,MATCH("Kg",convSources,0),MATCH(K57,convTargets,0)),OFFSET(Admin!$AR$3,MATCH(N57,convSources,0),MATCH(K57,convTargets,0)))))) -> 0 | K57: Tonnes CO2-e | L57: Auto-Calc | M57: =(J22 * OFFSET(Admin!$AR$3,MATCH(K22,convSources,0),MATCH("GJ",convTargets,0)) ) * IFERROR( VLOOKUP(A57 & "-" & H57,Admin!BN:BQ,4,FALSE),0) + (J38 * OFFSET(Admin!$AR$3,MATCH(K38,convSources,0),MATCH("GJ",convTargets,0)) ) * IFERROR( VLOOKUP(A57 & "-" & H57,Admin!BN:BQ,4,FALSE),0) -> 0 | N57: Tonnes CO2-e | O57: =IF(OR(L57="Segment Aggregation",L57="Auto-Calc"),"NA",IF(AND(I57="Mandatory",OR(M57="",N57="")), "FAIL", IF(I57="Optional","NA","PASS"))) -> NA | Q57: Fuel Oil | R57: =(J22 * OFFSET(Admin!$AR$3,MATCH(K22,convSources,0),MATCH("GJ",convTargets,0)) ) * IFERROR( VLOOKUP(A57 & "-" & H57,Admin!BN:CC,14,FALSE),0) + (J38 * OFFSET(Admin!$AR$3,MATCH(K38,convSources,0),MATCH("GJ",convTargets,0)) ) * IFERROR( VLOOKUP(A57 & "-" & H57,Admin!BN:CC,14,FALSE),0) -> 0 | S57: =(J22 * OFFSET(Admin!$AR$3,MATCH(K22,convSources,0),MATCH("GJ",convTargets,0)) ) * IFERROR( VLOOKUP(A57 & "-" & H57,Admin!BN:CC,15,FALSE),0) + (J38 * OFFSET(Admin!$AR$3,MATCH(K38,convSources,0),MATCH("GJ",convTargets,0)) ) * IFERROR( VLOOKUP(A57 & "-" & H57,Admin!BN:CC,15,FALSE),0) -> 0 | T57: =(J22 * OFFSET(Admin!$AR$3,MATCH(K22,convSources,0),MATCH("GJ",convTargets,0)) ) * IFERROR( VLOOKUP(A57 & "-" & H57,Admin!BN:CC,16,FALSE),0) + (J38 * OFFSET(Admin!$AR$3,MATCH(K38,convSources,0),MATCH("GJ",convTargets,0)) ) * IFERROR( VLOOKUP(A57 & "-" & H57,Admin!BN:CC,16,FALSE),0) -> 0
A58: F2 | B58: F2.7 | C58: F2 | D58: Solid Fuel | E58: 1 | H58: Solid Fuel | I58: Optional | J58: =IF(N58="NA",_xlfn.VALUETOTEXT(M58),M58*IF(OR(N58="L", N58="kL"),VLOOKUP("F2-"&Q58,Admin!BN:BT,5,FALSE)*IF(N58="kL",1000,1)*OFFSET(Admin!$AR$3,MATCH("MJ",convSources,0),MATCH(K58,convTargets,0)),IF(N58="Kg",VLOOKUP("F2-"&Q58,Admin!BN:BT,6,FALSE)*OFFSET(Admin!$AR$3,MATCH("MJ",convSources,0),MATCH(K58,convTargets,0)),IF(N58="m3",VLOOKUP("F2-"&Q58,Admin!BN:BT,7,FALSE)*OFFSET(Admin!$AR$3,MATCH("Kg",convSources,0),MATCH(K58,convTargets,0)),OFFSET(Admin!$AR$3,MATCH(N58,convSources,0),MATCH(K58,convTargets,0)))))) -> 0 | K58: Tonnes CO2-e | L58: Segment Aggregation | M58: =SUMIF(C:C,B58,J:J) -> 0 | N58: Tonnes CO2-e | O58: NA | Q58: Solid Fuel
A59: F2 | B59: F2.7.1 | C59: F2.7 | D59: Solid FuelFRDSegmentSplitDry wood | E59: 2 | H59: Dry wood | I59: Optional | J59: =IF(N59="NA",_xlfn.VALUETOTEXT(M59),M59*IF(OR(N59="L", N59="kL"),VLOOKUP("F2-"&Q59,Admin!BN:BT,5,FALSE)*IF(N59="kL",1000,1)*OFFSET(Admin!$AR$3,MATCH("MJ",convSources,0),MATCH(K59,convTargets,0)),IF(N59="Kg",VLOOKUP("F2-"&Q59,Admin!BN:BT,6,FALSE)*OFFSET(Admin!$AR$3,MATCH("MJ",convSources,0),MATCH(K59,convTargets,0)),IF(N59="m3",VLOOKUP("F2-"&Q59,Admin!BN:BT,7,FALSE)*OFFSET(Admin!$AR$3,MATCH("Kg",convSources,0),MATCH(K59,convTargets,0)),OFFSET(Admin!$AR$3,MATCH(N59,convSources,0),MATCH(K59,convTargets,0)))))) -> 0 | K59: Tonnes CO2-e | L59: Auto-Calc | M59: =(J24 * OFFSET(Admin!$AR$3,MATCH(K24,convSources,0),MATCH("GJ",convTargets,0)) ) * IFERROR( VLOOKUP(A59 & "-" & H59,Admin!BN:BQ,4,FALSE),0) + (J40 * OFFSET(Admin!$AR$3,MATCH(K40,convSources,0),MATCH("GJ",convTargets,0)) ) * IFERROR( VLOOKUP(A59 & "-" & H59,Admin!BN:BQ,4,FALSE),0) -> 0 | N59: Tonnes CO2-e | O59: NA | Q59: Dry wood | R59: =(J24 * OFFSET(Admin!$AR$3,MATCH(K24,convSources,0),MATCH("GJ",convTargets,0)) ) * IFERROR( VLOOKUP(A59 & "-" & H59,Admin!BN:CC,14,FALSE),0) + (J40 * OFFSET(Admin!$AR$3,MATCH(K40,convSources,0),MATCH("GJ",convTargets,0)) ) * IFERROR( VLOOKUP(A59 & "-" & H59,Admin!BN:CC,14,FALSE),0) -> 0 | S59: =(J24 * OFFSET(Admin!$AR$3,MATCH(K24,convSources,0),MATCH("GJ",convTargets,0)) ) * IFERROR( VLOOKUP(A59 & "-" & H59,Admin!BN:CC,15,FALSE),0) + (J40 * OFFSET(Admin!$AR$3,MATCH(K40,convSources,0),MATCH("GJ",convTargets,0)) ) * IFERROR( VLOOKUP(A59 & "-" & H59,Admin!BN:CC,15,FALSE),0) -> 0 | T59: =(J24 * OFFSET(Admin!$AR$3,MATCH(K24,convSources,0),MATCH("GJ",convTargets,0)) ) * IFERROR( VLOOKUP(A59 & "-" & H59,Admin!BN:CC,16,FALSE),0) + (J40 * OFFSET(Admin!$AR$3,MATCH(K40,convSources,0),MATCH("GJ",convTargets,0)) ) * IFERROR( VLOOKUP(A59 & "-" & H59,Admin!BN:CC,16,FALSE),0) -> 0
A60: F2 | B60: F2.7.2 | C60: F2.7 | D60: Solid FuelFRDSegmentSplitGreen and air dried wood | E60: 2 | H60: Green and air dried wood | I60: Optional | J60: =IF(N60="NA",_xlfn.VALUETOTEXT(M60),M60*IF(OR(N60="L", N60="kL"),VLOOKUP("F2-"&Q60,Admin!BN:BT,5,FALSE)*IF(N60="kL",1000,1)*OFFSET(Admin!$AR$3,MATCH("MJ",convSources,0),MATCH(K60,convTargets,0)),IF(N60="Kg",VLOOKUP("F2-"&Q60,Admin!BN:BT,6,FALSE)*OFFSET(Admin!$AR$3,MATCH("MJ",convSources,0),MATCH(K60,convTargets,0)),IF(N60="m3",VLOOKUP("F2-"&Q60,Admin!BN:BT,7,FALSE)*OFFSET(Admin!$AR$3,MATCH("Kg",convSources,0),MATCH(K60,convTargets,0)),OFFSET(Admin!$AR$3,MATCH(N60,convSources,0),MATCH(K60,convTargets,0)))))) -> 0 | K60: Tonnes CO2-e | L60: Auto-Calc | M60: =(J25 * OFFSET(Admin!$AR$3,MATCH(K25,convSources,0),MATCH("GJ",convTargets,0)) ) * IFERROR( VLOOKUP(A60 & "-" & H60,Admin!BN:BQ,4,FALSE),0) + (J41 * OFFSET(Admin!$AR$3,MATCH(K41,convSources,0),MATCH("GJ",convTargets,0)) ) * IFERROR( VLOOKUP(A60 & "-" & H60,Admin!BN:BQ,4,FALSE),0) -> 0 | N60: Tonnes CO2-e | O60: NA | Q60: Green and air dried wood | R60: =(J25 * OFFSET(Admin!$AR$3,MATCH(K25,convSources,0),MATCH("GJ",convTargets,0)) ) * IFERROR( VLOOKUP(A60 & "-" & H60,Admin!BN:CC,14,FALSE),0) + (J41 * OFFSET(Admin!$AR$3,MATCH(K41,convSources,0),MATCH("GJ",convTargets,0)) ) * IFERROR( VLOOKUP(A60 & "-" & H60,Admin!BN:CC,14,FALSE),0) -> 0 | S60: =(J25 * OFFSET(Admin!$AR$3,MATCH(K25,convSources,0),MATCH("GJ",convTargets,0)) ) * IFERROR( VLOOKUP(A60 & "-" & H60,Admin!BN:CC,15,FALSE),0) + (J41 * OFFSET(Admin!$AR$3,MATCH(K41,convSources,0),MATCH("GJ",convTargets,0)) ) * IFERROR( VLOOKUP(A60 & "-" & H60,Admin!BN:CC,15,FALSE),0) -> 0 | T60: =(J25 * OFFSET(Admin!$AR$3,MATCH(K25,convSources,0),MATCH("GJ",convTargets,0)) ) * IFERROR( VLOOKUP(A60 & "-" & H60,Admin!BN:CC,16,FALSE),0) + (J41 * OFFSET(Admin!$AR$3,MATCH(K41,convSources,0),MATCH("GJ",convTargets,0)) ) * IFERROR( VLOOKUP(A60 & "-" & H60,Admin!BN:CC,16,FALSE),0) -> 0
A61: F2 | B61: F2.7.3 | C61: F2.7 | D61: Solid FuelFRDSegmentSplitBagasse | E61: 2 | H61: Bagasse | I61: Optional | J61: =IF(N61="NA",_xlfn.VALUETOTEXT(M61),M61*IF(OR(N61="L", N61="kL"),VLOOKUP("F2-"&Q61,Admin!BN:BT,5,FALSE)*IF(N61="kL",1000,1)*OFFSET(Admin!$AR$3,MATCH("MJ",convSources,0),MATCH(K61,convTargets,0)),IF(N61="Kg",VLOOKUP("F2-"&Q61,Admin!BN:BT,6,FALSE)*OFFSET(Admin!$AR$3,MATCH("MJ",convSources,0),MATCH(K61,convTargets,0)),IF(N61="m3",VLOOKUP("F2-"&Q61,Admin!BN:BT,7,FALSE)*OFFSET(Admin!$AR$3,MATCH("Kg",convSources,0),MATCH(K61,convTargets,0)),OFFSET(Admin!$AR$3,MATCH(N61,convSources,0),MATCH(K61,convTargets,0)))))) -> 0 | K61: Tonnes CO2-e | L61: Auto-Calc | M61: =(J26 * OFFSET(Admin!$AR$3,MATCH(K26,convSources,0),MATCH("GJ",convTargets,0)) ) * IFERROR( VLOOKUP(A61 & "-" & H61,Admin!BN:BQ,4,FALSE),0) + (J42 * OFFSET(Admin!$AR$3,MATCH(K42,convSources,0),MATCH("GJ",convTargets,0)) ) * IFERROR( VLOOKUP(A61 & "-" & H61,Admin!BN:BQ,4,FALSE),0) -> 0 | N61: Tonnes CO2-e | O61: NA | Q61: Bagasse | R61: =(J26 * OFFSET(Admin!$AR$3,MATCH(K26,convSources,0),MATCH("GJ",convTargets,0)) ) * IFERROR( VLOOKUP(A61 & "-" & H61,Admin!BN:CC,14,FALSE),0) + (J42 * OFFSET(Admin!$AR$3,MATCH(K42,convSources,0),MATCH("GJ",convTargets,0)) ) * IFERROR( VLOOKUP(A61 & "-" & H61,Admin!BN:CC,14,FALSE),0) -> 0 | S61: =(J26 * OFFSET(Admin!$AR$3,MATCH(K26,convSources,0),MATCH("GJ",convTargets,0)) ) * IFERROR( VLOOKUP(A61 & "-" & H61,Admin!BN:CC,15,FALSE),0) + (J42 * OFFSET(Admin!$AR$3,MATCH(K42,convSources,0),MATCH("GJ",convTargets,0)) ) * IFERROR( VLOOKUP(A61 & "-" & H61,Admin!BN:CC,15,FALSE),0) -> 0 | T61: =(J26 * OFFSET(Admin!$AR$3,MATCH(K26,convSources,0),MATCH("GJ",convTargets,0)) ) * IFERROR( VLOOKUP(A61 & "-" & H61,Admin!BN:CC,16,FALSE),0) + (J42 * OFFSET(Admin!$AR$3,MATCH(K42,convSources,0),MATCH("GJ",convTargets,0)) ) * IFERROR( VLOOKUP(A61 & "-" & H61,Admin!BN:CC,16,FALSE),0) -> 0
A62: F2 | B62: F2.7.4 | C62: F2.7 | D62: Solid FuelFRDSegmentSplitBiomass municipal and other industrial materials | E62: 2 | H62: Biomass municipal and other industrial materials | I62: Optional | J62: =IF(N62="NA",_xlfn.VALUETOTEXT(M62),M62*IF(OR(N62="L", N62="kL"),VLOOKUP("F2-"&Q62,Admin!BN:BT,5,FALSE)*IF(N62="kL",1000,1)*OFFSET(Admin!$AR$3,MATCH("MJ",convSources,0),MATCH(K62,convTargets,0)),IF(N62="Kg",VLOOKUP("F2-"&Q62,Admin!BN:BT,6,FALSE)*OFFSET(Admin!$AR$3,MATCH("MJ",convSources,0),MATCH(K62,convTargets,0)),IF(N62="m3",VLOOKUP("F2-"&Q62,Admin!BN:BT,7,FALSE)*OFFSET(Admin!$AR$3,MATCH("Kg",convSources,0),MATCH(K62,convTargets,0)),OFFSET(Admin!$AR$3,MATCH(N62,convSources,0),MATCH(K62,convTargets,0)))))) -> 0 | K62: Tonnes CO2-e | L62: Auto-Calc | M62: =(J27 * OFFSET(Admin!$AR$3,MATCH(K27,convSources,0),MATCH("GJ",convTargets,0)) ) * IFERROR( VLOOKUP(A62 & "-" & H62,Admin!BN:BQ,4,FALSE),0) + (J43 * OFFSET(Admin!$AR$3,MATCH(K43,convSources,0),MATCH("GJ",convTargets,0)) ) * IFERROR( VLOOKUP(A62 & "-" & H62,Admin!BN:BQ,4,FALSE),0) -> 0 | N62: Tonnes CO2-e | O62: NA | Q62: Biomass municipal and other industrial materials | R62: =(J27 * OFFSET(Admin!$AR$3,MATCH(K27,convSources,0),MATCH("GJ",convTargets,0)) ) * IFERROR( VLOOKUP(A62 & "-" & H62,Admin!BN:CC,14,FALSE),0) + (J43 * OFFSET(Admin!$AR$3,MATCH(K43,convSources,0),MATCH("GJ",convTargets,0)) ) * IFERROR( VLOOKUP(A62 & "-" & H62,Admin!BN:CC,14,FALSE),0) -> 0 | S62: =(J27 * OFFSET(Admin!$AR$3,MATCH(K27,convSources,0),MATCH("GJ",convTargets,0)) ) * IFERROR( VLOOKUP(A62 & "-" & H62,Admin!BN:CC,15,FALSE),0) + (J43 * OFFSET(Admin!$AR$3,MATCH(K43,convSources,0),MATCH("GJ",convTargets,0)) ) * IFERROR( VLOOKUP(A62 & "-" & H62,Admin!BN:CC,15,FALSE),0) -> 0 | T62: =(J27 * OFFSET(Admin!$AR$3,MATCH(K27,convSources,0),MATCH("GJ",convTargets,0)) ) * IFERROR( VLOOKUP(A62 & "-" & H62,Admin!BN:CC,16,FALSE),0) + (J43 * OFFSET(Admin!$AR$3,MATCH(K43,convSources,0),MATCH("GJ",convTargets,0)) ) * IFERROR( VLOOKUP(A62 & "-" & H62,Admin!BN:CC,16,FALSE),0) -> 0
A63: F2 | B63: F2.7.5 | C63: F2.7 | D63: Solid FuelFRDSegmentSplitCharcoal | E63: 2 | H63: Charcoal | I63: Optional | J63: =IF(N63="NA",_xlfn.VALUETOTEXT(M63),M63*IF(OR(N63="L", N63="kL"),VLOOKUP("F2-"&Q63,Admin!BN:BT,5,FALSE)*IF(N63="kL",1000,1)*OFFSET(Admin!$AR$3,MATCH("MJ",convSources,0),MATCH(K63,convTargets,0)),IF(N63="Kg",VLOOKUP("F2-"&Q63,Admin!BN:BT,6,FALSE)*OFFSET(Admin!$AR$3,MATCH("MJ",convSources,0),MATCH(K63,convTargets,0)),IF(N63="m3",VLOOKUP("F2-"&Q63,Admin!BN:BT,7,FALSE)*OFFSET(Admin!$AR$3,MATCH("Kg",convSources,0),MATCH(K63,convTargets,0)),OFFSET(Admin!$AR$3,MATCH(N63,convSources,0),MATCH(K63,convTargets,0)))))) -> 0 | K63: Tonnes CO2-e | L63: Auto-Calc | M63: =(J28 * OFFSET(Admin!$AR$3,MATCH(K28,convSources,0),MATCH("GJ",convTargets,0)) ) * IFERROR( VLOOKUP(A63 & "-" & H63,Admin!BN:BQ,4,FALSE),0) + (J44 * OFFSET(Admin!$AR$3,MATCH(K44,convSources,0),MATCH("GJ",convTargets,0)) ) * IFERROR( VLOOKUP(A63 & "-" & H63,Admin!BN:BQ,4,FALSE),0) -> 0 | N63: Tonnes CO2-e | O63: NA | Q63: Charcoal | R63: =(J28 * OFFSET(Admin!$AR$3,MATCH(K28,convSources,0),MATCH("GJ",convTargets,0)) ) * IFERROR( VLOOKUP(A63 & "-" & H63,Admin!BN:CC,14,FALSE),0) + (J44 * OFFSET(Admin!$AR$3,MATCH(K44,convSources,0),MATCH("GJ",convTargets,0)) ) * IFERROR( VLOOKUP(A63 & "-" & H63,Admin!BN:CC,14,FALSE),0) -> 0 | S63: =(J28 * OFFSET(Admin!$AR$3,MATCH(K28,convSources,0),MATCH("GJ",convTargets,0)) ) * IFERROR( VLOOKUP(A63 & "-" & H63,Admin!BN:CC,15,FALSE),0) + (J44 * OFFSET(Admin!$AR$3,MATCH(K44,convSources,0),MATCH("GJ",convTargets,0)) ) * IFERROR( VLOOKUP(A63 & "-" & H63,Admin!BN:CC,15,FALSE),0) -> 0 | T63: =(J28 * OFFSET(Admin!$AR$3,MATCH(K28,convSources,0),MATCH("GJ",convTargets,0)) ) * IFERROR( VLOOKUP(A63 & "-" & H63,Admin!BN:CC,16,FALSE),0) + (J44 * OFFSET(Admin!$AR$3,MATCH(K44,convSources,0),MATCH("GJ",convTargets,0)) ) * IFERROR( VLOOKUP(A63 & "-" & H63,Admin!BN:CC,16,FALSE),0) -> 0
A64: F2 | B64: F2.7.6 | C64: F2.7 | D64: Solid FuelFRDSegmentSplitAnthracite coal | E64: =IFERROR(LEN(B64)-LEN(SUBSTITUTE(B64,".","") ),"BAD VALUE") -> 2 | H64: Anthracite coal | I64: =IF(VLOOKUP(A64,TierIndicators,3,FALSE)="Yes", "Mandatory", "Optional") -> Optional | J64: =IF(N64="NA",_xlfn.VALUETOTEXT(M64),M64*IF(OR(N64="L", N64="kL"),VLOOKUP("F2-"&Q64,Admin!BN:BT,5,FALSE)*IF(N64="kL",1000,1)*OFFSET(Admin!$AR$3,MATCH("MJ",convSources,0),MATCH(K64,convTargets,0)),IF(N64="Kg",VLOOKUP("F2-"&Q64,Admin!BN:BT,6,FALSE)*OFFSET(Admin!$AR$3,MATCH("MJ",convSources,0),MATCH(K64,convTargets,0)),IF(N64="m3",VLOOKUP("F2-"&Q64,Admin!BN:BT,7,FALSE)*OFFSET(Admin!$AR$3,MATCH("Kg",convSources,0),MATCH(K64,convTargets,0)),OFFSET(Admin!$AR$3,MATCH(N64,convSources,0),MATCH(K64,convTargets,0)))))) -> 0 | K64: Tonnes CO2-e | L64: Auto-Calc | M64: =(J29 * OFFSET(Admin!$AR$3,MATCH(K29,convSources,0),MATCH("GJ",convTargets,0)) ) * IFERROR( VLOOKUP(A64 & "-" & H64,Admin!BN:BQ,4,FALSE),0) + (J45 * OFFSET(Admin!$AR$3,MATCH(K45,convSources,0),MATCH("GJ",convTargets,0)) ) * IFERROR( VLOOKUP(A64 & "-" & H64,Admin!BN:BQ,4,FALSE),0) -> 0 | N64: Tonnes CO2-e | O64: =IF(OR(L64="Segment Aggregation",L64="Auto-Calc"),"NA",IF(AND(I64="Mandatory",OR(M64="",N64="")), "FAIL", IF(I64="Optional","NA","PASS"))) -> NA | Q64: Anthracite coal | R64: =(J29 * OFFSET(Admin!$AR$3,MATCH(K29,convSources,0),MATCH("GJ",convTargets,0)) ) * IFERROR( VLOOKUP(A64 & "-" & H64,Admin!BN:CC,14,FALSE),0) + (J45 * OFFSET(Admin!$AR$3,MATCH(K45,convSources,0),MATCH("GJ",convTargets,0)) ) * IFERROR( VLOOKUP(A64 & "-" & H64,Admin!BN:CC,14,FALSE),0) -> 0 | S64: =(J29 * OFFSET(Admin!$AR$3,MATCH(K29,convSources,0),MATCH("GJ",convTargets,0)) ) * IFERROR( VLOOKUP(A64 & "-" & H64,Admin!BN:CC,15,FALSE),0) + (J45 * OFFSET(Admin!$AR$3,MATCH(K45,convSources,0),MATCH("GJ",convTargets,0)) ) * IFERROR( VLOOKUP(A64 & "-" & H64,Admin!BN:CC,15,FALSE),0) -> 0 | T64: =(J29 * OFFSET(Admin!$AR$3,MATCH(K29,convSources,0),MATCH("GJ",convTargets,0)) ) * IFERROR( VLOOKUP(A64 & "-" & H64,Admin!BN:CC,16,FALSE),0) + (J45 * OFFSET(Admin!$AR$3,MATCH(K45,convSources,0),MATCH("GJ",convTargets,0)) ) * IFERROR( VLOOKUP(A64 & "-" & H64,Admin!BN:CC,16,FALSE),0) -> 0
A65: F2 | B65: F2.7.7 | C65: F2.7 | D65: Solid FuelFRDSegmentSplitBituminous coal | E65: =IFERROR(LEN(B65)-LEN(SUBSTITUTE(B65,".","") ),"BAD VALUE") -> 2 | H65: Bituminous coal | I65: =IF(VLOOKUP(A65,TierIndicators,3,FALSE)="Yes", "Mandatory", "Optional") -> Optional | J65: =IF(N65="NA",_xlfn.VALUETOTEXT(M65),M65*IF(OR(N65="L", N65="kL"),VLOOKUP("F2-"&Q65,Admin!BN:BT,5,FALSE)*IF(N65="kL",1000,1)*OFFSET(Admin!$AR$3,MATCH("MJ",convSources,0),MATCH(K65,convTargets,0)),IF(N65="Kg",VLOOKUP("F2-"&Q65,Admin!BN:BT,6,FALSE)*OFFSET(Admin!$AR$3,MATCH("MJ",convSources,0),MATCH(K65,convTargets,0)),IF(N65="m3",VLOOKUP("F2-"&Q65,Admin!BN:BT,7,FALSE)*OFFSET(Admin!$AR$3,MATCH("Kg",convSources,0),MATCH(K65,convTargets,0)),OFFSET(Admin!$AR$3,MATCH(N65,convSources,0),MATCH(K65,convTargets,0)))))) -> 0 | K65: Tonnes CO2-e | L65: Auto-Calc | M65: =(J30 * OFFSET(Admin!$AR$3,MATCH(K30,convSources,0),MATCH("GJ",convTargets,0)) ) * IFERROR( VLOOKUP(A65 & "-" & H65,Admin!BN:BQ,4,FALSE),0) + (J46 * OFFSET(Admin!$AR$3,MATCH(K46,convSources,0),MATCH("GJ",convTargets,0)) ) * IFERROR( VLOOKUP(A65 & "-" & H65,Admin!BN:BQ,4,FALSE),0) -> 0 | N65: Tonnes CO2-e | O65: =IF(OR(L65="Segment Aggregation",L65="Auto-Calc"),"NA",IF(AND(I65="Mandatory",OR(M65="",N65="")), "FAIL", IF(I65="Optional","NA","PASS"))) -> NA | Q65: Bituminous coal | R65: =(J30 * OFFSET(Admin!$AR$3,MATCH(K30,convSources,0),MATCH("GJ",convTargets,0)) ) * IFERROR( VLOOKUP(A65 & "-" & H65,Admin!BN:CC,14,FALSE),0) + (J46 * OFFSET(Admin!$AR$3,MATCH(K46,convSources,0),MATCH("GJ",convTargets,0)) ) * IFERROR( VLOOKUP(A65 & "-" & H65,Admin!BN:CC,14,FALSE),0) -> 0 | S65: =(J30 * OFFSET(Admin!$AR$3,MATCH(K30,convSources,0),MATCH("GJ",convTargets,0)) ) * IFERROR( VLOOKUP(A65 & "-" & H65,Admin!BN:CC,15,FALSE),0) + (J46 * OFFSET(Admin!$AR$3,MATCH(K46,convSources,0),MATCH("GJ",convTargets,0)) ) * IFERROR( VLOOKUP(A65 & "-" & H65,Admin!BN:CC,15,FALSE),0) -> 0 | T65: =(J30 * OFFSET(Admin!$AR$3,MATCH(K30,convSources,0),MATCH("GJ",convTargets,0)) ) * IFERROR( VLOOKUP(A65 & "-" & H65,Admin!BN:CC,16,FALSE),0) + (J46 * OFFSET(Admin!$AR$3,MATCH(K46,convSources,0),MATCH("GJ",convTargets,0)) ) * IFERROR( VLOOKUP(A65 & "-" & H65,Admin!BN:CC,16,FALSE),0) -> 0
A66: F2 | B66: F2.7.8 | C66: F2.7 | D66: Solid FuelFRDSegmentSplitCoal Briquettes | E66: =IFERROR(LEN(B66)-LEN(SUBSTITUTE(B66,".","") ),"BAD VALUE") -> 2 | H66: Coal Briquettes | I66: =IF(VLOOKUP(A66,TierIndicators,3,FALSE)="Yes", "Mandatory", "Optional") -> Optional | J66: =IF(N66="NA",_xlfn.VALUETOTEXT(M66),M66*IF(OR(N66="L", N66="kL"),VLOOKUP("F2-"&Q66,Admin!BN:BT,5,FALSE)*IF(N66="kL",1000,1)*OFFSET(Admin!$AR$3,MATCH("MJ",convSources,0),MATCH(K66,convTargets,0)),IF(N66="Kg",VLOOKUP("F2-"&Q66,Admin!BN:BT,6,FALSE)*OFFSET(Admin!$AR$3,MATCH("MJ",convSources,0),MATCH(K66,convTargets,0)),IF(N66="m3",VLOOKUP("F2-"&Q66,Admin!BN:BT,7,FALSE)*OFFSET(Admin!$AR$3,MATCH("Kg",convSources,0),MATCH(K66,convTargets,0)),OFFSET(Admin!$AR$3,MATCH(N66,convSources,0),MATCH(K66,convTargets,0)))))) -> 0 | K66: Tonnes CO2-e | L66: Auto-Calc | M66: =(J31 * OFFSET(Admin!$AR$3,MATCH(K31,convSources,0),MATCH("GJ",convTargets,0)) ) * IFERROR( VLOOKUP(A66 & "-" & H66,Admin!BN:BQ,4,FALSE),0) + (J47 * OFFSET(Admin!$AR$3,MATCH(K47,convSources,0),MATCH("GJ",convTargets,0)) ) * IFERROR( VLOOKUP(A66 & "-" & H66,Admin!BN:BQ,4,FALSE),0) -> 0 | N66: Tonnes CO2-e | O66: =IF(OR(L66="Segment Aggregation",L66="Auto-Calc"),"NA",IF(AND(I66="Mandatory",OR(M66="",N66="")), "FAIL", IF(I66="Optional","NA","PASS"))) -> NA | Q66: Coal Briquettes | R66: =(J31 * OFFSET(Admin!$AR$3,MATCH(K31,convSources,0),MATCH("GJ",convTargets,0)) ) * IFERROR( VLOOKUP(A66 & "-" & H66,Admin!BN:CC,14,FALSE),0) + (J47 * OFFSET(Admin!$AR$3,MATCH(K47,convSources,0),MATCH("GJ",convTargets,0)) ) * IFERROR( VLOOKUP(A66 & "-" & H66,Admin!BN:CC,14,FALSE),0) -> 0 | S66: =(J31 * OFFSET(Admin!$AR$3,MATCH(K31,convSources,0),MATCH("GJ",convTargets,0)) ) * IFERROR( VLOOKUP(A66 & "-" & H66,Admin!BN:CC,15,FALSE),0) + (J47 * OFFSET(Admin!$AR$3,MATCH(K47,convSources,0),MATCH("GJ",convTargets,0)) ) * IFERROR( VLOOKUP(A66 & "-" & H66,Admin!BN:CC,15,FALSE),0) -> 0 | T66: =(J31 * OFFSET(Admin!$AR$3,MATCH(K31,convSources,0),MATCH("GJ",convTargets,0)) ) * IFERROR( VLOOKUP(A66 & "-" & H66,Admin!BN:CC,16,FALSE),0) + (J47 * OFFSET(Admin!$AR$3,MATCH(K47,convSources,0),MATCH("GJ",convTargets,0)) ) * IFERROR( VLOOKUP(A66 & "-" & H66,Admin!BN:CC,16,FALSE),0) -> 0

Sheet Transportation
B6: =Agency&" | "&Tier&" | "&ReportingPeriod -> | | -
B8: <- Back to Home | F8: Sheet complete: | H8: =IFERROR(IF(COUNTIF(O:O,"Pass")+COUNTIF(O:O,"FAIL")=0,"NA",IF(VLOOKUP("FAIL",O:O,1,FALSE) = "FAIL", IF(COUNTIF(O:O,"Pass")=0,"Not Started","In Progress"),"Complete")),"Complete") -> NA
H9: =IF(NOT(OR(H8="Complete",H8="NA")),"*Mandatory values have not been entered, revisit highlighted items","") -> 
B10: Transportation - Reporting
B13: T1 | C13: Total energy used in transportation within the Entity, segmented by fuel type and vehicle category
B14: ID | C14: Parent ID | D14: FRDSegment | E14: Segment Level | H14: Description | I14: Flag | J14: Final Value | K14: Final Unit | L14: Input Type | M14: Input Value | N14: Input Unit | O14: CHECK
A15: T1 | B15: T1 | C15: NA | D15: =IF(E15=1,H15,IFERROR(VLOOKUP(C15,$B$14:$D$1048576,3,FALSE)&"FRDSegmentSplit"&H15,H15)) -> GRAND TOTAL | E15: =IFERROR(LEN(B15)-LEN(SUBSTITUTE(B15,".","") ),"BAD VALUE") -> 0 | H15: GRAND TOTAL | I15: =IF(VLOOKUP(A15,TierIndicators,3,FALSE)="Yes", "Mandatory", "Optional") -> Optional | J15: =IF(N15="NA",_xlfn.VALUETOTEXT(M15),M15*IF(OR(N15="L", N15="kL"),VLOOKUP("T3-"&Q15,Admin!BN:BT,5,FALSE)*IF(N15="kL",1000,1)*OFFSET(Admin!$AR$3,MATCH("GJ",convSources,0),MATCH(K15,convTargets,0)),IF(OR(N15="Kg",N15="Tonnes"),VLOOKUP("F2-"&Q15,Admin!BN:BT,6,FALSE)*IF(N15="Tonnes",1000,1)*OFFSET(Admin!$AR$3,MATCH("GJ",convSources,0),MATCH(K15,convTargets,0)),IF(N15="m3",VLOOKUP("F2-"&Q15,Admin!BN:BT,7,FALSE)*OFFSET(Admin!$AR$3,MATCH("Kg",convSources,0),MATCH(K15,convTargets,0)),OFFSET(Admin!$AR$3,MATCH(N15,convSources,0),MATCH(K15,convTargets,0)))))) -> 0 | K15: MJ | L15: Segment Aggregation | M15: =SUMIF(C:C,B15,R:R)-J51*OFFSET(Admin!$AR$3,MATCH(K51,convSources,0),MATCH(K15,convTargets,0)) -> 0 | N15: MJ | O15: =IF(OR(L15="Segment Aggregation",L15="Auto-Calc"),"NA",IF(AND(I15="Mandatory",OR(M15="",N15="")), "FAIL", IF(I15="Optional","NA","PASS"))) -> NA | Q15: GRAND TOTAL
A16: T1 | B16: T1.1 | C16: T1 | D16: Petrol | E16: 1 | H16: Petrol | I16: Optional | J16: =IF(N16="NA",_xlfn.VALUETOTEXT(M16),M16*IF(OR(N16="L", N16="kL"),VLOOKUP("T3-"&Q16,Admin!BN:BT,5,FALSE)*IF(N16="kL",1000,1)*OFFSET(Admin!$AR$3,MATCH("GJ",convSources,0),MATCH(K16,convTargets,0)),IF(OR(N16="Kg",N16="Tonnes"),VLOOKUP("F2-"&Q16,Admin!BN:BT,6,FALSE)*IF(N16="Tonnes",1000,1)*OFFSET(Admin!$AR$3,MATCH("GJ",convSources,0),MATCH(K16,convTargets,0)),IF(N16="m3",VLOOKUP("F2-"&Q16,Admin!BN:BT,7,FALSE)*OFFSET(Admin!$AR$3,MATCH("Kg",convSources,0),MATCH(K16,convTargets,0)),OFFSET(Admin!$AR$3,MATCH(N16,convSources,0),MATCH(K16,convTargets,0)))))) -> 0 | K16: MJ | L16: Segment Aggregation | M16: =SUMIF(C:C,B16,J:J) -> 0 | N16: MJ | O16: NA | Q16: Petrol | R16: =J16*OFFSET(Admin!$AR$3,MATCH(K16,convSources,0),MATCH(K$15,convTargets,0)) -> 0
A17: T1 | B17: T1.1.1 | C17: T1.1 | D17: PetrolFRDSegmentSplitPetrol (Unleaded/Premium) | E17: 2 | H17: Petrol (Unleaded/Premium) | I17: Optional | J17: =IF(N17="NA",_xlfn.VALUETOTEXT(M17),M17*IF(OR(N17="L", N17="kL"),VLOOKUP("T3-"&Q17,Admin!BN:BT,5,FALSE)*IF(N17="kL",1000,1)*OFFSET(Admin!$AR$3,MATCH("GJ",convSources,0),MATCH(K17,convTargets,0)),IF(OR(N17="Kg",N17="Tonnes"),VLOOKUP("F2-"&Q17,Admin!BN:BT,6,FALSE)*IF(N17="Tonnes",1000,1)*OFFSET(Admin!$AR$3,MATCH("GJ",convSources,0),MATCH(K17,convTargets,0)),IF(N17="m3",VLOOKUP("F2-"&Q17,Admin!BN:BT,7,FALSE)*OFFSET(Admin!$AR$3,MATCH("Kg",convSources,0),MATCH(K17,convTargets,0)),OFFSET(Admin!$AR$3,MATCH(N17,convSources,0),MATCH(K17,convTargets,0)))))) -> 0 | K17: MJ | L17: Segment Aggregation | M17: =SUMIF(C:C,B17,J:J) -> 0 | N17: MJ | O17: NA | Q17: Petrol (Unleaded/Premium) | R17: =J17*OFFSET(Admin!$AR$3,MATCH(K17,convSources,0),MATCH(K$15,convTargets,0)) -> 0
A18: T1 | B18: T1.1.1.1 | C18: T1.1.1 | D18: PetrolFRDSegmentSplitPetrol (Unleaded/Premium)FRDSegmentSplitRoad vehicles | E18: 3 | F18: + (add segment) | H18: Road vehicles | I18: Optional | J18: =IF(N18="NA",_xlfn.VALUETOTEXT(M18),M18*IF(OR(N18="L", N18="kL"),VLOOKUP("T3-"&Q18,Admin!BN:BT,5,FALSE)*IF(N18="kL",1000,1)*OFFSET(Admin!$AR$3,MATCH("GJ",convSources,0),MATCH(K18,convTargets,0)),IF(OR(N18="Kg",N18="Tonnes"),VLOOKUP("F2-"&Q18,Admin!BN:BT,6,FALSE)*IF(N18="Tonnes",1000,1)*OFFSET(Admin!$AR$3,MATCH("GJ",convSources,0),MATCH(K18,convTargets,0)),IF(N18="m3",VLOOKUP("F2-"&Q18,Admin!BN:BT,7,FALSE)*OFFSET(Admin!$AR$3,MATCH("Kg",convSources,0),MATCH(K18,convTargets,0)),OFFSET(Admin!$AR$3,MATCH(N18,convSources,0),MATCH(K18,convTargets,0)))))) -> 0 | K18: MJ | L18: Manual | N18: kL | O18: NA | Q18: Petrol (Unleaded/Premium) | R18: =J18*OFFSET(Admin!$AR$3,MATCH(K18,convSources,0),MATCH(K$15,convTargets,0)) -> 0
A19: T1 | B19: T1.1.1.2 | C19: T1.1.1 | D19: PetrolFRDSegmentSplitPetrol (Unleaded/Premium)FRDSegmentSplitNon-road vehicles | E19: =IFERROR(LEN(B19)-LEN(SUBSTITUTE(B19,".","") ),"BAD VALUE") -> 3 | F19: + (add segment) | H19: Non-road vehicles | I19: Optional | J19: =IF(N19="NA",_xlfn.VALUETOTEXT(M19),M19*IF(OR(N19="L", N19="kL"),VLOOKUP("T3-"&Q19,Admin!BN:BT,5,FALSE)*IF(N19="kL",1000,1)*OFFSET(Admin!$AR$3,MATCH("GJ",convSources,0),MATCH(K19,convTargets,0)),IF(OR(N19="Kg",N19="Tonnes"),VLOOKUP("F2-"&Q19,Admin!BN:BT,6,FALSE)*IF(N19="Tonnes",1000,1)*OFFSET(Admin!$AR$3,MATCH("GJ",convSources,0),MATCH(K19,convTargets,0)),IF(N19="m3",VLOOKUP("F2-"&Q19,Admin!BN:BT,7,FALSE)*OFFSET(Admin!$AR$3,MATCH("Kg",convSources,0),MATCH(K19,convTargets,0)),OFFSET(Admin!$AR$3,MATCH(N19,convSources,0),MATCH(K19,convTargets,0)))))) -> 0 | K19: MJ | L19: Manual | N19: kL | O19: NA | Q19: Petrol (Unleaded/Premium) | R19: =J19*OFFSET(Admin!$AR$3,MATCH(K19,convSources,0),MATCH(K$15,convTargets,0)) -> 0
A20: T1 | B20: T1.1.2 | C20: T1.1 | D20: PetrolFRDSegmentSplitPetrol (E10) | E20: 2 | H20: Petrol (E10) | I20: Optional | J20: =IF(N20="NA",_xlfn.VALUETOTEXT(M20),M20*IF(OR(N20="L", N20="kL"),VLOOKUP("T3-"&Q20,Admin!BN:BT,5,FALSE)*IF(N20="kL",1000,1)*OFFSET(Admin!$AR$3,MATCH("GJ",convSources,0),MATCH(K20,convTargets,0)),IF(OR(N20="Kg",N20="Tonnes"),VLOOKUP("F2-"&Q20,Admin!BN:BT,6,FALSE)*IF(N20="Tonnes",1000,1)*OFFSET(Admin!$AR$3,MATCH("GJ",convSources,0),MATCH(K20,convTargets,0)),IF(N20="m3",VLOOKUP("F2-"&Q20,Admin!BN:BT,7,FALSE)*OFFSET(Admin!$AR$3,MATCH("Kg",convSources,0),MATCH(K20,convTargets,0)),OFFSET(Admin!$AR$3,MATCH(N20,convSources,0),MATCH(K20,convTargets,0)))))) -> 0 | K20: MJ | L20: Segment Aggregation | M20: =SUMIF(C:C,B20,J:J) -> 0 | N20: MJ | O20: NA | Q20: Petrol (E10) | R20: =J20*OFFSET(Admin!$AR$3,MATCH(K20,convSources,0),MATCH(K$15,convTargets,0)) -> 0
A21: T1 | B21: T1.1.2.1 | C21: T1.1.2 | D21: PetrolFRDSegmentSplitPetrol (E10)FRDSegmentSplitRoad vehicles | E21: 3 | F21: + (add segment) | H21: Road vehicles | I21: Optional | J21: =IF(N21="NA",_xlfn.VALUETOTEXT(M21),M21*IF(OR(N21="L", N21="kL"),VLOOKUP("T3-"&Q21,Admin!BN:BT,5,FALSE)*IF(N21="kL",1000,1)*OFFSET(Admin!$AR$3,MATCH("GJ",convSources,0),MATCH(K21,convTargets,0)),IF(OR(N21="Kg",N21="Tonnes"),VLOOKUP("F2-"&Q21,Admin!BN:BT,6,FALSE)*IF(N21="Tonnes",1000,1)*OFFSET(Admin!$AR$3,MATCH("GJ",convSources,0),MATCH(K21,convTargets,0)),IF(N21="m3",VLOOKUP("F2-"&Q21,Admin!BN:BT,7,FALSE)*OFFSET(Admin!$AR$3,MATCH("Kg",convSources,0),MATCH(K21,convTargets,0)),OFFSET(Admin!$AR$3,MATCH(N21,convSources,0),MATCH(K21,convTargets,0)))))) -> 0 | K21: MJ | L21: Manual | N21: kL | O21: NA | Q21: Petrol (E10) | R21: =J21*OFFSET(Admin!$AR$3,MATCH(K21,convSources,0),MATCH(K$15,convTargets,0)) -> 0
A22: T1 | B22: T1.1.2.2 | C22: T1.1.2 | D22: PetrolFRDSegmentSplitPetrol (E10)FRDSegmentSplitNon-road vehicles | E22: 3 | F22: + (add segment) | H22: Non-road vehicles | I22: Optional | J22: =IF(N22="NA",_xlfn.VALUETOTEXT(M22),M22*IF(OR(N22="L", N22="kL"),VLOOKUP("T3-"&Q22,Admin!BN:BT,5,FALSE)*IF(N22="kL",1000,1)*OFFSET(Admin!$AR$3,MATCH("GJ",convSources,0),MATCH(K22,convTargets,0)),IF(OR(N22="Kg",N22="Tonnes"),VLOOKUP("F2-"&Q22,Admin!BN:BT,6,FALSE)*IF(N22="Tonnes",1000,1)*OFFSET(Admin!$AR$3,MATCH("GJ",convSources,0),MATCH(K22,convTargets,0)),IF(N22="m3",VLOOKUP("F2-"&Q22,Admin!BN:BT,7,FALSE)*OFFSET(Admin!$AR$3,MATCH("Kg",convSources,0),MATCH(K22,convTargets,0)),OFFSET(Admin!$AR$3,MATCH(N22,convSources,0),MATCH(K22,convTargets,0)))))) -> 0 | K22: MJ | L22: Manual | N22: kL | O22: NA | Q22: Petrol (E10) | R22: =J22*OFFSET(Admin!$AR$3,MATCH(K22,convSources,0),MATCH(K$15,convTargets,0)) -> 0
A23: T1 | B23: T1.2 | C23: T1 | D23: Diesel | E23: 1 | H23: Diesel | I23: Optional | J23: =IF(N23="NA",_xlfn.VALUETOTEXT(M23),M23*IF(OR(N23="L", N23="kL"),VLOOKUP("T3-"&Q23,Admin!BN:BT,5,FALSE)*IF(N23="kL",1000,1)*OFFSET(Admin!$AR$3,MATCH("GJ",convSources,0),MATCH(K23,convTargets,0)),IF(OR(N23="Kg",N23="Tonnes"),VLOOKUP("F2-"&Q23,Admin!BN:BT,6,FALSE)*IF(N23="Tonnes",1000,1)*OFFSET(Admin!$AR$3,MATCH("GJ",convSources,0),MATCH(K23,convTargets,0)),IF(N23="m3",VLOOKUP("F2-"&Q23,Admin!BN:BT,7,FALSE)*OFFSET(Admin!$AR$3,MATCH("Kg",convSources,0),MATCH(K23,convTargets,0)),OFFSET(Admin!$AR$3,MATCH(N23,convSources,0),MATCH(K23,convTargets,0)))))) -> 0 | K23: MJ | L23: Segment Aggregation | M23: =SUMIF(C:C,B23,J:J) -> 0 | N23: MJ | O23: NA | Q23: Diesel | R23: =J23*OFFSET(Admin!$AR$3,MATCH(K23,convSources,0),MATCH(K$15,convTargets,0)) -> 0
A24: T1 | B24: T1.2.1 | C24: T1.2 | D24: DieselFRDSegmentSplitRoad vehicles | E24: =IFERROR(LEN(B24)-LEN(SUBSTITUTE(B24,".","") ),"BAD VALUE") -> 2 | F24: + (add segment) | H24: Road vehicles | I24: Optional | J24: =IF(N24="NA",_xlfn.VALUETOTEXT(M24),M24*IF(OR(N24="L", N24="kL"),VLOOKUP("T3-"&Q24,Admin!BN:BT,5,FALSE)*IF(N24="kL",1000,1)*OFFSET(Admin!$AR$3,MATCH("GJ",convSources,0),MATCH(K24,convTargets,0)),IF(OR(N24="Kg",N24="Tonnes"),VLOOKUP("F2-"&Q24,Admin!BN:BT,6,FALSE)*IF(N24="Tonnes",1000,1)*OFFSET(Admin!$AR$3,MATCH("GJ",convSources,0),MATCH(K24,convTargets,0)),IF(N24="m3",VLOOKUP("F2-"&Q24,Admin!BN:BT,7,FALSE)*OFFSET(Admin!$AR$3,MATCH("Kg",convSources,0),MATCH(K24,convTargets,0)),OFFSET(Admin!$AR$3,MATCH(N24,convSources,0),MATCH(K24,convTargets,0)))))) -> 0 | K24: MJ | L24: Manual | N24: kL | O24: NA | Q24: Diesel | R24: =J24*OFFSET(Admin!$AR$3,MATCH(K24,convSources,0),MATCH(K$15,convTargets,0)) -> 0
A25: T1 | B25: T1.2.2 | C25: T1.2 | D25: DieselFRDSegmentSplitNon-road vehicles | E25: =IFERROR(LEN(B25)-LEN(SUBSTITUTE(B25,".","") ),"BAD VALUE") -> 2 | F25: + (add segment) | H25: Non-road vehicles | I25: Optional | J25: =IF(N25="NA",_xlfn.VALUETOTEXT(M25),M25*IF(OR(N25="L", N25="kL"),VLOOKUP("T3-"&Q25,Admin!BN:BT,5,FALSE)*IF(N25="kL",1000,1)*OFFSET(Admin!$AR$3,MATCH("GJ",convSources,0),MATCH(K25,convTargets,0)),IF(OR(N25="Kg",N25="Tonnes"),VLOOKUP("F2-"&Q25,Admin!BN:BT,6,FALSE)*IF(N25="Tonnes",1000,1)*OFFSET(Admin!$AR$3,MATCH("GJ",convSources,0),MATCH(K25,convTargets,0)),IF(N25="m3",VLOOKUP("F2-"&Q25,Admin!BN:BT,7,FALSE)*OFFSET(Admin!$AR$3,MATCH("Kg",convSources,0),MATCH(K25,convTargets,0)),OFFSET(Admin!$AR$3,MATCH(N25,convSources,0),MATCH(K25,convTargets,0)))))) -> 0 | K25: MJ | L25: Manual | N25: kL | O25: NA | Q25: Diesel | R25: =J25*OFFSET(Admin!$AR$3,MATCH(K25,convSources,0),MATCH(K$15,convTargets,0)) -> 0
A26: T1 | B26: T1.3 | C26: T1 | D26: Biodiesel | E26: 1 | H26: Biodiesel | I26: Optional | J26: =IF(N26="NA",_xlfn.VALUETOTEXT(M26),M26*IF(OR(N26="L", N26="kL"),VLOOKUP("T3-"&Q26,Admin!BN:BT,5,FALSE)*IF(N26="kL",1000,1)*OFFSET(Admin!$AR$3,MATCH("GJ",convSources,0),MATCH(K26,convTargets,0)),IF(OR(N26="Kg",N26="Tonnes"),VLOOKUP("F2-"&Q26,Admin!BN:BT,6,FALSE)*IF(N26="Tonnes",1000,1)*OFFSET(Admin!$AR$3,MATCH("GJ",convSources,0),MATCH(K26,convTargets,0)),IF(N26="m3",VLOOKUP("F2-"&Q26,Admin!BN:BT,7,FALSE)*OFFSET(Admin!$AR$3,MATCH("Kg",convSources,0),MATCH(K26,convTargets,0)),OFFSET(Admin!$AR$3,MATCH(N26,convSources,0),MATCH(K26,convTargets,0)))))) -> 0 | K26: MJ | L26: Segment Aggregation | M26: =SUMIF(C:C,B26,J:J) -> 0 | N26: MJ | O26: NA | Q26: Biodiesel | R26: =J26*OFFSET(Admin!$AR$3,MATCH(K26,convSources,0),MATCH(K$15,convTargets,0)) -> 0
A27: T1 | B27: T1.3.1 | C27: T1.3 | D27: BiodieselFRDSegmentSplitRoad vehicles | E27: =IFERROR(LEN(B27)-LEN(SUBSTITUTE(B27,".","") ),"BAD VALUE") -> 2 | F27: + (add segment) | H27: Road vehicles | I27: Optional | J27: =IF(N27="NA",_xlfn.VALUETOTEXT(M27),M27*IF(OR(N27="L", N27="kL"),VLOOKUP("T3-"&Q27,Admin!BN:BT,5,FALSE)*IF(N27="kL",1000,1)*OFFSET(Admin!$AR$3,MATCH("GJ",convSources,0),MATCH(K27,convTargets,0)),IF(OR(N27="Kg",N27="Tonnes"),VLOOKUP("F2-"&Q27,Admin!BN:BT,6,FALSE)*IF(N27="Tonnes",1000,1)*OFFSET(Admin!$AR$3,MATCH("GJ",convSources,0),MATCH(K27,convTargets,0)),IF(N27="m3",VLOOKUP("F2-"&Q27,Admin!BN:BT,7,FALSE)*OFFSET(Admin!$AR$3,MATCH("Kg",convSources,0),MATCH(K27,convTargets,0)),OFFSET(Admin!$AR$3,MATCH(N27,convSources,0),MATCH(K27,convTargets,0)))))) -> 0 | K27: MJ | L27: Manual | N27: kL | O27: NA | Q27: Biodiesel | R27: =J27*OFFSET(Admin!$AR$3,MATCH(K27,convSources,0),MATCH(K$15,convTargets,0)) -> 0
A28: T1 | B28: T1.3.2 | C28: T1.3 | D28: BiodieselFRDSegmentSplitNon-road vehicles | E28: =IFERROR(LEN(B28)-LEN(SUBSTITUTE(B28,".","") ),"BAD VALUE") -> 2 | F28: + (add segment) | H28: Non-road vehicles | I28: Optional | J28: =IF(N28="NA",_xlfn.VALUETOTEXT(M28),M28*IF(OR(N28="L", N28="kL"),VLOOKUP("T3-"&Q28,Admin!BN:BT,5,FALSE)*IF(N28="kL",1000,1)*OFFSET(Admin!$AR$3,MATCH("GJ",convSources,0),MATCH(K28,convTargets,0)),IF(OR(N28="Kg",N28="Tonnes"),VLOOKUP("F2-"&Q28,Admin!BN:BT,6,FALSE)*IF(N28="Tonnes",1000,1)*OFFSET(Admin!$AR$3,MATCH("GJ",convSources,0),MATCH(K28,convTargets,0)),IF(N28="m3",VLOOKUP("F2-"&Q28,Admin!BN:BT,7,FALSE)*OFFSET(Admin!$AR$3,MATCH("Kg",convSources,0),MATCH(K28,convTargets,0)),OFFSET(Admin!$AR$3,MATCH(N28,convSources,0),MATCH(K28,convTargets,0)))))) -> 0 | K28: MJ | L28: Manual | N28: kL | O28: NA | Q28: Biodiesel | R28: =J28*OFFSET(Admin!$AR$3,MATCH(K28,convSources,0),MATCH(K$15,convTargets,0)) -> 0
A29: T1 | B29: T1.4 | C29: T1 | D29: LPG | E29: =IFERROR(LEN(B29)-LEN(SUBSTITUTE(B29,".","") ),"BAD VALUE") -> 1 | H29: LPG | I29: Optional | J29: =IF(N29="NA",_xlfn.VALUETOTEXT(M29),M29*IF(OR(N29="L", N29="kL"),VLOOKUP("T3-"&Q29,Admin!BN:BT,5,FALSE)*IF(N29="kL",1000,1)*OFFSET(Admin!$AR$3,MATCH("GJ",convSources,0),MATCH(K29,convTargets,0)),IF(OR(N29="Kg",N29="Tonnes"),VLOOKUP("F2-"&Q29,Admin!BN:BT,6,FALSE)*IF(N29="Tonnes",1000,1)*OFFSET(Admin!$AR$3,MATCH("GJ",convSources,0),MATCH(K29,convTargets,0)),IF(N29="m3",VLOOKUP("F2-"&Q29,Admin!BN:BT,7,FALSE)*OFFSET(Admin!$AR$3,MATCH("Kg",convSources,0),MATCH(K29,convTargets,0)),OFFSET(Admin!$AR$3,MATCH(N29,convSources,0),MATCH(K29,convTargets,0)))))) -> 0 | K29: MJ | L29: Segment Aggregation | M29: =SUMIF(C:C,B29,J:J) -> 0 | N29: MJ | O29: NA | Q29: LPG | R29: =J29*OFFSET(Admin!$AR$3,MATCH(K29,convSources,0),MATCH(K$15,convTargets,0)) -> 0
A30: T1 | B30: T1.4.1 | C30: T1.4 | D30: LPGFRDSegmentSplitRoad vehicles | E30: =IFERROR(LEN(B30)-LEN(SUBSTITUTE(B30,".","") ),"BAD VALUE") -> 2 | F30: + (add segment) | H30: Road vehicles | I30: Optional | J30: =IF(N30="NA",_xlfn.VALUETOTEXT(M30),M30*IF(OR(N30="L", N30="kL"),VLOOKUP("T3-"&Q30,Admin!BN:BT,5,FALSE)*IF(N30="kL",1000,1)*OFFSET(Admin!$AR$3,MATCH("GJ",convSources,0),MATCH(K30,convTargets,0)),IF(OR(N30="Kg",N30="Tonnes"),VLOOKUP("F2-"&Q30,Admin!BN:BT,6,FALSE)*IF(N30="Tonnes",1000,1)*OFFSET(Admin!$AR$3,MATCH("GJ",convSources,0),MATCH(K30,convTargets,0)),IF(N30="m3",VLOOKUP("F2-"&Q30,Admin!BN:BT,7,FALSE)*OFFSET(Admin!$AR$3,MATCH("Kg",convSources,0),MATCH(K30,convTargets,0)),OFFSET(Admin!$AR$3,MATCH(N30,convSources,0),MATCH(K30,convTargets,0)))))) -> 0 | K30: MJ | L30: Manual | N30: kL | O30: NA | Q30: LPG | R30: =J30*OFFSET(Admin!$AR$3,MATCH(K30,convSources,0),MATCH(K$15,convTargets,0)) -> 0
A31: T1 | B31: T1.4.2 | C31: T1.4 | D31: LPGFRDSegmentSplitNon-road vehicles | E31: =IFERROR(LEN(B31)-LEN(SUBSTITUTE(B31,".","") ),"BAD VALUE") -> 2 | F31: + (add segment) | H31: Non-road vehicles | I31: Optional | J31: =IF(N31="NA",_xlfn.VALUETOTEXT(M31),M31*IF(OR(N31="L", N31="kL"),VLOOKUP("T3-"&Q31,Admin!BN:BT,5,FALSE)*IF(N31="kL",1000,1)*OFFSET(Admin!$AR$3,MATCH("GJ",convSources,0),MATCH(K31,convTargets,0)),IF(OR(N31="Kg",N31="Tonnes"),VLOOKUP("F2-"&Q31,Admin!BN:BT,6,FALSE)*IF(N31="Tonnes",1000,1)*OFFSET(Admin!$AR$3,MATCH("GJ",convSources,0),MATCH(K31,convTargets,0)),IF(N31="m3",VLOOKUP("F2-"&Q31,Admin!BN:BT,7,FALSE)*OFFSET(Admin!$AR$3,MATCH("Kg",convSources,0),MATCH(K31,convTargets,0)),OFFSET(Admin!$AR$3,MATCH(N31,convSources,0),MATCH(K31,convTargets,0)))))) -> 0 | K31: MJ | L31: Manual | N31: kL | O31: NA | Q31: LPG | R31: =J31*OFFSET(Admin!$AR$3,MATCH(K31,convSources,0),MATCH(K$15,convTargets,0)) -> 0
A32: T1 | B32: T1.5 | C32: T1 | D32: Aviation Fuels | E32: =IFERROR(LEN(B32)-LEN(SUBSTITUTE(B32,".","") ),"BAD VALUE") -> 1 | H32: Aviation Fuels | I32: Optional | J32: =IF(N32="NA",_xlfn.VALUETOTEXT(M32),M32*IF(OR(N32="L", N32="kL"),VLOOKUP("T3-"&Q32,Admin!BN:BT,5,FALSE)*IF(N32="kL",1000,1)*OFFSET(Admin!$AR$3,MATCH("GJ",convSources,0),MATCH(K32,convTargets,0)),IF(OR(N32="Kg",N32="Tonnes"),VLOOKUP("F2-"&Q32,Admin!BN:BT,6,FALSE)*IF(N32="Tonnes",1000,1)*OFFSET(Admin!$AR$3,MATCH("GJ",convSources,0),MATCH(K32,convTargets,0)),IF(N32="m3",VLOOKUP("F2-"&Q32,Admin!BN:BT,7,FALSE)*OFFSET(Admin!$AR$3,MATCH("Kg",convSources,0),MATCH(K32,convTargets,0)),OFFSET(Admin!$AR$3,MATCH(N32,convSources,0),MATCH(K32,convTargets,0)))))) -> 0 | K32: MJ | L32: Segment Aggregation | M32: =SUMIF(C:C,B32,J:J) -> 0 | N32: MJ | O32: NA | Q32: Aviation Fuels | R32: =J32*OFFSET(Admin!$AR$3,MATCH(K32,convSources,0),MATCH(K$15,convTargets,0)) -> 0
A33: T1 | B33: T1.5.1 | C33: T1.5 | D33: Aviation FuelsFRDSegmentSplitAvgas | E33: =IFERROR(LEN(B33)-LEN(SUBSTITUTE(B33,".","") ),"BAD VALUE") -> 2 | H33: Avgas | I33: Optional | J33: =IF(N33="NA",_xlfn.VALUETOTEXT(M33),M33*IF(OR(N33="L", N33="kL"),VLOOKUP("T3-"&Q33,Admin!BN:BT,5,FALSE)*IF(N33="kL",1000,1)*OFFSET(Admin!$AR$3,MATCH("GJ",convSources,0),MATCH(K33,convTargets,0)),IF(OR(N33="Kg",N33="Tonnes"),VLOOKUP("F2-"&Q33,Admin!BN:BT,6,FALSE)*IF(N33="Tonnes",1000,1)*OFFSET(Admin!$AR$3,MATCH("GJ",convSources,0),MATCH(K33,convTargets,0)),IF(N33="m3",VLOOKUP("F2-"&Q33,Admin!BN:BT,7,FALSE)*OFFSET(Admin!$AR$3,MATCH("Kg",convSources,0),MATCH(K33,convTargets,0)),OFFSET(Admin!$AR$3,MATCH(N33,convSources,0),MATCH(K33,convTargets,0)))))) -> 0 | K33: MJ | L33: Segment Aggregation | M33: =SUMIF(C:C,B33,J:J) -> 0 | N33: MJ | O33: NA | Q33: Avgas | R33: =J33*OFFSET(Admin!$AR$3,MATCH(K33,convSources,0),MATCH(K$15,convTargets,0)) -> 0
A34: T1 | B34: T1.5.1.1 | C34: T1.5.1 | D34: Aviation FuelsFRDSegmentSplitAvgasFRDSegmentSplitNon-road vehicles | E34: =IFERROR(LEN(B34)-LEN(SUBSTITUTE(B34,".","") ),"BAD VALUE") -> 3 | F34: + (add segment) | H34: Non-road vehicles | I34: Optional | J34: =IF(N34="NA",_xlfn.VALUETOTEXT(M34),M34*IF(OR(N34="L", N34="kL"),VLOOKUP("T3-"&Q34,Admin!BN:BT,5,FALSE)*IF(N34="kL",1000,1)*OFFSET(Admin!$AR$3,MATCH("GJ",convSources,0),MATCH(K34,convTargets,0)),IF(OR(N34="Kg",N34="Tonnes"),VLOOKUP("F2-"&Q34,Admin!BN:BT,6,FALSE)*IF(N34="Tonnes",1000,1)*OFFSET(Admin!$AR$3,MATCH("GJ",convSources,0),MATCH(K34,convTargets,0)),IF(N34="m3",VLOOKUP("F2-"&Q34,Admin!BN:BT,7,FALSE)*OFFSET(Admin!$AR$3,MATCH("Kg",convSources,0),MATCH(K34,convTargets,0)),OFFSET(Admin!$AR$3,MATCH(N34,convSources,0),MATCH(K34,convTargets,0)))))) -> 0 | K34: MJ | L34: Manual | N34: kL | O34: NA | Q34: Avgas | R34: =J34*OFFSET(Admin!$AR$3,MATCH(K34,convSources,0),MATCH(K$15,convTargets,0)) -> 0
A35: T1 | B35: T1.5.2 | C35: T1.5 | D35: Aviation FuelsFRDSegmentSplitAviation turbine fuel (ATF) | E35: =IFERROR(LEN(B35)-LEN(SUBSTITUTE(B35,".","") ),"BAD VALUE") -> 2 | H35: Aviation turbine fuel (ATF) | I35: Optional | J35: =IF(N35="NA",_xlfn.VALUETOTEXT(M35),M35*IF(OR(N35="L", N35="kL"),VLOOKUP("T3-"&Q35,Admin!BN:BT,5,FALSE)*IF(N35="kL",1000,1)*OFFSET(Admin!$AR$3,MATCH("GJ",convSources,0),MATCH(K35,convTargets,0)),IF(OR(N35="Kg",N35="Tonnes"),VLOOKUP("F2-"&Q35,Admin!BN:BT,6,FALSE)*IF(N35="Tonnes",1000,1)*OFFSET(Admin!$AR$3,MATCH("GJ",convSources,0),MATCH(K35,convTargets,0)),IF(N35="m3",VLOOKUP("F2-"&Q35,Admin!BN:BT,7,FALSE)*OFFSET(Admin!$AR$3,MATCH("Kg",convSources,0),MATCH(K35,convTargets,0)),OFFSET(Admin!$AR$3,MATCH(N35,convSources,0),MATCH(K35,convTargets,0)))))) -> 0 | K35: MJ | L35: Segment Aggregation | M35: =SUMIF(C:C,B35,J:J) -> 0 | N35: MJ | O35: NA | Q35: Aviation turbine fuel (ATF) | R35: =J35*OFFSET(Admin!$AR$3,MATCH(K35,convSources,0),MATCH(K$15,convTargets,0)) -> 0
A36: T1 | B36: T1.5.2.1 | C36: T1.5.2 | D36: Aviation FuelsFRDSegmentSplitAviation turbine fuel (ATF)FRDSegmentSplitNon-road vehicles | E36: =IFERROR(LEN(B36)-LEN(SUBSTITUTE(B36,".","") ),"BAD VALUE") -> 3 | F36: + (add segment) | H36: Non-road vehicles | I36: Optional | J36: =IF(N36="NA",_xlfn.VALUETOTEXT(M36),M36*IF(OR(N36="L", N36="kL"),VLOOKUP("T3-"&Q36,Admin!BN:BT,5,FALSE)*IF(N36="kL",1000,1)*OFFSET(Admin!$AR$3,MATCH("GJ",convSources,0),MATCH(K36,convTargets,0)),IF(OR(N36="Kg",N36="Tonnes"),VLOOKUP("F2-"&Q36,Admin!BN:BT,6,FALSE)*IF(N36="Tonnes",1000,1)*OFFSET(Admin!$AR$3,MATCH("GJ",convSources,0),MATCH(K36,convTargets,0)),IF(N36="m3",VLOOKUP("F2-"&Q36,Admin!BN:BT,7,FALSE)*OFFSET(Admin!$AR$3,MATCH("Kg",convSources,0),MATCH(K36,convTargets,0)),OFFSET(Admin!$AR$3,MATCH(N36,convSources,0),MATCH(K36,convTargets,0)))))) -> 0 | K36: MJ | L36: Manual | N36: kL | O36: NA | Q36: Aviation turbine fuel (ATF) | R36: =J36*OFFSET(Admin!$AR$3,MATCH(K36,convSources,0),MATCH(K$15,convTargets,0)) -> 0
A37: T1 | B37: T1.6 | C37: T1 | D37: Solid fuel | E37: =IFERROR(LEN(B37)-LEN(SUBSTITUTE(B37,".","") ),"BAD VALUE") -> 1 | H37: Solid fuel | I37: =IF(VLOOKUP(A37,TierIndicators,3,FALSE)="Yes", "Mandatory", "Optional") -> Optional | J37: =IF(N37="NA",_xlfn.VALUETOTEXT(M37),M37*IF(OR(N37="L", N37="kL"),VLOOKUP("T3-"&Q37,Admin!BN:BT,5,FALSE)*IF(N37="kL",1000,1)*OFFSET(Admin!$AR$3,MATCH("GJ",convSources,0),MATCH(K37,convTargets,0)),IF(OR(N37="Kg",N37="Tonnes"),VLOOKUP("F2-"&Q37,Admin!BN:BT,6,FALSE)*IF(N37="Tonnes",1000,1)*OFFSET(Admin!$AR$3,MATCH("GJ",convSources,0),MATCH(K37,convTargets,0)),IF(N37="m3",VLOOKUP("F2-"&Q37,Admin!BN:BT,7,FALSE)*OFFSET(Admin!$AR$3,MATCH("Kg",convSources,0),MATCH(K37,convTargets,0)),OFFSET(Admin!$AR$3,MATCH(N37,convSources,0),MATCH(K37,convTargets,0)))))) -> 0 | K37: MJ | L37: Segment Aggregation | M37: =SUMIF(C:C,B37,J:J) -> 0 | N37: MJ | O37: NA | Q37: Solid fuel | R37: =J37*OFFSET(Admin!$AR$3,MATCH(K37,convSources,0),MATCH(K$15,convTargets,0)) -> 0
A38: T1 | B38: T1.6.1 | C38: T1.6 | D38: Solid fuelFRDSegmentSplitAnthracite coal | E38: 2 | H38: Anthracite coal | I38: Optional | J38: =IF(N38="NA",_xlfn.VALUETOTEXT(M38),M38*IF(OR(N38="L", N38="kL"),VLOOKUP("T3-"&Q38,Admin!BN:BT,5,FALSE)*IF(N38="kL",1000,1)*OFFSET(Admin!$AR$3,MATCH("GJ",convSources,0),MATCH(K38,convTargets,0)),IF(OR(N38="Kg",N38="Tonnes"),VLOOKUP("F2-"&Q38,Admin!BN:BT,6,FALSE)*IF(N38="Tonnes",1000,1)*OFFSET(Admin!$AR$3,MATCH("GJ",convSources,0),MATCH(K38,convTargets,0)),IF(N38="m3",VLOOKUP("F2-"&Q38,Admin!BN:BT,7,FALSE)*OFFSET(Admin!$AR$3,MATCH("Kg",convSources,0),MATCH(K38,convTargets,0)),OFFSET(Admin!$AR$3,MATCH(N38,convSources,0),MATCH(K38,convTargets,0)))))) -> 0 | K38: MJ | L38: Segment Aggregation | M38: =SUMIF(C:C,B38,J:J) -> 0 | N38: MJ | O38: NA | Q38: Anthracite coal | R38: =J38*OFFSET(Admin!$AR$3,MATCH(K38,convSources,0),MATCH(K$15,convTargets,0)) -> 0
A39: T1 | B39: T1.6.1.1 | C39: T1.6.1 | D39: Solid fuelFRDSegmentSplitAnthracite coalFRDSegmentSplitRoad vehicles | E39: 3 | F39: + (add segment) | H39: Road vehicles | I39: Optional | J39: =IF(N39="NA",_xlfn.VALUETOTEXT(M39),M39*IF(OR(N39="L", N39="kL"),VLOOKUP("T3-"&Q39,Admin!BN:BT,5,FALSE)*IF(N39="kL",1000,1)*OFFSET(Admin!$AR$3,MATCH("GJ",convSources,0),MATCH(K39,convTargets,0)),IF(OR(N39="Kg",N39="Tonnes"),VLOOKUP("F2-"&Q39,Admin!BN:BT,6,FALSE)*IF(N39="Tonnes",1000,1)*OFFSET(Admin!$AR$3,MATCH("GJ",convSources,0),MATCH(K39,convTargets,0)),IF(N39="m3",VLOOKUP("F2-"&Q39,Admin!BN:BT,7,FALSE)*OFFSET(Admin!$AR$3,MATCH("Kg",convSources,0),MATCH(K39,convTargets,0)),OFFSET(Admin!$AR$3,MATCH(N39,convSources,0),MATCH(K39,convTargets,0)))))) -> 0 | K39: MJ | L39: Manual | N39: Kg | O39: NA | Q39: Anthracite coal | R39: =J39*OFFSET(Admin!$AR$3,MATCH(K39,convSources,0),MATCH(K$15,convTargets,0)) -> 0
A40: T1 | B40: T1.6.1.2 | C40: T1.6.1 | D40: Solid fuelFRDSegmentSplitAnthracite coalFRDSegmentSplitNon-road vehicles | E40: 3 | F40: + (add segment) | H40: Non-road vehicles | I40: Optional | J40: =IF(N40="NA",_xlfn.VALUETOTEXT(M40),M40*IF(OR(N40="L", N40="kL"),VLOOKUP("T3-"&Q40,Admin!BN:BT,5,FALSE)*IF(N40="kL",1000,1)*OFFSET(Admin!$AR$3,MATCH("GJ",convSources,0),MATCH(K40,convTargets,0)),IF(OR(N40="Kg",N40="Tonnes"),VLOOKUP("F2-"&Q40,Admin!BN:BT,6,FALSE)*IF(N40="Tonnes",1000,1)*OFFSET(Admin!$AR$3,MATCH("GJ",convSources,0),MATCH(K40,convTargets,0)),IF(N40="m3",VLOOKUP("F2-"&Q40,Admin!BN:BT,7,FALSE)*OFFSET(Admin!$AR$3,MATCH("Kg",convSources,0),MATCH(K40,convTargets,0)),OFFSET(Admin!$AR$3,MATCH(N40,convSources,0),MATCH(K40,convTargets,0)))))) -> 0 | K40: MJ | L40: Manual | N40: Kg | O40: NA | Q40: Anthracite coal | R40: =J40*OFFSET(Admin!$AR$3,MATCH(K40,convSources,0),MATCH(K$15,convTargets,0)) -> 0
A41: T1 | B41: T1.6.2 | C41: T1.6 | D41: Solid fuelFRDSegmentSplitBituminous coal | E41: =IFERROR(LEN(B41)-LEN(SUBSTITUTE(B41,".","") ),"BAD VALUE") -> 2 | H41: Bituminous coal | I41: Optional | J41: =IF(N41="NA",_xlfn.VALUETOTEXT(M41),M41*IF(OR(N41="L", N41="kL"),VLOOKUP("T3-"&Q41,Admin!BN:BT,5,FALSE)*IF(N41="kL",1000,1)*OFFSET(Admin!$AR$3,MATCH("GJ",convSources,0),MATCH(K41,convTargets,0)),IF(OR(N41="Kg",N41="Tonnes"),VLOOKUP("F2-"&Q41,Admin!BN:BT,6,FALSE)*IF(N41="Tonnes",1000,1)*OFFSET(Admin!$AR$3,MATCH("GJ",convSources,0),MATCH(K41,convTargets,0)),IF(N41="m3",VLOOKUP("F2-"&Q41,Admin!BN:BT,7,FALSE)*OFFSET(Admin!$AR$3,MATCH("Kg",convSources,0),MATCH(K41,convTargets,0)),OFFSET(Admin!$AR$3,MATCH(N41,convSources,0),MATCH(K41,convTargets,0)))))) -> 0 | K41: MJ | L41: Segment Aggregation | M41: =SUMIF(C:C,B41,J:J) -> 0 | N41: MJ | O41: NA | Q41: Bituminous coal | R41: =J41*OFFSET(Admin!$AR$3,MATCH(K41,convSources,0),MATCH(K$15,convTargets,0)) -> 0
A42: T1 | B42: T1.6.2.1 | C42: T1.6.2 | D42: Solid fuelFRDSegmentSplitBituminous coalFRDSegmentSplitRoad vehicles | E42: 3 | F42: + (add segment) | H42: Road vehicles | I42: Optional | J42: =IF(N42="NA",_xlfn.VALUETOTEXT(M42),M42*IF(OR(N42="L", N42="kL"),VLOOKUP("T3-"&Q42,Admin!BN:BT,5,FALSE)*IF(N42="kL",1000,1)*OFFSET(Admin!$AR$3,MATCH("GJ",convSources,0),MATCH(K42,convTargets,0)),IF(OR(N42="Kg",N42="Tonnes"),VLOOKUP("F2-"&Q42,Admin!BN:BT,6,FALSE)*IF(N42="Tonnes",1000,1)*OFFSET(Admin!$AR$3,MATCH("GJ",convSources,0),MATCH(K42,convTargets,0)),IF(N42="m3",VLOOKUP("F2-"&Q42,Admin!BN:BT,7,FALSE)*OFFSET(Admin!$AR$3,MATCH("Kg",convSources,0),MATCH(K42,convTargets,0)),OFFSET(Admin!$AR$3,MATCH(N42,convSources,0),MATCH(K42,convTargets,0)))))) -> 0 | K42: MJ | L42: Manual | N42: Kg | O42: NA | Q42: Bituminous coal | R42: =J42*OFFSET(Admin!$AR$3,MATCH(K42,convSources,0),MATCH(K$15,convTargets,0)) -> 0
A43: T1 | B43: T1.6.2.2 | C43: T1.6.2 | D43: Solid fuelFRDSegmentSplitBituminous coalFRDSegmentSplitNon-road vehicles | E43: 3 | F43: + (add segment) | H43: Non-road vehicles | I43: Optional | J43: =IF(N43="NA",_xlfn.VALUETOTEXT(M43),M43*IF(OR(N43="L", N43="kL"),VLOOKUP("T3-"&Q43,Admin!BN:BT,5,FALSE)*IF(N43="kL",1000,1)*OFFSET(Admin!$AR$3,MATCH("GJ",convSources,0),MATCH(K43,convTargets,0)),IF(OR(N43="Kg",N43="Tonnes"),VLOOKUP("F2-"&Q43,Admin!BN:BT,6,FALSE)*IF(N43="Tonnes",1000,1)*OFFSET(Admin!$AR$3,MATCH("GJ",convSources,0),MATCH(K43,convTargets,0)),IF(N43="m3",VLOOKUP("F2-"&Q43,Admin!BN:BT,7,FALSE)*OFFSET(Admin!$AR$3,MATCH("Kg",convSources,0),MATCH(K43,convTargets,0)),OFFSET(Admin!$AR$3,MATCH(N43,convSources,0),MATCH(K43,convTargets,0)))))) -> 0 | K43: MJ | L43: Manual | N43: Kg | O43: NA | Q43: Bituminous coal | R43: =J43*OFFSET(Admin!$AR$3,MATCH(K43,convSources,0),MATCH(K$15,convTargets,0)) -> 0
A44: T1 | B44: T1.6.3 | C44: T1.6 | D44: Solid fuelFRDSegmentSplitCoal briquettes | E44: 2 | H44: Coal briquettes | I44: Optional | J44: =IF(N44="NA",_xlfn.VALUETOTEXT(M44),M44*IF(OR(N44="L", N44="kL"),VLOOKUP("T3-"&Q44,Admin!BN:BT,5,FALSE)*IF(N44="kL",1000,1)*OFFSET(Admin!$AR$3,MATCH("GJ",convSources,0),MATCH(K44,convTargets,0)),IF(OR(N44="Kg",N44="Tonnes"),VLOOKUP("F2-"&Q44,Admin!BN:BT,6,FALSE)*IF(N44="Tonnes",1000,1)*OFFSET(Admin!$AR$3,MATCH("GJ",convSources,0),MATCH(K44,convTargets,0)),IF(N44="m3",VLOOKUP("F2-"&Q44,Admin!BN:BT,7,FALSE)*OFFSET(Admin!$AR$3,MATCH("Kg",convSources,0),MATCH(K44,convTargets,0)),OFFSET(Admin!$AR$3,MATCH(N44,convSources,0),MATCH(K44,convTargets,0)))))) -> 0 | K44: MJ | L44: Segment Aggregation | M44: =SUMIF(C:C,B44,J:J) -> 0 | N44: MJ | O44: NA | Q44: Coal Briquettes | R44: =J44*OFFSET(Admin!$AR$3,MATCH(K44,convSources,0),MATCH(K$15,convTargets,0)) -> 0
A45: T1 | B45: T1.6.3.1 | C45: T1.6.3 | D45: Solid fuelFRDSegmentSplitCoal briquettesFRDSegmentSplitRoad vehicles | E45: 3 | F45: + (add segment) | H45: Road vehicles | I45: Optional | J45: =IF(N45="NA",_xlfn.VALUETOTEXT(M45),M45*IF(OR(N45="L", N45="kL"),VLOOKUP("T3-"&Q45,Admin!BN:BT,5,FALSE)*IF(N45="kL",1000,1)*OFFSET(Admin!$AR$3,MATCH("GJ",convSources,0),MATCH(K45,convTargets,0)),IF(OR(N45="Kg",N45="Tonnes"),VLOOKUP("F2-"&Q45,Admin!BN:BT,6,FALSE)*IF(N45="Tonnes",1000,1)*OFFSET(Admin!$AR$3,MATCH("GJ",convSources,0),MATCH(K45,convTargets,0)),IF(N45="m3",VLOOKUP("F2-"&Q45,Admin!BN:BT,7,FALSE)*OFFSET(Admin!$AR$3,MATCH("Kg",convSources,0),MATCH(K45,convTargets,0)),OFFSET(Admin!$AR$3,MATCH(N45,convSources,0),MATCH(K45,convTargets,0)))))) -> 0 | K45: MJ | L45: Manual | N45: Kg | O45: NA | Q45: Coal Briquettes | R45: =J45*OFFSET(Admin!$AR$3,MATCH(K45,convSources,0),MATCH(K$15,convTargets,0)) -> 0
A46: T1 | B46: T1.6.3.2 | C46: T1.6.3 | D46: Solid fuelFRDSegmentSplitCoal briquettesFRDSegmentSplitNon-road vehicles | E46: 3 | F46: + (add segment) | H46: Non-road vehicles | I46: Optional | J46: =IF(N46="NA",_xlfn.VALUETOTEXT(M46),M46*IF(OR(N46="L", N46="kL"),VLOOKUP("T3-"&Q46,Admin!BN:BT,5,FALSE)*IF(N46="kL",1000,1)*OFFSET(Admin!$AR$3,MATCH("GJ",convSources,0),MATCH(K46,convTargets,0)),IF(OR(N46="Kg",N46="Tonnes"),VLOOKUP("F2-"&Q46,Admin!BN:BT,6,FALSE)*IF(N46="Tonnes",1000,1)*OFFSET(Admin!$AR$3,MATCH("GJ",convSources,0),MATCH(K46,convTargets,0)),IF(N46="m3",VLOOKUP("F2-"&Q46,Admin!BN:BT,7,FALSE)*OFFSET(Admin!$AR$3,MATCH("Kg",convSources,0),MATCH(K46,convTargets,0)),OFFSET(Admin!$AR$3,MATCH(N46,convSources,0),MATCH(K46,convTargets,0)))))) -> 0 | K46: MJ | L46: Manual | N46: Kg | O46: NA | Q46: Coal Briquettes | R46: =J46*OFFSET(Admin!$AR$3,MATCH(K46,convSources,0),MATCH(K$15,convTargets,0)) -> 0
A47: T1 | B47: T1.7 | C47: T1 | D47: Hydrogen | E47: 1 | H47: Hydrogen | I47: Optional | J47: =IF(N47="NA",_xlfn.VALUETOTEXT(M47),M47*IF(OR(N47="L", N47="kL"),VLOOKUP("T3-"&Q47,Admin!BN:BT,5,FALSE)*IF(N47="kL",1000,1)*OFFSET(Admin!$AR$3,MATCH("GJ",convSources,0),MATCH(K47,convTargets,0)),IF(OR(N47="Kg",N47="Tonnes"),VLOOKUP("F2-"&Q47,Admin!BN:BT,6,FALSE)*IF(N47="Tonnes",1000,1)*OFFSET(Admin!$AR$3,MATCH("GJ",convSources,0),MATCH(K47,convTargets,0)),IF(N47="m3",VLOOKUP("F2-"&Q47,Admin!BN:BT,7,FALSE)*OFFSET(Admin!$AR$3,MATCH("Kg",convSources,0),MATCH(K47,convTargets,0)),OFFSET(Admin!$AR$3,MATCH(N47,convSources,0),MATCH(K47,convTargets,0)))))) -> 0 | K47: MJ | L47: Segment Aggregation | M47: =SUMIF(C:C,B47,J:J) -> 0 | N47: MJ | O47: NA | Q47: Hydrogen | R47: =J47*OFFSET(Admin!$AR$3,MATCH(K47,convSources,0),MATCH(K$15,convTargets,0)) -> 0
A48: T1 | B48: T1.7.1 | C48: T1.7 | D48: HydrogenFRDSegmentSplitRoad vehicles | E48: =IFERROR(LEN(B48)-LEN(SUBSTITUTE(B48,".","") ),"BAD VALUE") -> 2 | F48: + (add segment) | H48: Road vehicles | I48: Optional | J48: =IF(N48="NA",_xlfn.VALUETOTEXT(M48),M48*IF(OR(N48="L", N48="kL"),VLOOKUP("T3-"&Q48,Admin!BN:BT,5,FALSE)*IF(N48="kL",1000,1)*OFFSET(Admin!$AR$3,MATCH("MJ",convSources,0),MATCH(K48,convTargets,0)),IF(OR(N48="Kg",N48="Tonnes"),VLOOKUP("F2-"&Q48,Admin!BN:BT,6,FALSE)*IF(N48="Tonnes",1000,1)*OFFSET(Admin!$AR$3,MATCH("MJ",convSources,0),MATCH(K48,convTargets,0)),IF(N48="m3",VLOOKUP("F2-"&Q48,Admin!BN:BT,7,FALSE)*OFFSET(Admin!$AR$3,MATCH("Kg",convSources,0),MATCH(K48,convTargets,0)),OFFSET(Admin!$AR$3,MATCH(N48,convSources,0),MATCH(K48,convTargets,0)))))) -> 0 | K48: MJ | L48: Manual | N48: Kg | O48: NA | Q48: Hydrogen | R48: =J48*OFFSET(Admin!$AR$3,MATCH(K48,convSources,0),MATCH(K$15,convTargets,0)) -> 0
A49: T1 | B49: T1.7.2 | C49: T1.7 | D49: HydrogenFRDSegmentSplitNon-road vehicles | E49: =IFERROR(LEN(B49)-LEN(SUBSTITUTE(B49,".","") ),"BAD VALUE") -> 2 | F49: + (add segment) | H49: Non-road vehicles | I49: Optional | J49: =IF(N49="NA",_xlfn.VALUETOTEXT(M49),M49*IF(OR(N49="L", N49="kL"),VLOOKUP("T3-"&Q49,Admin!BN:BT,5,FALSE)*IF(N49="kL",1000,1)*OFFSET(Admin!$AR$3,MATCH("MJ",convSources,0),MATCH(K49,convTargets,0)),IF(OR(N49="Kg",N49="Tonnes"),VLOOKUP("F2-"&Q49,Admin!BN:BT,6,FALSE)*IF(N49="Tonnes",1000,1)*OFFSET(Admin!$AR$3,MATCH("MJ",convSources,0),MATCH(K49,convTargets,0)),IF(N49="m3",VLOOKUP("F2-"&Q49,Admin!BN:BT,7,FALSE)*OFFSET(Admin!$AR$3,MATCH("Kg",convSources,0),MATCH(K49,convTargets,0)),OFFSET(Admin!$AR$3,MATCH(N49,convSources,0),MATCH(K49,convTargets,0)))))) -> 0 | K49: MJ | L49: Manual | N49: Kg | O49: NA | Q49: Hydrogen | R49: =J49*OFFSET(Admin!$AR$3,MATCH(K49,convSources,0),MATCH(K$15,convTargets,0)) -> 0
A50: T1 | B50: T1.8 | C50: T1 | D50: Electricity | E50: 1 | H50: Electricity | I50: Optional | J50: =IF(N50="NA",_xlfn.VALUETOTEXT(M50),M50*IF(OR(N50="L", N50="kL"),VLOOKUP("T3-"&Q50,Admin!BN:BT,5,FALSE)*IF(N50="kL",1000,1)*OFFSET(Admin!$AR$3,MATCH("GJ",convSources,0),MATCH(K50,convTargets,0)),IF(OR(N50="Kg",N50="Tonnes"),VLOOKUP("F2-"&Q50,Admin!BN:BT,6,FALSE)*IF(N50="Tonnes",1000,1)*OFFSET(Admin!$AR$3,MATCH("GJ",convSources,0),MATCH(K50,convTargets,0)),IF(N50="m3",VLOOKUP("F2-"&Q50,Admin!BN:BT,7,FALSE)*OFFSET(Admin!$AR$3,MATCH("Kg",convSources,0),MATCH(K50,convTargets,0)),OFFSET(Admin!$AR$3,MATCH(N50,convSources,0),MATCH(K50,convTargets,0)))))) -> 0 | K50: MWh | L50: Segment Aggregation | M50: =SUMIF(C:C,B50,J:J) -> 0 | N50: MWh | O50: NA | Q50: Electricity | R50: =J50*OFFSET(Admin!$AR$3,MATCH(K50,convSources,0),MATCH(K$15,convTargets,0)) -> 0
A51: T1 | B51: T1.8.1 | C51: T1.8 | D51: ElectricityFRDSegmentSplitused at Victorian Government facilities | E51: 2 | H51: used at Victorian Government facilities | I51: Optional | J51: =IF(N51="NA",_xlfn.VALUETOTEXT(M51),M51*IF(OR(N51="L", N51="kL"),VLOOKUP("T3-"&Q51,Admin!BN:BT,5,FALSE)*IF(N51="kL",1000,1)*OFFSET(Admin!$AR$3,MATCH("GJ",convSources,0),MATCH(K51,convTargets,0)),IF(OR(N51="Kg",N51="Tonnes"),VLOOKUP("F2-"&Q51,Admin!BN:BT,6,FALSE)*IF(N51="Tonnes",1000,1)*OFFSET(Admin!$AR$3,MATCH("GJ",convSources,0),MATCH(K51,convTargets,0)),IF(N51="m3",VLOOKUP("F2-"&Q51,Admin!BN:BT,7,FALSE)*OFFSET(Admin!$AR$3,MATCH("Kg",convSources,0),MATCH(K51,convTargets,0)),OFFSET(Admin!$AR$3,MATCH(N51,convSources,0),MATCH(K51,convTargets,0)))))) -> 0 | K51: MWh | L51: Segment Aggregation | M51: =SUMIF(C:C,B51,J:J) -> 0 | N51: MWh | O51: NA | Q51: used at Victorian Government facilities | R51: =J51*OFFSET(Admin!$AR$3,MATCH(K51,convSources,0),MATCH(K$15,convTargets,0)) -> 0
A52: T1 | B52: T1.8.1.1 | C52: T1.8.1 | D52: ElectricityFRDSegmentSplitused at Victorian Government facilitiesFRDSegmentSplitRoad vehicles | E52: =IFERROR(LEN(B52)-LEN(SUBSTITUTE(B52,".","") ),"BAD VALUE") -> 3 | F52: + (add segment) | H52: Road vehicles | I52: Optional | J52: =IF(N52="NA",_xlfn.VALUETOTEXT(M52),M52*IF(OR(N52="L", N52="kL"),VLOOKUP("T3-"&Q52,Admin!BN:BT,5,FALSE)*IF(N52="kL",1000,1)*OFFSET(Admin!$AR$3,MATCH("GJ",convSources,0),MATCH(K52,convTargets,0)),IF(OR(N52="Kg",N52="Tonnes"),VLOOKUP("F2-"&Q52,Admin!BN:BT,6,FALSE)*IF(N52="Tonnes",1000,1)*OFFSET(Admin!$AR$3,MATCH("GJ",convSources,0),MATCH(K52,convTargets,0)),IF(N52="m3",VLOOKUP("F2-"&Q52,Admin!BN:BT,7,FALSE)*OFFSET(Admin!$AR$3,MATCH("Kg",convSources,0),MATCH(K52,convTargets,0)),OFFSET(Admin!$AR$3,MATCH(N52,convSources,0),MATCH(K52,convTargets,0)))))) -> 0 | K52: MWh | L52: Manual | N52: MWh | O52: NA | Q52: Electricity | R52: =J52*OFFSET(Admin!$AR$3,MATCH(K52,convSources,0),MATCH(K$15,convTargets,0)) -> 0
A53: T1 | B53: T1.8.1.2 | C53: T1.8.1 | D53: ElectricityFRDSegmentSplitused at Victorian Government facilitiesFRDSegmentSplitNon-road vehicles | E53: =IFERROR(LEN(B53)-LEN(SUBSTITUTE(B53,".","") ),"BAD VALUE") -> 3 | F53: + (add segment) | H53: Non-road vehicles | I53: Optional | J53: =IF(N53="NA",_xlfn.VALUETOTEXT(M53),M53*IF(OR(N53="L", N53="kL"),VLOOKUP("T3-"&Q53,Admin!BN:BT,5,FALSE)*IF(N53="kL",1000,1)*OFFSET(Admin!$AR$3,MATCH("GJ",convSources,0),MATCH(K53,convTargets,0)),IF(OR(N53="Kg",N53="Tonnes"),VLOOKUP("F2-"&Q53,Admin!BN:BT,6,FALSE)*IF(N53="Tonnes",1000,1)*OFFSET(Admin!$AR$3,MATCH("GJ",convSources,0),MATCH(K53,convTargets,0)),IF(N53="m3",VLOOKUP("F2-"&Q53,Admin!BN:BT,7,FALSE)*OFFSET(Admin!$AR$3,MATCH("Kg",convSources,0),MATCH(K53,convTargets,0)),OFFSET(Admin!$AR$3,MATCH(N53,convSources,0),MATCH(K53,convTargets,0)))))) -> 0 | K53: MWh | L53: Manual | N53: MWh | O53: NA | Q53: Electricity | R53: =J53*OFFSET(Admin!$AR$3,MATCH(K53,convSources,0),MATCH(K$15,convTargets,0)) -> 0
A54: T1 | B54: T1.8.2 | C54: T1.8 | D54: ElectricityFRDSegmentSplitused from other public or private chargers | E54: =IFERROR(LEN(B54)-LEN(SUBSTITUTE(B54,".","") ),"BAD VALUE") -> 2 | H54: used from other public or private chargers | I54: Optional | J54: =IF(N54="NA",_xlfn.VALUETOTEXT(M54),M54*IF(OR(N54="L", N54="kL"),VLOOKUP("T3-"&Q54,Admin!BN:BT,5,FALSE)*IF(N54="kL",1000,1)*OFFSET(Admin!$AR$3,MATCH("GJ",convSources,0),MATCH(K54,convTargets,0)),IF(OR(N54="Kg",N54="Tonnes"),VLOOKUP("F2-"&Q54,Admin!BN:BT,6,FALSE)*IF(N54="Tonnes",1000,1)*OFFSET(Admin!$AR$3,MATCH("GJ",convSources,0),MATCH(K54,convTargets,0)),IF(N54="m3",VLOOKUP("F2-"&Q54,Admin!BN:BT,7,FALSE)*OFFSET(Admin!$AR$3,MATCH("Kg",convSources,0),MATCH(K54,convTargets,0)),OFFSET(Admin!$AR$3,MATCH(N54,convSources,0),MATCH(K54,convTargets,0)))))) -> 0 | K54: MWh | L54: Segment Aggregation | M54: =SUMIF(C:C,B54,J:J) -> 0 | N54: MWh | O54: NA | Q54: used from other public or private chargers | R54: =J54*OFFSET(Admin!$AR$3,MATCH(K54,convSources,0),MATCH(K$15,convTargets,0)) -> 0
A55: T1 | B55: T1.8.2.1 | C55: T1.8.2 | D55: ElectricityFRDSegmentSplitused from other public or private chargersFRDSegmentSplitRoad vehicles | E55: =IFERROR(LEN(B55)-LEN(SUBSTITUTE(B55,".","") ),"BAD VALUE") -> 3 | F55: + (add segment) | H55: Road vehicles | I55: Optional | J55: =IF(N55="NA",_xlfn.VALUETOTEXT(M55),M55*IF(OR(N55="L", N55="kL"),VLOOKUP("T3-"&Q55,Admin!BN:BT,5,FALSE)*IF(N55="kL",1000,1)*OFFSET(Admin!$AR$3,MATCH("GJ",convSources,0),MATCH(K55,convTargets,0)),IF(OR(N55="Kg",N55="Tonnes"),VLOOKUP("F2-"&Q55,Admin!BN:BT,6,FALSE)*IF(N55="Tonnes",1000,1)*OFFSET(Admin!$AR$3,MATCH("GJ",convSources,0),MATCH(K55,convTargets,0)),IF(N55="m3",VLOOKUP("F2-"&Q55,Admin!BN:BT,7,FALSE)*OFFSET(Admin!$AR$3,MATCH("Kg",convSources,0),MATCH(K55,convTargets,0)),OFFSET(Admin!$AR$3,MATCH(N55,convSources,0),MATCH(K55,convTargets,0)))))) -> 0 | K55: MWh | L55: Manual | N55: MWh | O55: NA | Q55: Electricity | R55: =J55*OFFSET(Admin!$AR$3,MATCH(K55,convSources,0),MATCH(K$15,convTargets,0)) -> 0
A56: T1 | B56: T1.8.2.2 | C56: T1.8.2 | D56: ElectricityFRDSegmentSplitused from other public or private chargersFRDSegmentSplitNon-road vehicles | E56: =IFERROR(LEN(B56)-LEN(SUBSTITUTE(B56,".","") ),"BAD VALUE") -> 3 | F56: + (add segment) | H56: Non-road vehicles | I56: Optional | J56: =IF(N56="NA",_xlfn.VALUETOTEXT(M56),M56*IF(OR(N56="L", N56="kL"),VLOOKUP("T3-"&Q56,Admin!BN:BT,5,FALSE)*IF(N56="kL",1000,1)*OFFSET(Admin!$AR$3,MATCH("GJ",convSources,0),MATCH(K56,convTargets,0)),IF(OR(N56="Kg",N56="Tonnes"),VLOOKUP("F2-"&Q56,Admin!BN:BT,6,FALSE)*IF(N56="Tonnes",1000,1)*OFFSET(Admin!$AR$3,MATCH("GJ",convSources,0),MATCH(K56,convTargets,0)),IF(N56="m3",VLOOKUP("F2-"&Q56,Admin!BN:BT,7,FALSE)*OFFSET(Admin!$AR$3,MATCH("Kg",convSources,0),MATCH(K56,convTargets,0)),OFFSET(Admin!$AR$3,MATCH(N56,convSources,0),MATCH(K56,convTargets,0)))))) -> 0 | K56: MWh | L56: Manual | N56: MWh | O56: NA | Q56: Electricity | R56: =J56*OFFSET(Admin!$AR$3,MATCH(K56,convSources,0),MATCH(K$15,convTargets,0)) -> 0
B59: T2 | C59: Number and proportion of vehicles in the organisational boundary segmented by engine/fuel type and vehicle category
B60: ID | C60: Parent ID | D60: FRDSegment | E60: Segment Level | H60: Description | I60: Flag | J60: Final Value | K60: Final Unit | L60: Input Type | M60: Input Value | N60: Input Unit
A61: T2 | B61: T2 | C61: NA | D61: =IF(E61=1,H61,IFERROR(VLOOKUP(C61,$B$14:$D$1048576,3,FALSE)&"FRDSegmentSplit"&H61,H61)) -> Number of vehicles segmented by engine/fuel type and vehicle category | E61: =IFERROR(LEN(B61)-LEN(SUBSTITUTE(B61,".","") ),"BAD VALUE") -> 0 | H61: Number of vehicles segmented by engine/fuel type and vehicle category | I61: =IF(VLOOKUP(A61,TierIndicators,3,FALSE)="Yes", "Mandatory", "Optional") -> Optional | J61: =M61 -> 0 | K61: qty | L61: Segment Aggregation | M61: =SUMIF(C:C,B61,J:J) -> 0 | N61: qty | O61: =IF(OR(L61="Segment Aggregation",L61="Auto-Calc"),"NA",IF(AND(I61="Mandatory",OR(M61="",N61="")), "FAIL", IF(I61="Optional","NA","PASS"))) -> NA | Q61: Number of vehicles segmented by engine/fuel type and vehicle category
A62: T2 | B62: T2.1 | C62: T2 | D62: Internal Combustion Engines (where combusting fuel is used to drive pistons, turbines, rotors etc.) | E62: 1 | H62: Internal Combustion Engines (where combusting fuel is used to drive pistons, turbines, rotors etc.) | I62: Optional | J62: =M62 -> 0 | K62: qty | L62: Segment Aggregation | M62: =SUMIF(C:C,B62,J:J) -> 0 | N62: qty | O62: NA | Q62: Internal Combustion Engines (where combusting fuel is used to drive pistons, turbines, rotors etc.)
A63: T2 | B63: T2.1.1 | C63: T2.1 | D63: Internal Combustion Engines (where combusting fuel is used to drive pistons, turbines, rotors etc.)FRDSegmentSplitPetrol | E63: 2 | H63: Petrol | I63: Optional | J63: =M63 -> 0 | K63: qty | L63: Segment Aggregation | M63: =SUMIF(C:C,B63,J:J) -> 0 | N63: qty | O63: NA | Q63: Petrol
A64: T2 | B64: T2.1.1.1 | C64: T2.1.1 | D64: Internal Combustion Engines (where combusting fuel is used to drive pistons, turbines, rotors etc.)FRDSegmentSplitPetrolFRDSegmentSplitRoad vehicles | E64: 3 | H64: Road vehicles | I64: =IF(VLOOKUP(A64,TierIndicators,3,FALSE)="Yes", "Mandatory", "Optional") -> Optional | J64: =M64 -> 0 | K64: qty | L64: Segment Aggregation | M64: =SUMIF(C:C,B64,J:J) -> 0 | N64: qty | O64: NA | Q64: Petrol
A65: T2 | B65: T2.1.1.1.1 | C65: T2.1.1.1 | D65: Internal Combustion Engines (where combusting fuel is used to drive pistons, turbines, rotors etc.)FRDSegmentSplitPetrolFRDSegmentSplitRoad vehiclesFRDSegmentSplitTwo-wheeled and three-wheeled vehicles | E65: 4 | F65: + (add segment) | H65: Two-wheeled and three-wheeled vehicles | I65: =IF(VLOOKUP(A65,TierIndicators,3,FALSE)="Yes", "Mandatory", "Optional") -> Optional | J65: =M65 -> 0 | K65: qty | L65: Manual | N65: qty | O65: NA | Q65: Petrol
A66: T2 | B66: T2.1.1.1.2 | C66: T2.1.1.1 | D66: Internal Combustion Engines (where combusting fuel is used to drive pistons, turbines, rotors etc.)FRDSegmentSplitPetrolFRDSegmentSplitRoad vehiclesFRDSegmentSplitPassenger vehicles | E66: 4 | F66: + (add segment) | H66: Passenger vehicles | I66: =IF(VLOOKUP(A66,TierIndicators,3,FALSE)="Yes", "Mandatory", "Optional") -> Optional | J66: =M66 -> 0 | K66: qty | L66: Manual | N66: qty | O66: NA | Q66: Petrol
A67: T2 | B67: T2.1.1.1.3 | C67: T2.1.1.1 | D67: Internal Combustion Engines (where combusting fuel is used to drive pistons, turbines, rotors etc.)FRDSegmentSplitPetrolFRDSegmentSplitRoad vehiclesFRDSegmentSplitBuses | E67: 4 | F67: + (add segment) | H67: Buses | I67: =IF(VLOOKUP(A67,TierIndicators,3,FALSE)="Yes", "Mandatory", "Optional") -> Optional | J67: =M67 -> 0 | K67: qty | L67: Manual | N67: qty | O67: NA | Q67: Petrol
A68: T2 | B68: T2.1.1.1.4 | C68: T2.1.1.1 | D68: Internal Combustion Engines (where combusting fuel is used to drive pistons, turbines, rotors etc.)FRDSegmentSplitPetrolFRDSegmentSplitRoad vehiclesFRDSegmentSplitGoods vehicles | E68: 4 | F68: + (add segment) | H68: Goods vehicles | I68: =IF(VLOOKUP(A68,TierIndicators,3,FALSE)="Yes", "Mandatory", "Optional") -> Optional | J68: =M68 -> 0 | K68: qty | L68: Manual | N68: qty | O68: NA | Q68: Petrol
A69: T2 | B69: T2.1.1.2 | C69: T2.1.1 | D69: Internal Combustion Engines (where combusting fuel is used to drive pistons, turbines, rotors etc.)FRDSegmentSplitPetrolFRDSegmentSplitNon-road vehicles | E69: 3 | H69: Non-road vehicles | I69: =IF(VLOOKUP(A69,TierIndicators,3,FALSE)="Yes", "Mandatory", "Optional") -> Optional | J69: =M69 -> 0 | K69: qty | L69: Segment Aggregation | M69: =SUMIF(C:C,B69,J:J) -> 0 | N69: qty | O69: NA | Q69: Petrol
A70: T2 | B70: T2.1.1.2.1 | C70: T2.1.1.2 | D70: Internal Combustion Engines (where combusting fuel is used to drive pistons, turbines, rotors etc.)FRDSegmentSplitPetrolFRDSegmentSplitNon-road vehiclesFRDSegmentSplitHeavy rail locomotives | E70: 4 | F70: + (add segment) | H70: Heavy rail locomotives | I70: =IF(VLOOKUP(A70,TierIndicators,3,FALSE)="Yes", "Mandatory", "Optional") -> Optional | J70: =M70 -> 0 | K70: qty | L70: Manual | N70: qty | O70: NA | Q70: Petrol
A71: T2 | B71: T2.1.1.2.2 | C71: T2.1.1.2 | D71: Internal Combustion Engines (where combusting fuel is used to drive pistons, turbines, rotors etc.)FRDSegmentSplitPetrolFRDSegmentSplitNon-road vehiclesFRDSegmentSplitLight rail vehicles | E71: 4 | F71: + (add segment) | H71: Light rail vehicles | I71: =IF(VLOOKUP(A71,TierIndicators,3,FALSE)="Yes", "Mandatory", "Optional") -> Optional | J71: =M71 -> 0 | K71: qty | L71: Manual | N71: qty | O71: NA | Q71: Petrol
A72: T2 | B72: T2.1.1.2.3 | C72: T2.1.1.2 | D72: Internal Combustion Engines (where combusting fuel is used to drive pistons, turbines, rotors etc.)FRDSegmentSplitPetrolFRDSegmentSplitNon-road vehiclesFRDSegmentSplitMarine vessels | E72: 4 | F72: + (add segment) | H72: Marine vessels | I72: =IF(VLOOKUP(A72,TierIndicators,3,FALSE)="Yes", "Mandatory", "Optional") -> Optional | J72: =M72 -> 0 | K72: qty | L72: Manual | N72: qty | O72: NA | Q72: Petrol
A73: T2 | B73: T2.1.1.2.4 | C73: T2.1.1.2 | D73: Internal Combustion Engines (where combusting fuel is used to drive pistons, turbines, rotors etc.)FRDSegmentSplitPetrolFRDSegmentSplitNon-road vehiclesFRDSegmentSplitRotary wing aircraft | E73: 4 | F73: + (add segment) | H73: Rotary wing aircraft | I73: =IF(VLOOKUP(A73,TierIndicators,3,FALSE)="Yes", "Mandatory", "Optional") -> Optional | J73: =M73 -> 0 | K73: qty | L73: Manual | N73: qty | O73: NA | Q73: Petrol
A74: T2 | B74: T2.1.1.2.5 | C74: T2.1.1.2 | D74: Internal Combustion Engines (where combusting fuel is used to drive pistons, turbines, rotors etc.)FRDSegmentSplitPetrolFRDSegmentSplitNon-road vehiclesFRDSegmentSplitFixed wing aircraft | E74: 4 | F74: + (add segment) | H74: Fixed wing aircraft | I74: =IF(VLOOKUP(A74,TierIndicators,3,FALSE)="Yes", "Mandatory", "Optional") -> Optional | J74: =M74 -> 0 | K74: qty | L74: Manual | N74: qty | O74: NA | Q74: Petrol
A75: T2 | B75: T2.1.1.2.6 | C75: T2.1.1.2 | D75: Internal Combustion Engines (where combusting fuel is used to drive pistons, turbines, rotors etc.)FRDSegmentSplitPetrolFRDSegmentSplitNon-road vehiclesFRDSegmentSplitOther non-road vehicles | E75: 4 | F75: + (add segment) | H75: Other non-road vehicles | I75: =IF(VLOOKUP(A75,TierIndicators,3,FALSE)="Yes", "Mandatory", "Optional") -> Optional | J75: =M75 -> 0 | K75: qty | L75: Manual | N75: qty | O75: NA | Q75: Petrol
A76: T2 | B76: T2.1.2 | C76: T2.1 | D76: Internal Combustion Engines (where combusting fuel is used to drive pistons, turbines, rotors etc.)FRDSegmentSplitDiesel/Biodiesel | E76: =IFERROR(LEN(B76)-LEN(SUBSTITUTE(B76,".","") ),"BAD VALUE") -> 2 | H76: Diesel/Biodiesel | I76: Optional | J76: 0 | K76: qty | L76: Segment Aggregation | M76: =SUMIF(C:C,B76,J:J) -> 0 | N76: qty | O76: NA | Q76: Diesel/Biodiesel
A77: T2 | B77: T2.1.2.1 | C77: T2.1.2 | D77: Internal Combustion Engines (where combusting fuel is used to drive pistons, turbines, rotors etc.)FRDSegmentSplitDiesel/BiodieselFRDSegmentSplitRoad vehicles | E77: =IFERROR(LEN(B77)-LEN(SUBSTITUTE(B77,".","") ),"BAD VALUE") -> 3 | H77: Road vehicles | I77: =IF(VLOOKUP(A77,TierIndicators,3,FALSE)="Yes", "Mandatory", "Optional") -> Optional | J77: =M77 -> 0 | K77: qty | L77: Segment Aggregation | M77: =SUMIF(C:C,B77,J:J) -> 0 | N77: qty | O77: NA | Q77: Diesel/Biodiesel
A78: T2 | B78: T2.1.2.1.1 | C78: T2.1.2.1 | D78: Internal Combustion Engines (where combusting fuel is used to drive pistons, turbines, rotors etc.)FRDSegmentSplitDiesel/BiodieselFRDSegmentSplitRoad vehiclesFRDSegmentSplitTwo-wheeled and three-wheeled vehicles | E78: =IFERROR(LEN(B78)-LEN(SUBSTITUTE(B78,".","") ),"BAD VALUE") -> 4 | F78: + (add segment) | H78: Two-wheeled and three-wheeled vehicles | I78: =IF(VLOOKUP(A78,TierIndicators,3,FALSE)="Yes", "Mandatory", "Optional") -> Optional | J78: =M78 -> 0 | K78: qty | L78: Manual | N78: qty | O78: NA | Q78: Diesel/Biodiesel
A79: T2 | B79: T2.1.2.1.2 | C79: T2.1.2.1 | D79: Internal Combustion Engines (where combusting fuel is used to drive pistons, turbines, rotors etc.)FRDSegmentSplitDiesel/BiodieselFRDSegmentSplitRoad vehiclesFRDSegmentSplitPassenger vehicles | E79: =IFERROR(LEN(B79)-LEN(SUBSTITUTE(B79,".","") ),"BAD VALUE") -> 4 | F79: + (add segment) | H79: Passenger vehicles | I79: =IF(VLOOKUP(A79,TierIndicators,3,FALSE)="Yes", "Mandatory", "Optional") -> Optional | J79: =M79 -> 0 | K79: qty | L79: Manual | N79: qty | O79: NA | Q79: Diesel/Biodiesel
A80: T2 | B80: T2.1.2.1.3 | C80: T2.1.2.1 | D80: Internal Combustion Engines (where combusting fuel is used to drive pistons, turbines, rotors etc.)FRDSegmentSplitDiesel/BiodieselFRDSegmentSplitRoad vehiclesFRDSegmentSplitBuses | E80: =IFERROR(LEN(B80)-LEN(SUBSTITUTE(B80,".","") ),"BAD VALUE") -> 4 | F80: + (add segment) | H80: Buses | I80: =IF(VLOOKUP(A80,TierIndicators,3,FALSE)="Yes", "Mandatory", "Optional") -> Optional | J80: =M80 -> 0 | K80: qty | L80: Manual | N80: qty | O80: NA | Q80: Diesel/Biodiesel
A81: T2 | B81: T2.1.2.1.4 | C81: T2.1.2.1 | D81: Internal Combustion Engines (where combusting fuel is used to drive pistons, turbines, rotors etc.)FRDSegmentSplitDiesel/BiodieselFRDSegmentSplitRoad vehiclesFRDSegmentSplitGoods vehicles | E81: =IFERROR(LEN(B81)-LEN(SUBSTITUTE(B81,".","") ),"BAD VALUE") -> 4 | F81: + (add segment) | H81: Goods vehicles | I81: =IF(VLOOKUP(A81,TierIndicators,3,FALSE)="Yes", "Mandatory", "Optional") -> Optional | J81: =M81 -> 0 | K81: qty | L81: Manual | N81: qty | O81: NA | Q81: Diesel/Biodiesel
A82: T2 | B82: T2.1.2.2 | C82: T2.1.2 | D82: Internal Combustion Engines (where combusting fuel is used to drive pistons, turbines, rotors etc.)FRDSegmentSplitDiesel/BiodieselFRDSegmentSplitNon-road vehicles | E82: =IFERROR(LEN(B82)-LEN(SUBSTITUTE(B82,".","") ),"BAD VALUE") -> 3 | H82: Non-road vehicles | I82: =IF(VLOOKUP(A82,TierIndicators,3,FALSE)="Yes", "Mandatory", "Optional") -> Optional | J82: =M82 -> 0 | K82: qty | L82: Segment Aggregation | M82: =SUMIF(C:C,B82,J:J) -> 0 | N82: qty | O82: NA | Q82: Diesel/Biodiesel
A83: T2 | B83: T2.1.2.2.1 | C83: T2.1.2.2 | D83: Internal Combustion Engines (where combusting fuel is used to drive pistons, turbines, rotors etc.)FRDSegmentSplitDiesel/BiodieselFRDSegmentSplitNon-road vehiclesFRDSegmentSplitHeavy rail locomotives | E83: =IFERROR(LEN(B83)-LEN(SUBSTITUTE(B83,".","") ),"BAD VALUE") -> 4 | F83: + (add segment) | H83: Heavy rail locomotives | I83: =IF(VLOOKUP(A83,TierIndicators,3,FALSE)="Yes", "Mandatory", "Optional") -> Optional | J83: =M83 -> 0 | K83: qty | L83: Manual | N83: qty | O83: NA | Q83: Diesel/Biodiesel
A84: T2 | B84: T2.1.2.2.2 | C84: T2.1.2.2 | D84: Internal Combustion Engines (where combusting fuel is used to drive pistons, turbines, rotors etc.)FRDSegmentSplitDiesel/BiodieselFRDSegmentSplitNon-road vehiclesFRDSegmentSplitLight rail vehicles | E84: =IFERROR(LEN(B84)-LEN(SUBSTITUTE(B84,".","") ),"BAD VALUE") -> 4 | F84: + (add segment) | H84: Light rail vehicles | I84: =IF(VLOOKUP(A84,TierIndicators,3,FALSE)="Yes", "Mandatory", "Optional") -> Optional | J84: =M84 -> 0 | K84: qty | L84: Manual | N84: qty | O84: NA | Q84: Diesel/Biodiesel
A85: T2 | B85: T2.1.2.2.3 | C85: T2.1.2.2 | D85: Internal Combustion Engines (where combusting fuel is used to drive pistons, turbines, rotors etc.)FRDSegmentSplitDiesel/BiodieselFRDSegmentSplitNon-road vehiclesFRDSegmentSplitMarine vessels | E85: =IFERROR(LEN(B85)-LEN(SUBSTITUTE(B85,".","") ),"BAD VALUE") -> 4 | F85: + (add segment) | H85: Marine vessels | I85: =IF(VLOOKUP(A85,TierIndicators,3,FALSE)="Yes", "Mandatory", "Optional") -> Optional | J85: =M85 -> 0 | K85: qty | L85: Manual | N85: qty | O85: NA | Q85: Diesel/Biodiesel
A86: T2 | B86: T2.1.2.2.4 | C86: T2.1.2.2 | D86: Internal Combustion Engines (where combusting fuel is used to drive pistons, turbines, rotors etc.)FRDSegmentSplitDiesel/BiodieselFRDSegmentSplitNon-road vehiclesFRDSegmentSplitRotary wing aircraft | E86: =IFERROR(LEN(B86)-LEN(SUBSTITUTE(B86,".","") ),"BAD VALUE") -> 4 | F86: + (add segment) | H86: Rotary wing aircraft | I86: =IF(VLOOKUP(A86,TierIndicators,3,FALSE)="Yes", "Mandatory", "Optional") -> Optional | J86: =M86 -> 0 | K86: qty | L86: Manual | N86: qty | O86: NA | Q86: Diesel/Biodiesel
A87: T2 | B87: T2.1.2.2.5 | C87: T2.1.2.2 | D87: Internal Combustion Engines (where combusting fuel is used to drive pistons, turbines, rotors etc.)FRDSegmentSplitDiesel/BiodieselFRDSegmentSplitNon-road vehiclesFRDSegmentSplitFixed wing aircraft | E87: =IFERROR(LEN(B87)-LEN(SUBSTITUTE(B87,".","") ),"BAD VALUE") -> 4 | F87: + (add segment) | H87: Fixed wing aircraft | I87: =IF(VLOOKUP(A87,TierIndicators,3,FALSE)="Yes", "Mandatory", "Optional") -> Optional | J87: =M87 -> 0 | K87: qty | L87: Manual | N87: qty | O87: NA | Q87: Diesel/Biodiesel
A88: T2 | B88: T2.1.2.2.6 | C88: T2.1.2.2 | D88: Internal Combustion Engines (where combusting fuel is used to drive pistons, turbines, rotors etc.)FRDSegmentSplitDiesel/BiodieselFRDSegmentSplitNon-road vehiclesFRDSegmentSplitOther non-road vehicles | E88: =IFERROR(LEN(B88)-LEN(SUBSTITUTE(B88,".","") ),"BAD VALUE") -> 4 | F88: + (add segment) | H88: Other non-road vehicles | I88: =IF(VLOOKUP(A88,TierIndicators,3,FALSE)="Yes", "Mandatory", "Optional") -> Optional | J88: =M88 -> 0 | K88: qty | L88: Manual | N88: qty | O88: NA | Q88: Diesel/Biodiesel
A89: T2 | B89: T2.1.3 | C89: T2.1 | D89: Internal Combustion Engines (where combusting fuel is used to drive pistons, turbines, rotors etc.)FRDSegmentSplitLPG | E89: 2 | H89: LPG | I89: Optional | J89: 0 | K89: qty | L89: Segment Aggregation | M89: =SUMIF(C:C,B89,J:J) -> 0 | N89: qty | O89: NA | Q89: LPG
A90: T2 | B90: T2.1.3.1 | C90: T2.1.3 | D90: Internal Combustion Engines (where combusting fuel is used to drive pistons, turbines, rotors etc.)FRDSegmentSplitLPGFRDSegmentSplitRoad vehicles | E90: =IFERROR(LEN(B90)-LEN(SUBSTITUTE(B90,".","") ),"BAD VALUE") -> 3 | H90: Road vehicles | I90: =IF(VLOOKUP(A90,TierIndicators,3,FALSE)="Yes", "Mandatory", "Optional") -> Optional | J90: =M90 -> 0 | K90: qty | L90: Segment Aggregation | M90: =SUMIF(C:C,B90,J:J) -> 0 | N90: qty | O90: NA | Q90: LPG
A91: T2 | B91: T2.1.3.1.1 | C91: T2.1.3.1 | D91: Internal Combustion Engines (where combusting fuel is used to drive pistons, turbines, rotors etc.)FRDSegmentSplitLPGFRDSegmentSplitRoad vehiclesFRDSegmentSplitTwo-wheeled and three-wheeled vehicles | E91: =IFERROR(LEN(B91)-LEN(SUBSTITUTE(B91,".","") ),"BAD VALUE") -> 4 | F91: + (add segment) | H91: Two-wheeled and three-wheeled vehicles | I91: =IF(VLOOKUP(A91,TierIndicators,3,FALSE)="Yes", "Mandatory", "Optional") -> Optional | J91: =M91 -> 0 | K91: qty | L91: Manual | N91: qty | O91: NA | Q91: LPG
A92: T2 | B92: T2.1.3.1.2 | C92: T2.1.3.1 | D92: Internal Combustion Engines (where combusting fuel is used to drive pistons, turbines, rotors etc.)FRDSegmentSplitLPGFRDSegmentSplitRoad vehiclesFRDSegmentSplitPassenger vehicles | E92: =IFERROR(LEN(B92)-LEN(SUBSTITUTE(B92,".","") ),"BAD VALUE") -> 4 | F92: + (add segment) | H92: Passenger vehicles | I92: =IF(VLOOKUP(A92,TierIndicators,3,FALSE)="Yes", "Mandatory", "Optional") -> Optional | J92: =M92 -> 0 | K92: qty | L92: Manual | N92: qty | O92: NA | Q92: LPG
A93: T2 | B93: T2.1.3.1.3 | C93: T2.1.3.1 | D93: =IF(E93=1,H93,IFERROR(VLOOKUP(C93,$B$14:$D$1048576,3,FALSE)&"FRDSegmentSplit"&H93,H93)) -> Internal Combustion Engines (where combusting fuel is used to drive pistons, turbines, rotors etc.)FRDSegmentSplitLPGFRDSegmentSplitRoad vehiclesFRDSegmentSplitBuses | E93: =IFERROR(LEN(B93)-LEN(SUBSTITUTE(B93,".","") ),"BAD VALUE") -> 4 | F93: + (add segment) | H93: Buses | I93: =IF(VLOOKUP(A93,TierIndicators,3,FALSE)="Yes", "Mandatory", "Optional") -> Optional | J93: =M93 -> 0 | K93: qty | L93: Manual | N93: qty | O93: NA | Q93: LPG
A94: T2 | B94: T2.1.3.1.4 | C94: T2.1.3.1 | D94: Internal Combustion Engines (where combusting fuel is used to drive pistons, turbines, rotors etc.)FRDSegmentSplitLPGFRDSegmentSplitRoad vehiclesFRDSegmentSplitGoods vehicles | E94: =IFERROR(LEN(B94)-LEN(SUBSTITUTE(B94,".","") ),"BAD VALUE") -> 4 | F94: + (add segment) | H94: Goods vehicles | I94: =IF(VLOOKUP(A94,TierIndicators,3,FALSE)="Yes", "Mandatory", "Optional") -> Optional | J94: =M94 -> 0 | K94: qty | L94: Manual | N94: qty | O94: NA | Q94: LPG
A95: T2 | B95: T2.1.3.2 | C95: T2.1.3 | D95: Internal Combustion Engines (where combusting fuel is used to drive pistons, turbines, rotors etc.)FRDSegmentSplitLPGFRDSegmentSplitNon-road vehicles | E95: =IFERROR(LEN(B95)-LEN(SUBSTITUTE(B95,".","") ),"BAD VALUE") -> 3 | H95: Non-road vehicles | I95: =IF(VLOOKUP(A95,TierIndicators,3,FALSE)="Yes", "Mandatory", "Optional") -> Optional | J95: =M95 -> 0 | K95: qty | L95: Segment Aggregation | M95: =SUMIF(C:C,B95,J:J) -> 0 | N95: qty | O95: NA | Q95: LPG
A96: T2 | B96: T2.1.3.2.1 | C96: T2.1.3.2 | D96: Internal Combustion Engines (where combusting fuel is used to drive pistons, turbines, rotors etc.)FRDSegmentSplitLPGFRDSegmentSplitNon-road vehiclesFRDSegmentSplitHeavy rail locomotives | E96: =IFERROR(LEN(B96)-LEN(SUBSTITUTE(B96,".","") ),"BAD VALUE") -> 4 | F96: + (add segment) | H96: Heavy rail locomotives | I96: =IF(VLOOKUP(A96,TierIndicators,3,FALSE)="Yes", "Mandatory", "Optional") -> Optional | J96: =M96 -> 0 | K96: qty | L96: Manual | N96: qty | O96: NA | Q96: LPG
A97: T2 | B97: T2.1.3.2.2 | C97: T2.1.3.2 | D97: Internal Combustion Engines (where combusting fuel is used to drive pistons, turbines, rotors etc.)FRDSegmentSplitLPGFRDSegmentSplitNon-road vehiclesFRDSegmentSplitLight rail vehicles | E97: =IFERROR(LEN(B97)-LEN(SUBSTITUTE(B97,".","") ),"BAD VALUE") -> 4 | F97: + (add segment) | H97: Light rail vehicles | I97: =IF(VLOOKUP(A97,TierIndicators,3,FALSE)="Yes", "Mandatory", "Optional") -> Optional | J97: =M97 -> 0 | K97: qty | L97: Manual | N97: qty | O97: NA | Q97: LPG
A98: T2 | B98: T2.1.3.2.3 | C98: T2.1.3.2 | D98: Internal Combustion Engines (where combusting fuel is used to drive pistons, turbines, rotors etc.)FRDSegmentSplitLPGFRDSegmentSplitNon-road vehiclesFRDSegmentSplitMarine vessels | E98: =IFERROR(LEN(B98)-LEN(SUBSTITUTE(B98,".","") ),"BAD VALUE") -> 4 | F98: + (add segment) | H98: Marine vessels | I98: =IF(VLOOKUP(A98,TierIndicators,3,FALSE)="Yes", "Mandatory", "Optional") -> Optional | J98: =M98 -> 0 | K98: qty | L98: Manual | N98: qty | O98: NA | Q98: LPG
A99: T2 | B99: T2.1.3.2.4 | C99: T2.1.3.2 | D99: Internal Combustion Engines (where combusting fuel is used to drive pistons, turbines, rotors etc.)FRDSegmentSplitLPGFRDSegmentSplitNon-road vehiclesFRDSegmentSplitRotary wing aircraft | E99: =IFERROR(LEN(B99)-LEN(SUBSTITUTE(B99,".","") ),"BAD VALUE") -> 4 | F99: + (add segment) | H99: Rotary wing aircraft | I99: =IF(VLOOKUP(A99,TierIndicators,3,FALSE)="Yes", "Mandatory", "Optional") -> Optional | J99: =M99 -> 0 | K99: qty | L99: Manual | N99: qty | O99: NA | Q99: LPG
A100: T2 | B100: T2.1.3.2.5 | C100: T2.1.3.2 | D100: Internal Combustion Engines (where combusting fuel is used to drive pistons, turbines, rotors etc.)FRDSegmentSplitLPGFRDSegmentSplitNon-road vehiclesFRDSegmentSplitFixed wing aircraft | E100: =IFERROR(LEN(B100)-LEN(SUBSTITUTE(B100,".","") ),"BAD VALUE") -> 4 | F100: + (add segment) | H100: Fixed wing aircraft | I100: =IF(VLOOKUP(A100,TierIndicators,3,FALSE)="Yes", "Mandatory", "Optional") -> Optional | J100: =M100 -> 0 | K100: qty | L100: Manual | N100: qty | O100: NA | Q100: LPG
A101: T2 | B101: T2.1.3.2.6 | C101: T2.1.3.2 | D101: Internal Combustion Engines (where combusting fuel is used to drive pistons, turbines, rotors etc.)FRDSegmentSplitLPGFRDSegmentSplitNon-road vehiclesFRDSegmentSplitOther non-road vehicles | E101: =IFERROR(LEN(B101)-LEN(SUBSTITUTE(B101,".","") ),"BAD VALUE") -> 4 | F101: + (add segment) | H101: Other non-road vehicles | I101: =IF(VLOOKUP(A101,TierIndicators,3,FALSE)="Yes", "Mandatory", "Optional") -> Optional | J101: =M101 -> 0 | K101: qty | L101: Manual | N101: qty | O101: NA | Q101: LPG
A102: T2 | B102: T2.1.4 | C102: T2.1 | D102: Internal Combustion Engines (where combusting fuel is used to drive pistons, turbines, rotors etc.)FRDSegmentSplitAviation Fuels | E102: 2 | H102: Aviation Fuels | I102: Optional | J102: 0 | K102: qty | L102: Segment Aggregation | M102: =SUMIF(C:C,B102,J:J) -> 0 | N102: qty | O102: NA | Q102: Aviation Fuels
A103: T2 | B103: T2.1.4.1 | C103: T2.1.4 | D103: Internal Combustion Engines (where combusting fuel is used to drive pistons, turbines, rotors etc.)FRDSegmentSplitAviation FuelsFRDSegmentSplitNon-road vehicles | E103: =IFERROR(LEN(B103)-LEN(SUBSTITUTE(B103,".","") ),"BAD VALUE") -> 3 | H103: Non-road vehicles | I103: =IF(VLOOKUP(A103,TierIndicators,3,FALSE)="Yes", "Mandatory", "Optional") -> Optional | J103: =M103 -> 0 | K103: qty | L103: Segment Aggregation | M103: =SUMIF(C:C,B103,J:J) -> 0 | N103: qty | O103: NA | Q103: Aviation Fuels
A104: T2 | B104: T2.1.4.1.1 | C104: T2.1.4.1 | D104: Internal Combustion Engines (where combusting fuel is used to drive pistons, turbines, rotors etc.)FRDSegmentSplitAviation FuelsFRDSegmentSplitNon-road vehiclesFRDSegmentSplitRotary wing aircraft | E104: =IFERROR(LEN(B104)-LEN(SUBSTITUTE(B104,".","") ),"BAD VALUE") -> 4 | F104: + (add segment) | H104: Rotary wing aircraft | I104: =IF(VLOOKUP(A104,TierIndicators,3,FALSE)="Yes", "Mandatory", "Optional") -> Optional | J104: =M104 -> 0 | K104: qty | L104: Manual | N104: qty | O104: NA | Q104: Aviation Fuels
A105: T2 | B105: T2.1.4.1.2 | C105: T2.1.4.1 | D105: Internal Combustion Engines (where combusting fuel is used to drive pistons, turbines, rotors etc.)FRDSegmentSplitAviation FuelsFRDSegmentSplitNon-road vehiclesFRDSegmentSplitFixed wing aircraft | E105: =IFERROR(LEN(B105)-LEN(SUBSTITUTE(B105,".","") ),"BAD VALUE") -> 4 | F105: + (add segment) | H105: Fixed wing aircraft | I105: =IF(VLOOKUP(A105,TierIndicators,3,FALSE)="Yes", "Mandatory", "Optional") -> Optional | J105: =M105 -> 0 | K105: qty | L105: Manual | N105: qty | O105: NA | Q105: Aviation Fuels
A106: T2 | B106: T2.1.5 | C106: T2.1 | D106: Internal Combustion Engines (where combusting fuel is used to drive pistons, turbines, rotors etc.)FRDSegmentSplitSolid Fuel | E106: =IFERROR(LEN(B106)-LEN(SUBSTITUTE(B106,".","") ),"BAD VALUE") -> 2 | H106: Solid Fuel | I106: Optional | J106: 0 | K106: qty | L106: Segment Aggregation | M106: =SUMIF(C:C,B106,J:J) -> 0 | N106: qty | O106: NA | Q106: Solid Fuel
A107: T2 | B107: T2.1.5.1 | C107: T2.1.5 | D107: Internal Combustion Engines (where combusting fuel is used to drive pistons, turbines, rotors etc.)FRDSegmentSplitSolid FuelFRDSegmentSplitNon-road vehicles | E107: 3 | H107: Non-road vehicles | I107: =IF(VLOOKUP(A107,TierIndicators,3,FALSE)="Yes", "Mandatory", "Optional") -> Optional | J107: =M107 -> 0 | K107: qty | L107: Segment Aggregation | M107: =SUMIF(C:C,B107,J:J) -> 0 | N107: qty | O107: NA | Q107: Solid Fuel
A108: T2 | B108: T2.1.5.1.1 | C108: T2.1.5.1 | D108: Internal Combustion Engines (where combusting fuel is used to drive pistons, turbines, rotors etc.)FRDSegmentSplitSolid FuelFRDSegmentSplitNon-road vehiclesFRDSegmentSplitHeavy rail locomotives | E108: =IFERROR(LEN(B108)-LEN(SUBSTITUTE(B108,".","") ),"BAD VALUE") -> 4 | F108: + (add segment) | H108: Heavy rail locomotives | I108: =IF(VLOOKUP(A108,TierIndicators,3,FALSE)="Yes", "Mandatory", "Optional") -> Optional | J108: =M108 -> 0 | K108: qty | L108: Manual | N108: qty | O108: NA | Q108: Solid Fuel
A109: T2 | B109: T2.1.5.1.2 | C109: T2.1.5.1 | D109: Internal Combustion Engines (where combusting fuel is used to drive pistons, turbines, rotors etc.)FRDSegmentSplitSolid FuelFRDSegmentSplitNon-road vehiclesFRDSegmentSplitLight rail vehicles | E109: =IFERROR(LEN(B109)-LEN(SUBSTITUTE(B109,".","") ),"BAD VALUE") -> 4 | F109: + (add segment) | H109: Light rail vehicles | I109: =IF(VLOOKUP(A109,TierIndicators,3,FALSE)="Yes", "Mandatory", "Optional") -> Optional | J109: =M109 -> 0 | K109: qty | L109: Manual | N109: qty | O109: NA | Q109: Solid Fuel
A110: T2 | B110: T2.1.5.1.3 | C110: T2.1.5.1 | D110: Internal Combustion Engines (where combusting fuel is used to drive pistons, turbines, rotors etc.)FRDSegmentSplitSolid FuelFRDSegmentSplitNon-road vehiclesFRDSegmentSplitMarine vessels | E110: =IFERROR(LEN(B110)-LEN(SUBSTITUTE(B110,".","") ),"BAD VALUE") -> 4 | F110: + (add segment) | H110: Marine vessels | I110: =IF(VLOOKUP(A110,TierIndicators,3,FALSE)="Yes", "Mandatory", "Optional") -> Optional | J110: =M110 -> 0 | K110: qty | L110: Manual | N110: qty | O110: NA | Q110: Solid Fuel
A111: T2 | B111: T2.1.6 | C111: T2.1 | D111: Internal Combustion Engines (where combusting fuel is used to drive pistons, turbines, rotors etc.)FRDSegmentSplitFuel Oil | E111: 2 | H111: Fuel Oil | I111: Optional | J111: 0 | K111: qty | L111: Segment Aggregation | M111: =SUMIF(C:C,B111,J:J) -> 0 | N111: qty | O111: NA | Q111: Fuel Oil
A112: T2 | B112: T2.1.6.1 | C112: T2.1.6 | D112: Internal Combustion Engines (where combusting fuel is used to drive pistons, turbines, rotors etc.)FRDSegmentSplitFuel OilFRDSegmentSplitNon-road vehicles | E112: 3 | H112: Non-road vehicles | I112: =IF(VLOOKUP(A112,TierIndicators,3,FALSE)="Yes", "Mandatory", "Optional") -> Optional | J112: =M112 -> 0 | K112: qty | L112: Segment Aggregation | M112: =SUMIF(C:C,B112,J:J) -> 0 | N112: qty | O112: NA | Q112: Fuel Oil
A113: T2 | B113: T2.1.6.1.1 | C113: T2.1.6.1 | D113: Internal Combustion Engines (where combusting fuel is used to drive pistons, turbines, rotors etc.)FRDSegmentSplitFuel OilFRDSegmentSplitNon-road vehiclesFRDSegmentSplitHeavy rail locomotives | E113: =IFERROR(LEN(B113)-LEN(SUBSTITUTE(B113,".","") ),"BAD VALUE") -> 4 | F113: + (add segment) | H113: Heavy rail locomotives | I113: =IF(VLOOKUP(A113,TierIndicators,3,FALSE)="Yes", "Mandatory", "Optional") -> Optional | J113: =M113 -> 0 | K113: qty | L113: Manual | N113: qty | O113: NA | Q113: Fuel Oil
A114: T2 | B114: T2.1.6.1.2 | C114: T2.1.6.1 | D114: Internal Combustion Engines (where combusting fuel is used to drive pistons, turbines, rotors etc.)FRDSegmentSplitFuel OilFRDSegmentSplitNon-road vehiclesFRDSegmentSplitLight rail vehicles | E114: =IFERROR(LEN(B114)-LEN(SUBSTITUTE(B114,".","") ),"BAD VALUE") -> 4 | F114: + (add segment) | H114: Light rail vehicles | I114: =IF(VLOOKUP(A114,TierIndicators,3,FALSE)="Yes", "Mandatory", "Optional") -> Optional | J114: =M114 -> 0 | K114: qty | L114: Manual | N114: qty | O114: NA | Q114: Fuel Oil
A115: T2 | B115: T2.1.6.1.3 | C115: T2.1.6.1 | D115: Internal Combustion Engines (where combusting fuel is used to drive pistons, turbines, rotors etc.)FRDSegmentSplitFuel OilFRDSegmentSplitNon-road vehiclesFRDSegmentSplitMarine vessels | E115: =IFERROR(LEN(B115)-LEN(SUBSTITUTE(B115,".","") ),"BAD VALUE") -> 4 | F115: + (add segment) | H115: Marine vessels | I115: =IF(VLOOKUP(A115,TierIndicators,3,FALSE)="Yes", "Mandatory", "Optional") -> Optional | J115: =M115 -> 0 | K115: qty | L115: Manual | N115: qty | O115: NA | Q115: Fuel Oil
A116: T2 | B116: T2.1.6.1.4 | C116: T2.1.6.1 | D116: Internal Combustion Engines (where combusting fuel is used to drive pistons, turbines, rotors etc.)FRDSegmentSplitFuel OilFRDSegmentSplitNon-road vehiclesFRDSegmentSplitRotary wing aircraft | E116: =IFERROR(LEN(B116)-LEN(SUBSTITUTE(B116,".","") ),"BAD VALUE") -> 4 | F116: + (add segment) | H116: Rotary wing aircraft | I116: =IF(VLOOKUP(A116,TierIndicators,3,FALSE)="Yes", "Mandatory", "Optional") -> Optional | J116: =M116 -> 0 | K116: qty | L116: Manual | N116: qty | O116: NA | Q116: Fuel Oil
A117: T2 | B117: =C117 & "." & COUNTIF($C$1:OFFSET(C117,-1,0),C117) +1 -> T2.1.6.1.5 | C117: T2.1.6.1 | D117: Internal Combustion Engines (where combusting fuel is used to drive pistons, turbines, rotors etc.)FRDSegmentSplitFuel OilFRDSegmentSplitNon-road vehiclesFRDSegmentSplitFixed wing aircraft | E117: =IFERROR(LEN(B117)-LEN(SUBSTITUTE(B117,".","") ),"BAD VALUE") -> 4 | F117: + (add segment) | H117: Fixed wing aircraft | I117: =IF(VLOOKUP(A117,TierIndicators,3,FALSE)="Yes", "Mandatory", "Optional") -> Optional | J117: =M117 -> 0 | K117: qty | L117: Manual | N117: qty | O117: NA | Q117: Fuel Oil
A118: T2 | B118: =C118 & "." & COUNTIF($C$1:OFFSET(C118,-1,0),C118) +1 -> T2.1.6.1.6 | C118: T2.1.6.1 | D118: Internal Combustion Engines (where combusting fuel is used to drive pistons, turbines, rotors etc.)FRDSegmentSplitFuel OilFRDSegmentSplitNon-road vehiclesFRDSegmentSplitOther non-road vehicles | E118: =IFERROR(LEN(B118)-LEN(SUBSTITUTE(B118,".","") ),"BAD VALUE") -> 4 | F118: + (add segment) | H118: Other non-road vehicles | I118: =IF(VLOOKUP(A118,TierIndicators,3,FALSE)="Yes", "Mandatory", "Optional") -> Optional | J118: =M118 -> 0 | K118: qty | L118: Manual | N118: qty | O118: NA | Q118: Fuel Oil
A119: T2 | B119: T2.2 | C119: T2 | D119: Hybrid (a vehicle which uses multiple primary fuel sources) | E119: 1 | H119: Hybrid (a vehicle which uses multiple primary fuel sources) | I119: Optional | J119: 0 | K119: qty | L119: Segment Aggregation | M119: =SUMIF(C:C,B119,J:J) -> 0 | N119: qty | O119: NA | Q119: Hybrid (a vehicle which uses multiple primary fuel sources)
A120: T2 | B120: T2.2.1 | C120: T2.2 | D120: Hybrid (a vehicle which uses multiple primary fuel sources)FRDSegmentSplitPlug-in Hybrid Electric Vehicle (PHEV) | E120: =IFERROR(LEN(B120)-LEN(SUBSTITUTE(B120,".","") ),"BAD VALUE") -> 2 | H120: Plug-in Hybrid Electric Vehicle (PHEV) | I120: Optional | J120: 0 | K120: qty | L120: Segment Aggregation | M120: =SUMIF(C:C,B120,J:J) -> 0 | N120: qty | O120: NA | Q120: Plug-in Hybrid Electric Vehicle (PHEV)
A121: T2 | B121: T2.2.1.1 | C121: T2.2.1 | D121: Hybrid (a vehicle which uses multiple primary fuel sources)FRDSegmentSplitPlug-in Hybrid Electric Vehicle (PHEV)FRDSegmentSplitRoad vehicles | E121: =IFERROR(LEN(B121)-LEN(SUBSTITUTE(B121,".","") ),"BAD VALUE") -> 3 | H121: Road vehicles | I121: =IF(VLOOKUP(A121,TierIndicators,3,FALSE)="Yes", "Mandatory", "Optional") -> Optional | J121: =M121 -> 0 | K121: qty | L121: Segment Aggregation | M121: =SUMIF(C:C,B121,J:J) -> 0 | N121: qty | O121: NA | Q121: Plug-in Hybrid Electric Vehicle (PHEV)
A122: T2 | B122: T2.2.1.1.1 | C122: T2.2.1.1 | D122: Hybrid (a vehicle which uses multiple primary fuel sources)FRDSegmentSplitPlug-in Hybrid Electric Vehicle (PHEV)FRDSegmentSplitRoad vehiclesFRDSegmentSplitTwo-wheeled and three-wheeled vehicles | E122: =IFERROR(LEN(B122)-LEN(SUBSTITUTE(B122,".","") ),"BAD VALUE") -> 4 | F122: + (add segment) | H122: Two-wheeled and three-wheeled vehicles | I122: =IF(VLOOKUP(A122,TierIndicators,3,FALSE)="Yes", "Mandatory", "Optional") -> Optional | J122: =M122 -> 0 | K122: qty | L122: Manual | N122: qty | O122: NA | Q122: Plug-in Hybrid Electric Vehicle (PHEV)
A123: T2 | B123: T2.2.1.1.2 | C123: T2.2.1.1 | D123: Hybrid (a vehicle which uses multiple primary fuel sources)FRDSegmentSplitPlug-in Hybrid Electric Vehicle (PHEV)FRDSegmentSplitRoad vehiclesFRDSegmentSplitPassenger vehicles | E123: =IFERROR(LEN(B123)-LEN(SUBSTITUTE(B123,".","") ),"BAD VALUE") -> 4 | F123: + (add segment) | H123: Passenger vehicles | I123: =IF(VLOOKUP(A123,TierIndicators,3,FALSE)="Yes", "Mandatory", "Optional") -> Optional | J123: =M123 -> 0 | K123: qty | L123: Manual | N123: qty | O123: NA | Q123: Plug-in Hybrid Electric Vehicle (PHEV)
A124: T2 | B124: T2.2.1.1.3 | C124: T2.2.1.1 | D124: Hybrid (a vehicle which uses multiple primary fuel sources)FRDSegmentSplitPlug-in Hybrid Electric Vehicle (PHEV)FRDSegmentSplitRoad vehiclesFRDSegmentSplitBuses | E124: =IFERROR(LEN(B124)-LEN(SUBSTITUTE(B124,".","") ),"BAD VALUE") -> 4 | F124: + (add segment) | H124: Buses | I124: =IF(VLOOKUP(A124,TierIndicators,3,FALSE)="Yes", "Mandatory", "Optional") -> Optional | J124: =M124 -> 0 | K124: qty | L124: Manual | N124: qty | O124: NA | Q124: Plug-in Hybrid Electric Vehicle (PHEV)
A125: T2 | B125: T2.2.1.1.4 | C125: T2.2.1.1 | D125: =IF(E125=1,H125,IFERROR(VLOOKUP(C125,$B$14:$D$1048576,3,FALSE)&"FRDSegmentSplit"&H125,H125)) -> Hybrid (a vehicle which uses multiple primary fuel sources)FRDSegmentSplitPlug-in Hybrid Electric Vehicle (PHEV)FRDSegmentSplitRoad vehiclesFRDSegmentSplitGoods vehicles | E125: =IFERROR(LEN(B125)-LEN(SUBSTITUTE(B125,".","") ),"BAD VALUE") -> 4 | F125: + (add segment) | H125: Goods vehicles | I125: =IF(VLOOKUP(A125,TierIndicators,3,FALSE)="Yes", "Mandatory", "Optional") -> Optional | J125: =M125 -> 0 | K125: qty | L125: Manual | N125: qty | O125: NA | Q125: Plug-in Hybrid Electric Vehicle (PHEV)
A126: T2 | B126: T2.2.1.2 | C126: T2.2.1 | D126: Hybrid (a vehicle which uses multiple primary fuel sources)FRDSegmentSplitPlug-in Hybrid Electric Vehicle (PHEV)FRDSegmentSplitNon-road vehicles | E126: =IFERROR(LEN(B126)-LEN(SUBSTITUTE(B126,".","") ),"BAD VALUE") -> 3 | H126: Non-road vehicles | I126: =IF(VLOOKUP(A126,TierIndicators,3,FALSE)="Yes", "Mandatory", "Optional") -> Optional | J126: =M126 -> 0 | K126: qty | L126: Segment Aggregation | M126: =SUMIF(C:C,B126,J:J) -> 0 | N126: qty | O126: NA | Q126: Plug-in Hybrid Electric Vehicle (PHEV)
A127: T2 | B127: T2.2.1.2.1 | C127: T2.2.1.2 | D127: Hybrid (a vehicle which uses multiple primary fuel sources)FRDSegmentSplitPlug-in Hybrid Electric Vehicle (PHEV)FRDSegmentSplitNon-road vehiclesFRDSegmentSplitHeavy rail locomotives | E127: =IFERROR(LEN(B127)-LEN(SUBSTITUTE(B127,".","") ),"BAD VALUE") -> 4 | F127: + (add segment) | H127: Heavy rail locomotives | I127: =IF(VLOOKUP(A127,TierIndicators,3,FALSE)="Yes", "Mandatory", "Optional") -> Optional | J127: =M127 -> 0 | K127: qty | L127: Manual | N127: qty | O127: NA | Q127: Plug-in Hybrid Electric Vehicle (PHEV)
A128: T2 | B128: T2.2.1.2.2 | C128: T2.2.1.2 | D128: Hybrid (a vehicle which uses multiple primary fuel sources)FRDSegmentSplitPlug-in Hybrid Electric Vehicle (PHEV)FRDSegmentSplitNon-road vehiclesFRDSegmentSplitLight rail vehicles | E128: =IFERROR(LEN(B128)-LEN(SUBSTITUTE(B128,".","") ),"BAD VALUE") -> 4 | F128: + (add segment) | H128: Light rail vehicles | I128: =IF(VLOOKUP(A128,TierIndicators,3,FALSE)="Yes", "Mandatory", "Optional") -> Optional | J128: =M128 -> 0 | K128: qty | L128: Manual | N128: qty | O128: NA | Q128: Plug-in Hybrid Electric Vehicle (PHEV)
A129: T2 | B129: T2.2.1.2.3 | C129: T2.2.1.2 | D129: Hybrid (a vehicle which uses multiple primary fuel sources)FRDSegmentSplitPlug-in Hybrid Electric Vehicle (PHEV)FRDSegmentSplitNon-road vehiclesFRDSegmentSplitMarine vessels | E129: =IFERROR(LEN(B129)-LEN(SUBSTITUTE(B129,".","") ),"BAD VALUE") -> 4 | F129: + (add segment) | H129: Marine vessels | I129: =IF(VLOOKUP(A129,TierIndicators,3,FALSE)="Yes", "Mandatory", "Optional") -> Optional | J129: =M129 -> 0 | K129: qty | L129: Manual | N129: qty | O129: NA | Q129: Plug-in Hybrid Electric Vehicle (PHEV)
A130: T2 | B130: T2.2.1.2.4 | C130: T2.2.1.2 | D130: Hybrid (a vehicle which uses multiple primary fuel sources)FRDSegmentSplitPlug-in Hybrid Electric Vehicle (PHEV)FRDSegmentSplitNon-road vehiclesFRDSegmentSplitRotary wing aircraft | E130: =IFERROR(LEN(B130)-LEN(SUBSTITUTE(B130,".","") ),"BAD VALUE") -> 4 | F130: + (add segment) | H130: Rotary wing aircraft | I130: =IF(VLOOKUP(A130,TierIndicators,3,FALSE)="Yes", "Mandatory", "Optional") -> Optional | J130: =M130 -> 0 | K130: qty | L130: Manual | N130: qty | O130: NA | Q130: Plug-in Hybrid Electric Vehicle (PHEV)
A131: T2 | B131: T2.2.1.2.5 | C131: T2.2.1.2 | D131: Hybrid (a vehicle which uses multiple primary fuel sources)FRDSegmentSplitPlug-in Hybrid Electric Vehicle (PHEV)FRDSegmentSplitNon-road vehiclesFRDSegmentSplitFixed wing aircraft | E131: =IFERROR(LEN(B131)-LEN(SUBSTITUTE(B131,".","") ),"BAD VALUE") -> 4 | F131: + (add segment) | H131: Fixed wing aircraft | I131: =IF(VLOOKUP(A131,TierIndicators,3,FALSE)="Yes", "Mandatory", "Optional") -> Optional | J131: =M131 -> 0 | K131: qty | L131: Manual | N131: qty | O131: NA | Q131: Plug-in Hybrid Electric Vehicle (PHEV)
A132: T2 | B132: T2.2.1.2.6 | C132: T2.2.1.2 | D132: Hybrid (a vehicle which uses multiple primary fuel sources)FRDSegmentSplitPlug-in Hybrid Electric Vehicle (PHEV)FRDSegmentSplitNon-road vehiclesFRDSegmentSplitOther non-road vehicles | E132: =IFERROR(LEN(B132)-LEN(SUBSTITUTE(B132,".","") ),"BAD VALUE") -> 4 | F132: + (add segment) | H132: Other non-road vehicles | I132: =IF(VLOOKUP(A132,TierIndicators,3,FALSE)="Yes", "Mandatory", "Optional") -> Optional | J132: =M132 -> 0 | K132: qty | L132: Manual | N132: qty | O132: NA | Q132: Plug-in Hybrid Electric Vehicle (PHEV)
A133: T2 | B133: T2.2.2 | C133: T2.2 | D133: Hybrid (a vehicle which uses multiple primary fuel sources)FRDSegmentSplitRange-extended electric vehicle | E133: 2 | H133: Range-extended electric vehicle | I133: Optional | J133: 0 | K133: qty | L133: Segment Aggregation | M133: =SUMIF(C:C,B133,J:J) -> 0 | N133: qty | O133: NA | Q133: Range-extended electric vehicle
A134: T2 | B134: T2.2.2.1 | C134: T2.2.2 | D134: Hybrid (a vehicle which uses multiple primary fuel sources)FRDSegmentSplitRange-extended electric vehicleFRDSegmentSplitRoad vehicles | E134: =IFERROR(LEN(B134)-LEN(SUBSTITUTE(B134,".","") ),"BAD VALUE") -> 3 | H134: Road vehicles | I134: =IF(VLOOKUP(A134,TierIndicators,3,FALSE)="Yes", "Mandatory", "Optional") -> Optional | J134: =M134 -> 0 | K134: qty | L134: Segment Aggregation | M134: =SUMIF(C:C,B134,J:J) -> 0 | N134: qty | O134: NA | Q134: Range-extended electric vehicle
A135: T2 | B135: T2.2.2.1.1 | C135: T2.2.2.1 | D135: Hybrid (a vehicle which uses multiple primary fuel sources)FRDSegmentSplitRange-extended electric vehicleFRDSegmentSplitRoad vehiclesFRDSegmentSplitTwo-wheeled and three-wheeled vehicles | E135: =IFERROR(LEN(B135)-LEN(SUBSTITUTE(B135,".","") ),"BAD VALUE") -> 4 | F135: + (add segment) | H135: Two-wheeled and three-wheeled vehicles | I135: =IF(VLOOKUP(A135,TierIndicators,3,FALSE)="Yes", "Mandatory", "Optional") -> Optional | J135: =M135 -> 0 | K135: qty | L135: Manual | N135: qty | O135: NA | Q135: Range-extended electric vehicle
A136: T2 | B136: T2.2.2.1.2 | C136: T2.2.2.1 | D136: Hybrid (a vehicle which uses multiple primary fuel sources)FRDSegmentSplitRange-extended electric vehicleFRDSegmentSplitRoad vehiclesFRDSegmentSplitPassenger vehicles | E136: =IFERROR(LEN(B136)-LEN(SUBSTITUTE(B136,".","") ),"BAD VALUE") -> 4 | F136: + (add segment) | H136: Passenger vehicles | I136: =IF(VLOOKUP(A136,TierIndicators,3,FALSE)="Yes", "Mandatory", "Optional") -> Optional | J136: =M136 -> 0 | K136: qty | L136: Manual | N136: qty | O136: NA | Q136: Range-extended electric vehicle
A137: T2 | B137: T2.2.2.1.3 | C137: T2.2.2.1 | D137: Hybrid (a vehicle which uses multiple primary fuel sources)FRDSegmentSplitRange-extended electric vehicleFRDSegmentSplitRoad vehiclesFRDSegmentSplitBuses | E137: =IFERROR(LEN(B137)-LEN(SUBSTITUTE(B137,".","") ),"BAD VALUE") -> 4 | F137: + (add segment) | H137: Buses | I137: =IF(VLOOKUP(A137,TierIndicators,3,FALSE)="Yes", "Mandatory", "Optional") -> Optional | J137: =M137 -> 0 | K137: qty | L137: Manual | N137: qty | O137: NA | Q137: Range-extended electric vehicle
A138: T2 | B138: T2.2.2.1.4 | C138: T2.2.2.1 | D138: Hybrid (a vehicle which uses multiple primary fuel sources)FRDSegmentSplitRange-extended electric vehicleFRDSegmentSplitRoad vehiclesFRDSegmentSplitGoods vehicles | E138: =IFERROR(LEN(B138)-LEN(SUBSTITUTE(B138,".","") ),"BAD VALUE") -> 4 | F138: + (add segment) | H138: Goods vehicles | I138: =IF(VLOOKUP(A138,TierIndicators,3,FALSE)="Yes", "Mandatory", "Optional") -> Optional | J138: =M138 -> 0 | K138: qty | L138: Manual | N138: qty | O138: NA | Q138: Range-extended electric vehicle
A139: T2 | B139: T2.2.2.2 | C139: T2.2.2 | D139: Hybrid (a vehicle which uses multiple primary fuel sources)FRDSegmentSplitRange-extended electric vehicleFRDSegmentSplitNon-road vehicles | E139: =IFERROR(LEN(B139)-LEN(SUBSTITUTE(B139,".","") ),"BAD VALUE") -> 3 | H139: Non-road vehicles | I139: =IF(VLOOKUP(A139,TierIndicators,3,FALSE)="Yes", "Mandatory", "Optional") -> Optional | J139: =M139 -> 0 | K139: qty | L139: Segment Aggregation | M139: =SUMIF(C:C,B139,J:J) -> 0 | N139: qty | O139: NA | Q139: Range-extended electric vehicle
A140: T2 | B140: T2.2.2.2.1 | C140: T2.2.2.2 | D140: Hybrid (a vehicle which uses multiple primary fuel sources)FRDSegmentSplitRange-extended electric vehicleFRDSegmentSplitNon-road vehiclesFRDSegmentSplitHeavy rail locomotives | E140: =IFERROR(LEN(B140)-LEN(SUBSTITUTE(B140,".","") ),"BAD VALUE") -> 4 | F140: + (add segment) | H140: Heavy rail locomotives | I140: =IF(VLOOKUP(A140,TierIndicators,3,FALSE)="Yes", "Mandatory", "Optional") -> Optional | J140: =M140 -> 0 | K140: qty | L140: Manual | N140: qty | O140: NA | Q140: Range-extended electric vehicle
A141: T2 | B141: T2.2.2.2.2 | C141: T2.2.2.2 | D141: Hybrid (a vehicle which uses multiple primary fuel sources)FRDSegmentSplitRange-extended electric vehicleFRDSegmentSplitNon-road vehiclesFRDSegmentSplitLight rail vehicles | E141: =IFERROR(LEN(B141)-LEN(SUBSTITUTE(B141,".","") ),"BAD VALUE") -> 4 | F141: + (add segment) | H141: Light rail vehicles | I141: =IF(VLOOKUP(A141,TierIndicators,3,FALSE)="Yes", "Mandatory", "Optional") -> Optional | J141: =M141 -> 0 | K141: qty | L141: Manual | N141: qty | O141: NA | Q141: Range-extended electric vehicle
A142: T2 | B142: T2.2.2.2.3 | C142: T2.2.2.2 | D142: Hybrid (a vehicle which uses multiple primary fuel sources)FRDSegmentSplitRange-extended electric vehicleFRDSegmentSplitNon-road vehiclesFRDSegmentSplitMarine vessels | E142: =IFERROR(LEN(B142)-LEN(SUBSTITUTE(B142,".","") ),"BAD VALUE") -> 4 | F142: + (add segment) | H142: Marine vessels | I142: =IF(VLOOKUP(A142,TierIndicators,3,FALSE)="Yes", "Mandatory", "Optional") -> Optional | J142: =M142 -> 0 | K142: qty | L142: Manual | N142: qty | O142: NA | Q142: Range-extended electric vehicle
A143: T2 | B143: T2.2.2.2.4 | C143: T2.2.2.2 | D143: Hybrid (a vehicle which uses multiple primary fuel sources)FRDSegmentSplitRange-extended electric vehicleFRDSegmentSplitNon-road vehiclesFRDSegmentSplitRotary wing aircraft | E143: =IFERROR(LEN(B143)-LEN(SUBSTITUTE(B143,".","") ),"BAD VALUE") -> 4 | F143: + (add segment) | H143: Rotary wing aircraft | I143: =IF(VLOOKUP(A143,TierIndicators,3,FALSE)="Yes", "Mandatory", "Optional") -> Optional | J143: =M143 -> 0 | K143: qty | L143: Manual | N143: qty | O143: NA | Q143: Range-extended electric vehicle
A144: T2 | B144: T2.2.2.2.5 | C144: T2.2.2.2 | D144: Hybrid (a vehicle which uses multiple primary fuel sources)FRDSegmentSplitRange-extended electric vehicleFRDSegmentSplitNon-road vehiclesFRDSegmentSplitFixed wing aircraft | E144: =IFERROR(LEN(B144)-LEN(SUBSTITUTE(B144,".","") ),"BAD VALUE") -> 4 | F144: + (add segment) | H144: Fixed wing aircraft | I144: =IF(VLOOKUP(A144,TierIndicators,3,FALSE)="Yes", "Mandatory", "Optional") -> Optional | J144: =M144 -> 0 | K144: qty | L144: Manual | N144: qty | O144: NA | Q144: Range-extended electric vehicle
A145: T2 | B145: T2.2.2.2.6 | C145: T2.2.2.2 | D145: Hybrid (a vehicle which uses multiple primary fuel sources)FRDSegmentSplitRange-extended electric vehicleFRDSegmentSplitNon-road vehiclesFRDSegmentSplitOther non-road vehicles | E145: =IFERROR(LEN(B145)-LEN(SUBSTITUTE(B145,".","") ),"BAD VALUE") -> 4 | F145: + (add segment) | H145: Other non-road vehicles | I145: =IF(VLOOKUP(A145,TierIndicators,3,FALSE)="Yes", "Mandatory", "Optional") -> Optional | J145: =M145 -> 0 | K145: qty | L145: Manual | N145: qty | O145: NA | Q145: Range-extended electric vehicle
A146: T2 | B146: T2.3 | C146: T2 | D146: Electric propulsion | E146: 1 | H146: Electric propulsion | I146: Optional | J146: 0 | K146: qty | L146: Segment Aggregation | M146: =SUMIF(C:C,B146,J:J) -> 0 | N146: qty | O146: NA | Q146: Electric propulsion
A147: T2 | B147: T2.3.1 | C147: T2.3 | D147: Electric propulsionFRDSegmentSplitBattery Electric Vehicle (BEV) | E147: 2 | H147: Battery Electric Vehicle (BEV) | I147: Optional | J147: 0 | K147: qty | L147: Segment Aggregation | M147: =SUMIF(C:C,B147,J:J) -> 0 | N147: qty | O147: NA | Q147: Battery Electric Vehicle (BEV)
A148: T2 | B148: T2.3.1.1 | C148: T2.3.1 | D148: Electric propulsionFRDSegmentSplitBattery Electric Vehicle (BEV)FRDSegmentSplitRoad vehicles | E148: =IFERROR(LEN(B148)-LEN(SUBSTITUTE(B148,".","") ),"BAD VALUE") -> 3 | H148: Road vehicles | I148: =IF(VLOOKUP(A148,TierIndicators,3,FALSE)="Yes", "Mandatory", "Optional") -> Optional | J148: =M148 -> 0 | K148: qty | L148: Segment Aggregation | M148: =SUMIF(C:C,B148,J:J) -> 0 | N148: qty | O148: NA | Q148: Battery Electric Vehicle (BEV)
A149: T2 | B149: T2.3.1.1.1 | C149: T2.3.1.1 | D149: Electric propulsionFRDSegmentSplitBattery Electric Vehicle (BEV)FRDSegmentSplitRoad vehiclesFRDSegmentSplitTwo-wheeled and three-wheeled vehicles | E149: =IFERROR(LEN(B149)-LEN(SUBSTITUTE(B149,".","") ),"BAD VALUE") -> 4 | F149: + (add segment) | H149: Two-wheeled and three-wheeled vehicles | I149: =IF(VLOOKUP(A149,TierIndicators,3,FALSE)="Yes", "Mandatory", "Optional") -> Optional | J149: =M149 -> 0 | K149: qty | L149: Manual | N149: qty | O149: NA | Q149: Battery Electric Vehicle (BEV)
A150: T2 | B150: T2.3.1.1.2 | C150: T2.3.1.1 | D150: Electric propulsionFRDSegmentSplitBattery Electric Vehicle (BEV)FRDSegmentSplitRoad vehiclesFRDSegmentSplitPassenger vehicles | E150: =IFERROR(LEN(B150)-LEN(SUBSTITUTE(B150,".","") ),"BAD VALUE") -> 4 | F150: + (add segment) | H150: Passenger vehicles | I150: =IF(VLOOKUP(A150,TierIndicators,3,FALSE)="Yes", "Mandatory", "Optional") -> Optional | J150: =M150 -> 0 | K150: qty | L150: Manual | N150: qty | O150: NA | Q150: Battery Electric Vehicle (BEV)
A151: T2 | B151: T2.3.1.1.3 | C151: T2.3.1.1 | D151: Electric propulsionFRDSegmentSplitBattery Electric Vehicle (BEV)FRDSegmentSplitRoad vehiclesFRDSegmentSplitBuses | E151: =IFERROR(LEN(B151)-LEN(SUBSTITUTE(B151,".","") ),"BAD VALUE") -> 4 | F151: + (add segment) | H151: Buses | I151: =IF(VLOOKUP(A151,TierIndicators,3,FALSE)="Yes", "Mandatory", "Optional") -> Optional | J151: =M151 -> 0 | K151: qty | L151: Manual | N151: qty | O151: NA | Q151: Battery Electric Vehicle (BEV)
A152: T2 | B152: T2.3.1.1.4 | C152: T2.3.1.1 | D152: Electric propulsionFRDSegmentSplitBattery Electric Vehicle (BEV)FRDSegmentSplitRoad vehiclesFRDSegmentSplitGoods vehicles | E152: =IFERROR(LEN(B152)-LEN(SUBSTITUTE(B152,".","") ),"BAD VALUE") -> 4 | F152: + (add segment) | H152: Goods vehicles | I152: =IF(VLOOKUP(A152,TierIndicators,3,FALSE)="Yes", "Mandatory", "Optional") -> Optional | J152: =M152 -> 0 | K152: qty | L152: Manual | N152: qty | O152: NA | Q152: Battery Electric Vehicle (BEV)
A153: T2 | B153: T2.3.1.2 | C153: T2.3.1 | D153: Electric propulsionFRDSegmentSplitBattery Electric Vehicle (BEV)FRDSegmentSplitNon-road vehicles | E153: =IFERROR(LEN(B153)-LEN(SUBSTITUTE(B153,".","") ),"BAD VALUE") -> 3 | H153: Non-road vehicles | I153: =IF(VLOOKUP(A153,TierIndicators,3,FALSE)="Yes", "Mandatory", "Optional") -> Optional | J153: =M153 -> 0 | K153: qty | L153: Segment Aggregation | M153: =SUMIF(C:C,B153,J:J) -> 0 | N153: qty | O153: NA | Q153: Battery Electric Vehicle (BEV)
A154: T2 | B154: T2.3.1.2.1 | C154: T2.3.1.2 | D154: Electric propulsionFRDSegmentSplitBattery Electric Vehicle (BEV)FRDSegmentSplitNon-road vehiclesFRDSegmentSplitHeavy rail locomotives | E154: =IFERROR(LEN(B154)-LEN(SUBSTITUTE(B154,".","") ),"BAD VALUE") -> 4 | F154: + (add segment) | H154: Heavy rail locomotives | I154: =IF(VLOOKUP(A154,TierIndicators,3,FALSE)="Yes", "Mandatory", "Optional") -> Optional | J154: =M154 -> 0 | K154: qty | L154: Manual | N154: qty | O154: NA | Q154: Battery Electric Vehicle (BEV)
A155: T2 | B155: T2.3.1.2.2 | C155: T2.3.1.2 | D155: Electric propulsionFRDSegmentSplitBattery Electric Vehicle (BEV)FRDSegmentSplitNon-road vehiclesFRDSegmentSplitLight rail vehicles | E155: =IFERROR(LEN(B155)-LEN(SUBSTITUTE(B155,".","") ),"BAD VALUE") -> 4 | F155: + (add segment) | H155: Light rail vehicles | I155: =IF(VLOOKUP(A155,TierIndicators,3,FALSE)="Yes", "Mandatory", "Optional") -> Optional | J155: =M155 -> 0 | K155: qty | L155: Manual | N155: qty | O155: NA | Q155: Battery Electric Vehicle (BEV)
A156: T2 | B156: T2.3.1.2.3 | C156: T2.3.1.2 | D156: Electric propulsionFRDSegmentSplitBattery Electric Vehicle (BEV)FRDSegmentSplitNon-road vehiclesFRDSegmentSplitMarine vessels | E156: =IFERROR(LEN(B156)-LEN(SUBSTITUTE(B156,".","") ),"BAD VALUE") -> 4 | F156: + (add segment) | H156: Marine vessels | I156: =IF(VLOOKUP(A156,TierIndicators,3,FALSE)="Yes", "Mandatory", "Optional") -> Optional | J156: =M156 -> 0 | K156: qty | L156: Manual | N156: qty | O156: NA | Q156: Battery Electric Vehicle (BEV)
A157: T2 | B157: T2.3.1.2.4 | C157: T2.3.1.2 | D157: =IF(E157=1,H157,IFERROR(VLOOKUP(C157,$B$14:$D$1048576,3,FALSE)&"FRDSegmentSplit"&H157,H157)) -> Electric propulsionFRDSegmentSplitBattery Electric Vehicle (BEV)FRDSegmentSplitNon-road vehiclesFRDSegmentSplitRotary wing aircraft | E157: =IFERROR(LEN(B157)-LEN(SUBSTITUTE(B157,".","") ),"BAD VALUE") -> 4 | F157: + (add segment) | H157: Rotary wing aircraft | I157: =IF(VLOOKUP(A157,TierIndicators,3,FALSE)="Yes", "Mandatory", "Optional") -> Optional | J157: =M157 -> 0 | K157: qty | L157: Manual | N157: qty | O157: NA | Q157: Battery Electric Vehicle (BEV)
A158: T2 | B158: T2.3.1.2.5 | C158: T2.3.1.2 | D158: Electric propulsionFRDSegmentSplitBattery Electric Vehicle (BEV)FRDSegmentSplitNon-road vehiclesFRDSegmentSplitFixed wing aircraft | E158: =IFERROR(LEN(B158)-LEN(SUBSTITUTE(B158,".","") ),"BAD VALUE") -> 4 | F158: + (add segment) | H158: Fixed wing aircraft | I158: =IF(VLOOKUP(A158,TierIndicators,3,FALSE)="Yes", "Mandatory", "Optional") -> Optional | J158: =M158 -> 0 | K158: qty | L158: Manual | N158: qty | O158: NA | Q158: Battery Electric Vehicle (BEV)
A159: T2 | B159: T2.3.1.2.6 | C159: T2.3.1.2 | D159: Electric propulsionFRDSegmentSplitBattery Electric Vehicle (BEV)FRDSegmentSplitNon-road vehiclesFRDSegmentSplitOther non-road vehicles | E159: =IFERROR(LEN(B159)-LEN(SUBSTITUTE(B159,".","") ),"BAD VALUE") -> 4 | F159: + (add segment) | H159: Other non-road vehicles | I159: =IF(VLOOKUP(A159,TierIndicators,3,FALSE)="Yes", "Mandatory", "Optional") -> Optional | J159: =M159 -> 0 | K159: qty | L159: Manual | N159: qty | O159: NA | Q159: Battery Electric Vehicle (BEV)
A160: T2 | B160: T2.3.2 | C160: T2.3 | D160: Electric propulsionFRDSegmentSplitFuel Cell Electric Vehicle (FCEV) | E160: =IFERROR(LEN(B160)-LEN(SUBSTITUTE(B160,".","") ),"BAD VALUE") -> 2 | H160: Fuel Cell Electric Vehicle (FCEV) | I160: Optional | J160: 0 | K160: qty | L160: Segment Aggregation | M160: =SUMIF(C:C,B160,J:J) -> 0 | N160: qty | O160: NA | Q160: Fuel Cell Electric Vehicle (FCEV)
A161: T2 | B161: T2.3.2.1 | C161: T2.3.2 | D161: Electric propulsionFRDSegmentSplitFuel Cell Electric Vehicle (FCEV)FRDSegmentSplitRoad vehicles | E161: =IFERROR(LEN(B161)-LEN(SUBSTITUTE(B161,".","") ),"BAD VALUE") -> 3 | H161: Road vehicles | I161: =IF(VLOOKUP(A161,TierIndicators,3,FALSE)="Yes", "Mandatory", "Optional") -> Optional | J161: =M161 -> 0 | K161: qty | L161: Segment Aggregation | M161: =SUMIF(C:C,B161,J:J) -> 0 | N161: qty | O161: NA | Q161: Fuel Cell Electric Vehicle (FCEV)
A162: T2 | B162: T2.3.2.1.1 | C162: T2.3.2.1 | D162: Electric propulsionFRDSegmentSplitFuel Cell Electric Vehicle (FCEV)FRDSegmentSplitRoad vehiclesFRDSegmentSplitTwo-wheeled and three-wheeled vehicles | E162: =IFERROR(LEN(B162)-LEN(SUBSTITUTE(B162,".","") ),"BAD VALUE") -> 4 | F162: + (add segment) | H162: Two-wheeled and three-wheeled vehicles | I162: =IF(VLOOKUP(A162,TierIndicators,3,FALSE)="Yes", "Mandatory", "Optional") -> Optional | J162: =M162 -> 0 | K162: qty | L162: Manual | N162: qty | O162: NA | Q162: Fuel Cell Electric Vehicle (FCEV)
A163: T2 | B163: T2.3.2.1.2 | C163: T2.3.2.1 | D163: Electric propulsionFRDSegmentSplitFuel Cell Electric Vehicle (FCEV)FRDSegmentSplitRoad vehiclesFRDSegmentSplitPassenger vehicles | E163: =IFERROR(LEN(B163)-LEN(SUBSTITUTE(B163,".","") ),"BAD VALUE") -> 4 | F163: + (add segment) | H163: Passenger vehicles | I163: =IF(VLOOKUP(A163,TierIndicators,3,FALSE)="Yes", "Mandatory", "Optional") -> Optional | J163: =M163 -> 0 | K163: qty | L163: Manual | N163: qty | O163: NA | Q163: Fuel Cell Electric Vehicle (FCEV)
A164: T2 | B164: T2.3.2.1.3 | C164: T2.3.2.1 | D164: Electric propulsionFRDSegmentSplitFuel Cell Electric Vehicle (FCEV)FRDSegmentSplitRoad vehiclesFRDSegmentSplitBuses | E164: =IFERROR(LEN(B164)-LEN(SUBSTITUTE(B164,".","") ),"BAD VALUE") -> 4 | F164: + (add segment) | H164: Buses | I164: =IF(VLOOKUP(A164,TierIndicators,3,FALSE)="Yes", "Mandatory", "Optional") -> Optional | J164: =M164 -> 0 | K164: qty | L164: Manual | N164: qty | O164: NA | Q164: Fuel Cell Electric Vehicle (FCEV)
A165: T2 | B165: T2.3.2.1.4 | C165: T2.3.2.1 | D165: Electric propulsionFRDSegmentSplitFuel Cell Electric Vehicle (FCEV)FRDSegmentSplitRoad vehiclesFRDSegmentSplitGoods vehicles | E165: =IFERROR(LEN(B165)-LEN(SUBSTITUTE(B165,".","") ),"BAD VALUE") -> 4 | F165: + (add segment) | H165: Goods vehicles | I165: =IF(VLOOKUP(A165,TierIndicators,3,FALSE)="Yes", "Mandatory", "Optional") -> Optional | J165: =M165 -> 0 | K165: qty | L165: Manual | N165: qty | O165: NA | Q165: Fuel Cell Electric Vehicle (FCEV)
A166: T2 | B166: T2.3.2.2 | C166: T2.3.2 | D166: Electric propulsionFRDSegmentSplitFuel Cell Electric Vehicle (FCEV)FRDSegmentSplitNon-road vehicles | E166: =IFERROR(LEN(B166)-LEN(SUBSTITUTE(B166,".","") ),"BAD VALUE") -> 3 | H166: Non-road vehicles | I166: =IF(VLOOKUP(A166,TierIndicators,3,FALSE)="Yes", "Mandatory", "Optional") -> Optional | J166: =M166 -> 0 | K166: qty | L166: Segment Aggregation | M166: =SUMIF(C:C,B166,J:J) -> 0 | N166: qty | O166: NA | Q166: Fuel Cell Electric Vehicle (FCEV)
A167: T2 | B167: T2.3.2.2.1 | C167: T2.3.2.2 | D167: Electric propulsionFRDSegmentSplitFuel Cell Electric Vehicle (FCEV)FRDSegmentSplitNon-road vehiclesFRDSegmentSplitHeavy rail locomotives | E167: =IFERROR(LEN(B167)-LEN(SUBSTITUTE(B167,".","") ),"BAD VALUE") -> 4 | F167: + (add segment) | H167: Heavy rail locomotives | I167: =IF(VLOOKUP(A167,TierIndicators,3,FALSE)="Yes", "Mandatory", "Optional") -> Optional | J167: =M167 -> 0 | K167: qty | L167: Manual | N167: qty | O167: NA | Q167: Fuel Cell Electric Vehicle (FCEV)
A168: T2 | B168: T2.3.2.2.2 | C168: T2.3.2.2 | D168: Electric propulsionFRDSegmentSplitFuel Cell Electric Vehicle (FCEV)FRDSegmentSplitNon-road vehiclesFRDSegmentSplitLight rail vehicles | E168: =IFERROR(LEN(B168)-LEN(SUBSTITUTE(B168,".","") ),"BAD VALUE") -> 4 | F168: + (add segment) | H168: Light rail vehicles | I168: =IF(VLOOKUP(A168,TierIndicators,3,FALSE)="Yes", "Mandatory", "Optional") -> Optional | J168: =M168 -> 0 | K168: qty | L168: Manual | N168: qty | O168: NA | Q168: Fuel Cell Electric Vehicle (FCEV)
A169: T2 | B169: T2.3.2.2.3 | C169: T2.3.2.2 | D169: Electric propulsionFRDSegmentSplitFuel Cell Electric Vehicle (FCEV)FRDSegmentSplitNon-road vehiclesFRDSegmentSplitMarine vessels | E169: =IFERROR(LEN(B169)-LEN(SUBSTITUTE(B169,".","") ),"BAD VALUE") -> 4 | F169: + (add segment) | H169: Marine vessels | I169: =IF(VLOOKUP(A169,TierIndicators,3,FALSE)="Yes", "Mandatory", "Optional") -> Optional | J169: =M169 -> 0 | K169: qty | L169: Manual | N169: qty | O169: NA | Q169: Fuel Cell Electric Vehicle (FCEV)
A170: T2 | B170: T2.3.2.2.4 | C170: T2.3.2.2 | D170: Electric propulsionFRDSegmentSplitFuel Cell Electric Vehicle (FCEV)FRDSegmentSplitNon-road vehiclesFRDSegmentSplitRotary wing aircraft | E170: =IFERROR(LEN(B170)-LEN(SUBSTITUTE(B170,".","") ),"BAD VALUE") -> 4 | F170: + (add segment) | H170: Rotary wing aircraft | I170: =IF(VLOOKUP(A170,TierIndicators,3,FALSE)="Yes", "Mandatory", "Optional") -> Optional | J170: =M170 -> 0 | K170: qty | L170: Manual | N170: qty | O170: NA | Q170: Fuel Cell Electric Vehicle (FCEV)
A171: T2 | B171: T2.3.2.2.5 | C171: T2.3.2.2 | D171: Electric propulsionFRDSegmentSplitFuel Cell Electric Vehicle (FCEV)FRDSegmentSplitNon-road vehiclesFRDSegmentSplitFixed wing aircraft | E171: =IFERROR(LEN(B171)-LEN(SUBSTITUTE(B171,".","") ),"BAD VALUE") -> 4 | F171: + (add segment) | H171: Fixed wing aircraft | I171: =IF(VLOOKUP(A171,TierIndicators,3,FALSE)="Yes", "Mandatory", "Optional") -> Optional | J171: =M171 -> 0 | K171: qty | L171: Manual | N171: qty | O171: NA | Q171: Fuel Cell Electric Vehicle (FCEV)
A172: T2 | B172: T2.3.2.2.6 | C172: T2.3.2.2 | D172: Electric propulsionFRDSegmentSplitFuel Cell Electric Vehicle (FCEV)FRDSegmentSplitNon-road vehiclesFRDSegmentSplitOther non-road vehicles | E172: =IFERROR(LEN(B172)-LEN(SUBSTITUTE(B172,".","") ),"BAD VALUE") -> 4 | F172: + (add segment) | H172: Other non-road vehicles | I172: =IF(VLOOKUP(A172,TierIndicators,3,FALSE)="Yes", "Mandatory", "Optional") -> Optional | J172: =M172 -> 0 | K172: qty | L172: Manual | N172: qty | O172: NA | Q172: Fuel Cell Electric Vehicle (FCEV)
A173: T2 | B173: T2.3.3 | C173: T2.3 | D173: Electric propulsionFRDSegmentSplitExternally Powered (such as rail locomotives and trams) | E173: 2 | H173: Externally Powered (such as rail locomotives and trams) | I173: Optional | J173: 0 | K173: qty | L173: Segment Aggregation | M173: =SUMIF(C:C,B173,J:J) -> 0 | N173: qty | O173: NA | Q173: Externally Powered (such as rail locomotives and trams)
A174: T2 | B174: T2.3.3.1 | C174: T2.3.3 | D174: Electric propulsionFRDSegmentSplitExternally Powered (such as rail locomotives and trams)FRDSegmentSplitNon-road vehicles | E174: =IFERROR(LEN(B174)-LEN(SUBSTITUTE(B174,".","") ),"BAD VALUE") -> 3 | H174: Non-road vehicles | I174: =IF(VLOOKUP(A174,TierIndicators,3,FALSE)="Yes", "Mandatory", "Optional") -> Optional | J174: =M174 -> 0 | K174: qty | L174: Segment Aggregation | M174: =SUMIF(C:C,B174,J:J) -> 0 | N174: qty | O174: NA | Q174: Externally Powered (such as rail locomotives and trams)
A175: T2 | B175: T2.3.3.1.1 | C175: T2.3.3.1 | D175: Electric propulsionFRDSegmentSplitExternally Powered (such as rail locomotives and trams)FRDSegmentSplitNon-road vehiclesFRDSegmentSplitHeavy rail locomotives | E175: =IFERROR(LEN(B175)-LEN(SUBSTITUTE(B175,".","") ),"BAD VALUE") -> 4 | F175: + (add segment) | H175: Heavy rail locomotives | I175: =IF(VLOOKUP(A175,TierIndicators,3,FALSE)="Yes", "Mandatory", "Optional") -> Optional | J175: =M175 -> 0 | K175: qty | L175: Manual | N175: qty | O175: NA | Q175: Externally Powered (such as rail locomotives and trams)
A176: T2 | B176: T2.3.3.1.2 | C176: T2.3.3.1 | D176: Electric propulsionFRDSegmentSplitExternally Powered (such as rail locomotives and trams)FRDSegmentSplitNon-road vehiclesFRDSegmentSplitLight rail vehicles | E176: =IFERROR(LEN(B176)-LEN(SUBSTITUTE(B176,".","") ),"BAD VALUE") -> 4 | F176: + (add segment) | H176: Light rail vehicles | I176: =IF(VLOOKUP(A176,TierIndicators,3,FALSE)="Yes", "Mandatory", "Optional") -> Optional | J176: =M176 -> 0 | K176: qty | L176: Manual | N176: qty | O176: NA | Q176: Externally Powered (such as rail locomotives and trams)
B179: T3 | C179: Greenhouse gas emissions from vehicle fleet segmented by fuel type and vehicle category (tonnes CO2-e)
B180: ID | C180: Parent ID | D180: FRDSegment | E180: Segment Level | H180: Description | I180: Flag | J180: Final Value | K180: Final Unit | L180: Input Type | M180: Input Value | N180: Input Unit | O180: CHECK
A181: T3 | B181: T3 | C181: NA | D181: =IF(E181=1,H181,IFERROR(VLOOKUP(C181,$B$14:$D$1048576,3,FALSE)&"FRDSegmentSplit"&H181,H181)) -> GRAND TOTAL | E181: =IFERROR(LEN(B181)-LEN(SUBSTITUTE(B181,".","") ),"BAD VALUE") -> 0 | H181: GRAND TOTAL | I181: =IF(VLOOKUP(A181,TierIndicators,3,FALSE)="Yes", "Mandatory", "Optional") -> Optional | J181: =IF(N181="NA",_xlfn.VALUETOTEXT(M181),M181*IF(OR(N181="L", N181="kL"),VLOOKUP("F2-"&Q181,Admin!BN:BT,5,FALSE)*IF(N181="kL",1000,1)*OFFSET(Admin!$AR$3,MATCH("MJ",convSources,0),MATCH(K181,convTargets,0)),IF(N181="Kg",VLOOKUP("F2-"&Q181,Admin!BN:BT,6,FALSE)*OFFSET(Admin!$AR$3,MATCH("MJ",convSources,0),MATCH(K181,convTargets,0)),IF(N181="m3",VLOOKUP("F2-"&Q181,Admin!BN:BT,7,FALSE)*OFFSET(Admin!$AR$3,MATCH("Kg",convSources,0),MATCH(K181,convTargets,0)),OFFSET(Admin!$AR$3,MATCH(N181,convSources,0),MATCH(K181,convTargets,0)))))) -> 0 | K181: Tonnes CO2-e | L181: Segment Aggregation | M181: =SUMIF(C:C,B181,J:J)-J217 -> 0 | N181: Tonnes CO2-e | O181: =IF(OR(L181="Segment Aggregation",L181="Auto-Calc"),"NA",IF(AND(I181="Mandatory",OR(M181="",N181="")), "FAIL", IF(I181="Optional","NA","PASS"))) -> NA | Q181: GRAND TOTAL | S181: =SUM(S182:S222) -> 0 | T181: =SUM(T182:T222) -> 0 | U181: =SUM(U182:U222) -> 0
A182: T3 | B182: T3.1 | C182: T3 | D182: Petrol | E182: =IFERROR(LEN(B182)-LEN(SUBSTITUTE(B182,".","") ),"BAD VALUE") -> 1 | H182: Petrol | I182: Optional | J182: =IF(N182="NA",_xlfn.VALUETOTEXT(M182),M182*IF(OR(N182="L", N182="kL"),VLOOKUP("F2-"&Q182,Admin!BN:BT,5,FALSE)*IF(N182="kL",1000,1)*OFFSET(Admin!$AR$3,MATCH("MJ",convSources,0),MATCH(K182,convTargets,0)),IF(N182="Kg",VLOOKUP("F2-"&Q182,Admin!BN:BT,6,FALSE)*OFFSET(Admin!$AR$3,MATCH("MJ",convSources,0),MATCH(K182,convTargets,0)),IF(N182="m3",VLOOKUP("F2-"&Q182,Admin!BN:BT,7,FALSE)*OFFSET(Admin!$AR$3,MATCH("Kg",convSources,0),MATCH(K182,convTargets,0)),OFFSET(Admin!$AR$3,MATCH(N182,convSources,0),MATCH(K182,convTargets,0)))))) -> 0 | K182: Tonnes CO2-e | L182: Segment Aggregation | M182: =SUMIF(C:C,B182,J:J) -> 0 | N182: Tonnes CO2-e | O182: NA | Q182: Petrol
A183: T3 | B183: T3.1.1 | C183: T3.1 | D183: PetrolFRDSegmentSplitPetrol (Unleaded/Premium) | E183: =IFERROR(LEN(B183)-LEN(SUBSTITUTE(B183,".","") ),"BAD VALUE") -> 2 | H183: Petrol (Unleaded/Premium) | I183: =IF(VLOOKUP(A183,TierIndicators,3,FALSE)="Yes", "Mandatory", "Optional") -> Optional | J183: =IF(N183="NA",_xlfn.VALUETOTEXT(M183),M183*IF(OR(N183="L", N183="kL"),VLOOKUP("F2-"&Q183,Admin!BN:BT,5,FALSE)*IF(N183="kL",1000,1)*OFFSET(Admin!$AR$3,MATCH("MJ",convSources,0),MATCH(K183,convTargets,0)),IF(N183="Kg",VLOOKUP("F2-"&Q183,Admin!BN:BT,6,FALSE)*OFFSET(Admin!$AR$3,MATCH("MJ",convSources,0),MATCH(K183,convTargets,0)),IF(N183="m3",VLOOKUP("F2-"&Q183,Admin!BN:BT,7,FALSE)*OFFSET(Admin!$AR$3,MATCH("Kg",convSources,0),MATCH(K183,convTargets,0)),OFFSET(Admin!$AR$3,MATCH(N183,convSources,0),MATCH(K183,convTargets,0)))))) -> 0 | K183: Tonnes CO2-e | L183: Segment Aggregation | M183: =SUMIF(C:C,B183,J:J) -> 0 | N183: Tonnes CO2-e | O183: NA | Q183: Petrol (Unleaded/Premium)
A184: T3 | B184: T3.1.1.1 | C184: T3.1.1 | D184: PetrolFRDSegmentSplitPetrol (Unleaded/Premium)FRDSegmentSplitRoad vehicles | E184: =IFERROR(LEN(B184)-LEN(SUBSTITUTE(B184,".","") ),"BAD VALUE") -> 3 | H184: Road vehicles | I184: =IF(VLOOKUP(A184,TierIndicators,3,FALSE)="Yes", "Mandatory", "Optional") -> Optional | J184: =IF(N184="NA",_xlfn.VALUETOTEXT(M184),M184*IF(OR(N184="L", N184="kL"),VLOOKUP("F2-"&Q184,Admin!BN:BT,5,FALSE)*IF(N184="kL",1000,1)*OFFSET(Admin!$AR$3,MATCH("MJ",convSources,0),MATCH(K184,convTargets,0)),IF(N184="Kg",VLOOKUP("F2-"&Q184,Admin!BN:BT,6,FALSE)*OFFSET(Admin!$AR$3,MATCH("MJ",convSources,0),MATCH(K184,convTargets,0)),IF(N184="m3",VLOOKUP("F2-"&Q184,Admin!BN:BT,7,FALSE)*OFFSET(Admin!$AR$3,MATCH("Kg",convSources,0),MATCH(K184,convTargets,0)),OFFSET(Admin!$AR$3,MATCH(N184,convSources,0),MATCH(K184,convTargets,0)))))) -> 0 | K184: Tonnes CO2-e | L184: Auto-Calc | M184: =J18 * OFFSET(Admin!$AR$3,MATCH(K18,convSources,0),MATCH("GJ",convTargets,0)) * IFERROR(VLOOKUP(A184 & "-" & Q184,Admin!BN:BQ,4,FALSE),0) -> 0 | N184: Tonnes CO2-e | O184: NA | Q184: Petrol (Unleaded/Premium) | S184: =J18 * OFFSET(Admin!$AR$3,MATCH(K18,convSources,0),MATCH("GJ",convTargets,0)) * IFERROR(VLOOKUP(A184 & "-" & Q184,Admin!BN:CC,14,FALSE),0) -> 0 | T184: =J18 * OFFSET(Admin!$AR$3,MATCH(K18,convSources,0),MATCH("GJ",convTargets,0)) * IFERROR(VLOOKUP(A184 & "-" & Q184,Admin!BN:CC,15,FALSE),0) -> 0 | U184: =J18 * OFFSET(Admin!$AR$3,MATCH(K18,convSources,0),MATCH("GJ",convTargets,0)) * IFERROR(VLOOKUP(A184 & "-" & Q184,Admin!BN:CC,16,FALSE),0) -> 0
A185: T3 | B185: T3.1.1.2 | C185: T3.1.1 | D185: PetrolFRDSegmentSplitPetrol (Unleaded/Premium)FRDSegmentSplitNon-road vehicles | E185: 3 | H185: Non-road vehicles | I185: Optional | J185: =IF(N185="NA",_xlfn.VALUETOTEXT(M185),M185*IF(OR(N185="L", N185="kL"),VLOOKUP("F2-"&Q185,Admin!BN:BT,5,FALSE)*IF(N185="kL",1000,1)*OFFSET(Admin!$AR$3,MATCH("MJ",convSources,0),MATCH(K185,convTargets,0)),IF(N185="Kg",VLOOKUP("F2-"&Q185,Admin!BN:BT,6,FALSE)*OFFSET(Admin!$AR$3,MATCH("MJ",convSources,0),MATCH(K185,convTargets,0)),IF(N185="m3",VLOOKUP("F2-"&Q185,Admin!BN:BT,7,FALSE)*OFFSET(Admin!$AR$3,MATCH("Kg",convSources,0),MATCH(K185,convTargets,0)),OFFSET(Admin!$AR$3,MATCH(N185,convSources,0),MATCH(K185,convTargets,0)))))) -> 0 | K185: Tonnes CO2-e | L185: Auto-Calc | M185: =J19 * OFFSET(Admin!$AR$3,MATCH(K19,convSources,0),MATCH("GJ",convTargets,0)) * IFERROR(VLOOKUP(A185 & "-" & Q185,Admin!BN:BQ,4,FALSE),0) -> 0 | N185: Tonnes CO2-e | O185: NA | Q185: Petrol (Unleaded/Premium) | S185: =J19 * OFFSET(Admin!$AR$3,MATCH(K19,convSources,0),MATCH("GJ",convTargets,0)) * IFERROR(VLOOKUP(A185 & "-" & Q185,Admin!BN:CC,14,FALSE),0) -> 0 | T185: =J19 * OFFSET(Admin!$AR$3,MATCH(K19,convSources,0),MATCH("GJ",convTargets,0)) * IFERROR(VLOOKUP(A185 & "-" & Q185,Admin!BN:CC,15,FALSE),0) -> 0 | U185: =J19 * OFFSET(Admin!$AR$3,MATCH(K19,convSources,0),MATCH("GJ",convTargets,0)) * IFERROR(VLOOKUP(A185 & "-" & Q185,Admin!BN:CC,16,FALSE),0) -> 0
A186: T3 | B186: T3.1.2 | C186: T3.1 | D186: PetrolFRDSegmentSplitPetrol (E10) | E186: =IFERROR(LEN(B186)-LEN(SUBSTITUTE(B186,".","") ),"BAD VALUE") -> 2 | H186: Petrol (E10) | I186: =IF(VLOOKUP(A186,TierIndicators,3,FALSE)="Yes", "Mandatory", "Optional") -> Optional | J186: =IF(N186="NA",_xlfn.VALUETOTEXT(M186),M186*IF(OR(N186="L", N186="kL"),VLOOKUP("F2-"&Q186,Admin!BN:BT,5,FALSE)*IF(N186="kL",1000,1)*OFFSET(Admin!$AR$3,MATCH("MJ",convSources,0),MATCH(K186,convTargets,0)),IF(N186="Kg",VLOOKUP("F2-"&Q186,Admin!BN:BT,6,FALSE)*OFFSET(Admin!$AR$3,MATCH("MJ",convSources,0),MATCH(K186,convTargets,0)),IF(N186="m3",VLOOKUP("F2-"&Q186,Admin!BN:BT,7,FALSE)*OFFSET(Admin!$AR$3,MATCH("Kg",convSources,0),MATCH(K186,convTargets,0)),OFFSET(Admin!$AR$3,MATCH(N186,convSources,0),MATCH(K186,convTargets,0)))))) -> 0 | K186: Tonnes CO2-e | L186: Segment Aggregation | M186: =SUMIF(C:C,B186,J:J) -> 0 | N186: Tonnes CO2-e | O186: NA | Q186: Petrol (E10)
A187: T3 | B187: T3.1.2.1 | C187: T3.1.2 | D187: PetrolFRDSegmentSplitPetrol (E10)FRDSegmentSplitRoad vehicles | E187: =IFERROR(LEN(B187)-LEN(SUBSTITUTE(B187,".","") ),"BAD VALUE") -> 3 | H187: Road vehicles | I187: Optional | J187: =IF(N187="NA",_xlfn.VALUETOTEXT(M187),M187*IF(OR(N187="L", N187="kL"),VLOOKUP("F2-"&Q187,Admin!BN:BT,5,FALSE)*IF(N187="kL",1000,1)*OFFSET(Admin!$AR$3,MATCH("MJ",convSources,0),MATCH(K187,convTargets,0)),IF(N187="Kg",VLOOKUP("F2-"&Q187,Admin!BN:BT,6,FALSE)*OFFSET(Admin!$AR$3,MATCH("MJ",convSources,0),MATCH(K187,convTargets,0)),IF(N187="m3",VLOOKUP("F2-"&Q187,Admin!BN:BT,7,FALSE)*OFFSET(Admin!$AR$3,MATCH("Kg",convSources,0),MATCH(K187,convTargets,0)),OFFSET(Admin!$AR$3,MATCH(N187,convSources,0),MATCH(K187,convTargets,0)))))) -> 0 | K187: Tonnes CO2-e | L187: Auto-Calc | M187: =J21 * OFFSET(Admin!$AR$3,MATCH(K21,convSources,0),MATCH("GJ",convTargets,0)) * IFERROR(VLOOKUP(A187 & "-" & Q187,Admin!BN:BQ,4,FALSE),0) -> 0 | N187: Tonnes CO2-e | O187: NA | Q187: Petrol (E10) | S187: =J21 * OFFSET(Admin!$AR$3,MATCH(K21,convSources,0),MATCH("GJ",convTargets,0)) * IFERROR(VLOOKUP(A187 & "-" & Q187,Admin!BN:CC,14,FALSE),0) -> 0 | T187: =J21 * OFFSET(Admin!$AR$3,MATCH(K21,convSources,0),MATCH("GJ",convTargets,0)) * IFERROR(VLOOKUP(A187 & "-" & Q187,Admin!BN:CC,15,FALSE),0) -> 0 | U187: =J21 * OFFSET(Admin!$AR$3,MATCH(K21,convSources,0),MATCH("GJ",convTargets,0)) * IFERROR(VLOOKUP(A187 & "-" & Q187,Admin!BN:CC,16,FALSE),0) -> 0
A188: T3 | B188: T3.1.2.2 | C188: T3.1.2 | D188: PetrolFRDSegmentSplitPetrol (E10)FRDSegmentSplitNon-road vehicles | E188: =IFERROR(LEN(B188)-LEN(SUBSTITUTE(B188,".","") ),"BAD VALUE") -> 3 | H188: Non-road vehicles | I188: Optional | J188: =IF(N188="NA",_xlfn.VALUETOTEXT(M188),M188*IF(OR(N188="L", N188="kL"),VLOOKUP("F2-"&Q188,Admin!BN:BT,5,FALSE)*IF(N188="kL",1000,1)*OFFSET(Admin!$AR$3,MATCH("MJ",convSources,0),MATCH(K188,convTargets,0)),IF(N188="Kg",VLOOKUP("F2-"&Q188,Admin!BN:BT,6,FALSE)*OFFSET(Admin!$AR$3,MATCH("MJ",convSources,0),MATCH(K188,convTargets,0)),IF(N188="m3",VLOOKUP("F2-"&Q188,Admin!BN:BT,7,FALSE)*OFFSET(Admin!$AR$3,MATCH("Kg",convSources,0),MATCH(K188,convTargets,0)),OFFSET(Admin!$AR$3,MATCH(N188,convSources,0),MATCH(K188,convTargets,0)))))) -> 0 | K188: Tonnes CO2-e | L188: Auto-Calc | M188: =J22 * OFFSET(Admin!$AR$3,MATCH(K22,convSources,0),MATCH("GJ",convTargets,0)) * IFERROR(VLOOKUP(A188 & "-" & Q188,Admin!BN:BQ,4,FALSE),0) -> 0 | N188: Tonnes CO2-e | O188: NA | Q188: Petrol (E10) | S188: =J22 * OFFSET(Admin!$AR$3,MATCH(K22,convSources,0),MATCH("GJ",convTargets,0)) * IFERROR(VLOOKUP(A188 & "-" & Q188,Admin!BN:CC,14,FALSE),0) -> 0 | T188: =J22 * OFFSET(Admin!$AR$3,MATCH(K22,convSources,0),MATCH("GJ",convTargets,0)) * IFERROR(VLOOKUP(A188 & "-" & Q188,Admin!BN:CC,15,FALSE),0) -> 0 | U188: =J22 * OFFSET(Admin!$AR$3,MATCH(K22,convSources,0),MATCH("GJ",convTargets,0)) * IFERROR(VLOOKUP(A188 & "-" & Q188,Admin!BN:CC,16,FALSE),0) -> 0
A189: T3 | B189: T3.2 | C189: T3 | D189: Diesel | E189: =IFERROR(LEN(B189)-LEN(SUBSTITUTE(B189,".","") ),"BAD VALUE") -> 1 | H189: Diesel | I189: Optional | J189: =IF(N189="NA",_xlfn.VALUETOTEXT(M189),M189*IF(OR(N189="L", N189="kL"),VLOOKUP("F2-"&Q189,Admin!BN:BT,5,FALSE)*IF(N189="kL",1000,1)*OFFSET(Admin!$AR$3,MATCH("MJ",convSources,0),MATCH(K189,convTargets,0)),IF(N189="Kg",VLOOKUP("F2-"&Q189,Admin!BN:BT,6,FALSE)*OFFSET(Admin!$AR$3,MATCH("MJ",convSources,0),MATCH(K189,convTargets,0)),IF(N189="m3",VLOOKUP("F2-"&Q189,Admin!BN:BT,7,FALSE)*OFFSET(Admin!$AR$3,MATCH("Kg",convSources,0),MATCH(K189,convTargets,0)),OFFSET(Admin!$AR$3,MATCH(N189,convSources,0),MATCH(K189,convTargets,0)))))) -> 0 | K189: Tonnes CO2-e | L189: Segment Aggregation | M189: =SUMIF(C:C,B189,J:J) -> 0 | N189: Tonnes CO2-e | O189: NA | Q189: Diesel
A190: T3 | B190: T3.2.1 | C190: T3.2 | D190: DieselFRDSegmentSplitRoad vehicles | E190: 2 | H190: Road vehicles | I190: Optional | J190: =IF(N190="NA",_xlfn.VALUETOTEXT(M190),M190*IF(OR(N190="L", N190="kL"),VLOOKUP("F2-"&Q190,Admin!BN:BT,5,FALSE)*IF(N190="kL",1000,1)*OFFSET(Admin!$AR$3,MATCH("MJ",convSources,0),MATCH(K190,convTargets,0)),IF(N190="Kg",VLOOKUP("F2-"&Q190,Admin!BN:BT,6,FALSE)*OFFSET(Admin!$AR$3,MATCH("MJ",convSources,0),MATCH(K190,convTargets,0)),IF(N190="m3",VLOOKUP("F2-"&Q190,Admin!BN:BT,7,FALSE)*OFFSET(Admin!$AR$3,MATCH("Kg",convSources,0),MATCH(K190,convTargets,0)),OFFSET(Admin!$AR$3,MATCH(N190,convSources,0),MATCH(K190,convTargets,0)))))) -> 0 | K190: Tonnes CO2-e | L190: Auto-Calc | M190: =J24 * OFFSET(Admin!$AR$3,MATCH(K24,convSources,0),MATCH("GJ",convTargets,0)) * IFERROR(VLOOKUP(A190 & "-" & Q190,Admin!BN:BQ,4,FALSE),0) -> 0 | N190: Tonnes CO2-e | O190: NA | Q190: Diesel | S190: =J24 * OFFSET(Admin!$AR$3,MATCH(K24,convSources,0),MATCH("GJ",convTargets,0)) * IFERROR(VLOOKUP(A190 & "-" & Q190,Admin!BN:CC,14,FALSE),0) -> 0 | T190: =J24 * OFFSET(Admin!$AR$3,MATCH(K24,convSources,0),MATCH("GJ",convTargets,0)) * IFERROR(VLOOKUP(A190 & "-" & Q190,Admin!BN:CC,15,FALSE),0) -> 0 | U190: =J24 * OFFSET(Admin!$AR$3,MATCH(K24,convSources,0),MATCH("GJ",convTargets,0)) * IFERROR(VLOOKUP(A190 & "-" & Q190,Admin!BN:CC,16,FALSE),0) -> 0
A191: T3 | B191: T3.2.2 | C191: T3.2 | D191: DieselFRDSegmentSplitNon-road vehicles | E191: 2 | H191: Non-road vehicles | I191: Optional | J191: =IF(N191="NA",_xlfn.VALUETOTEXT(M191),M191*IF(OR(N191="L", N191="kL"),VLOOKUP("F2-"&Q191,Admin!BN:BT,5,FALSE)*IF(N191="kL",1000,1)*OFFSET(Admin!$AR$3,MATCH("MJ",convSources,0),MATCH(K191,convTargets,0)),IF(N191="Kg",VLOOKUP("F2-"&Q191,Admin!BN:BT,6,FALSE)*OFFSET(Admin!$AR$3,MATCH("MJ",convSources,0),MATCH(K191,convTargets,0)),IF(N191="m3",VLOOKUP("F2-"&Q191,Admin!BN:BT,7,FALSE)*OFFSET(Admin!$AR$3,MATCH("Kg",convSources,0),MATCH(K191,convTargets,0)),OFFSET(Admin!$AR$3,MATCH(N191,convSources,0),MATCH(K191,convTargets,0)))))) -> 0 | K191: Tonnes CO2-e | L191: Auto-Calc | M191: =J25 * OFFSET(Admin!$AR$3,MATCH(K25,convSources,0),MATCH("GJ",convTargets,0)) * IFERROR(VLOOKUP(A191 & "-" & Q191,Admin!BN:BQ,4,FALSE),0) -> 0 | N191: Tonnes CO2-e | O191: NA | Q191: Diesel | S191: =J25 * OFFSET(Admin!$AR$3,MATCH(K25,convSources,0),MATCH("GJ",convTargets,0)) * IFERROR(VLOOKUP(A191 & "-" & Q191,Admin!BN:CC,14,FALSE),0) -> 0 | T191: =J25 * OFFSET(Admin!$AR$3,MATCH(K25,convSources,0),MATCH("GJ",convTargets,0)) * IFERROR(VLOOKUP(A191 & "-" & Q191,Admin!BN:CC,15,FALSE),0) -> 0 | U191: =J25 * OFFSET(Admin!$AR$3,MATCH(K25,convSources,0),MATCH("GJ",convTargets,0)) * IFERROR(VLOOKUP(A191 & "-" & Q191,Admin!BN:CC,16,FALSE),0) -> 0
A192: T3 | B192: T3.3 | C192: T3 | D192: Biodiesel | E192: =IFERROR(LEN(B192)-LEN(SUBSTITUTE(B192,".","") ),"BAD VALUE") -> 1 | H192: Biodiesel | I192: Optional | J192: =IF(N192="NA",_xlfn.VALUETOTEXT(M192),M192*IF(OR(N192="L", N192="kL"),VLOOKUP("F2-"&Q192,Admin!BN:BT,5,FALSE)*IF(N192="kL",1000,1)*OFFSET(Admin!$AR$3,MATCH("MJ",convSources,0),MATCH(K192,convTargets,0)),IF(N192="Kg",VLOOKUP("F2-"&Q192,Admin!BN:BT,6,FALSE)*OFFSET(Admin!$AR$3,MATCH("MJ",convSources,0),MATCH(K192,convTargets,0)),IF(N192="m3",VLOOKUP("F2-"&Q192,Admin!BN:BT,7,FALSE)*OFFSET(Admin!$AR$3,MATCH("Kg",convSources,0),MATCH(K192,convTargets,0)),OFFSET(Admin!$AR$3,MATCH(N192,convSources,0),MATCH(K192,convTargets,0)))))) -> 0 | K192: Tonnes CO2-e | L192: Segment Aggregation | M192: =SUMIF(C:C,B192,J:J) -> 0 | N192: Tonnes CO2-e | O192: NA | Q192: Biodiesel
A193: T3 | B193: T3.3.1 | C193: T3.3 | D193: BiodieselFRDSegmentSplitRoad vehicles | E193: 2 | F193: + (add segment) | H193: Road vehicles | I193: Optional | J193: =IF(N193="NA",_xlfn.VALUETOTEXT(M193),M193*IF(OR(N193="L", N193="kL"),VLOOKUP("F2-"&Q193,Admin!BN:BT,5,FALSE)*IF(N193="kL",1000,1)*OFFSET(Admin!$AR$3,MATCH("MJ",convSources,0),MATCH(K193,convTargets,0)),IF(N193="Kg",VLOOKUP("F2-"&Q193,Admin!BN:BT,6,FALSE)*OFFSET(Admin!$AR$3,MATCH("MJ",convSources,0),MATCH(K193,convTargets,0)),IF(N193="m3",VLOOKUP("F2-"&Q193,Admin!BN:BT,7,FALSE)*OFFSET(Admin!$AR$3,MATCH("Kg",convSources,0),MATCH(K193,convTargets,0)),OFFSET(Admin!$AR$3,MATCH(N193,convSources,0),MATCH(K193,convTargets,0)))))) -> 0 | K193: Tonnes CO2-e | L193: Manual | N193: Tonnes CO2-e | O193: NA | Q193: Biodiesel
A194: T3 | B194: T3.3.2 | C194: T3.3 | D194: BiodieselFRDSegmentSplitNon-road vehicles | E194: 2 | F194: + (add segment) | H194: Non-road vehicles | I194: Optional | J194: =IF(N194="NA",_xlfn.VALUETOTEXT(M194),M194*IF(OR(N194="L", N194="kL"),VLOOKUP("F2-"&Q194,Admin!BN:BT,5,FALSE)*IF(N194="kL",1000,1)*OFFSET(Admin!$AR$3,MATCH("MJ",convSources,0),MATCH(K194,convTargets,0)),IF(N194="Kg",VLOOKUP("F2-"&Q194,Admin!BN:BT,6,FALSE)*OFFSET(Admin!$AR$3,MATCH("MJ",convSources,0),MATCH(K194,convTargets,0)),IF(N194="m3",VLOOKUP("F2-"&Q194,Admin!BN:BT,7,FALSE)*OFFSET(Admin!$AR$3,MATCH("Kg",convSources,0),MATCH(K194,convTargets,0)),OFFSET(Admin!$AR$3,MATCH(N194,convSources,0),MATCH(K194,convTargets,0)))))) -> 0 | K194: Tonnes CO2-e | L194: Manual | N194: Tonnes CO2-e | O194: NA | Q194: Biodiesel
A195: T3 | B195: T3.4 | C195: T3 | D195: LPG | E195: =IFERROR(LEN(B195)-LEN(SUBSTITUTE(B195,".","") ),"BAD VALUE") -> 1 | H195: LPG | I195: Optional | J195: =IF(N195="NA",_xlfn.VALUETOTEXT(M195),M195*IF(OR(N195="L", N195="kL"),VLOOKUP("F2-"&Q195,Admin!BN:BT,5,FALSE)*IF(N195="kL",1000,1)*OFFSET(Admin!$AR$3,MATCH("MJ",convSources,0),MATCH(K195,convTargets,0)),IF(N195="Kg",VLOOKUP("F2-"&Q195,Admin!BN:BT,6,FALSE)*OFFSET(Admin!$AR$3,MATCH("MJ",convSources,0),MATCH(K195,convTargets,0)),IF(N195="m3",VLOOKUP("F2-"&Q195,Admin!BN:BT,7,FALSE)*OFFSET(Admin!$AR$3,MATCH("Kg",convSources,0),MATCH(K195,convTargets,0)),OFFSET(Admin!$AR$3,MATCH(N195,convSources,0),MATCH(K195,convTargets,0)))))) -> 0 | K195: Tonnes CO2-e | L195: Segment Aggregation | M195: =SUMIF(C:C,B195,J:J) -> 0 | N195: Tonnes CO2-e | O195: NA | Q195: LPG
A196: T3 | B196: T3.4.1 | C196: T3.4 | D196: LPGFRDSegmentSplitRoad vehicles | E196: 2 | H196: Road vehicles | I196: Optional | J196: =IF(N196="NA",_xlfn.VALUETOTEXT(M196),M196*IF(OR(N196="L", N196="kL"),VLOOKUP("F2-"&Q196,Admin!BN:BT,5,FALSE)*IF(N196="kL",1000,1)*OFFSET(Admin!$AR$3,MATCH("MJ",convSources,0),MATCH(K196,convTargets,0)),IF(N196="Kg",VLOOKUP("F2-"&Q196,Admin!BN:BT,6,FALSE)*OFFSET(Admin!$AR$3,MATCH("MJ",convSources,0),MATCH(K196,convTargets,0)),IF(N196="m3",VLOOKUP("F2-"&Q196,Admin!BN:BT,7,FALSE)*OFFSET(Admin!$AR$3,MATCH("Kg",convSources,0),MATCH(K196,convTargets,0)),OFFSET(Admin!$AR$3,MATCH(N196,convSources,0),MATCH(K196,convTargets,0)))))) -> 0 | K196: Tonnes CO2-e | L196: Auto-Calc | M196: =J30 * OFFSET(Admin!$AR$3,MATCH(K30,convSources,0),MATCH("GJ",convTargets,0)) * IFERROR(VLOOKUP(A196 & "-" & Q196,Admin!BN:BQ,4,FALSE),0) -> 0 | N196: Tonnes CO2-e | O196: NA | Q196: LPG | S196: =J30 * OFFSET(Admin!$AR$3,MATCH(K30,convSources,0),MATCH("GJ",convTargets,0)) * IFERROR(VLOOKUP(A196 & "-" & Q196,Admin!BN:CC,14,FALSE),0) -> 0 | T196: =J30 * OFFSET(Admin!$AR$3,MATCH(K30,convSources,0),MATCH("GJ",convTargets,0)) * IFERROR(VLOOKUP(A196 & "-" & Q196,Admin!BN:CC,15,FALSE),0) -> 0 | U196: =J30 * OFFSET(Admin!$AR$3,MATCH(K30,convSources,0),MATCH("GJ",convTargets,0)) * IFERROR(VLOOKUP(A196 & "-" & Q196,Admin!BN:CC,16,FALSE),0) -> 0
A197: T3 | B197: T3.4.2 | C197: T3.4 | D197: LPGFRDSegmentSplitNon-road vehicles | E197: 2 | H197: Non-road vehicles | I197: Optional | J197: =IF(N197="NA",_xlfn.VALUETOTEXT(M197),M197*IF(OR(N197="L", N197="kL"),VLOOKUP("F2-"&Q197,Admin!BN:BT,5,FALSE)*IF(N197="kL",1000,1)*OFFSET(Admin!$AR$3,MATCH("MJ",convSources,0),MATCH(K197,convTargets,0)),IF(N197="Kg",VLOOKUP("F2-"&Q197,Admin!BN:BT,6,FALSE)*OFFSET(Admin!$AR$3,MATCH("MJ",convSources,0),MATCH(K197,convTargets,0)),IF(N197="m3",VLOOKUP("F2-"&Q197,Admin!BN:BT,7,FALSE)*OFFSET(Admin!$AR$3,MATCH("Kg",convSources,0),MATCH(K197,convTargets,0)),OFFSET(Admin!$AR$3,MATCH(N197,convSources,0),MATCH(K197,convTargets,0)))))) -> 0 | K197: Tonnes CO2-e | L197: Auto-Calc | M197: =J31 * OFFSET(Admin!$AR$3,MATCH(K31,convSources,0),MATCH("GJ",convTargets,0)) * IFERROR(VLOOKUP(A197 & "-" & Q197,Admin!BN:BQ,4,FALSE),0) -> 0 | N197: Tonnes CO2-e | O197: NA | Q197: LPG | S197: =J31 * OFFSET(Admin!$AR$3,MATCH(K31,convSources,0),MATCH("GJ",convTargets,0)) * IFERROR(VLOOKUP(A197 & "-" & Q197,Admin!BN:CC,14,FALSE),0) -> 0 | T197: =J31 * OFFSET(Admin!$AR$3,MATCH(K31,convSources,0),MATCH("GJ",convTargets,0)) * IFERROR(VLOOKUP(A197 & "-" & Q197,Admin!BN:CC,15,FALSE),0) -> 0 | U197: =J31 * OFFSET(Admin!$AR$3,MATCH(K31,convSources,0),MATCH("GJ",convTargets,0)) * IFERROR(VLOOKUP(A197 & "-" & Q197,Admin!BN:CC,16,FALSE),0) -> 0
A198: T3 | B198: T3.5 | C198: T3 | D198: Aviation Fuels | E198: =IFERROR(LEN(B198)-LEN(SUBSTITUTE(B198,".","") ),"BAD VALUE") -> 1 | H198: Aviation Fuels | I198: Optional | J198: =IF(N198="NA",_xlfn.VALUETOTEXT(M198),M198*IF(OR(N198="L", N198="kL"),VLOOKUP("F2-"&Q198,Admin!BN:BT,5,FALSE)*IF(N198="kL",1000,1)*OFFSET(Admin!$AR$3,MATCH("MJ",convSources,0),MATCH(K198,convTargets,0)),IF(N198="Kg",VLOOKUP("F2-"&Q198,Admin!BN:BT,6,FALSE)*OFFSET(Admin!$AR$3,MATCH("MJ",convSources,0),MATCH(K198,convTargets,0)),IF(N198="m3",VLOOKUP("F2-"&Q198,Admin!BN:BT,7,FALSE)*OFFSET(Admin!$AR$3,MATCH("Kg",convSources,0),MATCH(K198,convTargets,0)),OFFSET(Admin!$AR$3,MATCH(N198,convSources,0),MATCH(K198,convTargets,0)))))) -> 0 | K198: Tonnes CO2-e | L198: Segment Aggregation | M198: =SUMIF(C:C,B198,J:J) -> 0 | N198: Tonnes CO2-e | O198: NA | Q198: Aviation Fuels
A199: T3 | B199: T3.5.1 | C199: T3.5 | D199: Aviation FuelsFRDSegmentSplitAvgas | E199: 2 | H199: Avgas | I199: Optional | J199: =IF(N199="NA",_xlfn.VALUETOTEXT(M199),M199*IF(OR(N199="L", N199="kL"),VLOOKUP("F2-"&Q199,Admin!BN:BT,5,FALSE)*IF(N199="kL",1000,1)*OFFSET(Admin!$AR$3,MATCH("MJ",convSources,0),MATCH(K199,convTargets,0)),IF(N199="Kg",VLOOKUP("F2-"&Q199,Admin!BN:BT,6,FALSE)*OFFSET(Admin!$AR$3,MATCH("MJ",convSources,0),MATCH(K199,convTargets,0)),IF(N199="m3",VLOOKUP("F2-"&Q199,Admin!BN:BT,7,FALSE)*OFFSET(Admin!$AR$3,MATCH("Kg",convSources,0),MATCH(K199,convTargets,0)),OFFSET(Admin!$AR$3,MATCH(N199,convSources,0),MATCH(K199,convTargets,0)))))) -> 0 | K199: Tonnes CO2-e | L199: Segment Aggregation | M199: =SUMIF(C:C,B199,J:J) -> 0 | N199: Tonnes CO2-e | O199: NA | Q199: Avgas
A200: T3 | B200: T3.5.1.1 | C200: T3.5.1 | D200: Aviation FuelsFRDSegmentSplitAvgasFRDSegmentSplitNon-road vehicles | E200: 3 | H200: Non-road vehicles | I200: Optional | J200: =IF(N200="NA",_xlfn.VALUETOTEXT(M200),M200*IF(OR(N200="L", N200="kL"),VLOOKUP("F2-"&Q200,Admin!BN:BT,5,FALSE)*IF(N200="kL",1000,1)*OFFSET(Admin!$AR$3,MATCH("MJ",convSources,0),MATCH(K200,convTargets,0)),IF(N200="Kg",VLOOKUP("F2-"&Q200,Admin!BN:BT,6,FALSE)*OFFSET(Admin!$AR$3,MATCH("MJ",convSources,0),MATCH(K200,convTargets,0)),IF(N200="m3",VLOOKUP("F2-"&Q200,Admin!BN:BT,7,FALSE)*OFFSET(Admin!$AR$3,MATCH("Kg",convSources,0),MATCH(K200,convTargets,0)),OFFSET(Admin!$AR$3,MATCH(N200,convSources,0),MATCH(K200,convTargets,0)))))) -> 0 | K200: Tonnes CO2-e | L200: Auto-Calc | M200: =J34 * OFFSET(Admin!$AR$3,MATCH(K34,convSources,0),MATCH("GJ",convTargets,0)) * IFERROR(VLOOKUP(A200 & "-" & Q200,Admin!BN:BQ,4,FALSE),0) -> 0 | N200: Tonnes CO2-e | O200: NA | Q200: Avgas | S200: =J34 * OFFSET(Admin!$AR$3,MATCH(K34,convSources,0),MATCH("GJ",convTargets,0)) * IFERROR(VLOOKUP(A200 & "-" & Q200,Admin!BN:CC,14,FALSE),0) -> 0 | T200: =J34 * OFFSET(Admin!$AR$3,MATCH(K34,convSources,0),MATCH("GJ",convTargets,0)) * IFERROR(VLOOKUP(A200 & "-" & Q200,Admin!BN:CC,15,FALSE),0) -> 0 | U200: =J34 * OFFSET(Admin!$AR$3,MATCH(K34,convSources,0),MATCH("GJ",convTargets,0)) * IFERROR(VLOOKUP(A200 & "-" & Q200,Admin!BN:CC,16,FALSE),0) -> 0
A201: T3 | B201: T3.5.2 | C201: T3.5 | D201: Aviation FuelsFRDSegmentSplitAviation turbine fuel (ATF) | E201: =IFERROR(LEN(B201)-LEN(SUBSTITUTE(B201,".","") ),"BAD VALUE") -> 2 | H201: Aviation turbine fuel (ATF) | I201: Optional | J201: =IF(N201="NA",_xlfn.VALUETOTEXT(M201),M201*IF(OR(N201="L", N201="kL"),VLOOKUP("F2-"&Q201,Admin!BN:BT,5,FALSE)*IF(N201="kL",1000,1)*OFFSET(Admin!$AR$3,MATCH("MJ",convSources,0),MATCH(K201,convTargets,0)),IF(N201="Kg",VLOOKUP("F2-"&Q201,Admin!BN:BT,6,FALSE)*OFFSET(Admin!$AR$3,MATCH("MJ",convSources,0),MATCH(K201,convTargets,0)),IF(N201="m3",VLOOKUP("F2-"&Q201,Admin!BN:BT,7,FALSE)*OFFSET(Admin!$AR$3,MATCH("Kg",convSources,0),MATCH(K201,convTargets,0)),OFFSET(Admin!$AR$3,MATCH(N201,convSources,0),MATCH(K201,convTargets,0)))))) -> 0 | K201: Tonnes CO2-e | L201: Segment Aggregation | M201: =SUMIF(C:C,B201,J:J) -> 0 | N201: Tonnes CO2-e | O201: NA | Q201: Aviation turbine fuel (ATF)
A202: T3 | B202: T3.5.2.1 | C202: T3.5.2 | D202: Aviation FuelsFRDSegmentSplitAviation turbine fuel (ATF)FRDSegmentSplitNon-road vehicles | E202: 3 | H202: Non-road vehicles | I202: Optional | J202: =IF(N202="NA",_xlfn.VALUETOTEXT(M202),M202*IF(OR(N202="L", N202="kL"),VLOOKUP("F2-"&Q202,Admin!BN:BT,5,FALSE)*IF(N202="kL",1000,1)*OFFSET(Admin!$AR$3,MATCH("MJ",convSources,0),MATCH(K202,convTargets,0)),IF(N202="Kg",VLOOKUP("F2-"&Q202,Admin!BN:BT,6,FALSE)*OFFSET(Admin!$AR$3,MATCH("MJ",convSources,0),MATCH(K202,convTargets,0)),IF(N202="m3",VLOOKUP("F2-"&Q202,Admin!BN:BT,7,FALSE)*OFFSET(Admin!$AR$3,MATCH("Kg",convSources,0),MATCH(K202,convTargets,0)),OFFSET(Admin!$AR$3,MATCH(N202,convSources,0),MATCH(K202,convTargets,0)))))) -> 0 | K202: Tonnes CO2-e | L202: Auto-Calc | M202: =J36 * OFFSET(Admin!$AR$3,MATCH(K36,convSources,0),MATCH("GJ",convTargets,0)) * IFERROR(VLOOKUP(A202 & "-" & Q202,Admin!BN:BQ,4,FALSE),0) -> 0 | N202: Tonnes CO2-e | O202: NA | Q202: Aviation turbine fuel (ATF) | S202: =J36 * OFFSET(Admin!$AR$3,MATCH(K36,convSources,0),MATCH("GJ",convTargets,0)) * IFERROR(VLOOKUP(A202 & "-" & Q202,Admin!BN:CC,14,FALSE),0) -> 0 | T202: =J36 * OFFSET(Admin!$AR$3,MATCH(K36,convSources,0),MATCH("GJ",convTargets,0)) * IFERROR(VLOOKUP(A202 & "-" & Q202,Admin!BN:CC,15,FALSE),0) -> 0 | U202: =J36 * OFFSET(Admin!$AR$3,MATCH(K36,convSources,0),MATCH("GJ",convTargets,0)) * IFERROR(VLOOKUP(A202 & "-" & Q202,Admin!BN:CC,16,FALSE),0) -> 0
A203: T3 | B203: T3.6 | C203: T3 | D203: Solid fuel | E203: 1 | H203: Solid fuel | I203: Optional | J203: =IF(N203="NA",_xlfn.VALUETOTEXT(M203),M203*IF(OR(N203="L", N203="kL"),VLOOKUP("F2-"&Q203,Admin!BN:BT,5,FALSE)*IF(N203="kL",1000,1)*OFFSET(Admin!$AR$3,MATCH("MJ",convSources,0),MATCH(K203,convTargets,0)),IF(N203="Kg",VLOOKUP("F2-"&Q203,Admin!BN:BT,6,FALSE)*OFFSET(Admin!$AR$3,MATCH("MJ",convSources,0),MATCH(K203,convTargets,0)),IF(N203="m3",VLOOKUP("F2-"&Q203,Admin!BN:BT,7,FALSE)*OFFSET(Admin!$AR$3,MATCH("Kg",convSources,0),MATCH(K203,convTargets,0)),OFFSET(Admin!$AR$3,MATCH(N203,convSources,0),MATCH(K203,convTargets,0)))))) -> 0 | K203: Tonnes CO2-e | L203: Segment Aggregation | M203: =SUMIF(C:C,B203,J:J) -> 0 | N203: Tonnes CO2-e | O203: NA | Q203: Solid fuel
A204: T3 | B204: T3.6.1 | C204: T3.6 | D204: Solid fuelFRDSegmentSplitAnthracite coal | E204: =IFERROR(LEN(B204)-LEN(SUBSTITUTE(B204,".","") ),"BAD VALUE") -> 2 | H204: Anthracite coal | I204: =IF(VLOOKUP(A204,TierIndicators,3,FALSE)="Yes", "Mandatory", "Optional") -> Optional | J204: =IF(N204="NA",_xlfn.VALUETOTEXT(M204),M204*IF(OR(N204="L", N204="kL"),VLOOKUP("F2-"&Q204,Admin!BN:BT,5,FALSE)*IF(N204="kL",1000,1)*OFFSET(Admin!$AR$3,MATCH("MJ",convSources,0),MATCH(K204,convTargets,0)),IF(N204="Kg",VLOOKUP("F2-"&Q204,Admin!BN:BT,6,FALSE)*OFFSET(Admin!$AR$3,MATCH("MJ",convSources,0),MATCH(K204,convTargets,0)),IF(N204="m3",VLOOKUP("F2-"&Q204,Admin!BN:BT,7,FALSE)*OFFSET(Admin!$AR$3,MATCH("Kg",convSources,0),MATCH(K204,convTargets,0)),OFFSET(Admin!$AR$3,MATCH(N204,convSources,0),MATCH(K204,convTargets,0)))))) -> 0 | K204: Tonnes CO2-e | L204: Segment Aggregation | M204: =SUMIF(C:C,B204,J:J) -> 0 | N204: Tonnes CO2-e | O204: =IF(OR(L204="Segment Aggregation",L204="Auto-Calc"),"NA",IF(AND(I204="Mandatory",OR(M204="",N204="")), "FAIL", IF(I204="Optional","NA","PASS"))) -> NA | Q204: Anthracite coal
A205: T3 | B205: T3.6.1.1 | C205: T3.6.1 | D205: Solid fuelFRDSegmentSplitAnthracite coalFRDSegmentSplitRoad vehicles | E205: 3 | H205: Road vehicles | I205: Optional | J205: =IF(N205="NA",_xlfn.VALUETOTEXT(M205),M205*IF(OR(N205="L", N205="kL"),VLOOKUP("F2-"&Q205,Admin!BN:BT,5,FALSE)*IF(N205="kL",1000,1)*OFFSET(Admin!$AR$3,MATCH("MJ",convSources,0),MATCH(K205,convTargets,0)),IF(N205="Kg",VLOOKUP("F2-"&Q205,Admin!BN:BT,6,FALSE)*OFFSET(Admin!$AR$3,MATCH("MJ",convSources,0),MATCH(K205,convTargets,0)),IF(N205="m3",VLOOKUP("F2-"&Q205,Admin!BN:BT,7,FALSE)*OFFSET(Admin!$AR$3,MATCH("Kg",convSources,0),MATCH(K205,convTargets,0)),OFFSET(Admin!$AR$3,MATCH(N205,convSources,0),MATCH(K205,convTargets,0)))))) -> 0 | K205: Tonnes CO2-e | L205: Auto-Calc | M205: =J39 * OFFSET(Admin!$AR$3,MATCH(K39,convSources,0),MATCH("GJ",convTargets,0)) * IFERROR(VLOOKUP(A205 & "-" & Q205,Admin!BN:BQ,4,FALSE),0) -> 0 | N205: Tonnes CO2-e | O205: NA | Q205: Anthracite coal | S205: =J39 * OFFSET(Admin!$AR$3,MATCH(K39,convSources,0),MATCH("GJ",convTargets,0)) * IFERROR(VLOOKUP(A205 & "-" & Q205,Admin!BN:CC,14,FALSE),0) -> 0 | T205: =J39 * OFFSET(Admin!$AR$3,MATCH(K39,convSources,0),MATCH("GJ",convTargets,0)) * IFERROR(VLOOKUP(A205 & "-" & Q205,Admin!BN:CC,15,FALSE),0) -> 0 | U205: =J39 * OFFSET(Admin!$AR$3,MATCH(K39,convSources,0),MATCH("GJ",convTargets,0)) * IFERROR(VLOOKUP(A205 & "-" & Q205,Admin!BN:CC,16,FALSE),0) -> 0
A206: T3 | B206: T3.6.1.2 | C206: T3.6.1 | D206: Solid fuelFRDSegmentSplitAnthracite coalFRDSegmentSplitNon-road vehicles | E206: 3 | H206: Non-road vehicles | I206: Optional | J206: =IF(N206="NA",_xlfn.VALUETOTEXT(M206),M206*IF(OR(N206="L", N206="kL"),VLOOKUP("F2-"&Q206,Admin!BN:BT,5,FALSE)*IF(N206="kL",1000,1)*OFFSET(Admin!$AR$3,MATCH("MJ",convSources,0),MATCH(K206,convTargets,0)),IF(N206="Kg",VLOOKUP("F2-"&Q206,Admin!BN:BT,6,FALSE)*OFFSET(Admin!$AR$3,MATCH("MJ",convSources,0),MATCH(K206,convTargets,0)),IF(N206="m3",VLOOKUP("F2-"&Q206,Admin!BN:BT,7,FALSE)*OFFSET(Admin!$AR$3,MATCH("Kg",convSources,0),MATCH(K206,convTargets,0)),OFFSET(Admin!$AR$3,MATCH(N206,convSources,0),MATCH(K206,convTargets,0)))))) -> 0 | K206: Tonnes CO2-e | L206: Auto-Calc | M206: =J40 * OFFSET(Admin!$AR$3,MATCH(K40,convSources,0),MATCH("GJ",convTargets,0)) * IFERROR(VLOOKUP(A206 & "-" & Q206,Admin!BN:BQ,4,FALSE),0) -> 0 | N206: Tonnes CO2-e | O206: NA | Q206: Anthracite coal | S206: =J40 * OFFSET(Admin!$AR$3,MATCH(K40,convSources,0),MATCH("GJ",convTargets,0)) * IFERROR(VLOOKUP(A206 & "-" & Q206,Admin!BN:CC,14,FALSE),0) -> 0 | T206: =J40 * OFFSET(Admin!$AR$3,MATCH(K40,convSources,0),MATCH("GJ",convTargets,0)) * IFERROR(VLOOKUP(A206 & "-" & Q206,Admin!BN:CC,15,FALSE),0) -> 0 | U206: =J40 * OFFSET(Admin!$AR$3,MATCH(K40,convSources,0),MATCH("GJ",convTargets,0)) * IFERROR(VLOOKUP(A206 & "-" & Q206,Admin!BN:CC,16,FALSE),0) -> 0
A207: T3 | B207: T3.6.2 | C207: T3.6 | D207: Solid fuelFRDSegmentSplitBituminous coal | E207: 2 | H207: Bituminous coal | I207: Optional | J207: =IF(N207="NA",_xlfn.VALUETOTEXT(M207),M207*IF(OR(N207="L", N207="kL"),VLOOKUP("F2-"&Q207,Admin!BN:BT,5,FALSE)*IF(N207="kL",1000,1)*OFFSET(Admin!$AR$3,MATCH("MJ",convSources,0),MATCH(K207,convTargets,0)),IF(N207="Kg",VLOOKUP("F2-"&Q207,Admin!BN:BT,6,FALSE)*OFFSET(Admin!$AR$3,MATCH("MJ",convSources,0),MATCH(K207,convTargets,0)),IF(N207="m3",VLOOKUP("F2-"&Q207,Admin!BN:BT,7,FALSE)*OFFSET(Admin!$AR$3,MATCH("Kg",convSources,0),MATCH(K207,convTargets,0)),OFFSET(Admin!$AR$3,MATCH(N207,convSources,0),MATCH(K207,convTargets,0)))))) -> 0 | K207: Tonnes CO2-e | L207: Segment Aggregation | M207: =SUMIF(C:C,B207,J:J) -> 0 | N207: Tonnes CO2-e | O207: NA | Q207: Bituminous coal
A208: T3 | B208: T3.6.2.1 | C208: T3.6.2 | D208: Solid fuelFRDSegmentSplitBituminous coalFRDSegmentSplitRoad vehicles | E208: 3 | H208: Road vehicles | I208: Optional | J208: =IF(N208="NA",_xlfn.VALUETOTEXT(M208),M208*IF(OR(N208="L", N208="kL"),VLOOKUP("F2-"&Q208,Admin!BN:BT,5,FALSE)*IF(N208="kL",1000,1)*OFFSET(Admin!$AR$3,MATCH("MJ",convSources,0),MATCH(K208,convTargets,0)),IF(N208="Kg",VLOOKUP("F2-"&Q208,Admin!BN:BT,6,FALSE)*OFFSET(Admin!$AR$3,MATCH("MJ",convSources,0),MATCH(K208,convTargets,0)),IF(N208="m3",VLOOKUP("F2-"&Q208,Admin!BN:BT,7,FALSE)*OFFSET(Admin!$AR$3,MATCH("Kg",convSources,0),MATCH(K208,convTargets,0)),OFFSET(Admin!$AR$3,MATCH(N208,convSources,0),MATCH(K208,convTargets,0)))))) -> 0 | K208: Tonnes CO2-e | L208: Auto-Calc | M208: =J42 * OFFSET(Admin!$AR$3,MATCH(K42,convSources,0),MATCH("GJ",convTargets,0)) * IFERROR(VLOOKUP(A208 & "-" & Q208,Admin!BN:BQ,4,FALSE),0) -> 0 | N208: Tonnes CO2-e | O208: NA | Q208: Bituminous coal | S208: =J42 * OFFSET(Admin!$AR$3,MATCH(K42,convSources,0),MATCH("GJ",convTargets,0)) * IFERROR(VLOOKUP(A208 & "-" & Q208,Admin!BN:CC,14,FALSE),0) -> 0 | T208: =J42 * OFFSET(Admin!$AR$3,MATCH(K42,convSources,0),MATCH("GJ",convTargets,0)) * IFERROR(VLOOKUP(A208 & "-" & Q208,Admin!BN:CC,15,FALSE),0) -> 0 | U208: =J42 * OFFSET(Admin!$AR$3,MATCH(K42,convSources,0),MATCH("GJ",convTargets,0)) * IFERROR(VLOOKUP(A208 & "-" & Q208,Admin!BN:CC,16,FALSE),0) -> 0
A209: T3 | B209: T3.6.2.2 | C209: T3.6.2 | D209: Solid fuelFRDSegmentSplitBituminous coalFRDSegmentSplitNon-road vehicles | E209: 3 | H209: Non-road vehicles | I209: Optional | J209: =IF(N209="NA",_xlfn.VALUETOTEXT(M209),M209*IF(OR(N209="L", N209="kL"),VLOOKUP("F2-"&Q209,Admin!BN:BT,5,FALSE)*IF(N209="kL",1000,1)*OFFSET(Admin!$AR$3,MATCH("MJ",convSources,0),MATCH(K209,convTargets,0)),IF(N209="Kg",VLOOKUP("F2-"&Q209,Admin!BN:BT,6,FALSE)*OFFSET(Admin!$AR$3,MATCH("MJ",convSources,0),MATCH(K209,convTargets,0)),IF(N209="m3",VLOOKUP("F2-"&Q209,Admin!BN:BT,7,FALSE)*OFFSET(Admin!$AR$3,MATCH("Kg",convSources,0),MATCH(K209,convTargets,0)),OFFSET(Admin!$AR$3,MATCH(N209,convSources,0),MATCH(K209,convTargets,0)))))) -> 0 | K209: Tonnes CO2-e | L209: Auto-Calc | M209: =J43 * OFFSET(Admin!$AR$3,MATCH(K43,convSources,0),MATCH("GJ",convTargets,0)) * IFERROR(VLOOKUP(A209 & "-" & Q209,Admin!BN:BQ,4,FALSE),0) -> 0 | N209: Tonnes CO2-e | O209: NA | Q209: Bituminous coal | S209: =J43 * OFFSET(Admin!$AR$3,MATCH(K43,convSources,0),MATCH("GJ",convTargets,0)) * IFERROR(VLOOKUP(A209 & "-" & Q209,Admin!BN:CC,14,FALSE),0) -> 0 | T209: =J43 * OFFSET(Admin!$AR$3,MATCH(K43,convSources,0),MATCH("GJ",convTargets,0)) * IFERROR(VLOOKUP(A209 & "-" & Q209,Admin!BN:CC,15,FALSE),0) -> 0 | U209: =J43 * OFFSET(Admin!$AR$3,MATCH(K43,convSources,0),MATCH("GJ",convTargets,0)) * IFERROR(VLOOKUP(A209 & "-" & Q209,Admin!BN:CC,16,FALSE),0) -> 0
A210: T3 | B210: T3.6.3 | C210: T3.6 | D210: Solid fuelFRDSegmentSplitCoal Briquettes | E210: 2 | H210: Coal Briquettes | I210: Optional | J210: =IF(N210="NA",_xlfn.VALUETOTEXT(M210),M210*IF(OR(N210="L", N210="kL"),VLOOKUP("F2-"&Q210,Admin!BN:BT,5,FALSE)*IF(N210="kL",1000,1)*OFFSET(Admin!$AR$3,MATCH("MJ",convSources,0),MATCH(K210,convTargets,0)),IF(N210="Kg",VLOOKUP("F2-"&Q210,Admin!BN:BT,6,FALSE)*OFFSET(Admin!$AR$3,MATCH("MJ",convSources,0),MATCH(K210,convTargets,0)),IF(N210="m3",VLOOKUP("F2-"&Q210,Admin!BN:BT,7,FALSE)*OFFSET(Admin!$AR$3,MATCH("Kg",convSources,0),MATCH(K210,convTargets,0)),OFFSET(Admin!$AR$3,MATCH(N210,convSources,0),MATCH(K210,convTargets,0)))))) -> 0 | K210: Tonnes CO2-e | L210: Segment Aggregation | M210: =SUMIF(C:C,B210,J:J) -> 0 | N210: Tonnes CO2-e | O210: NA | Q210: Coal Briquettes
A211: T3 | B211: T3.6.3.1 | C211: T3.6.3 | D211: Solid fuelFRDSegmentSplitCoal BriquettesFRDSegmentSplitRoad vehicles | E211: 3 | H211: Road vehicles | I211: Optional | J211: =IF(N211="NA",_xlfn.VALUETOTEXT(M211),M211*IF(OR(N211="L", N211="kL"),VLOOKUP("F2-"&Q211,Admin!BN:BT,5,FALSE)*IF(N211="kL",1000,1)*OFFSET(Admin!$AR$3,MATCH("MJ",convSources,0),MATCH(K211,convTargets,0)),IF(N211="Kg",VLOOKUP("F2-"&Q211,Admin!BN:BT,6,FALSE)*OFFSET(Admin!$AR$3,MATCH("MJ",convSources,0),MATCH(K211,convTargets,0)),IF(N211="m3",VLOOKUP("F2-"&Q211,Admin!BN:BT,7,FALSE)*OFFSET(Admin!$AR$3,MATCH("Kg",convSources,0),MATCH(K211,convTargets,0)),OFFSET(Admin!$AR$3,MATCH(N211,convSources,0),MATCH(K211,convTargets,0)))))) -> 0 | K211: Tonnes CO2-e | L211: Auto-Calc | M211: =J45 * OFFSET(Admin!$AR$3,MATCH(K45,convSources,0),MATCH("GJ",convTargets,0)) * IFERROR(VLOOKUP(A211 & "-" & Q211,Admin!BN:BQ,4,FALSE),0) -> 0 | N211: Tonnes CO2-e | O211: NA | Q211: Coal Briquettes | S211: =J45 * OFFSET(Admin!$AR$3,MATCH(K45,convSources,0),MATCH("GJ",convTargets,0)) * IFERROR(VLOOKUP(A211 & "-" & Q211,Admin!BN:CC,14,FALSE),0) -> 0 | T211: =J45 * OFFSET(Admin!$AR$3,MATCH(K45,convSources,0),MATCH("GJ",convTargets,0)) * IFERROR(VLOOKUP(A211 & "-" & Q211,Admin!BN:CC,15,FALSE),0) -> 0 | U211: =J45 * OFFSET(Admin!$AR$3,MATCH(K45,convSources,0),MATCH("GJ",convTargets,0)) * IFERROR(VLOOKUP(A211 & "-" & Q211,Admin!BN:CC,16,FALSE),0) -> 0
A212: T3 | B212: T3.6.3.2 | C212: T3.6.3 | D212: Solid fuelFRDSegmentSplitCoal BriquettesFRDSegmentSplitNon-road vehicles | E212: 3 | H212: Non-road vehicles | I212: Optional | J212: =IF(N212="NA",_xlfn.VALUETOTEXT(M212),M212*IF(OR(N212="L", N212="kL"),VLOOKUP("F2-"&Q212,Admin!BN:BT,5,FALSE)*IF(N212="kL",1000,1)*OFFSET(Admin!$AR$3,MATCH("MJ",convSources,0),MATCH(K212,convTargets,0)),IF(N212="Kg",VLOOKUP("F2-"&Q212,Admin!BN:BT,6,FALSE)*OFFSET(Admin!$AR$3,MATCH("MJ",convSources,0),MATCH(K212,convTargets,0)),IF(N212="m3",VLOOKUP("F2-"&Q212,Admin!BN:BT,7,FALSE)*OFFSET(Admin!$AR$3,MATCH("Kg",convSources,0),MATCH(K212,convTargets,0)),OFFSET(Admin!$AR$3,MATCH(N212,convSources,0),MATCH(K212,convTargets,0)))))) -> 0 | K212: Tonnes CO2-e | L212: Auto-Calc | M212: =J46 * OFFSET(Admin!$AR$3,MATCH(K46,convSources,0),MATCH("GJ",convTargets,0)) * IFERROR(VLOOKUP(A212 & "-" & Q212,Admin!BN:BQ,4,FALSE),0) -> 0 | N212: Tonnes CO2-e | O212: NA | Q212: Coal Briquettes | S212: =J46 * OFFSET(Admin!$AR$3,MATCH(K46,convSources,0),MATCH("GJ",convTargets,0)) * IFERROR(VLOOKUP(A212 & "-" & Q212,Admin!BN:CC,14,FALSE),0) -> 0 | T212: =J46 * OFFSET(Admin!$AR$3,MATCH(K46,convSources,0),MATCH("GJ",convTargets,0)) * IFERROR(VLOOKUP(A212 & "-" & Q212,Admin!BN:CC,15,FALSE),0) -> 0 | U212: =J46 * OFFSET(Admin!$AR$3,MATCH(K46,convSources,0),MATCH("GJ",convTargets,0)) * IFERROR(VLOOKUP(A212 & "-" & Q212,Admin!BN:CC,16,FALSE),0) -> 0
... 14 more rows

Sheet Total Energy Use
B6: =Agency&" | "&Tier&" | "&ReportingPeriod -> | | -
B8: <- Back to Home | F8: Sheet complete: | H8: =IFERROR(IF(COUNTIF(O:O,"Pass")+COUNTIF(O:O,"FAIL")=0,"NA",IF(VLOOKUP("FAIL",O:O,1,FALSE) = "FAIL", IF(COUNTIF(O:O,"Pass")=0,"Not Started","In Progress"),"Complete")),"Complete") -> NA
H9: =IF(NOT(OR(H8="Complete",H8="NA")),"*Mandatory values have not been entered, revisit highlighted items","") -> 
B10: Total Energy Use - Reporting
B13: E1 | C13: Total energy usage from fuels, including stationary fuels (F1) and transport fuels (T1)
B14: ID | C14: Parent ID | D14: FRDSegment | E14: Segment Level | H14: Description | I14: Flag | J14: Final Value | K14: Final Unit | L14: Input Type | M14: Input Value | N14: Input Unit | O14: CHECK
A15: E1 | B15: E1 | C15: NA | D15: =IF(E15=1,H15,IFERROR(VLOOKUP(C15,$B$14:$D$1048576,3,FALSE)&"FRDSegmentSplit"&H15,H15)) -> GRAND TOTAL | E15: =IFERROR(LEN(B15)-LEN(SUBSTITUTE(B15,".","") ),"BAD VALUE") -> 0 | H15: GRAND TOTAL | I15: =IF(VLOOKUP(A15,TierIndicators,3,FALSE)="Yes", "Mandatory", "Optional") -> Optional | J15: =IF(N15="NA", _xlfn.VALUETOTEXT(M15), M15*OFFSET(Admin!$AR$3,MATCH(N15,convSources,0),MATCH(K15,convTargets,0))) -> 0 | K15: MJ | L15: Segment Aggregation | M15: =SUMIF(C:C,B15,J:J) -> 0 | N15: MJ | O15: =IF(OR(L15="Segment Aggregation",L15="Auto-Calc"),"NA",IF(AND(I15="Mandatory",OR(M15="",N15="")), "FAIL", IF(I15="Optional","NA","PASS"))) -> NA | Q15: GRAND TOTAL
A16: E1 | B16: E1.1 | C16: E1 | D16: =IF(E16=1,H16,IFERROR(VLOOKUP(C16,$B$14:$D$1048576,3,FALSE)&"FRDSegmentSplit"&H16,H16)) -> Total energy usage from stationary fuels (F1) | E16: =IFERROR(LEN(B16)-LEN(SUBSTITUTE(B16,".","") ),"BAD VALUE") -> 1 | H16: Total energy usage from stationary fuels (F1) | I16: =IF(VLOOKUP(A16,TierIndicators,3,FALSE)="Yes", "Mandatory", "Optional") -> Optional | J16: =IF(N16="NA", _xlfn.VALUETOTEXT(M16), M16*OFFSET(Admin!$AR$3,MATCH(N16,convSources,0),MATCH(K16,convTargets,0))) -> 0 | K16: MJ | L16: Auto-Calc | M16: ='Stationary Fuel Use'!M15 -> 0 | N16: ='Stationary Fuel Use'!N15 -> MJ | O16: NA | Q16: Total energy usage from fuels (F1)
A17: E1 | B17: E1.2 | C17: E1 | D17: =IF(E17=1,H17,IFERROR(VLOOKUP(C17,$B$14:$D$1048576,3,FALSE)&"FRDSegmentSplit"&H17,H17)) -> Total energy usage from transport (T1) | E17: =IFERROR(LEN(B17)-LEN(SUBSTITUTE(B17,".","") ),"BAD VALUE") -> 1 | H17: Total energy usage from transport (T1) | I17: =IF(VLOOKUP(A17,TierIndicators,3,FALSE)="Yes", "Mandatory", "Optional") -> Optional | J17: =IF(N17="NA", _xlfn.VALUETOTEXT(M17), M17*OFFSET(Admin!$AR$3,MATCH(N17,convSources,0),MATCH(K17,convTargets,0))) -> 0 | K17: MJ | L17: Auto-Calc | M17: =Transportation!M15-(Transportation!J51*OFFSET(Admin!$AR$3,MATCH(Transportation!K51,convSources,0),MATCH("MJ",convTargets,0))) -> 0 | N17: =Transportation!N15 -> MJ | O17: NA | Q17: Total energy usage from transport (T1)
B20: E2 | C20: Total energy usage from electricity
B21: ID | C21: Parent ID | D21: FRDSegment | E21: Segment Level | H21: Description | I21: Flag | J21: Final Value | K21: Final Unit | L21: Input Type | M21: Input Value | N21: Input Unit | O21: CHECK
A22: E2 | B22: E2 | C22: NA | D22: =IF(E22=1,H22,IFERROR(VLOOKUP(C22,$B$14:$D$1048576,3,FALSE)&"FRDSegmentSplit"&H22,H22)) -> GRAND TOTAL | E22: =IFERROR(LEN(B22)-LEN(SUBSTITUTE(B22,".","") ),"BAD VALUE") -> 0 | H22: GRAND TOTAL | I22: =IF(VLOOKUP(A22,TierIndicators,3,FALSE)="Yes", "Mandatory", "Optional") -> Optional | J22: =IF(N22="NA", _xlfn.VALUETOTEXT(M22), M22*OFFSET(Admin!$AR$3,MATCH(N22,convSources,0),MATCH(K22,convTargets,0))) -> 0 | K22: MJ | L22: Segment Aggregation | M22: =SUMIF(C:C,B22,J:J) -> 0 | N22: MJ | O22: =IF(OR(L22="Segment Aggregation",L22="Auto-Calc"),"NA",IF(AND(I22="Mandatory",OR(M22="",N22="")), "FAIL", IF(I22="Optional","NA","PASS"))) -> NA | Q22: GRAND TOTAL
A23: E2 | B23: E2.1 | C23: E2 | D23: =IF(E23=1,H23,IFERROR(VLOOKUP(C23,$B$14:$D$1048576,3,FALSE)&"FRDSegmentSplit"&H23,H23)) -> Total energy usage from electricity (EL1) | E23: =IFERROR(LEN(B23)-LEN(SUBSTITUTE(B23,".","") ),"BAD VALUE") -> 1 | H23: Total energy usage from electricity (EL1) | I23: =IF(VLOOKUP(A23,TierIndicators,3,FALSE)="Yes", "Mandatory", "Optional") -> Optional | J23: =IF(N23="NA", _xlfn.VALUETOTEXT(M23), M23*OFFSET(Admin!$AR$3,MATCH(N23,convSources,0),MATCH(K23,convTargets,0))) -> 0 | K23: MJ | L23: Auto-Calc | M23: ='Electricity Use'!M15-'Electricity Use'!J30-'Electricity Use'!J31 -> 0 | N23: ='Electricity Use'!N15 -> MWh | O23: NA | Q23: Total energy usage from electricity (EL1)
B26: E3 | C26: Total energy usage segmented by renewable and non-renewable sources
B27: ID | C27: Parent ID | D27: FRDSegment | E27: Segment Level | H27: Description | I27: Flag | J27: Final Value | K27: Final Unit | L27: Input Type | M27: Input Value | N27: Input Unit | O27: CHECK
A28: E3 | B28: E3 | C28: NA | D28: =IF(E28=1,H28,IFERROR(VLOOKUP(C28,$B$14:$D$1048576,3,FALSE)&"FRDSegmentSplit"&H28,H28)) -> GRAND TOTAL | E28: =IFERROR(LEN(B28)-LEN(SUBSTITUTE(B28,".","") ),"BAD VALUE") -> 0 | H28: GRAND TOTAL | I28: =IF(VLOOKUP(A28,TierIndicators,3,FALSE)="Yes", "Mandatory", "Optional") -> Optional | J28: =IF(N28="NA", _xlfn.VALUETOTEXT(M28), M28*OFFSET(Admin!$AR$3,MATCH(N28,convSources,0),MATCH(K28,convTargets,0))) -> 0 | K28: MJ | L28: Segment Aggregation | M28: =SUMIF(C:C,B28,J:J) -> 0 | N28: MJ | O28: =IF(OR(L28="Segment Aggregation",L28="Auto-Calc"),"NA",IF(AND(I28="Mandatory",OR(M28="",N28="")), "FAIL", IF(I28="Optional","NA","PASS"))) -> NA | Q28: GRAND TOTAL
A29: E3 | B29: E3.1 | C29: E3 | D29: =IF(E29=1,H29,IFERROR(VLOOKUP(C29,$B$14:$D$1048576,3,FALSE)&"FRDSegmentSplit"&H29,H29)) -> Renewable | E29: =IFERROR(LEN(B29)-LEN(SUBSTITUTE(B29,".","") ),"BAD VALUE") -> 1 | H29: Renewable | I29: =IF(VLOOKUP(A29,TierIndicators,3,FALSE)="Yes", "Mandatory", "Optional") -> Optional | J29: =IF(N29="NA", _xlfn.VALUETOTEXT(M29), M29*OFFSET(Admin!$AR$3,MATCH(N29,convSources,0),MATCH(K29,convTargets,0))) -> 0 | K29: MJ | L29: Auto-Calc | M29: ='Market-based calc'!C15*OFFSET(Admin!$AR$3,MATCH("KWh",convSources,0),MATCH("MJ",convTargets,0)) +IF(AND('Stationary Fuel Use'!M56=0,NOT(ISBLANK('Stationary Fuel Use'!M56))),'Stationary Fuel Use'!J21+'Stationary Fuel Use'!J37,0) +IF(AND(Transportation!M193=0,NOT(ISBLANK(Transportation!M193))),Transportation!J27,0)+IF(AND(Transportation!M194=0,NOT(ISBLANK(Transportation!M194))),Transportation!J28,0) +IF(AND(Transportation!M214=0,NOT(ISBLANK(Transportation!M214))),Transportation!J48,0)+IF(AND(Transportation!M215=0,NOT(ISBLANK(Transportation!M215))),Transportation!J49,0) -> 0 | N29: MJ | O29: NA | Q29: Renewable
A30: E3 | B30: E3.2 | C30: E3 | D30: =IF(E30=1,H30,IFERROR(VLOOKUP(C30,$B$14:$D$1048576,3,FALSE)&"FRDSegmentSplit"&H30,H30)) -> Non-Renewable | E30: =IFERROR(LEN(B30)-LEN(SUBSTITUTE(B30,".","") ),"BAD VALUE") -> 1 | H30: Non-Renewable | I30: =IF(VLOOKUP(A30,TierIndicators,3,FALSE)="Yes", "Mandatory", "Optional") -> Optional | J30: =IF(N30="NA", _xlfn.VALUETOTEXT(M30), M30*OFFSET(Admin!$AR$3,MATCH(N30,convSources,0),MATCH(K30,convTargets,0))) -> 0 | K30: MJ | L30: Auto-Calc | M30: =SUM(M15,M22)-M29 -> 0 | N30: MJ | O30: NA | Q30: Non-Renewable
B33: E4 | C33: Units of energy used normalised
B34: ID | C34: Parent ID | D34: FRDSegment | E34: Segment Level | H34: Description | I34: Flag | J34: Final Value | K34: Final Unit | L34: Input Type | M34: Input Value | N34: Input Unit | O34: CHECK
A35: E4 | B35: E4 | C35: NA | D35: =IF(E35=1,H35,IFERROR(VLOOKUP(C35,$B$14:$D$1048576,3,FALSE)&"FRDSegmentSplit"&H35,H35)) -> GRAND TOTAL | E35: =IFERROR(LEN(B35)-LEN(SUBSTITUTE(B35,".","") ),"BAD VALUE") -> 0 | H35: GRAND TOTAL | I35: =IF(VLOOKUP(A35,TierIndicators,3,FALSE)="Yes", "Mandatory", "Optional") -> Optional | J35: =M35 -> 0 | K35: MJ | L35: Auto-Calc | M35: =IFERROR(J28/M37,0) -> 0 | N35: MJ | O35: =IF(OR(L35="Segment Aggregation",L35="Auto-Calc"),"NA",IF(AND(I35="Mandatory",OR(M35="",N35="")), "FAIL", IF(I35="Optional","NA","PASS"))) -> NA | Q35: GRAND TOTAL
A36: E4 | B36: E4.1 | C36: E4 | D36: =IF(E36=1,H36,IFERROR(VLOOKUP(C36,$B$14:$D$1048576,3,FALSE)&"FRDSegmentSplit"&H36,H36)) -> Normalisation Factor | E36: =IFERROR(LEN(B36)-LEN(SUBSTITUTE(B36,".","") ),"BAD VALUE") -> 1 | H36: Normalisation Factor | I36: =IF(VLOOKUP(A36,TierIndicators,3,FALSE)="Yes", "Mandatory", "Optional") -> Optional | J36: =M36 -> 0 | K36: Text | L36: Dropdown | N36: Text | O36: NA | Q36: Normalisation Factor
A37: E4 | B37: E4.2 | C37: E4 | D37: =IF(E37=1,H37,IFERROR(VLOOKUP(C37,$B$14:$D$1048576,3,FALSE)&"FRDSegmentSplit"&H37,H37)) -> Normalisation Factor Value | E37: =IFERROR(LEN(B37)-LEN(SUBSTITUTE(B37,".","") ),"BAD VALUE") -> 1 | H37: Normalisation Factor Value | I37: =IF(VLOOKUP(A37,TierIndicators,3,FALSE)="Yes", "Mandatory", "Optional") -> Optional | J37: =M37 -> 0 | K37: Qty | L37: Manual | N37: Qty | O37: NA | Q37: Normalisation Factor Value
A38: E4 | B38: E4.3 | C38: E4 | D38: =IF(E38=1,H38,IFERROR(VLOOKUP(C38,$B$14:$D$1048576,3,FALSE)&"FRDSegmentSplit"&H38,H38)) -> Normalisation Factor Description - provide if selected "other" as factor | E38: =IFERROR(LEN(B38)-LEN(SUBSTITUTE(B38,".","") ),"BAD VALUE") -> 1 | H38: Normalisation Factor Description - provide if selected "other" as factor | I38: Optional | J38: =M38 -> 0 | K38: Text | L38: Text | N38: Text | O38: NA | Q38: Normalisation Factor Description - provide if selected "Other" as factor

Sheet Sust.Buildings & Infrastructure
B6: =Agency&" | "&Tier&" | "&ReportingPeriod -> | | -
B8: <- Back to Home | F8: Sheet complete: | H8: =IFERROR(IF(COUNTIF(O:O,"Pass")+COUNTIF(O:O,"FAIL")=0,"NA",IF(VLOOKUP("FAIL",O:O,1,FALSE) = "FAIL", IF(COUNTIF(O:O,"Pass")=0,"Not Started","In Progress"),"Complete")),"Complete") -> NA
H9: =IF(NOT(OR(H8="Complete",H8="NA")),"*Mandatory values have not been entered, revisit highlighted items","") -> 
B10: Sustainable Buildings and Infrastructure - Reporting
B13: B3 | C13: NABERS Energy (National Australian Built Environment Rating system) ratings of newly completed/occupied Entity-owned office buildings and substantial tenancy fit-outs (itemised)
B14: ID | C14: Parent ID | D14: FRDSegment | E14: Segment Level | H14: Description | I14: Flag | J14: Final Value | K14: Final Unit | L14: Input Type | M14: Input Value | N14: Input Unit | O14: CHECK
A15: B3 | B15: B3.1 | C15: B3 | D15: =IF(E15=1,H15,IFERROR(VLOOKUP(C15,$B$14:$D$1048576,3,FALSE)&"FRDSegmentSplit"&H15,H15)) -> New Building, Owned (Report NABERS Energy Rating of office accommodation) | E15: =IFERROR(LEN(B15)-LEN(SUBSTITUTE(B15,".","") ),"BAD VALUE") -> 1 | F15: + (add segment) | H15: New Building, Owned (Report NABERS Energy Rating of office accommodation) | I15: =IF(VLOOKUP(A15,TierIndicators,3,FALSE)="Yes", "Mandatory", "Optional") -> Optional | J15: =M15 -> No aggregation | K15: NA | M15: No aggregation | N15: NA | O15: NA | Q15: New Building, Owned (Report NABERS Energy Rating of office accommodation)
A16: B3 | B16: =C16 & "." & COUNTIF($C$1:OFFSET(C16,-1,0),C16) +1 -> B3.1.1 | C16: B3.1 | D16: =IF(E16=1,H16,IFERROR(VLOOKUP(C16,$B$14:$D$1048576,3,FALSE)&"FRDSegmentSplit"&H16,H16)) -> New Building, Owned (Report NABERS Energy Rating of office accommodation)FRDSegmentSplitExample Building 1 | E16: =IFERROR(LEN(B16)-LEN(SUBSTITUTE(B16,".","") ),"BAD VALUE") -> 2 | G16: - (delete) | H16: Example Building 1 | I16: =IF(VLOOKUP(A16,TierIndicators,3,FALSE)="Yes", "Mandatory", "Optional") -> Optional | J16: =M16 -> 0 | K16: NA | L16: Manual | N16: NA | O16: =IF(OR(L16="Segment Aggregation",L16="Auto-Calc"),"NA",IF(AND(I16="Mandatory",OR(M16="",N16="")), "FAIL", IF(I16="Optional","NA","PASS"))) -> NA | Q16: Example Building 1
A17: B3 | B17: B3.2 | C17: B3 | D17: =IF(E17=1,H17,IFERROR(VLOOKUP(C17,$B$14:$D$1048576,3,FALSE)&"FRDSegmentSplit"&H17,H17)) -> Existing Building, Leased (Report Tenancy NABERS Energy Rating if a substantial fit-out is done by the entity) | E17: =IFERROR(LEN(B17)-LEN(SUBSTITUTE(B17,".","") ),"BAD VALUE") -> 1 | F17: + (add segment) | H17: Existing Building, Leased (Report Tenancy NABERS Energy Rating if a substantial fit-out is done by the entity) | I17: =IF(VLOOKUP(A17,TierIndicators,3,FALSE)="Yes", "Mandatory", "Optional") -> Optional | J17: =M17 -> No aggregation | K17: NA | M17: No aggregation | N17: NA | O17: NA | Q17: Existing Building, Leased (Report Tenancy NABERS Energy Rating if a substantial fit-out is done by the entity)
A18: B3 | B18: =C18 & "." & COUNTIF($C$1:OFFSET(C18,-1,0),C18) +1 -> B3.2.1 | C18: B3.2 | D18: =IF(E18=1,H18,IFERROR(VLOOKUP(C18,$B$14:$D$1048576,3,FALSE)&"FRDSegmentSplit"&H18,H18)) -> Existing Building, Leased (Report Tenancy NABERS Energy Rating if a substantial fit-out is done by the entity)FRDSegmentSplitExample Building 2 | E18: =IFERROR(LEN(B18)-LEN(SUBSTITUTE(B18,".","") ),"BAD VALUE") -> 2 | G18: - (delete) | H18: Example Building 2 | I18: =IF(VLOOKUP(A18,TierIndicators,3,FALSE)="Yes", "Mandatory", "Optional") -> Optional | J18: =M18 -> 0 | K18: NA | L18: Manual | N18: NA | O18: NA | Q18: Example Building 2
B21: B4 | C21: Environmental performance ratings (eg. NABERS, Green Star, or ISCAIS rating scheme) of newly completed Entity-owned non-office building or infrastructure projects or upgrades with a value over $1 million
B22: ID | C22: Parent ID | D22: FRDSegment | E22: Segment Level | H22: Description | I22: Flag | J22: Final Value | K22: Final Unit | L22: Input Type | M22: Input Value | N22: Input Unit | O22: CHECK
A23: B4 | B23: B4.1 | C23: B4 | D23: =IF(E23=1,H23,IFERROR(VLOOKUP(C23,$B$14:$D$1048576,3,FALSE)&"FRDSegmentSplit"&H23,H23)) -> Rating scheme | E23: =IFERROR(LEN(B23)-LEN(SUBSTITUTE(B23,".","") ),"BAD VALUE") -> 1 | F23: + (add segment) | H23: Rating scheme | I23: =IF(VLOOKUP(A23,TierIndicators,3,FALSE)="Yes", "Mandatory", "Optional") -> Optional | J23: =M23 -> No aggregation | K23: NA | M23: No aggregation | N23: NA | O23: =IF(OR(L23="Segment Aggregation",L23="Auto-Calc"),"NA",IF(AND(I23="Mandatory",OR(M23="",N23="")), "FAIL", IF(I23="Optional","NA","PASS"))) -> NA | Q23: Rating scheme
A24: B4 | B24: B4.1.1 | C24: B4.1 | D24: Rating schemeFRDSegmentSplitNABERS Energy | E24: 2 | F24: + (add segment) | H24: NABERS Energy | I24: Optional | J24: =M24 -> No aggregation | K24: NA | M24: No aggregation | N24: NA | O24: NA | Q24: NABERS
A25: B4 | B25: B4.1.1.1 | C25: B4.1.1 | D25: Rating schemeFRDSegmentSplitNABERS EnergyFRDSegmentSplitExample Building 1 | E25: 3 | F25: + (add segment) | G25: - (delete) | H25: Example Building 1 | I25: Optional | J25: =M25 -> 0 | K25: NA | L25: Manual | N25: NA | O25: NA | Q25: Example Building 1
A26: B4 | B26: B4.1.2 | C26: B4.1 | D26: Rating schemeFRDSegmentSplitGreen Star Communities | E26: 2 | F26: + (add segment) | H26: Green Star Communities | I26: Optional | J26: No aggregation | K26: NA | M26: No aggregation | N26: NA | O26: NA | Q26: Green Star
A27: B4 | B27: B4.1.2.1 | C27: B4.1.2 | D27: Rating schemeFRDSegmentSplitGreen Star CommunitiesFRDSegmentSplitExample Building 2 | E27: 3 | F27: + (add segment) | G27: - (delete) | H27: Example Building 2 | I27: Optional | J27: 0 | K27: NA | L27: Manual | N27: NA | O27: NA | Q27: Example Building 2
A28: B4 | B28: B4.1.3 | C28: B4.1 | D28: Rating schemeFRDSegmentSplitISCA - Infrastructure Sustainability rating | E28: 2 | F28: + (add segment) | H28: ISCA - Infrastructure Sustainability rating | I28: Optional | J28: No aggregation | K28: NA | M28: No aggregation | N28: NA | O28: NA | Q28: ISCA IS
A29: B4 | B29: =C29 & "." & COUNTIF($C$1:OFFSET(C29,-1,0),C29) +1 -> B4.1.3.1 | C29: B4.1.3 | D29: Rating schemeFRDSegmentSplitISCA - Infrastructure Sustainability rating FRDSegmentSplitExample Building 3 | E29: =IFERROR(LEN(B29)-LEN(SUBSTITUTE(B29,".","") ),"BAD VALUE") -> 3 | F29: + (add segment) | G29: - (delete) | H29: Example Building 3 | I29: =IF(VLOOKUP(A29,TierIndicators,3,FALSE)="Yes", "Mandatory", "Optional") -> Optional | J29: =M29 -> 0 | K29: NA | L29: Manual | N29: NA | O29: NA | Q29: ISCA IS
B32: B5 | C32: Environmental performance ratings achieved for Entity-owned assets portfolio segmented by rating scheme and building, facility, or infrastructure type, where these ratings have been conducted
B33: ID | C33: Parent ID | D33: FRDSegment | E33: Segment Level | H33: Description | I33: Flag | J33: Final Value | K33: Final Unit | L33: Input Type | M33: Input Value | N33: Input Unit | O33: CHECK
A34: B5 | B34: B5.1 | C34: B5 | D34: =IF(E34=1,H34,IFERROR(VLOOKUP(C34,$B$14:$D$1048576,3,FALSE)&"FRDSegmentSplit"&H34,H34)) -> Rating scheme | E34: =IFERROR(LEN(B34)-LEN(SUBSTITUTE(B34,".","") ),"BAD VALUE") -> 1 | F34: + (add segment) | H34: Rating scheme | I34: =IF(VLOOKUP(A34,TierIndicators,3,FALSE)="Yes", "Mandatory", "Optional") -> Optional | J34: =M34 -> No aggregation | K34: NA | M34: No aggregation | N34: NA | O34: =IF(OR(L34="Segment Aggregation",L34="Auto-Calc"),"NA",IF(AND(I34="Mandatory",OR(M34="",N34="")), "FAIL", IF(I34="Optional","NA","PASS"))) -> NA | Q34: Rating scheme

Sheet Water Use
B6: =Agency&" | "&Tier&" | "&ReportingPeriod -> | | -
B8: <- Back to Home | F8: Sheet complete: | H8: =IFERROR(IF(COUNTIF(O:O,"Pass")+COUNTIF(O:O,"FAIL")=0,"NA",IF(VLOOKUP("FAIL",O:O,1,FALSE) = "FAIL", IF(COUNTIF(O:O,"Pass")=0,"Not Started","In Progress"),"Complete")),"Complete") -> NA
H9: =IF(NOT(OR(H8="Complete",H8="NA")),"*Mandatory values have not been entered, revisit highlighted items","") -> 
B10: Water Use - Reporting
B13: W1 | C13: Total units of metered water consumed by water source
B14: ID | C14: Parent ID | D14: FRDSegment | E14: Segment Level | H14: Description | I14: Flag | J14: Final Value | K14: Final Unit | L14: Input Type | M14: Input Value | N14: Input Unit | O14: CHECK
A15: W1 | B15: W1 | C15: NA | D15: =IF(E15=1,H15,IFERROR(VLOOKUP(C15,$B$14:$D$1048576,3,FALSE)&"FRDSegmentSplit"&H15,H15)) -> GRAND TOTAL | E15: =IFERROR(LEN(B15)-LEN(SUBSTITUTE(B15,".","") ),"BAD VALUE") -> 0 | H15: GRAND TOTAL | I15: =IF(VLOOKUP(A15,TierIndicators,3,FALSE)="Yes", "Mandatory", "Optional") -> Optional | J15: =IF(N15="NA", _xlfn.VALUETOTEXT(M15), M15*OFFSET(Admin!$AR$3,MATCH(N15,convSources,0),MATCH(K15,convTargets,0))) -> 0 | K15: kL (water) | L15: Segment Aggregation | M15: =SUMIF(C:C,B15,J:J) -> 0 | N15: kL (water) | O15: =IF(OR(L15="Segment Aggregation",L15="Auto-Calc"),"NA",IF(AND(I15="Mandatory",OR(M15="",N15="")), "FAIL", IF(I15="Optional","NA","PASS"))) -> NA | Q15: GRAND TOTAL
A16: W1 | B16: W1.1 | C16: W1 | D16: =IF(E16=1,H16,IFERROR(VLOOKUP(C16,$B$14:$D$1048576,3,FALSE)&"FRDSegmentSplit"&H16,H16)) -> Potable water consumption (from town water supply) | E16: =IFERROR(LEN(B16)-LEN(SUBSTITUTE(B16,".","") ),"BAD VALUE") -> 1 | F16: + (add segment) | H16: Potable water consumption (from town water supply) | I16: =IF(VLOOKUP(A16,TierIndicators,3,FALSE)="Yes", "Mandatory", "Optional") -> Optional | J16: =IF(N16="NA", _xlfn.VALUETOTEXT(M16), M16*OFFSET(Admin!$AR$3,MATCH(N16,convSources,0),MATCH(K16,convTargets,0))) -> 0 | K16: kL (water) | L16: Manual | N16: kL (water) | O16: NA | Q16: Potable water consumption (from town water supply)
A17: W1 | B17: W1.2 | C17: W1 | D17: =IF(E17=1,H17,IFERROR(VLOOKUP(C17,$B$14:$D$1048576,3,FALSE)&"FRDSegmentSplit"&H17,H17)) -> Metered rainwater collection consumption | E17: =IFERROR(LEN(B17)-LEN(SUBSTITUTE(B17,".","") ),"BAD VALUE") -> 1 | F17: + (add segment) | H17: Metered rainwater collection consumption | I17: =IF(VLOOKUP(A17,TierIndicators,3,FALSE)="Yes", "Mandatory", "Optional") -> Optional | J17: =IF(N17="NA", _xlfn.VALUETOTEXT(M17), M17*OFFSET(Admin!$AR$3,MATCH(N17,convSources,0),MATCH(K17,convTargets,0))) -> 0 | K17: kL (water) | L17: Manual | N17: kL (water) | O17: NA | Q17: Metered rainwater collection consumption
A18: W1 | B18: W1.3 | C18: W1 | D18: =IF(E18=1,H18,IFERROR(VLOOKUP(C18,$B$14:$D$1048576,3,FALSE)&"FRDSegmentSplit"&H18,H18)) -> Metered alternate supply consumption (eg. River, stream, aquifer, bore, fire supply, third pipe etc) | E18: =IFERROR(LEN(B18)-LEN(SUBSTITUTE(B18,".","") ),"BAD VALUE") -> 1 | F18: + (add segment) | H18: Metered alternate supply consumption (eg. River, stream, aquifer, bore, fire supply, third pipe etc) | I18: =IF(VLOOKUP(A18,TierIndicators,3,FALSE)="Yes", "Mandatory", "Optional") -> Optional | J18: =IF(N18="NA", _xlfn.VALUETOTEXT(M18), M18*OFFSET(Admin!$AR$3,MATCH(N18,convSources,0),MATCH(K18,convTargets,0))) -> 0 | K18: kL (water) | L18: Manual | N18: kL (water) | O18: NA | Q18: Metered alternate supply consumption (eg. River, stream, aquifer, bore, fire supply, third pipe etc)
A19: W1 | B19: W1.4 | C19: W1 | D19: =IF(E19=1,H19,IFERROR(VLOOKUP(C19,$B$14:$D$1048576,3,FALSE)&"FRDSegmentSplit"&H19,H19)) -> Metered reused water consumption (eg. Grey or black water) | E19: =IFERROR(LEN(B19)-LEN(SUBSTITUTE(B19,".","") ),"BAD VALUE") -> 1 | F19: + (add segment) | H19: Metered reused water consumption (eg. Grey or black water) | I19: =IF(VLOOKUP(A19,TierIndicators,3,FALSE)="Yes", "Mandatory", "Optional") -> Optional | J19: =IF(N19="NA", _xlfn.VALUETOTEXT(M19), M19*OFFSET(Admin!$AR$3,MATCH(N19,convSources,0),MATCH(K19,convTargets,0))) -> 0 | K19: kL (water) | L19: Manual | N19: kL (water) | O19: NA | Q19: Metered reused water consumption (eg. Grey or black water)
B22: W2 | C22: Units of metered water consumed normalised by FTE, headcount, floor area, or other entity or sector specific quantity
B23: ID | C23: Parent ID | D23: FRDSegment | E23: Segment Level | H23: Description | I23: Flag | J23: Final Value | K23: Final Unit | L23: Input Type | M23: Input Value | N23: Input Unit | O23: CHECK
